Workbook

Sheet Introduktion

Sheet Benzin - diesel - hybrid
B2: TCO-værktøj til tilbudsevaluering
B3: Benzin - diesel - hybrid (uden opladning) - Operationel leasing
B7: 4 Tilbudsgiver: Oplysninger om produktet
C8: Produktets navn | D8: Egen reference | E8: PRODUKT 1 | G8: PRODUKT 2 | I8: PRODUKT 3 | K8: PRODUKT 4 | M8: PRODUKT 5 | O8: PRODUKT 6 | Q8: PRODUKT 7 | S8: PRODUKT 8 | U8: PRODUKT 9 | W8: PRODUKT 10
C9: Produktbeskrivelse | D9: Egen reference
C10: Varenr. | D10: Egen reference
C11: Investeringsomkostninger
C12: Evt. etableringsgebyr | D12: kr. / køretøj
C14: Driftsomkostninger
C15: Brændstofforbrug (jf. WLTP eller VECTO) | D15: km/liter
C17: Service, vedligehold og løbende omkostninger
C18: Pris finansieret via leasing jf. kravspecifikation | D18: kr./ år / køretøj
C19: Grøn ejerafgift | D19: kr./ år / køretøj
C21: Miljøudledninger
C22: CO2-emission ifølge WLTP | D22: g CO2/km
C23: NOx-emission | D23: mg NOx/km
C24: Partikelemission | D24: mg partikler/km
B28: 3 Ordregiver: Værdisætning af samfundsøkonomiske omkostninger ved eksterne virkninger på miljøet
C29: Skal de eksterne virkninger på miljøet inkluderes i denne TCO-beregning? | E29: Ja | G29: =$E$29 -> Ja | I29: =$E$29 -> Ja | K29: =$E$29 -> Ja | M29: =$E$29 -> Ja | O29: =$E$29 -> Ja | Q29: =$E$29 -> Ja | S29: =$E$29 -> Ja | U29: =$E$29 -> Ja | W29: =$E$29 -> Ja
C31: Anvendelse af standard-CO2-emissionsfaktor for brændstofforbrug? | D31: Ja/nej | E31: Ja | G31: =$E$31 -> Ja | I31: =$E$31 -> Ja | K31: =$E$31 -> Ja | M31: =$E$31 -> Ja | O31: =$E$31 -> Ja | Q31: =$E$31 -> Ja | S31: =$E$31 -> Ja | U31: =$E$31 -> Ja | W31: =$E$31 -> Ja
C32: Standard-CO2-emissionsfaktor for benzin | D32: kg CO2e/liter | E32: =VLOOKUP($E$55,Fremskrivninger!$A$48:$H$77,8) -> 2.52 | G32: =$E$32 -> 2.52 | I32: =$E$32 -> 2.52 | K32: =$E$32 -> 2.52 | M32: =$E$32 -> 2.52 | O32: =$E$32 -> 2.52 | Q32: =$E$32 -> 2.52 | S32: =$E$32 -> 2.52 | U32: =$E$32 -> 2.52 | W32: =$E$32 -> 2.52
C33: Standard-CO2-emissionsfaktor for diesel | D33: kg CO2e/liter | E33: =VLOOKUP($E$55,Fremskrivninger!$A$92:$H$121,8) -> 2.98 | G33: =$E$33 -> 2.98 | I33: =$E$33 -> 2.98 | K33: =$E$33 -> 2.98 | M33: =$E$33 -> 2.98 | O33: =$E$33 -> 2.98 | Q33: =$E$33 -> 2.98 | S33: =$E$33 -> 2.98 | U33: =$E$33 -> 2.98 | W33: =$E$33 -> 2.98
C34: Egen CO2-emissionsfaktor for benzin | D34: kg CO2e/liter | E34: 0 | G34: =$E$34 -> 0 | I34: =$E$34 -> 0 | K34: =$E$34 -> 0 | M34: =$E$34 -> 0 | O34: =$E$34 -> 0 | Q34: =$E$34 -> 0 | S34: =$E$34 -> 0 | U34: =$E$34 -> 0 | W34: =$E$34 -> 0
C35: Egen CO2-emissionsfaktor for diesel | D35: kg CO2e/liter | E35: 0 | G35: =$E$35 -> 0 | I35: =$E$35 -> 0 | K35: =$E$35 -> 0 | M35: =$E$35 -> 0 | O35: =$E$35 -> 0 | Q35: =$E$35 -> 0 | S35: =$E$35 -> 0 | U35: =$E$35 -> 0 | W35: =$E$35 -> 0
C37: Anvendelse af standard-værdisætning af samfundsøkonomiske omkostninger for CO2? | E37: Ja | G37: =$E$37 -> Ja | I37: =$E$37 -> Ja | K37: =$E$37 -> Ja | M37: =$E$37 -> Ja | O37: =$E$37 -> Ja | Q37: =$E$37 -> Ja | S37: =$E$37 -> Ja | U37: =$E$37 -> Ja | W37: =$E$37 -> Ja
C38: Standard-værdisætning for CO2 | D38: kr./tons CO2e | E38: 1500 | G38: =$E$38 -> 1500 | I38: =$E$38 -> 1500 | K38: =$E$38 -> 1500 | M38: =$E$38 -> 1500 | O38: =$E$38 -> 1500 | Q38: =$E$38 -> 1500 | S38: =$E$38 -> 1500 | U38: =$E$38 -> 1500 | W38: =$E$38 -> 1500
C39: Egen værdisætning | D39: kr./tons CO2e | E39: 0 | G39: =$E$39 -> 0 | I39: =$E$39 -> 0 | K39: =$E$39 -> 0 | M39: =$E$39 -> 0 | O39: =$E$39 -> 0 | Q39: =$E$39 -> 0 | S39: =$E$39 -> 0 | U39: =$E$39 -> 0 | W39: =$E$39 -> 0
C41: Anvendelse af standard-værdisætning af samfundsøkonomiske omkostninger for NOx og partikler?
C42: Størrelse af bymæssig bebyggelse som motorkøretøjet anvendes i | E42: København/Frederiksberg | G42: =$E$42 -> København/Frederiksberg | I42: =$E$42 -> København/Frederiksberg | K42: =$E$42 -> København/Frederiksberg | M42: =$E$42 -> København/Frederiksberg | O42: =$E$42 -> København/Frederiksberg | Q42: =$E$42 -> København/Frederiksberg | S42: =$E$42 -> København/Frederiksberg | U42: =$E$42 -> København/Frederiksberg | W42: =$E$42 -> København/Frederiksberg
C43: Standard-værdisætning for NOx | D43: kr./kg NOx | E43: =VLOOKUP($E$42,'Samfundsøkonomiske priser'!$A$5:$C$9,2,FALSE) -> 557 | G43: =$E$43 -> 557 | I43: =$E$43 -> 557 | K43: =$E$43 -> 557 | M43: =$E$43 -> 557 | O43: =$E$43 -> 557 | Q43: =$E$43 -> 557 | S43: =$E$43 -> 557 | U43: =$E$43 -> 557 | W43: =$E$43 -> 557
C44: Standard-værdisætning for partikler | D44: kr./kg partikler | E44: =VLOOKUP($E$42,'Samfundsøkonomiske priser'!$A$5:$C$9,3,FALSE) -> 2192 | G44: =$E$44 -> 2192 | I44: =$E$44 -> 2192 | K44: =$E$44 -> 2192 | M44: =$E$44 -> 2192 | O44: =$E$44 -> 2192 | Q44: =$E$44 -> 2192 | S44: =$E$44 -> 2192 | U44: =$E$44 -> 2192 | W44: =$E$44 -> 2192
B48: 2 Ordregiver: Oplysninger om brugen
C49: Antal produkter | D49: stk. | G49: =$E$49 -> 0 | I49: =$E$49 -> 0 | K49: =$E$49 -> 0 | M49: =$E$49 -> 0 | O49: =$E$49 -> 0 | Q49: =$E$49 -> 0 | S49: =$E$49 -> 0 | U49: =$E$49 -> 0 | W49: =$E$49 -> 0
C50: Årligt kørselsforbrug pr. motorkøretøj | D50: km/år pr. køretøj | G50: =$E$50 -> 0 | I50: =$E$50 -> 0 | K50: =$E$50 -> 0 | M50: =$E$50 -> 0 | O50: =$E$50 -> 0 | Q50: =$E$50 -> 0 | S50: =$E$50 -> 0 | U50: =$E$50 -> 0 | W50: =$E$50 -> 0
B54: 1 Ordregiver: Baggrundsdata
C55: 1. år for brugsperiode | D55: årstal | E55: 2022 | G55: =$E$55 -> 2022 | I55: =$E$55 -> 2022 | K55: =$E$55 -> 2022 | M55: =$E$55 -> 2022 | O55: =$E$55 -> 2022 | Q55: =$E$55 -> 2022 | S55: =$E$55 -> 2022 | U55: =$E$55 -> 2022 | W55: =$E$55 -> 2022
C56: TCO-evalueringsperiode | D56: år | E56: 4 | G56: =$E$56 -> 4 | I56: =$E$56 -> 4 | K56: =$E$56 -> 4 | M56: =$E$56 -> 4 | O56: =$E$56 -> 4 | Q56: =$E$56 -> 4 | S56: =$E$56 -> 4 | U56: =$E$56 -> 4 | W56: =$E$56 -> 4
C57: Diskonteringsrente | D57: %/år | E57: 0.035 | G57: =$E$57 -> 0.035 | I57: =$E$57 -> 0.035 | K57: =$E$57 -> 0.035 | M57: =$E$57 -> 0.035 | O57: =$E$57 -> 0.035 | Q57: =$E$57 -> 0.035 | S57: =$E$57 -> 0.035 | U57: =$E$57 -> 0.035 | W57: =$E$57 -> 0.035
C59: Hvilken type brændstof anvender køretøjet? | D59: Benzin/diesel | E59: Klik for valg | G59: Klik for valg | I59: Klik for valg | K59: Klik for valg | M59: Klik for valg | O59: Klik for valg | Q59: Klik for valg | S59: Klik for valg | U59: Klik for valg | W59: Klik for valg
C61: Anvendelse af standardbenzinpriser med gennemsnitlig fremskrivning? | D61: Ja/nej | E61: Ja | G61: Ja | I61: Ja | K61: Ja | M61: Ja | O61: Ja | Q61: Ja | S61: Ja | U61: Ja | W61: Ja
C62: Standard benzinpris | D62: kr./liter | E62: =VLOOKUP(E55,Fremskrivninger!$A$47:$C$77,3) -> 8.79346752 | G62: =VLOOKUP(G55,Fremskrivninger!$A$47:$C$77,3) -> 8.79346752 | I62: =VLOOKUP(I55,Fremskrivninger!$A$47:$C$77,3) -> 8.79346752 | K62: =VLOOKUP(K55,Fremskrivninger!$A$47:$C$77,3) -> 8.79346752 | M62: =VLOOKUP(M55,Fremskrivninger!$A$47:$C$77,3) -> 8.79346752 | O62: =VLOOKUP(O55,Fremskrivninger!$A$47:$C$77,3) -> 8.79346752 | Q62: =VLOOKUP(Q55,Fremskrivninger!$A$47:$C$77,3) -> 8.79346752 | S62: =VLOOKUP(S55,Fremskrivninger!$A$47:$C$77,3) -> 8.79346752 | U62: =VLOOKUP(U55,Fremskrivninger!$A$47:$C$77,3) -> 8.79346752 | W62: =VLOOKUP(W55,Fremskrivninger!$A$47:$C$77,3) -> 8.79346752
C63: Standard prisstigning på benzin (årligt, ud over inflation) | D63: %/år | E63: 0.0139 | G63: 0.0139 | I63: 0.0139 | K63: 0.0139 | M63: 0.0139 | O63: 0.0139 | Q63: 0.0139 | S63: 0.0139 | U63: 0.0139 | W63: 0.0139
C64: Egen benzinpris | D64: kr./liter | E64: 0 | G64: 0 | I64: 0 | K64: 0 | M64: 0 | O64: 0 | Q64: 0 | S64: 0 | U64: 0 | W64: 0
C65: Egen prisstigning på benzin (årligt, ud over inflation) | D65: %/år | E65: 0 | G65: 0 | I65: 0 | K65: 0 | M65: 0 | O65: 0 | Q65: 0 | S65: 0 | U65: 0 | W65: 0
C67: Anvendelse af standarddieselpriser med gennemsnitlig fremskrivning? | D67: Ja/nej | E67: Ja | G67: Ja | I67: Ja | K67: Ja | M67: Ja | O67: Ja | Q67: Ja | S67: Ja | U67: Ja | W67: Ja
C68: Standard dieselpris | D68: kr./liter | E68: =VLOOKUP(E55,Fremskrivninger!$A$91:$C$121,3) -> 7.6920318 | G68: =VLOOKUP(G55,Fremskrivninger!$A$91:$C$121,3) -> 7.6920318 | I68: =VLOOKUP(I55,Fremskrivninger!$A$91:$C$121,3) -> 7.6920318 | K68: =VLOOKUP(K55,Fremskrivninger!$A$91:$C$121,3) -> 7.6920318 | M68: =VLOOKUP(M55,Fremskrivninger!$A$91:$C$121,3) -> 7.6920318 | O68: =VLOOKUP(O55,Fremskrivninger!$A$91:$C$121,3) -> 7.6920318 | Q68: =VLOOKUP(Q55,Fremskrivninger!$A$91:$C$121,3) -> 7.6920318 | S68: =VLOOKUP(S55,Fremskrivninger!$A$91:$C$121,3) -> 7.6920318 | U68: =VLOOKUP(U55,Fremskrivninger!$A$91:$C$121,3) -> 7.6920318 | W68: =VLOOKUP(W55,Fremskrivninger!$A$91:$C$121,3) -> 7.6920318
C69: Standard prisstigning på diesel (årligt, ud over inflation) | D69: %/år | E69: 0.0145 | G69: 0.0145 | I69: 0.0145 | K69: 0.0145 | M69: 0.0145 | O69: 0.0145 | Q69: 0.0145 | S69: 0.0145 | U69: 0.0145 | W69: 0.0145
C70: Egen dieselpris | D70: kr./liter | E70: 0 | G70: 0 | I70: 0 | K70: 0 | M70: 0 | O70: 0 | Q70: 0 | S70: 0 | U70: 0 | W70: 0
C71: Egen prisstigning på diesel (årligt, ud over inflation) | D71: %/år | E71: 0 | G71: 0 | I71: 0 | K71: 0 | M71: 0 | O71: 0 | Q71: 0 | S71: 0 | U71: 0 | W71: 0
C72: =IF(OR(AND($E$61="Ja",$E$64>0),AND($E$67="Ja",$E$70>0)),"OBS! Din egen pris slår først igennem, når du har valgt ”nej” til standardpriser","") -> 
C73: Service, vedligehold og løbende omkostninger
C74: Forsikring | D74: kr./år per køretøj | E74: 0
C75: Andre løbende omkostninger | D75: kr./år per køretøj | E75: 0
B79: 5 Resultat
C81: Investeringsomkostning i alt | D81: kr. | E81: =E12*E49 -> 0 | G81: =G12*G49 -> 0 | I81: =I12*I49 -> 0 | K81: =K12*K49 -> 0 | M81: =M12*M49 -> 0 | O81: =O12*O49 -> 0 | Q81: =Q12*Q49 -> 0 | S81: =S12*S49 -> 0 | U81: =U12*U49 -> 0 | W81: =W12*W49 -> 0
C82: Driftsomkostning i alt | D82: kr. | E82: =SUMIFS('IB - B&D&H'!E4:E23,'IB - B&D&H'!$A$4:$A$23,"<="&E56) -> 0 | G82: =SUMIFS('IB - B&D&H'!G4:G23,'IB - B&D&H'!$A$4:$A$23,"<="&G56) -> 0 | I82: =SUMIFS('IB - B&D&H'!I4:I23,'IB - B&D&H'!$A$4:$A$23,"<="&I56) -> 0 | K82: =SUMIFS('IB - B&D&H'!K4:K23,'IB - B&D&H'!$A$4:$A$23,"<="&K56) -> 0 | M82: =SUMIFS('IB - B&D&H'!M4:M23,'IB - B&D&H'!$A$4:$A$23,"<="&M56) -> 0 | O82: =SUMIFS('IB - B&D&H'!O4:O23,'IB - B&D&H'!$A$4:$A$23,"<="&O56) -> 0 | Q82: =SUMIFS('IB - B&D&H'!Q4:Q23,'IB - B&D&H'!$A$4:$A$23,"<="&Q56) -> 0 | S82: =SUMIFS('IB - B&D&H'!S4:S23,'IB - B&D&H'!$A$4:$A$23,"<="&S56) -> 0 | U82: =SUMIFS('IB - B&D&H'!U4:U23,'IB - B&D&H'!$A$4:$A$23,"<="&U56) -> 0 | W82: =SUMIFS('IB - B&D&H'!W4:W23,'IB - B&D&H'!$A$4:$A$23,"<="&W56) -> 0
C83: Service, vedligehold og løbende omkostninger i alt | D83: kr. | E83: =SUMIFS('IB - B&D&H'!E49:E68,'IB - B&D&H'!$B$49:$B$68,"<="&E56) -> 0 | G83: =SUMIFS('IB - B&D&H'!G49:G68,'IB - B&D&H'!$B$49:$B$68,"<="&G56) -> 0 | I83: =SUMIFS('IB - B&D&H'!I49:I68,'IB - B&D&H'!$B$49:$B$68,"<="&I56) -> 0 | K83: =SUMIFS('IB - B&D&H'!K49:K68,'IB - B&D&H'!$B$49:$B$68,"<="&K56) -> 0 | M83: =SUMIFS('IB - B&D&H'!M49:M68,'IB - B&D&H'!$B$49:$B$68,"<="&M56) -> 0 | O83: =SUMIFS('IB - B&D&H'!O49:O68,'IB - B&D&H'!$B$49:$B$68,"<="&O56) -> 0 | Q83: =SUMIFS('IB - B&D&H'!Q49:Q68,'IB - B&D&H'!$B$49:$B$68,"<="&Q56) -> 0 | S83: =SUMIFS('IB - B&D&H'!S49:S68,'IB - B&D&H'!$B$49:$B$68,"<="&S56) -> 0 | U83: =SUMIFS('IB - B&D&H'!U49:U68,'IB - B&D&H'!$B$49:$B$68,"<="&U56) -> 0 | W83: =SUMIFS('IB - B&D&H'!W49:W68,'IB - B&D&H'!$B$49:$B$68,"<="&W56) -> 0
C84: =IF(E29="nej","","Samfundsøkonomiske omkostninger af eksterne virkninger på miljøet") -> Samfundsøkonomiske omkostninger af eksterne virkninger på miljøet | D84: =IF(C84="","","kr.") -> kr. | E84: =IF(E$59="Klik for valg",0,IF($D$84="","",SUMIFS('IB - B&D&H'!E$187:E$206,'IB - B&D&H'!$C$187:$C$206,"<="&E56)+SUMIFS('IB - B&D&H'!E$210:E$229,'IB - B&D&H'!$C$210:$C$229,"<="&E56)+SUMIFS('IB - B&D&H'!E$234:E$253,'IB - B&D&H'!$C$234:$C$253,"<="&E56))) -> 0 | G84: =IF(G$59="Klik for valg",0,IF($D$84="","",SUMIFS('IB - B&D&H'!G$187:G$206,'IB - B&D&H'!$C$187:$C$206,"<="&G56)+SUMIFS('IB - B&D&H'!G$210:G$229,'IB - B&D&H'!$C$210:$C$229,"<="&G56)+SUMIFS('IB - B&D&H'!G$234:G$253,'IB - B&D&H'!$C$234:$C$253,"<="&G56))) -> 0 | I84: =IF(I$59="Klik for valg",0,IF($D$84="","",SUMIFS('IB - B&D&H'!I$187:I$206,'IB - B&D&H'!$C$187:$C$206,"<="&I56)+SUMIFS('IB - B&D&H'!I$210:I$229,'IB - B&D&H'!$C$210:$C$229,"<="&I56)+SUMIFS('IB - B&D&H'!I$234:I$253,'IB - B&D&H'!$C$234:$C$253,"<="&I56))) -> 0 | K84: =IF(K$59="Klik for valg",0,IF($D$84="","",SUMIFS('IB - B&D&H'!K$187:K$206,'IB - B&D&H'!$C$187:$C$206,"<="&K56)+SUMIFS('IB - B&D&H'!K$210:K$229,'IB - B&D&H'!$C$210:$C$229,"<="&K56)+SUMIFS('IB - B&D&H'!K$234:K$253,'IB - B&D&H'!$C$234:$C$253,"<="&K56))) -> 0 | M84: =IF(M$59="Klik for valg",0,IF($D$84="","",SUMIFS('IB - B&D&H'!M$187:M$206,'IB - B&D&H'!$C$187:$C$206,"<="&M56)+SUMIFS('IB - B&D&H'!M$210:M$229,'IB - B&D&H'!$C$210:$C$229,"<="&M56)+SUMIFS('IB - B&D&H'!M$234:M$253,'IB - B&D&H'!$C$234:$C$253,"<="&M56))) -> 0 | O84: =IF(O$59="Klik for valg",0,IF($D$84="","",SUMIFS('IB - B&D&H'!O$187:O$206,'IB - B&D&H'!$C$187:$C$206,"<="&O56)+SUMIFS('IB - B&D&H'!O$210:O$229,'IB - B&D&H'!$C$210:$C$229,"<="&O56)+SUMIFS('IB - B&D&H'!O$234:O$253,'IB - B&D&H'!$C$234:$C$253,"<="&O56))) -> 0 | Q84: =IF(Q$59="Klik for valg",0,IF($D$84="","",SUMIFS('IB - B&D&H'!Q$187:Q$206,'IB - B&D&H'!$C$187:$C$206,"<="&Q56)+SUMIFS('IB - B&D&H'!Q$210:Q$229,'IB - B&D&H'!$C$210:$C$229,"<="&Q56)+SUMIFS('IB - B&D&H'!Q$234:Q$253,'IB - B&D&H'!$C$234:$C$253,"<="&Q56))) -> 0 | S84: =IF(S$59="Klik for valg",0,IF($D$84="","",SUMIFS('IB - B&D&H'!S$187:S$206,'IB - B&D&H'!$C$187:$C$206,"<="&S56)+SUMIFS('IB - B&D&H'!S$210:S$229,'IB - B&D&H'!$C$210:$C$229,"<="&S56)+SUMIFS('IB - B&D&H'!S$234:S$253,'IB - B&D&H'!$C$234:$C$253,"<="&S56))) -> 0 | U84: =IF(U$59="Klik for valg",0,IF($D$84="","",SUMIFS('IB - B&D&H'!U$187:U$206,'IB - B&D&H'!$C$187:$C$206,"<="&U56)+SUMIFS('IB - B&D&H'!U$210:U$229,'IB - B&D&H'!$C$210:$C$229,"<="&U56)+SUMIFS('IB - B&D&H'!U$234:U$253,'IB - B&D&H'!$C$234:$C$253,"<="&U56))) -> 0 | W84: =IF(W$59="Klik for valg",0,IF($D$84="","",SUMIFS('IB - B&D&H'!W$187:W$206,'IB - B&D&H'!$C$187:$C$206,"<="&W56)+SUMIFS('IB - B&D&H'!W$210:W$229,'IB - B&D&H'!$C$210:$C$229,"<="&W56)+SUMIFS('IB - B&D&H'!W$234:W$253,'IB - B&D&H'!$C$234:$C$253,"<="&W56))) -> 0
C86: Samlet TCO | D86: kr. | E86: =SUM(E81:E84) -> 0 | G86: =SUM(G81:G84) -> 0 | I86: =SUM(I81:I84) -> 0 | K86: =SUM(K81:K84) -> 0 | M86: =SUM(M81:M84) -> 0 | O86: =SUM(O81:O84) -> 0 | Q86: =SUM(Q81:Q84) -> 0 | S86: =SUM(S81:S84) -> 0 | U86: =SUM(U81:U84) -> 0 | W86: =SUM(W81:W84) -> 0
C87: Samlet TCO - årligt gennemsnit | D87: kr./år | E87: =PMT(E57,E56,-(E86)) -> 0 | G87: =PMT(G57,G56,-(G86)) -> 0 | I87: =PMT(I57,I56,-(I86)) -> 0 | K87: =PMT(K57,K56,-(K86)) -> 0 | M87: =PMT(M57,M56,-(M86)) -> 0 | O87: =PMT(O57,O56,-(O86)) -> 0 | Q87: =PMT(Q57,Q56,-(Q86)) -> 0 | S87: =PMT(S57,S56,-(S86)) -> 0 | U87: =PMT(U57,U56,-(U86)) -> 0 | W87: =PMT(W57,W56,-(W86)) -> 0
C89: =IF(E29="ja","Samlede CO2e udledninger fra brugsfasen","") -> Samlede CO2e udledninger fra brugsfasen | D89: =IF(C89="","","tons CO2e") -> tons CO2e | E89: =IF(E29="ja",SUMIFS('IB - B&D&H'!F$187:F$206,'IB - B&D&H'!$B187:$B206,"<="&'Benzin - diesel - hybrid'!E56),"") -> 0 | G89: =IF(G29="ja",SUMIFS('IB - B&D&H'!H$187:H$206,'IB - B&D&H'!$B187:$B206,"<="&'Benzin - diesel - hybrid'!G56),"") -> 0 | I89: =IF(I29="ja",SUMIFS('IB - B&D&H'!J$187:J$206,'IB - B&D&H'!$B187:$B206,"<="&'Benzin - diesel - hybrid'!I56),"") -> 0 | K89: =IF(K29="ja",SUMIFS('IB - B&D&H'!L$187:L$206,'IB - B&D&H'!$B187:$B206,"<="&'Benzin - diesel - hybrid'!K56),"") -> 0 | M89: =IF(M29="ja",SUMIFS('IB - B&D&H'!N$187:N$206,'IB - B&D&H'!$B187:$B206,"<="&'Benzin - diesel - hybrid'!M56),"") -> 0 | O89: =IF(O29="ja",SUMIFS('IB - B&D&H'!P$187:P$206,'IB - B&D&H'!$B187:$B206,"<="&'Benzin - diesel - hybrid'!O56),"") -> 0 | Q89: =IF(Q29="ja",SUMIFS('IB - B&D&H'!R$187:R$206,'IB - B&D&H'!$B187:$B206,"<="&'Benzin - diesel - hybrid'!Q56),"") -> 0 | S89: =IF(S29="ja",SUMIFS('IB - B&D&H'!T$187:T$206,'IB - B&D&H'!$B187:$B206,"<="&'Benzin - diesel - hybrid'!S56),"") -> 0 | U89: =IF(U29="ja",SUMIFS('IB - B&D&H'!V$187:V$206,'IB - B&D&H'!$B187:$B206,"<="&'Benzin - diesel - hybrid'!U56),"") -> 0 | W89: =IF(W29="ja",SUMIFS('IB - B&D&H'!X$187:X$206,'IB - B&D&H'!$B187:$B206,"<="&'Benzin - diesel - hybrid'!W56),"") -> 0
C90: =IF(E29="ja","Samlede NOx udledninger fra brugsfasen","") -> Samlede NOx udledninger fra brugsfasen | D90: =IF(C89="","","kg NOx") -> kg NOx | E90: =IF(E29="ja",_xlfn.IFS(OR(E59="Benzin",E59="Diesel"),SUMIFS('IB - B&D&H'!F$210:F$229,'IB - B&D&H'!$B210:$B229,"<="&'Benzin - diesel - hybrid'!E56),OR(E59="",E59="Klik for valg"),"0,00"),"") -> 0,00 | G90: =IF(G29="ja",_xlfn.IFS(OR(G59="Benzin",G59="Diesel"),SUMIFS('IB - B&D&H'!H$210:H$229,'IB - B&D&H'!$B210:$B229,"<="&'Benzin - diesel - hybrid'!G56),OR(G59="",G59="Klik for valg"),"0,00"),"") -> 0,00 | I90: =IF(I29="ja",_xlfn.IFS(OR(I59="Benzin",I59="Diesel"),SUMIFS('IB - B&D&H'!J$210:J$229,'IB - B&D&H'!$B210:$B229,"<="&'Benzin - diesel - hybrid'!I56),OR(I59="",I59="Klik for valg"),"0,00"),"") -> 0,00 | K90: =IF(K29="ja",_xlfn.IFS(OR(K59="Benzin",K59="Diesel"),SUMIFS('IB - B&D&H'!L$210:L$229,'IB - B&D&H'!$B210:$B229,"<="&'Benzin - diesel - hybrid'!K56),OR(K59="",K59="Klik for valg"),"0,00"),"") -> 0,00 | M90: =IF(M29="ja",_xlfn.IFS(OR(M59="Benzin",M59="Diesel"),SUMIFS('IB - B&D&H'!N$210:N$229,'IB - B&D&H'!$B210:$B229,"<="&'Benzin - diesel - hybrid'!M56),OR(M59="",M59="Klik for valg"),"0,00"),"") -> 0,00 | O90: =IF(O29="ja",_xlfn.IFS(OR(O59="Benzin",O59="Diesel"),SUMIFS('IB - B&D&H'!P$210:P$229,'IB - B&D&H'!$B210:$B229,"<="&'Benzin - diesel - hybrid'!O56),OR(O59="",O59="Klik for valg"),"0,00"),"") -> 0,00 | Q90: =IF(Q29="ja",_xlfn.IFS(OR(Q59="Benzin",Q59="Diesel"),SUMIFS('IB - B&D&H'!R$210:R$229,'IB - B&D&H'!$B210:$B229,"<="&'Benzin - diesel - hybrid'!Q56),OR(Q59="",Q59="Klik for valg"),"0,00"),"") -> 0,00 | S90: =IF(S29="ja",_xlfn.IFS(OR(S59="Benzin",S59="Diesel"),SUMIFS('IB - B&D&H'!T$210:T$229,'IB - B&D&H'!$B210:$B229,"<="&'Benzin - diesel - hybrid'!S56),OR(S59="",S59="Klik for valg"),"0,00"),"") -> 0,00 | U90: =IF(U29="ja",_xlfn.IFS(OR(U59="Benzin",U59="Diesel"),SUMIFS('IB - B&D&H'!V$210:V$229,'IB - B&D&H'!$B210:$B229,"<="&'Benzin - diesel - hybrid'!U56),OR(U59="",U59="Klik for valg"),"0,00"),"") -> 0,00 | W90: =IF(W29="ja",_xlfn.IFS(OR(W59="Benzin",W59="Diesel"),SUMIFS('IB - B&D&H'!X$210:X$229,'IB - B&D&H'!$B210:$B229,"<="&'Benzin - diesel - hybrid'!W56),OR(W59="",W59="Klik for valg"),"0,00"),"") -> 0,00
C91: =IF(E29="ja","Samlede partikeludledninger fra brugsfasen","") -> Samlede partikeludledninger fra brugsfasen | D91: =IF(C89="","","kg partikler") -> kg partikler | E91: =IF(E29="ja",_xlfn.IFS(OR(E59="Benzin",E59="Diesel"),SUMIFS('IB - B&D&H'!F$234:F$253,'IB - B&D&H'!$B234:$B253,"<="&'Benzin - diesel - hybrid'!E56),OR(E59="",E59="Klik for valg"),"0,00"),"") -> 0,00 | G91: =IF(G29="ja",_xlfn.IFS(OR(G59="Benzin",G59="Diesel"),SUMIFS('IB - B&D&H'!H$234:H$253,'IB - B&D&H'!$B234:$B253,"<="&'Benzin - diesel - hybrid'!G56),OR(G59="",G59="Klik for valg"),"0,00"),"") -> 0,00 | I91: =IF(I29="ja",_xlfn.IFS(OR(I59="Benzin",I59="Diesel"),SUMIFS('IB - B&D&H'!J$234:J$253,'IB - B&D&H'!$B234:$B253,"<="&'Benzin - diesel - hybrid'!I56),OR(I59="",I59="Klik for valg"),"0,00"),"") -> 0,00 | K91: =IF(K29="ja",_xlfn.IFS(OR(K59="Benzin",K59="Diesel"),SUMIFS('IB - B&D&H'!L$234:L$253,'IB - B&D&H'!$B234:$B253,"<="&'Benzin - diesel - hybrid'!K56),OR(K59="",K59="Klik for valg"),"0,00"),"") -> 0,00 | M91: =IF(M29="ja",_xlfn.IFS(OR(M59="Benzin",M59="Diesel"),SUMIFS('IB - B&D&H'!N$234:N$253,'IB - B&D&H'!$B234:$B253,"<="&'Benzin - diesel - hybrid'!M56),OR(M59="",M59="Klik for valg"),"0,00"),"") -> 0,00 | O91: =IF(O29="ja",_xlfn.IFS(OR(O59="Benzin",O59="Diesel"),SUMIFS('IB - B&D&H'!P$234:P$253,'IB - B&D&H'!$B234:$B253,"<="&'Benzin - diesel - hybrid'!O56),OR(O59="",O59="Klik for valg"),"0,00"),"") -> 0,00 | Q91: =IF(Q29="ja",_xlfn.IFS(OR(Q59="Benzin",Q59="Diesel"),SUMIFS('IB - B&D&H'!R$234:R$253,'IB - B&D&H'!$B234:$B253,"<="&'Benzin - diesel - hybrid'!Q56),OR(Q59="",Q59="Klik for valg"),"0,00"),"") -> 0,00 | S91: =IF(S29="ja",_xlfn.IFS(OR(S59="Benzin",S59="Diesel"),SUMIFS('IB - B&D&H'!T$234:T$253,'IB - B&D&H'!$B234:$B253,"<="&'Benzin - diesel - hybrid'!S56),OR(S59="",S59="Klik for valg"),"0,00"),"") -> 0,00 | U91: =IF(U29="ja",_xlfn.IFS(OR(U59="Benzin",U59="Diesel"),SUMIFS('IB - B&D&H'!V$234:V$253,'IB - B&D&H'!$B234:$B253,"<="&'Benzin - diesel - hybrid'!U56),OR(U59="",U59="Klik for valg"),"0,00"),"") -> 0,00 | W91: =IF(W29="ja",_xlfn.IFS(OR(W59="Benzin",W59="Diesel"),SUMIFS('IB - B&D&H'!X$234:X$253,'IB - B&D&H'!$B234:$B253,"<="&'Benzin - diesel - hybrid'!W56),OR(W59="",W59="Klik for valg"),"0,00"),"") -> 0,00
C134: ='IB - B&D&H'!B25 -> Samlede akkumulerede omkostninger | E134: ='IB - B&D&H'!E25 -> PRODUKT 1 | G134: ='IB - B&D&H'!G25 -> PRODUKT 2 | I134: ='IB - B&D&H'!I25 -> PRODUKT 3 | K134: ='IB - B&D&H'!K25 -> PRODUKT 4 | M134: ='IB - B&D&H'!M25 -> PRODUKT 5 | O134: ='IB - B&D&H'!O25 -> PRODUKT 6 | Q134: ='IB - B&D&H'!Q25 -> PRODUKT 7 | S134: ='IB - B&D&H'!S25 -> PRODUKT 8
E135: ='IB - B&D&H'!E26 -> 0 | G135: ='IB - B&D&H'!G26 -> 0 | I135: ='IB - B&D&H'!I26 -> 0 | K135: ='IB - B&D&H'!K26 -> 0 | M135: ='IB - B&D&H'!M26 -> 0 | O135: ='IB - B&D&H'!O26 -> 0 | Q135: ='IB - B&D&H'!Q26 -> 0 | S135: ='IB - B&D&H'!S26 -> 0
E136: ='IB - B&D&H'!E27 -> 0 | G136: ='IB - B&D&H'!G27 -> 0 | I136: ='IB - B&D&H'!I27 -> 0 | K136: ='IB - B&D&H'!K27 -> 0 | M136: ='IB - B&D&H'!M27 -> 0 | O136: ='IB - B&D&H'!O27 -> 0 | Q136: ='IB - B&D&H'!Q27 -> 0 | S136: ='IB - B&D&H'!S27 -> 0
E137: ='IB - B&D&H'!E28 -> 0 | G137: ='IB - B&D&H'!G28 -> 0 | I137: ='IB - B&D&H'!I28 -> 0 | K137: ='IB - B&D&H'!K28 -> 0 | M137: ='IB - B&D&H'!M28 -> 0 | O137: ='IB - B&D&H'!O28 -> 0 | Q137: ='IB - B&D&H'!Q28 -> 0 | S137: ='IB - B&D&H'!S28 -> 0
E138: ='IB - B&D&H'!E29 -> 0 | G138: ='IB - B&D&H'!G29 -> 0 | I138: ='IB - B&D&H'!I29 -> 0 | K138: ='IB - B&D&H'!K29 -> 0 | M138: ='IB - B&D&H'!M29 -> 0 | O138: ='IB - B&D&H'!O29 -> 0 | Q138: ='IB - B&D&H'!Q29 -> 0 | S138: ='IB - B&D&H'!S29 -> 0
E139: ='IB - B&D&H'!E30 -> 0 | G139: ='IB - B&D&H'!G30 -> 0 | I139: ='IB - B&D&H'!I30 -> 0 | K139: ='IB - B&D&H'!K30 -> 0 | M139: ='IB - B&D&H'!M30 -> 0 | O139: ='IB - B&D&H'!O30 -> 0 | Q139: ='IB - B&D&H'!Q30 -> 0 | S139: ='IB - B&D&H'!S30 -> 0
E140: ='IB - B&D&H'!E31 -> 0 | G140: ='IB - B&D&H'!G31 -> 0 | I140: ='IB - B&D&H'!I31 -> 0 | K140: ='IB - B&D&H'!K31 -> 0 | M140: ='IB - B&D&H'!M31 -> 0 | O140: ='IB - B&D&H'!O31 -> 0 | Q140: ='IB - B&D&H'!Q31 -> 0 | S140: ='IB - B&D&H'!S31 -> 0
E141: ='IB - B&D&H'!E32 -> 0 | G141: ='IB - B&D&H'!G32 -> 0 | I141: ='IB - B&D&H'!I32 -> 0 | K141: ='IB - B&D&H'!K32 -> 0 | M141: ='IB - B&D&H'!M32 -> 0 | O141: ='IB - B&D&H'!O32 -> 0 | Q141: ='IB - B&D&H'!Q32 -> 0 | S141: ='IB - B&D&H'!S32 -> 0
E142: ='IB - B&D&H'!E33 -> 0 | G142: ='IB - B&D&H'!G33 -> 0 | I142: ='IB - B&D&H'!I33 -> 0 | K142: ='IB - B&D&H'!K33 -> 0 | M142: ='IB - B&D&H'!M33 -> 0 | O142: ='IB - B&D&H'!O33 -> 0 | Q142: ='IB - B&D&H'!Q33 -> 0 | S142: ='IB - B&D&H'!S33 -> 0
E143: ='IB - B&D&H'!E34 -> 0 | G143: ='IB - B&D&H'!G34 -> 0 | I143: ='IB - B&D&H'!I34 -> 0 | K143: ='IB - B&D&H'!K34 -> 0 | M143: ='IB - B&D&H'!M34 -> 0 | O143: ='IB - B&D&H'!O34 -> 0 | Q143: ='IB - B&D&H'!Q34 -> 0 | S143: ='IB - B&D&H'!S34 -> 0
E144: ='IB - B&D&H'!E35 -> 0 | G144: ='IB - B&D&H'!G35 -> 0 | I144: ='IB - B&D&H'!I35 -> 0 | K144: ='IB - B&D&H'!K35 -> 0 | M144: ='IB - B&D&H'!M35 -> 0 | O144: ='IB - B&D&H'!O35 -> 0 | Q144: ='IB - B&D&H'!Q35 -> 0 | S144: ='IB - B&D&H'!S35 -> 0
E145: ='IB - B&D&H'!E36 -> 0 | G145: ='IB - B&D&H'!G36 -> 0 | I145: ='IB - B&D&H'!I36 -> 0 | K145: ='IB - B&D&H'!K36 -> 0 | M145: ='IB - B&D&H'!M36 -> 0 | O145: ='IB - B&D&H'!O36 -> 0 | Q145: ='IB - B&D&H'!Q36 -> 0 | S145: ='IB - B&D&H'!S36 -> 0
E146: ='IB - B&D&H'!E37 -> 0 | G146: ='IB - B&D&H'!G37 -> 0 | I146: ='IB - B&D&H'!I37 -> 0 | K146: ='IB - B&D&H'!K37 -> 0 | M146: ='IB - B&D&H'!M37 -> 0 | O146: ='IB - B&D&H'!O37 -> 0 | Q146: ='IB - B&D&H'!Q37 -> 0 | S146: ='IB - B&D&H'!S37 -> 0
E147: ='IB - B&D&H'!E38 -> 0 | G147: ='IB - B&D&H'!G38 -> 0 | I147: ='IB - B&D&H'!I38 -> 0 | K147: ='IB - B&D&H'!K38 -> 0 | M147: ='IB - B&D&H'!M38 -> 0 | O147: ='IB - B&D&H'!O38 -> 0 | Q147: ='IB - B&D&H'!Q38 -> 0 | S147: ='IB - B&D&H'!S38 -> 0
E148: ='IB - B&D&H'!E39 -> 0 | G148: ='IB - B&D&H'!G39 -> 0 | I148: ='IB - B&D&H'!I39 -> 0 | K148: ='IB - B&D&H'!K39 -> 0 | M148: ='IB - B&D&H'!M39 -> 0 | O148: ='IB - B&D&H'!O39 -> 0 | Q148: ='IB - B&D&H'!Q39 -> 0 | S148: ='IB - B&D&H'!S39 -> 0
E149: ='IB - B&D&H'!E40 -> 0 | G149: ='IB - B&D&H'!G40 -> 0 | I149: ='IB - B&D&H'!I40 -> 0 | K149: ='IB - B&D&H'!K40 -> 0 | M149: ='IB - B&D&H'!M40 -> 0 | O149: ='IB - B&D&H'!O40 -> 0 | Q149: ='IB - B&D&H'!Q40 -> 0 | S149: ='IB - B&D&H'!S40 -> 0
E150: ='IB - B&D&H'!E41 -> 0 | G150: ='IB - B&D&H'!G41 -> 0 | I150: ='IB - B&D&H'!I41 -> 0 | K150: ='IB - B&D&H'!K41 -> 0 | M150: ='IB - B&D&H'!M41 -> 0 | O150: ='IB - B&D&H'!O41 -> 0 | Q150: ='IB - B&D&H'!Q41 -> 0 | S150: ='IB - B&D&H'!S41 -> 0
E151: ='IB - B&D&H'!E42 -> 0 | G151: ='IB - B&D&H'!G42 -> 0 | I151: ='IB - B&D&H'!I42 -> 0 | K151: ='IB - B&D&H'!K42 -> 0 | M151: ='IB - B&D&H'!M42 -> 0 | O151: ='IB - B&D&H'!O42 -> 0 | Q151: ='IB - B&D&H'!Q42 -> 0 | S151: ='IB - B&D&H'!S42 -> 0
E152: ='IB - B&D&H'!E43 -> 0 | G152: ='IB - B&D&H'!G43 -> 0 | I152: ='IB - B&D&H'!I43 -> 0 | K152: ='IB - B&D&H'!K43 -> 0 | M152: ='IB - B&D&H'!M43 -> 0 | O152: ='IB - B&D&H'!O43 -> 0 | Q152: ='IB - B&D&H'!Q43 -> 0 | S152: ='IB - B&D&H'!S43 -> 0
E153: ='IB - B&D&H'!E44 -> 0 | G153: ='IB - B&D&H'!G44 -> 0 | I153: ='IB - B&D&H'!I44 -> 0 | K153: ='IB - B&D&H'!K44 -> 0 | M153: ='IB - B&D&H'!M44 -> 0 | O153: ='IB - B&D&H'!O44 -> 0 | Q153: ='IB - B&D&H'!Q44 -> 0 | S153: ='IB - B&D&H'!S44 -> 0
E154: ='IB - B&D&H'!E45 -> 0 | G154: ='IB - B&D&H'!G45 -> 0 | I154: ='IB - B&D&H'!I45 -> 0 | K154: ='IB - B&D&H'!K45 -> 0 | M154: ='IB - B&D&H'!M45 -> 0 | O154: ='IB - B&D&H'!O45 -> 0 | Q154: ='IB - B&D&H'!Q45 -> 0 | S154: ='IB - B&D&H'!S45 -> 0
C156: ='IB - B&D&H'!A94 -> Gennemsnitlige årlige omkostninger | E156: ='IB - B&D&H'!E95 -> PRODUKT 1 | G156: ='IB - B&D&H'!G95 -> PRODUKT 2 | I156: ='IB - B&D&H'!I95 -> PRODUKT 3 | K156: ='IB - B&D&H'!K95 -> PRODUKT 4 | M156: ='IB - B&D&H'!M95 -> PRODUKT 5 | O156: ='IB - B&D&H'!O95 -> PRODUKT 6 | Q156: ='IB - B&D&H'!Q95 -> PRODUKT 7 | S156: ='IB - B&D&H'!S95 -> PRODUKT 8 | U156: ='IB - B&D&H'!U95 -> PRODUKT 9 | W156: ='IB - B&D&H'!W95 -> PRODUKT 10
E157: ='IB - B&D&H'!E96 -> 0 | G157: ='IB - B&D&H'!G96 -> 0 | I157: ='IB - B&D&H'!I96 -> 0 | K157: ='IB - B&D&H'!K96 -> 0 | M157: ='IB - B&D&H'!M96 -> 0 | O157: ='IB - B&D&H'!O96 -> 0 | Q157: ='IB - B&D&H'!Q96 -> 0 | S157: ='IB - B&D&H'!S96 -> 0 | U157: ='IB - B&D&H'!U96 -> 0 | W157: ='IB - B&D&H'!W96 -> 0
E158: ='IB - B&D&H'!E97 -> 0 | G158: ='IB - B&D&H'!G97 -> 0 | I158: ='IB - B&D&H'!I97 -> 0 | K158: ='IB - B&D&H'!K97 -> 0 | M158: ='IB - B&D&H'!M97 -> 0 | O158: ='IB - B&D&H'!O97 -> 0 | Q158: ='IB - B&D&H'!Q97 -> 0 | S158: ='IB - B&D&H'!S97 -> 0 | U158: ='IB - B&D&H'!U97 -> 0 | W158: ='IB - B&D&H'!W97 -> 0
E159: ='IB - B&D&H'!E98 -> 0 | G159: ='IB - B&D&H'!G98 -> 0 | I159: ='IB - B&D&H'!I98 -> 0 | K159: ='IB - B&D&H'!K98 -> 0 | M159: ='IB - B&D&H'!M98 -> 0 | O159: ='IB - B&D&H'!O98 -> 0 | Q159: ='IB - B&D&H'!Q98 -> 0 | S159: ='IB - B&D&H'!S98 -> 0 | U159: ='IB - B&D&H'!U98 -> 0 | W159: ='IB - B&D&H'!W98 -> 0
E160: ='IB - B&D&H'!E99 -> 0 | G160: ='IB - B&D&H'!G99 -> 0 | I160: ='IB - B&D&H'!I99 -> 0 | K160: ='IB - B&D&H'!K99 -> 0 | M160: ='IB - B&D&H'!M99 -> 0 | O160: ='IB - B&D&H'!O99 -> 0 | Q160: ='IB - B&D&H'!Q99 -> 0 | S160: ='IB - B&D&H'!S99 -> 0 | U160: ='IB - B&D&H'!U99 -> 0 | W160: ='IB - B&D&H'!W99 -> 0
E161: ='IB - B&D&H'!E100 -> 0 | G161: ='IB - B&D&H'!G100 -> 0 | I161: ='IB - B&D&H'!I100 -> 0 | K161: ='IB - B&D&H'!K100 -> 0 | M161: ='IB - B&D&H'!M100 -> 0 | O161: ='IB - B&D&H'!O100 -> 0 | Q161: ='IB - B&D&H'!Q100 -> 0 | S161: ='IB - B&D&H'!S100 -> 0 | U161: ='IB - B&D&H'!U100 -> 0 | W161: ='IB - B&D&H'!W100 -> 0
E162: ='IB - B&D&H'!E101 -> 0 | G162: ='IB - B&D&H'!G101 -> 0 | I162: ='IB - B&D&H'!I101 -> 0 | K162: ='IB - B&D&H'!K101 -> 0 | M162: ='IB - B&D&H'!M101 -> 0 | O162: ='IB - B&D&H'!O101 -> 0 | Q162: ='IB - B&D&H'!Q101 -> 0 | S162: ='IB - B&D&H'!S101 -> 0 | U162: ='IB - B&D&H'!U101 -> 0 | W162: ='IB - B&D&H'!W101 -> 0
E163: ='IB - B&D&H'!E102 -> 0 | G163: ='IB - B&D&H'!G102 -> 0 | I163: ='IB - B&D&H'!I102 -> 0 | K163: ='IB - B&D&H'!K102 -> 0 | M163: ='IB - B&D&H'!M102 -> 0 | O163: ='IB - B&D&H'!O102 -> 0 | Q163: ='IB - B&D&H'!Q102 -> 0 | S163: ='IB - B&D&H'!S102 -> 0 | U163: ='IB - B&D&H'!U102 -> 0 | W163: ='IB - B&D&H'!W102 -> 0
E164: ='IB - B&D&H'!E103 -> 0 | G164: ='IB - B&D&H'!G103 -> 0 | I164: ='IB - B&D&H'!I103 -> 0 | K164: ='IB - B&D&H'!K103 -> 0 | M164: ='IB - B&D&H'!M103 -> 0 | O164: ='IB - B&D&H'!O103 -> 0 | Q164: ='IB - B&D&H'!Q103 -> 0 | S164: ='IB - B&D&H'!S103 -> 0 | U164: ='IB - B&D&H'!U103 -> 0 | W164: ='IB - B&D&H'!W103 -> 0
E165: ='IB - B&D&H'!E104 -> 0 | G165: ='IB - B&D&H'!G104 -> 0 | I165: ='IB - B&D&H'!I104 -> 0 | K165: ='IB - B&D&H'!K104 -> 0 | M165: ='IB - B&D&H'!M104 -> 0 | O165: ='IB - B&D&H'!O104 -> 0 | Q165: ='IB - B&D&H'!Q104 -> 0 | S165: ='IB - B&D&H'!S104 -> 0 | U165: ='IB - B&D&H'!U104 -> 0 | W165: ='IB - B&D&H'!W104 -> 0
E166: ='IB - B&D&H'!E105 -> 0 | G166: ='IB - B&D&H'!G105 -> 0 | I166: ='IB - B&D&H'!I105 -> 0 | K166: ='IB - B&D&H'!K105 -> 0 | M166: ='IB - B&D&H'!M105 -> 0 | O166: ='IB - B&D&H'!O105 -> 0 | Q166: ='IB - B&D&H'!Q105 -> 0 | S166: ='IB - B&D&H'!S105 -> 0 | U166: ='IB - B&D&H'!U105 -> 0 | W166: ='IB - B&D&H'!W105 -> 0
E167: ='IB - B&D&H'!E106 -> 0 | G167: ='IB - B&D&H'!G106 -> 0 | I167: ='IB - B&D&H'!I106 -> 0 | K167: ='IB - B&D&H'!K106 -> 0 | M167: ='IB - B&D&H'!M106 -> 0 | O167: ='IB - B&D&H'!O106 -> 0 | Q167: ='IB - B&D&H'!Q106 -> 0 | S167: ='IB - B&D&H'!S106 -> 0 | U167: ='IB - B&D&H'!U106 -> 0 | W167: ='IB - B&D&H'!W106 -> 0
E168: ='IB - B&D&H'!E107 -> 0 | G168: ='IB - B&D&H'!G107 -> 0 | I168: ='IB - B&D&H'!I107 -> 0 | K168: ='IB - B&D&H'!K107 -> 0 | M168: ='IB - B&D&H'!M107 -> 0 | O168: ='IB - B&D&H'!O107 -> 0 | Q168: ='IB - B&D&H'!Q107 -> 0 | S168: ='IB - B&D&H'!S107 -> 0 | U168: ='IB - B&D&H'!U107 -> 0 | W168: ='IB - B&D&H'!W107 -> 0
E169: ='IB - B&D&H'!E108 -> 0 | G169: ='IB - B&D&H'!G108 -> 0 | I169: ='IB - B&D&H'!I108 -> 0 | K169: ='IB - B&D&H'!K108 -> 0 | M169: ='IB - B&D&H'!M108 -> 0 | O169: ='IB - B&D&H'!O108 -> 0 | Q169: ='IB - B&D&H'!Q108 -> 0 | S169: ='IB - B&D&H'!S108 -> 0 | U169: ='IB - B&D&H'!U108 -> 0 | W169: ='IB - B&D&H'!W108 -> 0
E170: ='IB - B&D&H'!E109 -> 0 | G170: ='IB - B&D&H'!G109 -> 0 | I170: ='IB - B&D&H'!I109 -> 0 | K170: ='IB - B&D&H'!K109 -> 0 | M170: ='IB - B&D&H'!M109 -> 0 | O170: ='IB - B&D&H'!O109 -> 0 | Q170: ='IB - B&D&H'!Q109 -> 0 | S170: ='IB - B&D&H'!S109 -> 0 | U170: ='IB - B&D&H'!U109 -> 0 | W170: ='IB - B&D&H'!W109 -> 0
E171: ='IB - B&D&H'!E110 -> 0 | G171: ='IB - B&D&H'!G110 -> 0 | I171: ='IB - B&D&H'!I110 -> 0 | K171: ='IB - B&D&H'!K110 -> 0 | M171: ='IB - B&D&H'!M110 -> 0 | O171: ='IB - B&D&H'!O110 -> 0 | Q171: ='IB - B&D&H'!Q110 -> 0 | S171: ='IB - B&D&H'!S110 -> 0 | U171: ='IB - B&D&H'!U110 -> 0 | W171: ='IB - B&D&H'!W110 -> 0
E172: ='IB - B&D&H'!E111 -> 0 | G172: ='IB - B&D&H'!G111 -> 0 | I172: ='IB - B&D&H'!I111 -> 0 | K172: ='IB - B&D&H'!K111 -> 0 | M172: ='IB - B&D&H'!M111 -> 0 | O172: ='IB - B&D&H'!O111 -> 0 | Q172: ='IB - B&D&H'!Q111 -> 0 | S172: ='IB - B&D&H'!S111 -> 0 | U172: ='IB - B&D&H'!U111 -> 0 | W172: ='IB - B&D&H'!W111 -> 0
E173: ='IB - B&D&H'!E112 -> 0 | G173: ='IB - B&D&H'!G112 -> 0 | I173: ='IB - B&D&H'!I112 -> 0 | K173: ='IB - B&D&H'!K112 -> 0 | M173: ='IB - B&D&H'!M112 -> 0 | O173: ='IB - B&D&H'!O112 -> 0 | Q173: ='IB - B&D&H'!Q112 -> 0 | S173: ='IB - B&D&H'!S112 -> 0 | U173: ='IB - B&D&H'!U112 -> 0 | W173: ='IB - B&D&H'!W112 -> 0
E174: ='IB - B&D&H'!E113 -> 0 | G174: ='IB - B&D&H'!G113 -> 0 | I174: ='IB - B&D&H'!I113 -> 0 | K174: ='IB - B&D&H'!K113 -> 0 | M174: ='IB - B&D&H'!M113 -> 0 | O174: ='IB - B&D&H'!O113 -> 0 | Q174: ='IB - B&D&H'!Q113 -> 0 | S174: ='IB - B&D&H'!S113 -> 0 | U174: ='IB - B&D&H'!U113 -> 0 | W174: ='IB - B&D&H'!W113 -> 0
E175: ='IB - B&D&H'!E114 -> 0 | G175: ='IB - B&D&H'!G114 -> 0 | I175: ='IB - B&D&H'!I114 -> 0 | K175: ='IB - B&D&H'!K114 -> 0 | M175: ='IB - B&D&H'!M114 -> 0 | O175: ='IB - B&D&H'!O114 -> 0 | Q175: ='IB - B&D&H'!Q114 -> 0 | S175: ='IB - B&D&H'!S114 -> 0 | U175: ='IB - B&D&H'!U114 -> 0 | W175: ='IB - B&D&H'!W114 -> 0
E176: ='IB - B&D&H'!E115 -> 0 | G176: ='IB - B&D&H'!G115 -> 0 | I176: ='IB - B&D&H'!I115 -> 0 | K176: ='IB - B&D&H'!K115 -> 0 | M176: ='IB - B&D&H'!M115 -> 0 | O176: ='IB - B&D&H'!O115 -> 0 | Q176: ='IB - B&D&H'!Q115 -> 0 | S176: ='IB - B&D&H'!S115 -> 0 | U176: ='IB - B&D&H'!U115 -> 0 | W176: ='IB - B&D&H'!W115 -> 0

Sheet IB - B&D&H (hidden)
AA1: Klik for valg
A2: Driftsomkostninger | E2: =E25 -> PRODUKT 1 | G2: =G25 -> PRODUKT 2 | I2: PRODUKT 3 | K2: PRODUKT 4 | M2: PRODUKT 5 | O2: PRODUKT 6 | Q2: PRODUKT 7 | S2: PRODUKT 8 | U2: PRODUKT 9 | W2: PRODUKT 10 | AA2: Benzin
A3: År indeks | C3: Benzinpris (kr./) | D3: Dieselpris (kr./m3) | AA3: Diesel
A4: 1 | C4: =IF('Benzin - diesel - hybrid'!$E$61="ja",'Benzin - diesel - hybrid'!$E$62,'Benzin - diesel - hybrid'!$E$64) -> 8.79346752 | D4: =IF('Benzin - diesel - hybrid'!$E$67="ja",'Benzin - diesel - hybrid'!$E$68,'Benzin - diesel - hybrid'!$E$70) -> 7.6920318 | E4: =IFERROR('Benzin - diesel - hybrid'!E$49*('Benzin - diesel - hybrid'!E$50/'Benzin - diesel - hybrid'!E$15)*IF('Benzin - diesel - hybrid'!E$59="Benzin",'IB - B&D&H'!$C4,IF('Benzin - diesel - hybrid'!E$59="Diesel",'IB - B&D&H'!$D4,0))*(1+'Benzin - diesel - hybrid'!E$57)^-$A4,0) -> 0 | G4: =IFERROR('Benzin - diesel - hybrid'!G$49*('Benzin - diesel - hybrid'!G$50/'Benzin - diesel - hybrid'!G$15)*IF('Benzin - diesel - hybrid'!G$59="Benzin",'IB - B&D&H'!$C4,IF('Benzin - diesel - hybrid'!G$59="Diesel",'IB - B&D&H'!$D4,0))*(1+'Benzin - diesel - hybrid'!G$57)^-$A4,0) -> 0 | I4: =IFERROR('Benzin - diesel - hybrid'!I$49*('Benzin - diesel - hybrid'!I$50/'Benzin - diesel - hybrid'!I$15)*IF('Benzin - diesel - hybrid'!I$59="Benzin",'IB - B&D&H'!$C4,IF('Benzin - diesel - hybrid'!I$59="Diesel",'IB - B&D&H'!$D4,0))*(1+'Benzin - diesel - hybrid'!I$57)^-$A4,0) -> 0 | K4: =IFERROR('Benzin - diesel - hybrid'!K$49*('Benzin - diesel - hybrid'!K$50/'Benzin - diesel - hybrid'!K$15)*IF('Benzin - diesel - hybrid'!K$59="Benzin",'IB - B&D&H'!$C4,IF('Benzin - diesel - hybrid'!K$59="Diesel",'IB - B&D&H'!$D4,0))*(1+'Benzin - diesel - hybrid'!K$57)^-$A4,0) -> 0 | M4: =IFERROR('Benzin - diesel - hybrid'!M$49*('Benzin - diesel - hybrid'!M$50/'Benzin - diesel - hybrid'!M$15)*IF('Benzin - diesel - hybrid'!M$59="Benzin",'IB - B&D&H'!$C4,IF('Benzin - diesel - hybrid'!M$59="Diesel",'IB - B&D&H'!$D4,0))*(1+'Benzin - diesel - hybrid'!M$57)^-$A4,0) -> 0 | O4: =IFERROR('Benzin - diesel - hybrid'!O$49*('Benzin - diesel - hybrid'!O$50/'Benzin - diesel - hybrid'!O$15)*IF('Benzin - diesel - hybrid'!O$59="Benzin",'IB - B&D&H'!$C4,IF('Benzin - diesel - hybrid'!O$59="Diesel",'IB - B&D&H'!$D4,0))*(1+'Benzin - diesel - hybrid'!O$57)^-$A4,0) -> 0 | Q4: =IFERROR('Benzin - diesel - hybrid'!Q$49*('Benzin - diesel - hybrid'!Q$50/'Benzin - diesel - hybrid'!Q$15)*IF('Benzin - diesel - hybrid'!Q$59="Benzin",'IB - B&D&H'!$C4,IF('Benzin - diesel - hybrid'!Q$59="Diesel",'IB - B&D&H'!$D4,0))*(1+'Benzin - diesel - hybrid'!Q$57)^-$A4,0) -> 0 | S4: =IFERROR('Benzin - diesel - hybrid'!S$49*('Benzin - diesel - hybrid'!S$50/'Benzin - diesel - hybrid'!S$15)*IF('Benzin - diesel - hybrid'!S$59="Benzin",'IB - B&D&H'!$C4,IF('Benzin - diesel - hybrid'!S$59="Diesel",'IB - B&D&H'!$D4,0))*(1+'Benzin - diesel - hybrid'!S$57)^-$A4,0) -> 0 | U4: =IFERROR('Benzin - diesel - hybrid'!U$49*('Benzin - diesel - hybrid'!U$50/'Benzin - diesel - hybrid'!U$15)*IF('Benzin - diesel - hybrid'!U$59="Benzin",'IB - B&D&H'!$C4,IF('Benzin - diesel - hybrid'!U$59="Diesel",'IB - B&D&H'!$D4,0))*(1+'Benzin - diesel - hybrid'!U$57)^-$A4,0) -> 0 | W4: =IFERROR('Benzin - diesel - hybrid'!W$49*('Benzin - diesel - hybrid'!W$50/'Benzin - diesel - hybrid'!W$15)*IF('Benzin - diesel - hybrid'!W$59="Benzin",'IB - B&D&H'!$C4,IF('Benzin - diesel - hybrid'!W$59="Diesel",'IB - B&D&H'!$D4,0))*(1+'Benzin - diesel - hybrid'!W$57)^-$A4,0) -> 0
A5: =A4+1 -> 2 | C5: =((C4-Fremskrivninger!E48)*(1+IF('Benzin - diesel - hybrid'!$E$61="ja",'Benzin - diesel - hybrid'!$E$63,'Benzin - diesel - hybrid'!$E$65))+Fremskrivninger!E48) -> 8.850922719 | D5: =((D4-Fremskrivninger!E92)*(1+IF('Benzin - diesel - hybrid'!$E$67="ja",'Benzin - diesel - hybrid'!$E$69,'Benzin - diesel - hybrid'!$E$71))+Fremskrivninger!E92) -> 7.756586261 | E5: =IFERROR('Benzin - diesel - hybrid'!E$49*('Benzin - diesel - hybrid'!E$50/'Benzin - diesel - hybrid'!E$15)*IF('Benzin - diesel - hybrid'!E$59="Benzin",'IB - B&D&H'!$C5,IF('Benzin - diesel - hybrid'!E$59="Diesel",'IB - B&D&H'!$D5,0))*(1+'Benzin - diesel - hybrid'!E$57)^-$A5,0) -> 0 | G5: =IFERROR('Benzin - diesel - hybrid'!G$49*('Benzin - diesel - hybrid'!G$50/'Benzin - diesel - hybrid'!G$15)*IF('Benzin - diesel - hybrid'!G$59="Benzin",'IB - B&D&H'!$C5,IF('Benzin - diesel - hybrid'!G$59="Diesel",'IB - B&D&H'!$D5,0))*(1+'Benzin - diesel - hybrid'!G$57)^-$A5,0) -> 0 | I5: =IFERROR('Benzin - diesel - hybrid'!I$49*('Benzin - diesel - hybrid'!I$50/'Benzin - diesel - hybrid'!I$15)*IF('Benzin - diesel - hybrid'!I$59="Benzin",'IB - B&D&H'!$C5,IF('Benzin - diesel - hybrid'!I$59="Diesel",'IB - B&D&H'!$D5,0))*(1+'Benzin - diesel - hybrid'!I$57)^-$A5,0) -> 0 | K5: =IFERROR('Benzin - diesel - hybrid'!K$49*('Benzin - diesel - hybrid'!K$50/'Benzin - diesel - hybrid'!K$15)*IF('Benzin - diesel - hybrid'!K$59="Benzin",'IB - B&D&H'!$C5,IF('Benzin - diesel - hybrid'!K$59="Diesel",'IB - B&D&H'!$D5,0))*(1+'Benzin - diesel - hybrid'!K$57)^-$A5,0) -> 0 | M5: =IFERROR('Benzin - diesel - hybrid'!M$49*('Benzin - diesel - hybrid'!M$50/'Benzin - diesel - hybrid'!M$15)*IF('Benzin - diesel - hybrid'!M$59="Benzin",'IB - B&D&H'!$C5,IF('Benzin - diesel - hybrid'!M$59="Diesel",'IB - B&D&H'!$D5,0))*(1+'Benzin - diesel - hybrid'!M$57)^-$A5,0) -> 0 | O5: =IFERROR('Benzin - diesel - hybrid'!O$49*('Benzin - diesel - hybrid'!O$50/'Benzin - diesel - hybrid'!O$15)*IF('Benzin - diesel - hybrid'!O$59="Benzin",'IB - B&D&H'!$C5,IF('Benzin - diesel - hybrid'!O$59="Diesel",'IB - B&D&H'!$D5,0))*(1+'Benzin - diesel - hybrid'!O$57)^-$A5,0) -> 0 | Q5: =IFERROR('Benzin - diesel - hybrid'!Q$49*('Benzin - diesel - hybrid'!Q$50/'Benzin - diesel - hybrid'!Q$15)*IF('Benzin - diesel - hybrid'!Q$59="Benzin",'IB - B&D&H'!$C5,IF('Benzin - diesel - hybrid'!Q$59="Diesel",'IB - B&D&H'!$D5,0))*(1+'Benzin - diesel - hybrid'!Q$57)^-$A5,0) -> 0 | S5: =IFERROR('Benzin - diesel - hybrid'!S$49*('Benzin - diesel - hybrid'!S$50/'Benzin - diesel - hybrid'!S$15)*IF('Benzin - diesel - hybrid'!S$59="Benzin",'IB - B&D&H'!$C5,IF('Benzin - diesel - hybrid'!S$59="Diesel",'IB - B&D&H'!$D5,0))*(1+'Benzin - diesel - hybrid'!S$57)^-$A5,0) -> 0 | U5: =IFERROR('Benzin - diesel - hybrid'!U$49*('Benzin - diesel - hybrid'!U$50/'Benzin - diesel - hybrid'!U$15)*IF('Benzin - diesel - hybrid'!U$59="Benzin",'IB - B&D&H'!$C5,IF('Benzin - diesel - hybrid'!U$59="Diesel",'IB - B&D&H'!$D5,0))*(1+'Benzin - diesel - hybrid'!U$57)^-$A5,0) -> 0 | W5: =IFERROR('Benzin - diesel - hybrid'!W$49*('Benzin - diesel - hybrid'!W$50/'Benzin - diesel - hybrid'!W$15)*IF('Benzin - diesel - hybrid'!W$59="Benzin",'IB - B&D&H'!$C5,IF('Benzin - diesel - hybrid'!W$59="Diesel",'IB - B&D&H'!$D5,0))*(1+'Benzin - diesel - hybrid'!W$57)^-$A5,0) -> 0
A6: 3 | C6: =((C5-Fremskrivninger!E49)*(1+IF('Benzin - diesel - hybrid'!$E$61="ja",'Benzin - diesel - hybrid'!$E$63,'Benzin - diesel - hybrid'!$E$65))+Fremskrivninger!E49) -> 8.909176544 | D6: =((D5-Fremskrivninger!E93)*(1+IF('Benzin - diesel - hybrid'!$E$67="ja",'Benzin - diesel - hybrid'!$E$69,'Benzin - diesel - hybrid'!$E$71))+Fremskrivninger!E93) -> 7.822076762 | E6: =IFERROR('Benzin - diesel - hybrid'!E$49*('Benzin - diesel - hybrid'!E$50/'Benzin - diesel - hybrid'!E$15)*IF('Benzin - diesel - hybrid'!E$59="Benzin",'IB - B&D&H'!$C6,IF('Benzin - diesel - hybrid'!E$59="Diesel",'IB - B&D&H'!$D6,0))*(1+'Benzin - diesel - hybrid'!E$57)^-$A6,0) -> 0 | G6: =IFERROR('Benzin - diesel - hybrid'!G$49*('Benzin - diesel - hybrid'!G$50/'Benzin - diesel - hybrid'!G$15)*IF('Benzin - diesel - hybrid'!G$59="Benzin",'IB - B&D&H'!$C6,IF('Benzin - diesel - hybrid'!G$59="Diesel",'IB - B&D&H'!$D6,0))*(1+'Benzin - diesel - hybrid'!G$57)^-$A6,0) -> 0 | I6: =IFERROR('Benzin - diesel - hybrid'!I$49*('Benzin - diesel - hybrid'!I$50/'Benzin - diesel - hybrid'!I$15)*IF('Benzin - diesel - hybrid'!I$59="Benzin",'IB - B&D&H'!$C6,IF('Benzin - diesel - hybrid'!I$59="Diesel",'IB - B&D&H'!$D6,0))*(1+'Benzin - diesel - hybrid'!I$57)^-$A6,0) -> 0 | K6: =IFERROR('Benzin - diesel - hybrid'!K$49*('Benzin - diesel - hybrid'!K$50/'Benzin - diesel - hybrid'!K$15)*IF('Benzin - diesel - hybrid'!K$59="Benzin",'IB - B&D&H'!$C6,IF('Benzin - diesel - hybrid'!K$59="Diesel",'IB - B&D&H'!$D6,0))*(1+'Benzin - diesel - hybrid'!K$57)^-$A6,0) -> 0 | M6: =IFERROR('Benzin - diesel - hybrid'!M$49*('Benzin - diesel - hybrid'!M$50/'Benzin - diesel - hybrid'!M$15)*IF('Benzin - diesel - hybrid'!M$59="Benzin",'IB - B&D&H'!$C6,IF('Benzin - diesel - hybrid'!M$59="Diesel",'IB - B&D&H'!$D6,0))*(1+'Benzin - diesel - hybrid'!M$57)^-$A6,0) -> 0 | O6: =IFERROR('Benzin - diesel - hybrid'!O$49*('Benzin - diesel - hybrid'!O$50/'Benzin - diesel - hybrid'!O$15)*IF('Benzin - diesel - hybrid'!O$59="Benzin",'IB - B&D&H'!$C6,IF('Benzin - diesel - hybrid'!O$59="Diesel",'IB - B&D&H'!$D6,0))*(1+'Benzin - diesel - hybrid'!O$57)^-$A6,0) -> 0 | Q6: =IFERROR('Benzin - diesel - hybrid'!Q$49*('Benzin - diesel - hybrid'!Q$50/'Benzin - diesel - hybrid'!Q$15)*IF('Benzin - diesel - hybrid'!Q$59="Benzin",'IB - B&D&H'!$C6,IF('Benzin - diesel - hybrid'!Q$59="Diesel",'IB - B&D&H'!$D6,0))*(1+'Benzin - diesel - hybrid'!Q$57)^-$A6,0) -> 0 | S6: =IFERROR('Benzin - diesel - hybrid'!S$49*('Benzin - diesel - hybrid'!S$50/'Benzin - diesel - hybrid'!S$15)*IF('Benzin - diesel - hybrid'!S$59="Benzin",'IB - B&D&H'!$C6,IF('Benzin - diesel - hybrid'!S$59="Diesel",'IB - B&D&H'!$D6,0))*(1+'Benzin - diesel - hybrid'!S$57)^-$A6,0) -> 0 | U6: =IFERROR('Benzin - diesel - hybrid'!U$49*('Benzin - diesel - hybrid'!U$50/'Benzin - diesel - hybrid'!U$15)*IF('Benzin - diesel - hybrid'!U$59="Benzin",'IB - B&D&H'!$C6,IF('Benzin - diesel - hybrid'!U$59="Diesel",'IB - B&D&H'!$D6,0))*(1+'Benzin - diesel - hybrid'!U$57)^-$A6,0) -> 0 | W6: =IFERROR('Benzin - diesel - hybrid'!W$49*('Benzin - diesel - hybrid'!W$50/'Benzin - diesel - hybrid'!W$15)*IF('Benzin - diesel - hybrid'!W$59="Benzin",'IB - B&D&H'!$C6,IF('Benzin - diesel - hybrid'!W$59="Diesel",'IB - B&D&H'!$D6,0))*(1+'Benzin - diesel - hybrid'!W$57)^-$A6,0) -> 0
A7: 4 | C7: =((C6-Fremskrivninger!E50)*(1+IF('Benzin - diesel - hybrid'!$E$61="ja",'Benzin - diesel - hybrid'!$E$63,'Benzin - diesel - hybrid'!$E$65))+Fremskrivninger!E50) -> 8.968240098 | D7: =((D6-Fremskrivninger!E94)*(1+IF('Benzin - diesel - hybrid'!$E$67="ja",'Benzin - diesel - hybrid'!$E$69,'Benzin - diesel - hybrid'!$E$71))+Fremskrivninger!E94) -> 7.888516875 | E7: =IFERROR('Benzin - diesel - hybrid'!E$49*('Benzin - diesel - hybrid'!E$50/'Benzin - diesel - hybrid'!E$15)*IF('Benzin - diesel - hybrid'!E$59="Benzin",'IB - B&D&H'!$C7,IF('Benzin - diesel - hybrid'!E$59="Diesel",'IB - B&D&H'!$D7,0))*(1+'Benzin - diesel - hybrid'!E$57)^-$A7,0) -> 0 | G7: =IFERROR('Benzin - diesel - hybrid'!G$49*('Benzin - diesel - hybrid'!G$50/'Benzin - diesel - hybrid'!G$15)*IF('Benzin - diesel - hybrid'!G$59="Benzin",'IB - B&D&H'!$C7,IF('Benzin - diesel - hybrid'!G$59="Diesel",'IB - B&D&H'!$D7,0))*(1+'Benzin - diesel - hybrid'!G$57)^-$A7,0) -> 0 | I7: =IFERROR('Benzin - diesel - hybrid'!I$49*('Benzin - diesel - hybrid'!I$50/'Benzin - diesel - hybrid'!I$15)*IF('Benzin - diesel - hybrid'!I$59="Benzin",'IB - B&D&H'!$C7,IF('Benzin - diesel - hybrid'!I$59="Diesel",'IB - B&D&H'!$D7,0))*(1+'Benzin - diesel - hybrid'!I$57)^-$A7,0) -> 0 | K7: =IFERROR('Benzin - diesel - hybrid'!K$49*('Benzin - diesel - hybrid'!K$50/'Benzin - diesel - hybrid'!K$15)*IF('Benzin - diesel - hybrid'!K$59="Benzin",'IB - B&D&H'!$C7,IF('Benzin - diesel - hybrid'!K$59="Diesel",'IB - B&D&H'!$D7,0))*(1+'Benzin - diesel - hybrid'!K$57)^-$A7,0) -> 0 | M7: =IFERROR('Benzin - diesel - hybrid'!M$49*('Benzin - diesel - hybrid'!M$50/'Benzin - diesel - hybrid'!M$15)*IF('Benzin - diesel - hybrid'!M$59="Benzin",'IB - B&D&H'!$C7,IF('Benzin - diesel - hybrid'!M$59="Diesel",'IB - B&D&H'!$D7,0))*(1+'Benzin - diesel - hybrid'!M$57)^-$A7,0) -> 0 | O7: =IFERROR('Benzin - diesel - hybrid'!O$49*('Benzin - diesel - hybrid'!O$50/'Benzin - diesel - hybrid'!O$15)*IF('Benzin - diesel - hybrid'!O$59="Benzin",'IB - B&D&H'!$C7,IF('Benzin - diesel - hybrid'!O$59="Diesel",'IB - B&D&H'!$D7,0))*(1+'Benzin - diesel - hybrid'!O$57)^-$A7,0) -> 0 | Q7: =IFERROR('Benzin - diesel - hybrid'!Q$49*('Benzin - diesel - hybrid'!Q$50/'Benzin - diesel - hybrid'!Q$15)*IF('Benzin - diesel - hybrid'!Q$59="Benzin",'IB - B&D&H'!$C7,IF('Benzin - diesel - hybrid'!Q$59="Diesel",'IB - B&D&H'!$D7,0))*(1+'Benzin - diesel - hybrid'!Q$57)^-$A7,0) -> 0 | S7: =IFERROR('Benzin - diesel - hybrid'!S$49*('Benzin - diesel - hybrid'!S$50/'Benzin - diesel - hybrid'!S$15)*IF('Benzin - diesel - hybrid'!S$59="Benzin",'IB - B&D&H'!$C7,IF('Benzin - diesel - hybrid'!S$59="Diesel",'IB - B&D&H'!$D7,0))*(1+'Benzin - diesel - hybrid'!S$57)^-$A7,0) -> 0 | U7: =IFERROR('Benzin - diesel - hybrid'!U$49*('Benzin - diesel - hybrid'!U$50/'Benzin - diesel - hybrid'!U$15)*IF('Benzin - diesel - hybrid'!U$59="Benzin",'IB - B&D&H'!$C7,IF('Benzin - diesel - hybrid'!U$59="Diesel",'IB - B&D&H'!$D7,0))*(1+'Benzin - diesel - hybrid'!U$57)^-$A7,0) -> 0 | W7: =IFERROR('Benzin - diesel - hybrid'!W$49*('Benzin - diesel - hybrid'!W$50/'Benzin - diesel - hybrid'!W$15)*IF('Benzin - diesel - hybrid'!W$59="Benzin",'IB - B&D&H'!$C7,IF('Benzin - diesel - hybrid'!W$59="Diesel",'IB - B&D&H'!$D7,0))*(1+'Benzin - diesel - hybrid'!W$57)^-$A7,0) -> 0
A8: 5 | C8: =((C7-Fremskrivninger!E51)*(1+IF('Benzin - diesel - hybrid'!$E$61="ja",'Benzin - diesel - hybrid'!$E$63,'Benzin - diesel - hybrid'!$E$65))+Fremskrivninger!E51) -> 9.028124636 | D8: =((D7-Fremskrivninger!E95)*(1+IF('Benzin - diesel - hybrid'!$E$67="ja",'Benzin - diesel - hybrid'!$E$69,'Benzin - diesel - hybrid'!$E$71))+Fremskrivninger!E95) -> 7.95592037 | E8: =IFERROR('Benzin - diesel - hybrid'!E$49*('Benzin - diesel - hybrid'!E$50/'Benzin - diesel - hybrid'!E$15)*IF('Benzin - diesel - hybrid'!E$59="Benzin",'IB - B&D&H'!$C8,IF('Benzin - diesel - hybrid'!E$59="Diesel",'IB - B&D&H'!$D8,0))*(1+'Benzin - diesel - hybrid'!E$57)^-$A8,0) -> 0 | G8: =IFERROR('Benzin - diesel - hybrid'!G$49*('Benzin - diesel - hybrid'!G$50/'Benzin - diesel - hybrid'!G$15)*IF('Benzin - diesel - hybrid'!G$59="Benzin",'IB - B&D&H'!$C8,IF('Benzin - diesel - hybrid'!G$59="Diesel",'IB - B&D&H'!$D8,0))*(1+'Benzin - diesel - hybrid'!G$57)^-$A8,0) -> 0 | I8: =IFERROR('Benzin - diesel - hybrid'!I$49*('Benzin - diesel - hybrid'!I$50/'Benzin - diesel - hybrid'!I$15)*IF('Benzin - diesel - hybrid'!I$59="Benzin",'IB - B&D&H'!$C8,IF('Benzin - diesel - hybrid'!I$59="Diesel",'IB - B&D&H'!$D8,0))*(1+'Benzin - diesel - hybrid'!I$57)^-$A8,0) -> 0 | K8: =IFERROR('Benzin - diesel - hybrid'!K$49*('Benzin - diesel - hybrid'!K$50/'Benzin - diesel - hybrid'!K$15)*IF('Benzin - diesel - hybrid'!K$59="Benzin",'IB - B&D&H'!$C8,IF('Benzin - diesel - hybrid'!K$59="Diesel",'IB - B&D&H'!$D8,0))*(1+'Benzin - diesel - hybrid'!K$57)^-$A8,0) -> 0 | M8: =IFERROR('Benzin - diesel - hybrid'!M$49*('Benzin - diesel - hybrid'!M$50/'Benzin - diesel - hybrid'!M$15)*IF('Benzin - diesel - hybrid'!M$59="Benzin",'IB - B&D&H'!$C8,IF('Benzin - diesel - hybrid'!M$59="Diesel",'IB - B&D&H'!$D8,0))*(1+'Benzin - diesel - hybrid'!M$57)^-$A8,0) -> 0 | O8: =IFERROR('Benzin - diesel - hybrid'!O$49*('Benzin - diesel - hybrid'!O$50/'Benzin - diesel - hybrid'!O$15)*IF('Benzin - diesel - hybrid'!O$59="Benzin",'IB - B&D&H'!$C8,IF('Benzin - diesel - hybrid'!O$59="Diesel",'IB - B&D&H'!$D8,0))*(1+'Benzin - diesel - hybrid'!O$57)^-$A8,0) -> 0 | Q8: =IFERROR('Benzin - diesel - hybrid'!Q$49*('Benzin - diesel - hybrid'!Q$50/'Benzin - diesel - hybrid'!Q$15)*IF('Benzin - diesel - hybrid'!Q$59="Benzin",'IB - B&D&H'!$C8,IF('Benzin - diesel - hybrid'!Q$59="Diesel",'IB - B&D&H'!$D8,0))*(1+'Benzin - diesel - hybrid'!Q$57)^-$A8,0) -> 0 | S8: =IFERROR('Benzin - diesel - hybrid'!S$49*('Benzin - diesel - hybrid'!S$50/'Benzin - diesel - hybrid'!S$15)*IF('Benzin - diesel - hybrid'!S$59="Benzin",'IB - B&D&H'!$C8,IF('Benzin - diesel - hybrid'!S$59="Diesel",'IB - B&D&H'!$D8,0))*(1+'Benzin - diesel - hybrid'!S$57)^-$A8,0) -> 0 | U8: =IFERROR('Benzin - diesel - hybrid'!U$49*('Benzin - diesel - hybrid'!U$50/'Benzin - diesel - hybrid'!U$15)*IF('Benzin - diesel - hybrid'!U$59="Benzin",'IB - B&D&H'!$C8,IF('Benzin - diesel - hybrid'!U$59="Diesel",'IB - B&D&H'!$D8,0))*(1+'Benzin - diesel - hybrid'!U$57)^-$A8,0) -> 0 | W8: =IFERROR('Benzin - diesel - hybrid'!W$49*('Benzin - diesel - hybrid'!W$50/'Benzin - diesel - hybrid'!W$15)*IF('Benzin - diesel - hybrid'!W$59="Benzin",'IB - B&D&H'!$C8,IF('Benzin - diesel - hybrid'!W$59="Diesel",'IB - B&D&H'!$D8,0))*(1+'Benzin - diesel - hybrid'!W$57)^-$A8,0) -> 0
A9: 6 | C9: =((C8-Fremskrivninger!E52)*(1+IF('Benzin - diesel - hybrid'!$E$61="ja",'Benzin - diesel - hybrid'!$E$63,'Benzin - diesel - hybrid'!$E$65))+Fremskrivninger!E52) -> 9.088841568 | D9: =((D8-Fremskrivninger!E96)*(1+IF('Benzin - diesel - hybrid'!$E$67="ja",'Benzin - diesel - hybrid'!$E$69,'Benzin - diesel - hybrid'!$E$71))+Fremskrivninger!E96) -> 8.024301215 | E9: =IFERROR('Benzin - diesel - hybrid'!E$49*('Benzin - diesel - hybrid'!E$50/'Benzin - diesel - hybrid'!E$15)*IF('Benzin - diesel - hybrid'!E$59="Benzin",'IB - B&D&H'!$C9,IF('Benzin - diesel - hybrid'!E$59="Diesel",'IB - B&D&H'!$D9,0))*(1+'Benzin - diesel - hybrid'!E$57)^-$A9,0) -> 0 | G9: =IFERROR('Benzin - diesel - hybrid'!G$49*('Benzin - diesel - hybrid'!G$50/'Benzin - diesel - hybrid'!G$15)*IF('Benzin - diesel - hybrid'!G$59="Benzin",'IB - B&D&H'!$C9,IF('Benzin - diesel - hybrid'!G$59="Diesel",'IB - B&D&H'!$D9,0))*(1+'Benzin - diesel - hybrid'!G$57)^-$A9,0) -> 0 | I9: =IFERROR('Benzin - diesel - hybrid'!I$49*('Benzin - diesel - hybrid'!I$50/'Benzin - diesel - hybrid'!I$15)*IF('Benzin - diesel - hybrid'!I$59="Benzin",'IB - B&D&H'!$C9,IF('Benzin - diesel - hybrid'!I$59="Diesel",'IB - B&D&H'!$D9,0))*(1+'Benzin - diesel - hybrid'!I$57)^-$A9,0) -> 0 | K9: =IFERROR('Benzin - diesel - hybrid'!K$49*('Benzin - diesel - hybrid'!K$50/'Benzin - diesel - hybrid'!K$15)*IF('Benzin - diesel - hybrid'!K$59="Benzin",'IB - B&D&H'!$C9,IF('Benzin - diesel - hybrid'!K$59="Diesel",'IB - B&D&H'!$D9,0))*(1+'Benzin - diesel - hybrid'!K$57)^-$A9,0) -> 0 | M9: =IFERROR('Benzin - diesel - hybrid'!M$49*('Benzin - diesel - hybrid'!M$50/'Benzin - diesel - hybrid'!M$15)*IF('Benzin - diesel - hybrid'!M$59="Benzin",'IB - B&D&H'!$C9,IF('Benzin - diesel - hybrid'!M$59="Diesel",'IB - B&D&H'!$D9,0))*(1+'Benzin - diesel - hybrid'!M$57)^-$A9,0) -> 0 | O9: =IFERROR('Benzin - diesel - hybrid'!O$49*('Benzin - diesel - hybrid'!O$50/'Benzin - diesel - hybrid'!O$15)*IF('Benzin - diesel - hybrid'!O$59="Benzin",'IB - B&D&H'!$C9,IF('Benzin - diesel - hybrid'!O$59="Diesel",'IB - B&D&H'!$D9,0))*(1+'Benzin - diesel - hybrid'!O$57)^-$A9,0) -> 0 | Q9: =IFERROR('Benzin - diesel - hybrid'!Q$49*('Benzin - diesel - hybrid'!Q$50/'Benzin - diesel - hybrid'!Q$15)*IF('Benzin - diesel - hybrid'!Q$59="Benzin",'IB - B&D&H'!$C9,IF('Benzin - diesel - hybrid'!Q$59="Diesel",'IB - B&D&H'!$D9,0))*(1+'Benzin - diesel - hybrid'!Q$57)^-$A9,0) -> 0 | S9: =IFERROR('Benzin - diesel - hybrid'!S$49*('Benzin - diesel - hybrid'!S$50/'Benzin - diesel - hybrid'!S$15)*IF('Benzin - diesel - hybrid'!S$59="Benzin",'IB - B&D&H'!$C9,IF('Benzin - diesel - hybrid'!S$59="Diesel",'IB - B&D&H'!$D9,0))*(1+'Benzin - diesel - hybrid'!S$57)^-$A9,0) -> 0 | U9: =IFERROR('Benzin - diesel - hybrid'!U$49*('Benzin - diesel - hybrid'!U$50/'Benzin - diesel - hybrid'!U$15)*IF('Benzin - diesel - hybrid'!U$59="Benzin",'IB - B&D&H'!$C9,IF('Benzin - diesel - hybrid'!U$59="Diesel",'IB - B&D&H'!$D9,0))*(1+'Benzin - diesel - hybrid'!U$57)^-$A9,0) -> 0 | W9: =IFERROR('Benzin - diesel - hybrid'!W$49*('Benzin - diesel - hybrid'!W$50/'Benzin - diesel - hybrid'!W$15)*IF('Benzin - diesel - hybrid'!W$59="Benzin",'IB - B&D&H'!$C9,IF('Benzin - diesel - hybrid'!W$59="Diesel",'IB - B&D&H'!$D9,0))*(1+'Benzin - diesel - hybrid'!W$57)^-$A9,0) -> 0
A10: 7 | C10: =((C9-Fremskrivninger!E53)*(1+IF('Benzin - diesel - hybrid'!$E$61="ja",'Benzin - diesel - hybrid'!$E$63,'Benzin - diesel - hybrid'!$E$65))+Fremskrivninger!E53) -> 9.150402466 | D10: =((D9-Fremskrivninger!E97)*(1+IF('Benzin - diesel - hybrid'!$E$67="ja",'Benzin - diesel - hybrid'!$E$69,'Benzin - diesel - hybrid'!$E$71))+Fremskrivninger!E97) -> 8.093673583 | E10: =IFERROR('Benzin - diesel - hybrid'!E$49*('Benzin - diesel - hybrid'!E$50/'Benzin - diesel - hybrid'!E$15)*IF('Benzin - diesel - hybrid'!E$59="Benzin",'IB - B&D&H'!$C10,IF('Benzin - diesel - hybrid'!E$59="Diesel",'IB - B&D&H'!$D10,0))*(1+'Benzin - diesel - hybrid'!E$57)^-$A10,0) -> 0 | G10: =IFERROR('Benzin - diesel - hybrid'!G$49*('Benzin - diesel - hybrid'!G$50/'Benzin - diesel - hybrid'!G$15)*IF('Benzin - diesel - hybrid'!G$59="Benzin",'IB - B&D&H'!$C10,IF('Benzin - diesel - hybrid'!G$59="Diesel",'IB - B&D&H'!$D10,0))*(1+'Benzin - diesel - hybrid'!G$57)^-$A10,0) -> 0 | I10: =IFERROR('Benzin - diesel - hybrid'!I$49*('Benzin - diesel - hybrid'!I$50/'Benzin - diesel - hybrid'!I$15)*IF('Benzin - diesel - hybrid'!I$59="Benzin",'IB - B&D&H'!$C10,IF('Benzin - diesel - hybrid'!I$59="Diesel",'IB - B&D&H'!$D10,0))*(1+'Benzin - diesel - hybrid'!I$57)^-$A10,0) -> 0 | K10: =IFERROR('Benzin - diesel - hybrid'!K$49*('Benzin - diesel - hybrid'!K$50/'Benzin - diesel - hybrid'!K$15)*IF('Benzin - diesel - hybrid'!K$59="Benzin",'IB - B&D&H'!$C10,IF('Benzin - diesel - hybrid'!K$59="Diesel",'IB - B&D&H'!$D10,0))*(1+'Benzin - diesel - hybrid'!K$57)^-$A10,0) -> 0 | M10: =IFERROR('Benzin - diesel - hybrid'!M$49*('Benzin - diesel - hybrid'!M$50/'Benzin - diesel - hybrid'!M$15)*IF('Benzin - diesel - hybrid'!M$59="Benzin",'IB - B&D&H'!$C10,IF('Benzin - diesel - hybrid'!M$59="Diesel",'IB - B&D&H'!$D10,0))*(1+'Benzin - diesel - hybrid'!M$57)^-$A10,0) -> 0 | O10: =IFERROR('Benzin - diesel - hybrid'!O$49*('Benzin - diesel - hybrid'!O$50/'Benzin - diesel - hybrid'!O$15)*IF('Benzin - diesel - hybrid'!O$59="Benzin",'IB - B&D&H'!$C10,IF('Benzin - diesel - hybrid'!O$59="Diesel",'IB - B&D&H'!$D10,0))*(1+'Benzin - diesel - hybrid'!O$57)^-$A10,0) -> 0 | Q10: =IFERROR('Benzin - diesel - hybrid'!Q$49*('Benzin - diesel - hybrid'!Q$50/'Benzin - diesel - hybrid'!Q$15)*IF('Benzin - diesel - hybrid'!Q$59="Benzin",'IB - B&D&H'!$C10,IF('Benzin - diesel - hybrid'!Q$59="Diesel",'IB - B&D&H'!$D10,0))*(1+'Benzin - diesel - hybrid'!Q$57)^-$A10,0) -> 0 | S10: =IFERROR('Benzin - diesel - hybrid'!S$49*('Benzin - diesel - hybrid'!S$50/'Benzin - diesel - hybrid'!S$15)*IF('Benzin - diesel - hybrid'!S$59="Benzin",'IB - B&D&H'!$C10,IF('Benzin - diesel - hybrid'!S$59="Diesel",'IB - B&D&H'!$D10,0))*(1+'Benzin - diesel - hybrid'!S$57)^-$A10,0) -> 0 | U10: =IFERROR('Benzin - diesel - hybrid'!U$49*('Benzin - diesel - hybrid'!U$50/'Benzin - diesel - hybrid'!U$15)*IF('Benzin - diesel - hybrid'!U$59="Benzin",'IB - B&D&H'!$C10,IF('Benzin - diesel - hybrid'!U$59="Diesel",'IB - B&D&H'!$D10,0))*(1+'Benzin - diesel - hybrid'!U$57)^-$A10,0) -> 0 | W10: =IFERROR('Benzin - diesel - hybrid'!W$49*('Benzin - diesel - hybrid'!W$50/'Benzin - diesel - hybrid'!W$15)*IF('Benzin - diesel - hybrid'!W$59="Benzin",'IB - B&D&H'!$C10,IF('Benzin - diesel - hybrid'!W$59="Diesel",'IB - B&D&H'!$D10,0))*(1+'Benzin - diesel - hybrid'!W$57)^-$A10,0) -> 0
A11: 8 | C11: =((C10-Fremskrivninger!E54)*(1+IF('Benzin - diesel - hybrid'!$E$61="ja",'Benzin - diesel - hybrid'!$E$63,'Benzin - diesel - hybrid'!$E$65))+Fremskrivninger!E54) -> 9.21281906 | D11: =((D10-Fremskrivninger!E98)*(1+IF('Benzin - diesel - hybrid'!$E$67="ja",'Benzin - diesel - hybrid'!$E$69,'Benzin - diesel - hybrid'!$E$71))+Fremskrivninger!E98) -> 8.16405185 | E11: =IFERROR('Benzin - diesel - hybrid'!E$49*('Benzin - diesel - hybrid'!E$50/'Benzin - diesel - hybrid'!E$15)*IF('Benzin - diesel - hybrid'!E$59="Benzin",'IB - B&D&H'!$C11,IF('Benzin - diesel - hybrid'!E$59="Diesel",'IB - B&D&H'!$D11,0))*(1+'Benzin - diesel - hybrid'!E$57)^-$A11,0) -> 0 | G11: =IFERROR('Benzin - diesel - hybrid'!G$49*('Benzin - diesel - hybrid'!G$50/'Benzin - diesel - hybrid'!G$15)*IF('Benzin - diesel - hybrid'!G$59="Benzin",'IB - B&D&H'!$C11,IF('Benzin - diesel - hybrid'!G$59="Diesel",'IB - B&D&H'!$D11,0))*(1+'Benzin - diesel - hybrid'!G$57)^-$A11,0) -> 0 | I11: =IFERROR('Benzin - diesel - hybrid'!I$49*('Benzin - diesel - hybrid'!I$50/'Benzin - diesel - hybrid'!I$15)*IF('Benzin - diesel - hybrid'!I$59="Benzin",'IB - B&D&H'!$C11,IF('Benzin - diesel - hybrid'!I$59="Diesel",'IB - B&D&H'!$D11,0))*(1+'Benzin - diesel - hybrid'!I$57)^-$A11,0) -> 0 | K11: =IFERROR('Benzin - diesel - hybrid'!K$49*('Benzin - diesel - hybrid'!K$50/'Benzin - diesel - hybrid'!K$15)*IF('Benzin - diesel - hybrid'!K$59="Benzin",'IB - B&D&H'!$C11,IF('Benzin - diesel - hybrid'!K$59="Diesel",'IB - B&D&H'!$D11,0))*(1+'Benzin - diesel - hybrid'!K$57)^-$A11,0) -> 0 | M11: =IFERROR('Benzin - diesel - hybrid'!M$49*('Benzin - diesel - hybrid'!M$50/'Benzin - diesel - hybrid'!M$15)*IF('Benzin - diesel - hybrid'!M$59="Benzin",'IB - B&D&H'!$C11,IF('Benzin - diesel - hybrid'!M$59="Diesel",'IB - B&D&H'!$D11,0))*(1+'Benzin - diesel - hybrid'!M$57)^-$A11,0) -> 0 | O11: =IFERROR('Benzin - diesel - hybrid'!O$49*('Benzin - diesel - hybrid'!O$50/'Benzin - diesel - hybrid'!O$15)*IF('Benzin - diesel - hybrid'!O$59="Benzin",'IB - B&D&H'!$C11,IF('Benzin - diesel - hybrid'!O$59="Diesel",'IB - B&D&H'!$D11,0))*(1+'Benzin - diesel - hybrid'!O$57)^-$A11,0) -> 0 | Q11: =IFERROR('Benzin - diesel - hybrid'!Q$49*('Benzin - diesel - hybrid'!Q$50/'Benzin - diesel - hybrid'!Q$15)*IF('Benzin - diesel - hybrid'!Q$59="Benzin",'IB - B&D&H'!$C11,IF('Benzin - diesel - hybrid'!Q$59="Diesel",'IB - B&D&H'!$D11,0))*(1+'Benzin - diesel - hybrid'!Q$57)^-$A11,0) -> 0 | S11: =IFERROR('Benzin - diesel - hybrid'!S$49*('Benzin - diesel - hybrid'!S$50/'Benzin - diesel - hybrid'!S$15)*IF('Benzin - diesel - hybrid'!S$59="Benzin",'IB - B&D&H'!$C11,IF('Benzin - diesel - hybrid'!S$59="Diesel",'IB - B&D&H'!$D11,0))*(1+'Benzin - diesel - hybrid'!S$57)^-$A11,0) -> 0 | U11: =IFERROR('Benzin - diesel - hybrid'!U$49*('Benzin - diesel - hybrid'!U$50/'Benzin - diesel - hybrid'!U$15)*IF('Benzin - diesel - hybrid'!U$59="Benzin",'IB - B&D&H'!$C11,IF('Benzin - diesel - hybrid'!U$59="Diesel",'IB - B&D&H'!$D11,0))*(1+'Benzin - diesel - hybrid'!U$57)^-$A11,0) -> 0 | W11: =IFERROR('Benzin - diesel - hybrid'!W$49*('Benzin - diesel - hybrid'!W$50/'Benzin - diesel - hybrid'!W$15)*IF('Benzin - diesel - hybrid'!W$59="Benzin",'IB - B&D&H'!$C11,IF('Benzin - diesel - hybrid'!W$59="Diesel",'IB - B&D&H'!$D11,0))*(1+'Benzin - diesel - hybrid'!W$57)^-$A11,0) -> 0
A12: 9 | C12: =((C11-Fremskrivninger!E55)*(1+IF('Benzin - diesel - hybrid'!$E$61="ja",'Benzin - diesel - hybrid'!$E$63,'Benzin - diesel - hybrid'!$E$65))+Fremskrivninger!E55) -> 9.276103245 | D12: =((D11-Fremskrivninger!E99)*(1+IF('Benzin - diesel - hybrid'!$E$67="ja",'Benzin - diesel - hybrid'!$E$69,'Benzin - diesel - hybrid'!$E$71))+Fremskrivninger!E99) -> 8.235450601 | E12: =IFERROR('Benzin - diesel - hybrid'!E$49*('Benzin - diesel - hybrid'!E$50/'Benzin - diesel - hybrid'!E$15)*IF('Benzin - diesel - hybrid'!E$59="Benzin",'IB - B&D&H'!$C12,IF('Benzin - diesel - hybrid'!E$59="Diesel",'IB - B&D&H'!$D12,0))*(1+'Benzin - diesel - hybrid'!E$57)^-$A12,0) -> 0 | G12: =IFERROR('Benzin - diesel - hybrid'!G$49*('Benzin - diesel - hybrid'!G$50/'Benzin - diesel - hybrid'!G$15)*IF('Benzin - diesel - hybrid'!G$59="Benzin",'IB - B&D&H'!$C12,IF('Benzin - diesel - hybrid'!G$59="Diesel",'IB - B&D&H'!$D12,0))*(1+'Benzin - diesel - hybrid'!G$57)^-$A12,0) -> 0 | I12: =IFERROR('Benzin - diesel - hybrid'!I$49*('Benzin - diesel - hybrid'!I$50/'Benzin - diesel - hybrid'!I$15)*IF('Benzin - diesel - hybrid'!I$59="Benzin",'IB - B&D&H'!$C12,IF('Benzin - diesel - hybrid'!I$59="Diesel",'IB - B&D&H'!$D12,0))*(1+'Benzin - diesel - hybrid'!I$57)^-$A12,0) -> 0 | K12: =IFERROR('Benzin - diesel - hybrid'!K$49*('Benzin - diesel - hybrid'!K$50/'Benzin - diesel - hybrid'!K$15)*IF('Benzin - diesel - hybrid'!K$59="Benzin",'IB - B&D&H'!$C12,IF('Benzin - diesel - hybrid'!K$59="Diesel",'IB - B&D&H'!$D12,0))*(1+'Benzin - diesel - hybrid'!K$57)^-$A12,0) -> 0 | M12: =IFERROR('Benzin - diesel - hybrid'!M$49*('Benzin - diesel - hybrid'!M$50/'Benzin - diesel - hybrid'!M$15)*IF('Benzin - diesel - hybrid'!M$59="Benzin",'IB - B&D&H'!$C12,IF('Benzin - diesel - hybrid'!M$59="Diesel",'IB - B&D&H'!$D12,0))*(1+'Benzin - diesel - hybrid'!M$57)^-$A12,0) -> 0 | O12: =IFERROR('Benzin - diesel - hybrid'!O$49*('Benzin - diesel - hybrid'!O$50/'Benzin - diesel - hybrid'!O$15)*IF('Benzin - diesel - hybrid'!O$59="Benzin",'IB - B&D&H'!$C12,IF('Benzin - diesel - hybrid'!O$59="Diesel",'IB - B&D&H'!$D12,0))*(1+'Benzin - diesel - hybrid'!O$57)^-$A12,0) -> 0 | Q12: =IFERROR('Benzin - diesel - hybrid'!Q$49*('Benzin - diesel - hybrid'!Q$50/'Benzin - diesel - hybrid'!Q$15)*IF('Benzin - diesel - hybrid'!Q$59="Benzin",'IB - B&D&H'!$C12,IF('Benzin - diesel - hybrid'!Q$59="Diesel",'IB - B&D&H'!$D12,0))*(1+'Benzin - diesel - hybrid'!Q$57)^-$A12,0) -> 0 | S12: =IFERROR('Benzin - diesel - hybrid'!S$49*('Benzin - diesel - hybrid'!S$50/'Benzin - diesel - hybrid'!S$15)*IF('Benzin - diesel - hybrid'!S$59="Benzin",'IB - B&D&H'!$C12,IF('Benzin - diesel - hybrid'!S$59="Diesel",'IB - B&D&H'!$D12,0))*(1+'Benzin - diesel - hybrid'!S$57)^-$A12,0) -> 0 | U12: =IFERROR('Benzin - diesel - hybrid'!U$49*('Benzin - diesel - hybrid'!U$50/'Benzin - diesel - hybrid'!U$15)*IF('Benzin - diesel - hybrid'!U$59="Benzin",'IB - B&D&H'!$C12,IF('Benzin - diesel - hybrid'!U$59="Diesel",'IB - B&D&H'!$D12,0))*(1+'Benzin - diesel - hybrid'!U$57)^-$A12,0) -> 0 | W12: =IFERROR('Benzin - diesel - hybrid'!W$49*('Benzin - diesel - hybrid'!W$50/'Benzin - diesel - hybrid'!W$15)*IF('Benzin - diesel - hybrid'!W$59="Benzin",'IB - B&D&H'!$C12,IF('Benzin - diesel - hybrid'!W$59="Diesel",'IB - B&D&H'!$D12,0))*(1+'Benzin - diesel - hybrid'!W$57)^-$A12,0) -> 0
A13: 10 | C13: =((C12-Fremskrivninger!E56)*(1+IF('Benzin - diesel - hybrid'!$E$61="ja",'Benzin - diesel - hybrid'!$E$63,'Benzin - diesel - hybrid'!$E$65))+Fremskrivninger!E56) -> 9.34026708 | D13: =((D12-Fremskrivninger!E100)*(1+IF('Benzin - diesel - hybrid'!$E$67="ja",'Benzin - diesel - hybrid'!$E$69,'Benzin - diesel - hybrid'!$E$71))+Fremskrivninger!E100) -> 8.307884635 | E13: =IFERROR('Benzin - diesel - hybrid'!E$49*('Benzin - diesel - hybrid'!E$50/'Benzin - diesel - hybrid'!E$15)*IF('Benzin - diesel - hybrid'!E$59="Benzin",'IB - B&D&H'!$C13,IF('Benzin - diesel - hybrid'!E$59="Diesel",'IB - B&D&H'!$D13,0))*(1+'Benzin - diesel - hybrid'!E$57)^-$A13,0) -> 0 | G13: =IFERROR('Benzin - diesel - hybrid'!G$49*('Benzin - diesel - hybrid'!G$50/'Benzin - diesel - hybrid'!G$15)*IF('Benzin - diesel - hybrid'!G$59="Benzin",'IB - B&D&H'!$C13,IF('Benzin - diesel - hybrid'!G$59="Diesel",'IB - B&D&H'!$D13,0))*(1+'Benzin - diesel - hybrid'!G$57)^-$A13,0) -> 0 | I13: =IFERROR('Benzin - diesel - hybrid'!I$49*('Benzin - diesel - hybrid'!I$50/'Benzin - diesel - hybrid'!I$15)*IF('Benzin - diesel - hybrid'!I$59="Benzin",'IB - B&D&H'!$C13,IF('Benzin - diesel - hybrid'!I$59="Diesel",'IB - B&D&H'!$D13,0))*(1+'Benzin - diesel - hybrid'!I$57)^-$A13,0) -> 0 | K13: =IFERROR('Benzin - diesel - hybrid'!K$49*('Benzin - diesel - hybrid'!K$50/'Benzin - diesel - hybrid'!K$15)*IF('Benzin - diesel - hybrid'!K$59="Benzin",'IB - B&D&H'!$C13,IF('Benzin - diesel - hybrid'!K$59="Diesel",'IB - B&D&H'!$D13,0))*(1+'Benzin - diesel - hybrid'!K$57)^-$A13,0) -> 0 | M13: =IFERROR('Benzin - diesel - hybrid'!M$49*('Benzin - diesel - hybrid'!M$50/'Benzin - diesel - hybrid'!M$15)*IF('Benzin - diesel - hybrid'!M$59="Benzin",'IB - B&D&H'!$C13,IF('Benzin - diesel - hybrid'!M$59="Diesel",'IB - B&D&H'!$D13,0))*(1+'Benzin - diesel - hybrid'!M$57)^-$A13,0) -> 0 | O13: =IFERROR('Benzin - diesel - hybrid'!O$49*('Benzin - diesel - hybrid'!O$50/'Benzin - diesel - hybrid'!O$15)*IF('Benzin - diesel - hybrid'!O$59="Benzin",'IB - B&D&H'!$C13,IF('Benzin - diesel - hybrid'!O$59="Diesel",'IB - B&D&H'!$D13,0))*(1+'Benzin - diesel - hybrid'!O$57)^-$A13,0) -> 0 | Q13: =IFERROR('Benzin - diesel - hybrid'!Q$49*('Benzin - diesel - hybrid'!Q$50/'Benzin - diesel - hybrid'!Q$15)*IF('Benzin - diesel - hybrid'!Q$59="Benzin",'IB - B&D&H'!$C13,IF('Benzin - diesel - hybrid'!Q$59="Diesel",'IB - B&D&H'!$D13,0))*(1+'Benzin - diesel - hybrid'!Q$57)^-$A13,0) -> 0 | S13: =IFERROR('Benzin - diesel - hybrid'!S$49*('Benzin - diesel - hybrid'!S$50/'Benzin - diesel - hybrid'!S$15)*IF('Benzin - diesel - hybrid'!S$59="Benzin",'IB - B&D&H'!$C13,IF('Benzin - diesel - hybrid'!S$59="Diesel",'IB - B&D&H'!$D13,0))*(1+'Benzin - diesel - hybrid'!S$57)^-$A13,0) -> 0 | U13: =IFERROR('Benzin - diesel - hybrid'!U$49*('Benzin - diesel - hybrid'!U$50/'Benzin - diesel - hybrid'!U$15)*IF('Benzin - diesel - hybrid'!U$59="Benzin",'IB - B&D&H'!$C13,IF('Benzin - diesel - hybrid'!U$59="Diesel",'IB - B&D&H'!$D13,0))*(1+'Benzin - diesel - hybrid'!U$57)^-$A13,0) -> 0 | W13: =IFERROR('Benzin - diesel - hybrid'!W$49*('Benzin - diesel - hybrid'!W$50/'Benzin - diesel - hybrid'!W$15)*IF('Benzin - diesel - hybrid'!W$59="Benzin",'IB - B&D&H'!$C13,IF('Benzin - diesel - hybrid'!W$59="Diesel",'IB - B&D&H'!$D13,0))*(1+'Benzin - diesel - hybrid'!W$57)^-$A13,0) -> 0
A14: 11 | C14: =((C13-Fremskrivninger!E57)*(1+IF('Benzin - diesel - hybrid'!$E$61="ja",'Benzin - diesel - hybrid'!$E$63,'Benzin - diesel - hybrid'!$E$65))+Fremskrivninger!E57) -> 9.405322793 | D14: =((D13-Fremskrivninger!E101)*(1+IF('Benzin - diesel - hybrid'!$E$67="ja",'Benzin - diesel - hybrid'!$E$69,'Benzin - diesel - hybrid'!$E$71))+Fremskrivninger!E101) -> 8.381368962 | E14: =IFERROR('Benzin - diesel - hybrid'!E$49*('Benzin - diesel - hybrid'!E$50/'Benzin - diesel - hybrid'!E$15)*IF('Benzin - diesel - hybrid'!E$59="Benzin",'IB - B&D&H'!$C14,IF('Benzin - diesel - hybrid'!E$59="Diesel",'IB - B&D&H'!$D14,0))*(1+'Benzin - diesel - hybrid'!E$57)^-$A14,0) -> 0 | G14: =IFERROR('Benzin - diesel - hybrid'!G$49*('Benzin - diesel - hybrid'!G$50/'Benzin - diesel - hybrid'!G$15)*IF('Benzin - diesel - hybrid'!G$59="Benzin",'IB - B&D&H'!$C14,IF('Benzin - diesel - hybrid'!G$59="Diesel",'IB - B&D&H'!$D14,0))*(1+'Benzin - diesel - hybrid'!G$57)^-$A14,0) -> 0 | I14: =IFERROR('Benzin - diesel - hybrid'!I$49*('Benzin - diesel - hybrid'!I$50/'Benzin - diesel - hybrid'!I$15)*IF('Benzin - diesel - hybrid'!I$59="Benzin",'IB - B&D&H'!$C14,IF('Benzin - diesel - hybrid'!I$59="Diesel",'IB - B&D&H'!$D14,0))*(1+'Benzin - diesel - hybrid'!I$57)^-$A14,0) -> 0 | K14: =IFERROR('Benzin - diesel - hybrid'!K$49*('Benzin - diesel - hybrid'!K$50/'Benzin - diesel - hybrid'!K$15)*IF('Benzin - diesel - hybrid'!K$59="Benzin",'IB - B&D&H'!$C14,IF('Benzin - diesel - hybrid'!K$59="Diesel",'IB - B&D&H'!$D14,0))*(1+'Benzin - diesel - hybrid'!K$57)^-$A14,0) -> 0 | M14: =IFERROR('Benzin - diesel - hybrid'!M$49*('Benzin - diesel - hybrid'!M$50/'Benzin - diesel - hybrid'!M$15)*IF('Benzin - diesel - hybrid'!M$59="Benzin",'IB - B&D&H'!$C14,IF('Benzin - diesel - hybrid'!M$59="Diesel",'IB - B&D&H'!$D14,0))*(1+'Benzin - diesel - hybrid'!M$57)^-$A14,0) -> 0 | O14: =IFERROR('Benzin - diesel - hybrid'!O$49*('Benzin - diesel - hybrid'!O$50/'Benzin - diesel - hybrid'!O$15)*IF('Benzin - diesel - hybrid'!O$59="Benzin",'IB - B&D&H'!$C14,IF('Benzin - diesel - hybrid'!O$59="Diesel",'IB - B&D&H'!$D14,0))*(1+'Benzin - diesel - hybrid'!O$57)^-$A14,0) -> 0 | Q14: =IFERROR('Benzin - diesel - hybrid'!Q$49*('Benzin - diesel - hybrid'!Q$50/'Benzin - diesel - hybrid'!Q$15)*IF('Benzin - diesel - hybrid'!Q$59="Benzin",'IB - B&D&H'!$C14,IF('Benzin - diesel - hybrid'!Q$59="Diesel",'IB - B&D&H'!$D14,0))*(1+'Benzin - diesel - hybrid'!Q$57)^-$A14,0) -> 0 | S14: =IFERROR('Benzin - diesel - hybrid'!S$49*('Benzin - diesel - hybrid'!S$50/'Benzin - diesel - hybrid'!S$15)*IF('Benzin - diesel - hybrid'!S$59="Benzin",'IB - B&D&H'!$C14,IF('Benzin - diesel - hybrid'!S$59="Diesel",'IB - B&D&H'!$D14,0))*(1+'Benzin - diesel - hybrid'!S$57)^-$A14,0) -> 0 | U14: =IFERROR('Benzin - diesel - hybrid'!U$49*('Benzin - diesel - hybrid'!U$50/'Benzin - diesel - hybrid'!U$15)*IF('Benzin - diesel - hybrid'!U$59="Benzin",'IB - B&D&H'!$C14,IF('Benzin - diesel - hybrid'!U$59="Diesel",'IB - B&D&H'!$D14,0))*(1+'Benzin - diesel - hybrid'!U$57)^-$A14,0) -> 0 | W14: =IFERROR('Benzin - diesel - hybrid'!W$49*('Benzin - diesel - hybrid'!W$50/'Benzin - diesel - hybrid'!W$15)*IF('Benzin - diesel - hybrid'!W$59="Benzin",'IB - B&D&H'!$C14,IF('Benzin - diesel - hybrid'!W$59="Diesel",'IB - B&D&H'!$D14,0))*(1+'Benzin - diesel - hybrid'!W$57)^-$A14,0) -> 0
A15: 12 | C15: =((C14-Fremskrivninger!E58)*(1+IF('Benzin - diesel - hybrid'!$E$61="ja",'Benzin - diesel - hybrid'!$E$63,'Benzin - diesel - hybrid'!$E$65))+Fremskrivninger!E58) -> 9.471282779 | D15: =((D14-Fremskrivninger!E102)*(1+IF('Benzin - diesel - hybrid'!$E$67="ja",'Benzin - diesel - hybrid'!$E$69,'Benzin - diesel - hybrid'!$E$71))+Fremskrivninger!E102) -> 8.455918812 | E15: =IFERROR('Benzin - diesel - hybrid'!E$49*('Benzin - diesel - hybrid'!E$50/'Benzin - diesel - hybrid'!E$15)*IF('Benzin - diesel - hybrid'!E$59="Benzin",'IB - B&D&H'!$C15,IF('Benzin - diesel - hybrid'!E$59="Diesel",'IB - B&D&H'!$D15,0))*(1+'Benzin - diesel - hybrid'!E$57)^-$A15,0) -> 0 | G15: =IFERROR('Benzin - diesel - hybrid'!G$49*('Benzin - diesel - hybrid'!G$50/'Benzin - diesel - hybrid'!G$15)*IF('Benzin - diesel - hybrid'!G$59="Benzin",'IB - B&D&H'!$C15,IF('Benzin - diesel - hybrid'!G$59="Diesel",'IB - B&D&H'!$D15,0))*(1+'Benzin - diesel - hybrid'!G$57)^-$A15,0) -> 0 | I15: =IFERROR('Benzin - diesel - hybrid'!I$49*('Benzin - diesel - hybrid'!I$50/'Benzin - diesel - hybrid'!I$15)*IF('Benzin - diesel - hybrid'!I$59="Benzin",'IB - B&D&H'!$C15,IF('Benzin - diesel - hybrid'!I$59="Diesel",'IB - B&D&H'!$D15,0))*(1+'Benzin - diesel - hybrid'!I$57)^-$A15,0) -> 0 | K15: =IFERROR('Benzin - diesel - hybrid'!K$49*('Benzin - diesel - hybrid'!K$50/'Benzin - diesel - hybrid'!K$15)*IF('Benzin - diesel - hybrid'!K$59="Benzin",'IB - B&D&H'!$C15,IF('Benzin - diesel - hybrid'!K$59="Diesel",'IB - B&D&H'!$D15,0))*(1+'Benzin - diesel - hybrid'!K$57)^-$A15,0) -> 0 | M15: =IFERROR('Benzin - diesel - hybrid'!M$49*('Benzin - diesel - hybrid'!M$50/'Benzin - diesel - hybrid'!M$15)*IF('Benzin - diesel - hybrid'!M$59="Benzin",'IB - B&D&H'!$C15,IF('Benzin - diesel - hybrid'!M$59="Diesel",'IB - B&D&H'!$D15,0))*(1+'Benzin - diesel - hybrid'!M$57)^-$A15,0) -> 0 | O15: =IFERROR('Benzin - diesel - hybrid'!O$49*('Benzin - diesel - hybrid'!O$50/'Benzin - diesel - hybrid'!O$15)*IF('Benzin - diesel - hybrid'!O$59="Benzin",'IB - B&D&H'!$C15,IF('Benzin - diesel - hybrid'!O$59="Diesel",'IB - B&D&H'!$D15,0))*(1+'Benzin - diesel - hybrid'!O$57)^-$A15,0) -> 0 | Q15: =IFERROR('Benzin - diesel - hybrid'!Q$49*('Benzin - diesel - hybrid'!Q$50/'Benzin - diesel - hybrid'!Q$15)*IF('Benzin - diesel - hybrid'!Q$59="Benzin",'IB - B&D&H'!$C15,IF('Benzin - diesel - hybrid'!Q$59="Diesel",'IB - B&D&H'!$D15,0))*(1+'Benzin - diesel - hybrid'!Q$57)^-$A15,0) -> 0 | S15: =IFERROR('Benzin - diesel - hybrid'!S$49*('Benzin - diesel - hybrid'!S$50/'Benzin - diesel - hybrid'!S$15)*IF('Benzin - diesel - hybrid'!S$59="Benzin",'IB - B&D&H'!$C15,IF('Benzin - diesel - hybrid'!S$59="Diesel",'IB - B&D&H'!$D15,0))*(1+'Benzin - diesel - hybrid'!S$57)^-$A15,0) -> 0 | U15: =IFERROR('Benzin - diesel - hybrid'!U$49*('Benzin - diesel - hybrid'!U$50/'Benzin - diesel - hybrid'!U$15)*IF('Benzin - diesel - hybrid'!U$59="Benzin",'IB - B&D&H'!$C15,IF('Benzin - diesel - hybrid'!U$59="Diesel",'IB - B&D&H'!$D15,0))*(1+'Benzin - diesel - hybrid'!U$57)^-$A15,0) -> 0 | W15: =IFERROR('Benzin - diesel - hybrid'!W$49*('Benzin - diesel - hybrid'!W$50/'Benzin - diesel - hybrid'!W$15)*IF('Benzin - diesel - hybrid'!W$59="Benzin",'IB - B&D&H'!$C15,IF('Benzin - diesel - hybrid'!W$59="Diesel",'IB - B&D&H'!$D15,0))*(1+'Benzin - diesel - hybrid'!W$57)^-$A15,0) -> 0
A16: 13 | C16: =((C15-Fremskrivninger!E59)*(1+IF('Benzin - diesel - hybrid'!$E$61="ja",'Benzin - diesel - hybrid'!$E$63,'Benzin - diesel - hybrid'!$E$65))+Fremskrivninger!E59) -> 9.53815961 | D16: =((D15-Fremskrivninger!E103)*(1+IF('Benzin - diesel - hybrid'!$E$67="ja",'Benzin - diesel - hybrid'!$E$69,'Benzin - diesel - hybrid'!$E$71))+Fremskrivninger!E103) -> 8.531549635 | E16: =IFERROR('Benzin - diesel - hybrid'!E$49*('Benzin - diesel - hybrid'!E$50/'Benzin - diesel - hybrid'!E$15)*IF('Benzin - diesel - hybrid'!E$59="Benzin",'IB - B&D&H'!$C16,IF('Benzin - diesel - hybrid'!E$59="Diesel",'IB - B&D&H'!$D16,0))*(1+'Benzin - diesel - hybrid'!E$57)^-$A16,0) -> 0 | G16: =IFERROR('Benzin - diesel - hybrid'!G$49*('Benzin - diesel - hybrid'!G$50/'Benzin - diesel - hybrid'!G$15)*IF('Benzin - diesel - hybrid'!G$59="Benzin",'IB - B&D&H'!$C16,IF('Benzin - diesel - hybrid'!G$59="Diesel",'IB - B&D&H'!$D16,0))*(1+'Benzin - diesel - hybrid'!G$57)^-$A16,0) -> 0 | I16: =IFERROR('Benzin - diesel - hybrid'!I$49*('Benzin - diesel - hybrid'!I$50/'Benzin - diesel - hybrid'!I$15)*IF('Benzin - diesel - hybrid'!I$59="Benzin",'IB - B&D&H'!$C16,IF('Benzin - diesel - hybrid'!I$59="Diesel",'IB - B&D&H'!$D16,0))*(1+'Benzin - diesel - hybrid'!I$57)^-$A16,0) -> 0 | K16: =IFERROR('Benzin - diesel - hybrid'!K$49*('Benzin - diesel - hybrid'!K$50/'Benzin - diesel - hybrid'!K$15)*IF('Benzin - diesel - hybrid'!K$59="Benzin",'IB - B&D&H'!$C16,IF('Benzin - diesel - hybrid'!K$59="Diesel",'IB - B&D&H'!$D16,0))*(1+'Benzin - diesel - hybrid'!K$57)^-$A16,0) -> 0 | M16: =IFERROR('Benzin - diesel - hybrid'!M$49*('Benzin - diesel - hybrid'!M$50/'Benzin - diesel - hybrid'!M$15)*IF('Benzin - diesel - hybrid'!M$59="Benzin",'IB - B&D&H'!$C16,IF('Benzin - diesel - hybrid'!M$59="Diesel",'IB - B&D&H'!$D16,0))*(1+'Benzin - diesel - hybrid'!M$57)^-$A16,0) -> 0 | O16: =IFERROR('Benzin - diesel - hybrid'!O$49*('Benzin - diesel - hybrid'!O$50/'Benzin - diesel - hybrid'!O$15)*IF('Benzin - diesel - hybrid'!O$59="Benzin",'IB - B&D&H'!$C16,IF('Benzin - diesel - hybrid'!O$59="Diesel",'IB - B&D&H'!$D16,0))*(1+'Benzin - diesel - hybrid'!O$57)^-$A16,0) -> 0 | Q16: =IFERROR('Benzin - diesel - hybrid'!Q$49*('Benzin - diesel - hybrid'!Q$50/'Benzin - diesel - hybrid'!Q$15)*IF('Benzin - diesel - hybrid'!Q$59="Benzin",'IB - B&D&H'!$C16,IF('Benzin - diesel - hybrid'!Q$59="Diesel",'IB - B&D&H'!$D16,0))*(1+'Benzin - diesel - hybrid'!Q$57)^-$A16,0) -> 0 | S16: =IFERROR('Benzin - diesel - hybrid'!S$49*('Benzin - diesel - hybrid'!S$50/'Benzin - diesel - hybrid'!S$15)*IF('Benzin - diesel - hybrid'!S$59="Benzin",'IB - B&D&H'!$C16,IF('Benzin - diesel - hybrid'!S$59="Diesel",'IB - B&D&H'!$D16,0))*(1+'Benzin - diesel - hybrid'!S$57)^-$A16,0) -> 0 | U16: =IFERROR('Benzin - diesel - hybrid'!U$49*('Benzin - diesel - hybrid'!U$50/'Benzin - diesel - hybrid'!U$15)*IF('Benzin - diesel - hybrid'!U$59="Benzin",'IB - B&D&H'!$C16,IF('Benzin - diesel - hybrid'!U$59="Diesel",'IB - B&D&H'!$D16,0))*(1+'Benzin - diesel - hybrid'!U$57)^-$A16,0) -> 0 | W16: =IFERROR('Benzin - diesel - hybrid'!W$49*('Benzin - diesel - hybrid'!W$50/'Benzin - diesel - hybrid'!W$15)*IF('Benzin - diesel - hybrid'!W$59="Benzin",'IB - B&D&H'!$C16,IF('Benzin - diesel - hybrid'!W$59="Diesel",'IB - B&D&H'!$D16,0))*(1+'Benzin - diesel - hybrid'!W$57)^-$A16,0) -> 0
A17: 14 | C17: =((C16-Fremskrivninger!E60)*(1+IF('Benzin - diesel - hybrid'!$E$61="ja",'Benzin - diesel - hybrid'!$E$63,'Benzin - diesel - hybrid'!$E$65))+Fremskrivninger!E60) -> 9.605966029 | D17: =((D16-Fremskrivninger!E104)*(1+IF('Benzin - diesel - hybrid'!$E$67="ja",'Benzin - diesel - hybrid'!$E$69,'Benzin - diesel - hybrid'!$E$71))+Fremskrivninger!E104) -> 8.608277105 | E17: =IFERROR('Benzin - diesel - hybrid'!E$49*('Benzin - diesel - hybrid'!E$50/'Benzin - diesel - hybrid'!E$15)*IF('Benzin - diesel - hybrid'!E$59="Benzin",'IB - B&D&H'!$C17,IF('Benzin - diesel - hybrid'!E$59="Diesel",'IB - B&D&H'!$D17,0))*(1+'Benzin - diesel - hybrid'!E$57)^-$A17,0) -> 0 | G17: =IFERROR('Benzin - diesel - hybrid'!G$49*('Benzin - diesel - hybrid'!G$50/'Benzin - diesel - hybrid'!G$15)*IF('Benzin - diesel - hybrid'!G$59="Benzin",'IB - B&D&H'!$C17,IF('Benzin - diesel - hybrid'!G$59="Diesel",'IB - B&D&H'!$D17,0))*(1+'Benzin - diesel - hybrid'!G$57)^-$A17,0) -> 0 | I17: =IFERROR('Benzin - diesel - hybrid'!I$49*('Benzin - diesel - hybrid'!I$50/'Benzin - diesel - hybrid'!I$15)*IF('Benzin - diesel - hybrid'!I$59="Benzin",'IB - B&D&H'!$C17,IF('Benzin - diesel - hybrid'!I$59="Diesel",'IB - B&D&H'!$D17,0))*(1+'Benzin - diesel - hybrid'!I$57)^-$A17,0) -> 0 | K17: =IFERROR('Benzin - diesel - hybrid'!K$49*('Benzin - diesel - hybrid'!K$50/'Benzin - diesel - hybrid'!K$15)*IF('Benzin - diesel - hybrid'!K$59="Benzin",'IB - B&D&H'!$C17,IF('Benzin - diesel - hybrid'!K$59="Diesel",'IB - B&D&H'!$D17,0))*(1+'Benzin - diesel - hybrid'!K$57)^-$A17,0) -> 0 | M17: =IFERROR('Benzin - diesel - hybrid'!M$49*('Benzin - diesel - hybrid'!M$50/'Benzin - diesel - hybrid'!M$15)*IF('Benzin - diesel - hybrid'!M$59="Benzin",'IB - B&D&H'!$C17,IF('Benzin - diesel - hybrid'!M$59="Diesel",'IB - B&D&H'!$D17,0))*(1+'Benzin - diesel - hybrid'!M$57)^-$A17,0) -> 0 | O17: =IFERROR('Benzin - diesel - hybrid'!O$49*('Benzin - diesel - hybrid'!O$50/'Benzin - diesel - hybrid'!O$15)*IF('Benzin - diesel - hybrid'!O$59="Benzin",'IB - B&D&H'!$C17,IF('Benzin - diesel - hybrid'!O$59="Diesel",'IB - B&D&H'!$D17,0))*(1+'Benzin - diesel - hybrid'!O$57)^-$A17,0) -> 0 | Q17: =IFERROR('Benzin - diesel - hybrid'!Q$49*('Benzin - diesel - hybrid'!Q$50/'Benzin - diesel - hybrid'!Q$15)*IF('Benzin - diesel - hybrid'!Q$59="Benzin",'IB - B&D&H'!$C17,IF('Benzin - diesel - hybrid'!Q$59="Diesel",'IB - B&D&H'!$D17,0))*(1+'Benzin - diesel - hybrid'!Q$57)^-$A17,0) -> 0 | S17: =IFERROR('Benzin - diesel - hybrid'!S$49*('Benzin - diesel - hybrid'!S$50/'Benzin - diesel - hybrid'!S$15)*IF('Benzin - diesel - hybrid'!S$59="Benzin",'IB - B&D&H'!$C17,IF('Benzin - diesel - hybrid'!S$59="Diesel",'IB - B&D&H'!$D17,0))*(1+'Benzin - diesel - hybrid'!S$57)^-$A17,0) -> 0 | U17: =IFERROR('Benzin - diesel - hybrid'!U$49*('Benzin - diesel - hybrid'!U$50/'Benzin - diesel - hybrid'!U$15)*IF('Benzin - diesel - hybrid'!U$59="Benzin",'IB - B&D&H'!$C17,IF('Benzin - diesel - hybrid'!U$59="Diesel",'IB - B&D&H'!$D17,0))*(1+'Benzin - diesel - hybrid'!U$57)^-$A17,0) -> 0 | W17: =IFERROR('Benzin - diesel - hybrid'!W$49*('Benzin - diesel - hybrid'!W$50/'Benzin - diesel - hybrid'!W$15)*IF('Benzin - diesel - hybrid'!W$59="Benzin",'IB - B&D&H'!$C17,IF('Benzin - diesel - hybrid'!W$59="Diesel",'IB - B&D&H'!$D17,0))*(1+'Benzin - diesel - hybrid'!W$57)^-$A17,0) -> 0
A18: 15 | C18: =((C17-Fremskrivninger!E61)*(1+IF('Benzin - diesel - hybrid'!$E$61="ja",'Benzin - diesel - hybrid'!$E$63,'Benzin - diesel - hybrid'!$E$65))+Fremskrivninger!E61) -> 9.674714956 | D18: =((D17-Fremskrivninger!E105)*(1+IF('Benzin - diesel - hybrid'!$E$67="ja",'Benzin - diesel - hybrid'!$E$69,'Benzin - diesel - hybrid'!$E$71))+Fremskrivninger!E105) -> 8.686117123 | E18: =IFERROR('Benzin - diesel - hybrid'!E$49*('Benzin - diesel - hybrid'!E$50/'Benzin - diesel - hybrid'!E$15)*IF('Benzin - diesel - hybrid'!E$59="Benzin",'IB - B&D&H'!$C18,IF('Benzin - diesel - hybrid'!E$59="Diesel",'IB - B&D&H'!$D18,0))*(1+'Benzin - diesel - hybrid'!E$57)^-$A18,0) -> 0 | G18: =IFERROR('Benzin - diesel - hybrid'!G$49*('Benzin - diesel - hybrid'!G$50/'Benzin - diesel - hybrid'!G$15)*IF('Benzin - diesel - hybrid'!G$59="Benzin",'IB - B&D&H'!$C18,IF('Benzin - diesel - hybrid'!G$59="Diesel",'IB - B&D&H'!$D18,0))*(1+'Benzin - diesel - hybrid'!G$57)^-$A18,0) -> 0 | I18: =IFERROR('Benzin - diesel - hybrid'!I$49*('Benzin - diesel - hybrid'!I$50/'Benzin - diesel - hybrid'!I$15)*IF('Benzin - diesel - hybrid'!I$59="Benzin",'IB - B&D&H'!$C18,IF('Benzin - diesel - hybrid'!I$59="Diesel",'IB - B&D&H'!$D18,0))*(1+'Benzin - diesel - hybrid'!I$57)^-$A18,0) -> 0 | K18: =IFERROR('Benzin - diesel - hybrid'!K$49*('Benzin - diesel - hybrid'!K$50/'Benzin - diesel - hybrid'!K$15)*IF('Benzin - diesel - hybrid'!K$59="Benzin",'IB - B&D&H'!$C18,IF('Benzin - diesel - hybrid'!K$59="Diesel",'IB - B&D&H'!$D18,0))*(1+'Benzin - diesel - hybrid'!K$57)^-$A18,0) -> 0 | M18: =IFERROR('Benzin - diesel - hybrid'!M$49*('Benzin - diesel - hybrid'!M$50/'Benzin - diesel - hybrid'!M$15)*IF('Benzin - diesel - hybrid'!M$59="Benzin",'IB - B&D&H'!$C18,IF('Benzin - diesel - hybrid'!M$59="Diesel",'IB - B&D&H'!$D18,0))*(1+'Benzin - diesel - hybrid'!M$57)^-$A18,0) -> 0 | O18: =IFERROR('Benzin - diesel - hybrid'!O$49*('Benzin - diesel - hybrid'!O$50/'Benzin - diesel - hybrid'!O$15)*IF('Benzin - diesel - hybrid'!O$59="Benzin",'IB - B&D&H'!$C18,IF('Benzin - diesel - hybrid'!O$59="Diesel",'IB - B&D&H'!$D18,0))*(1+'Benzin - diesel - hybrid'!O$57)^-$A18,0) -> 0 | Q18: =IFERROR('Benzin - diesel - hybrid'!Q$49*('Benzin - diesel - hybrid'!Q$50/'Benzin - diesel - hybrid'!Q$15)*IF('Benzin - diesel - hybrid'!Q$59="Benzin",'IB - B&D&H'!$C18,IF('Benzin - diesel - hybrid'!Q$59="Diesel",'IB - B&D&H'!$D18,0))*(1+'Benzin - diesel - hybrid'!Q$57)^-$A18,0) -> 0 | S18: =IFERROR('Benzin - diesel - hybrid'!S$49*('Benzin - diesel - hybrid'!S$50/'Benzin - diesel - hybrid'!S$15)*IF('Benzin - diesel - hybrid'!S$59="Benzin",'IB - B&D&H'!$C18,IF('Benzin - diesel - hybrid'!S$59="Diesel",'IB - B&D&H'!$D18,0))*(1+'Benzin - diesel - hybrid'!S$57)^-$A18,0) -> 0 | U18: =IFERROR('Benzin - diesel - hybrid'!U$49*('Benzin - diesel - hybrid'!U$50/'Benzin - diesel - hybrid'!U$15)*IF('Benzin - diesel - hybrid'!U$59="Benzin",'IB - B&D&H'!$C18,IF('Benzin - diesel - hybrid'!U$59="Diesel",'IB - B&D&H'!$D18,0))*(1+'Benzin - diesel - hybrid'!U$57)^-$A18,0) -> 0 | W18: =IFERROR('Benzin - diesel - hybrid'!W$49*('Benzin - diesel - hybrid'!W$50/'Benzin - diesel - hybrid'!W$15)*IF('Benzin - diesel - hybrid'!W$59="Benzin",'IB - B&D&H'!$C18,IF('Benzin - diesel - hybrid'!W$59="Diesel",'IB - B&D&H'!$D18,0))*(1+'Benzin - diesel - hybrid'!W$57)^-$A18,0) -> 0
A19: 16 | C19: =((C18-Fremskrivninger!E62)*(1+IF('Benzin - diesel - hybrid'!$E$61="ja",'Benzin - diesel - hybrid'!$E$63,'Benzin - diesel - hybrid'!$E$65))+Fremskrivninger!E62) -> 9.744419494 | D19: =((D18-Fremskrivninger!E106)*(1+IF('Benzin - diesel - hybrid'!$E$67="ja",'Benzin - diesel - hybrid'!$E$69,'Benzin - diesel - hybrid'!$E$71))+Fremskrivninger!E106) -> 8.765085821 | E19: =IFERROR('Benzin - diesel - hybrid'!E$49*('Benzin - diesel - hybrid'!E$50/'Benzin - diesel - hybrid'!E$15)*IF('Benzin - diesel - hybrid'!E$59="Benzin",'IB - B&D&H'!$C19,IF('Benzin - diesel - hybrid'!E$59="Diesel",'IB - B&D&H'!$D19,0))*(1+'Benzin - diesel - hybrid'!E$57)^-$A19,0) -> 0 | G19: =IFERROR('Benzin - diesel - hybrid'!G$49*('Benzin - diesel - hybrid'!G$50/'Benzin - diesel - hybrid'!G$15)*IF('Benzin - diesel - hybrid'!G$59="Benzin",'IB - B&D&H'!$C19,IF('Benzin - diesel - hybrid'!G$59="Diesel",'IB - B&D&H'!$D19,0))*(1+'Benzin - diesel - hybrid'!G$57)^-$A19,0) -> 0 | I19: =IFERROR('Benzin - diesel - hybrid'!I$49*('Benzin - diesel - hybrid'!I$50/'Benzin - diesel - hybrid'!I$15)*IF('Benzin - diesel - hybrid'!I$59="Benzin",'IB - B&D&H'!$C19,IF('Benzin - diesel - hybrid'!I$59="Diesel",'IB - B&D&H'!$D19,0))*(1+'Benzin - diesel - hybrid'!I$57)^-$A19,0) -> 0 | K19: =IFERROR('Benzin - diesel - hybrid'!K$49*('Benzin - diesel - hybrid'!K$50/'Benzin - diesel - hybrid'!K$15)*IF('Benzin - diesel - hybrid'!K$59="Benzin",'IB - B&D&H'!$C19,IF('Benzin - diesel - hybrid'!K$59="Diesel",'IB - B&D&H'!$D19,0))*(1+'Benzin - diesel - hybrid'!K$57)^-$A19,0) -> 0 | M19: =IFERROR('Benzin - diesel - hybrid'!M$49*('Benzin - diesel - hybrid'!M$50/'Benzin - diesel - hybrid'!M$15)*IF('Benzin - diesel - hybrid'!M$59="Benzin",'IB - B&D&H'!$C19,IF('Benzin - diesel - hybrid'!M$59="Diesel",'IB - B&D&H'!$D19,0))*(1+'Benzin - diesel - hybrid'!M$57)^-$A19,0) -> 0 | O19: =IFERROR('Benzin - diesel - hybrid'!O$49*('Benzin - diesel - hybrid'!O$50/'Benzin - diesel - hybrid'!O$15)*IF('Benzin - diesel - hybrid'!O$59="Benzin",'IB - B&D&H'!$C19,IF('Benzin - diesel - hybrid'!O$59="Diesel",'IB - B&D&H'!$D19,0))*(1+'Benzin - diesel - hybrid'!O$57)^-$A19,0) -> 0 | Q19: =IFERROR('Benzin - diesel - hybrid'!Q$49*('Benzin - diesel - hybrid'!Q$50/'Benzin - diesel - hybrid'!Q$15)*IF('Benzin - diesel - hybrid'!Q$59="Benzin",'IB - B&D&H'!$C19,IF('Benzin - diesel - hybrid'!Q$59="Diesel",'IB - B&D&H'!$D19,0))*(1+'Benzin - diesel - hybrid'!Q$57)^-$A19,0) -> 0 | S19: =IFERROR('Benzin - diesel - hybrid'!S$49*('Benzin - diesel - hybrid'!S$50/'Benzin - diesel - hybrid'!S$15)*IF('Benzin - diesel - hybrid'!S$59="Benzin",'IB - B&D&H'!$C19,IF('Benzin - diesel - hybrid'!S$59="Diesel",'IB - B&D&H'!$D19,0))*(1+'Benzin - diesel - hybrid'!S$57)^-$A19,0) -> 0 | U19: =IFERROR('Benzin - diesel - hybrid'!U$49*('Benzin - diesel - hybrid'!U$50/'Benzin - diesel - hybrid'!U$15)*IF('Benzin - diesel - hybrid'!U$59="Benzin",'IB - B&D&H'!$C19,IF('Benzin - diesel - hybrid'!U$59="Diesel",'IB - B&D&H'!$D19,0))*(1+'Benzin - diesel - hybrid'!U$57)^-$A19,0) -> 0 | W19: =IFERROR('Benzin - diesel - hybrid'!W$49*('Benzin - diesel - hybrid'!W$50/'Benzin - diesel - hybrid'!W$15)*IF('Benzin - diesel - hybrid'!W$59="Benzin",'IB - B&D&H'!$C19,IF('Benzin - diesel - hybrid'!W$59="Diesel",'IB - B&D&H'!$D19,0))*(1+'Benzin - diesel - hybrid'!W$57)^-$A19,0) -> 0
A20: 17 | C20: =((C19-Fremskrivninger!E63)*(1+IF('Benzin - diesel - hybrid'!$E$61="ja",'Benzin - diesel - hybrid'!$E$63,'Benzin - diesel - hybrid'!$E$65))+Fremskrivninger!E63) -> 9.815092925 | D20: =((D19-Fremskrivninger!E107)*(1+IF('Benzin - diesel - hybrid'!$E$67="ja",'Benzin - diesel - hybrid'!$E$69,'Benzin - diesel - hybrid'!$E$71))+Fremskrivninger!E107) -> 8.845199565 | E20: =IFERROR('Benzin - diesel - hybrid'!E$49*('Benzin - diesel - hybrid'!E$50/'Benzin - diesel - hybrid'!E$15)*IF('Benzin - diesel - hybrid'!E$59="Benzin",'IB - B&D&H'!$C20,IF('Benzin - diesel - hybrid'!E$59="Diesel",'IB - B&D&H'!$D20,0))*(1+'Benzin - diesel - hybrid'!E$57)^-$A20,0) -> 0 | G20: =IFERROR('Benzin - diesel - hybrid'!G$49*('Benzin - diesel - hybrid'!G$50/'Benzin - diesel - hybrid'!G$15)*IF('Benzin - diesel - hybrid'!G$59="Benzin",'IB - B&D&H'!$C20,IF('Benzin - diesel - hybrid'!G$59="Diesel",'IB - B&D&H'!$D20,0))*(1+'Benzin - diesel - hybrid'!G$57)^-$A20,0) -> 0 | I20: =IFERROR('Benzin - diesel - hybrid'!I$49*('Benzin - diesel - hybrid'!I$50/'Benzin - diesel - hybrid'!I$15)*IF('Benzin - diesel - hybrid'!I$59="Benzin",'IB - B&D&H'!$C20,IF('Benzin - diesel - hybrid'!I$59="Diesel",'IB - B&D&H'!$D20,0))*(1+'Benzin - diesel - hybrid'!I$57)^-$A20,0) -> 0 | K20: =IFERROR('Benzin - diesel - hybrid'!K$49*('Benzin - diesel - hybrid'!K$50/'Benzin - diesel - hybrid'!K$15)*IF('Benzin - diesel - hybrid'!K$59="Benzin",'IB - B&D&H'!$C20,IF('Benzin - diesel - hybrid'!K$59="Diesel",'IB - B&D&H'!$D20,0))*(1+'Benzin - diesel - hybrid'!K$57)^-$A20,0) -> 0 | M20: =IFERROR('Benzin - diesel - hybrid'!M$49*('Benzin - diesel - hybrid'!M$50/'Benzin - diesel - hybrid'!M$15)*IF('Benzin - diesel - hybrid'!M$59="Benzin",'IB - B&D&H'!$C20,IF('Benzin - diesel - hybrid'!M$59="Diesel",'IB - B&D&H'!$D20,0))*(1+'Benzin - diesel - hybrid'!M$57)^-$A20,0) -> 0 | O20: =IFERROR('Benzin - diesel - hybrid'!O$49*('Benzin - diesel - hybrid'!O$50/'Benzin - diesel - hybrid'!O$15)*IF('Benzin - diesel - hybrid'!O$59="Benzin",'IB - B&D&H'!$C20,IF('Benzin - diesel - hybrid'!O$59="Diesel",'IB - B&D&H'!$D20,0))*(1+'Benzin - diesel - hybrid'!O$57)^-$A20,0) -> 0 | Q20: =IFERROR('Benzin - diesel - hybrid'!Q$49*('Benzin - diesel - hybrid'!Q$50/'Benzin - diesel - hybrid'!Q$15)*IF('Benzin - diesel - hybrid'!Q$59="Benzin",'IB - B&D&H'!$C20,IF('Benzin - diesel - hybrid'!Q$59="Diesel",'IB - B&D&H'!$D20,0))*(1+'Benzin - diesel - hybrid'!Q$57)^-$A20,0) -> 0 | S20: =IFERROR('Benzin - diesel - hybrid'!S$49*('Benzin - diesel - hybrid'!S$50/'Benzin - diesel - hybrid'!S$15)*IF('Benzin - diesel - hybrid'!S$59="Benzin",'IB - B&D&H'!$C20,IF('Benzin - diesel - hybrid'!S$59="Diesel",'IB - B&D&H'!$D20,0))*(1+'Benzin - diesel - hybrid'!S$57)^-$A20,0) -> 0 | U20: =IFERROR('Benzin - diesel - hybrid'!U$49*('Benzin - diesel - hybrid'!U$50/'Benzin - diesel - hybrid'!U$15)*IF('Benzin - diesel - hybrid'!U$59="Benzin",'IB - B&D&H'!$C20,IF('Benzin - diesel - hybrid'!U$59="Diesel",'IB - B&D&H'!$D20,0))*(1+'Benzin - diesel - hybrid'!U$57)^-$A20,0) -> 0 | W20: =IFERROR('Benzin - diesel - hybrid'!W$49*('Benzin - diesel - hybrid'!W$50/'Benzin - diesel - hybrid'!W$15)*IF('Benzin - diesel - hybrid'!W$59="Benzin",'IB - B&D&H'!$C20,IF('Benzin - diesel - hybrid'!W$59="Diesel",'IB - B&D&H'!$D20,0))*(1+'Benzin - diesel - hybrid'!W$57)^-$A20,0) -> 0
A21: 18 | C21: =((C20-Fremskrivninger!E64)*(1+IF('Benzin - diesel - hybrid'!$E$61="ja",'Benzin - diesel - hybrid'!$E$63,'Benzin - diesel - hybrid'!$E$65))+Fremskrivninger!E64) -> 9.886748717 | D21: =((D20-Fremskrivninger!E108)*(1+IF('Benzin - diesel - hybrid'!$E$67="ja",'Benzin - diesel - hybrid'!$E$69,'Benzin - diesel - hybrid'!$E$71))+Fremskrivninger!E108) -> 8.926474959 | E21: =IFERROR('Benzin - diesel - hybrid'!E$49*('Benzin - diesel - hybrid'!E$50/'Benzin - diesel - hybrid'!E$15)*IF('Benzin - diesel - hybrid'!E$59="Benzin",'IB - B&D&H'!$C21,IF('Benzin - diesel - hybrid'!E$59="Diesel",'IB - B&D&H'!$D21,0))*(1+'Benzin - diesel - hybrid'!E$57)^-$A21,0) -> 0 | G21: =IFERROR('Benzin - diesel - hybrid'!G$49*('Benzin - diesel - hybrid'!G$50/'Benzin - diesel - hybrid'!G$15)*IF('Benzin - diesel - hybrid'!G$59="Benzin",'IB - B&D&H'!$C21,IF('Benzin - diesel - hybrid'!G$59="Diesel",'IB - B&D&H'!$D21,0))*(1+'Benzin - diesel - hybrid'!G$57)^-$A21,0) -> 0 | I21: =IFERROR('Benzin - diesel - hybrid'!I$49*('Benzin - diesel - hybrid'!I$50/'Benzin - diesel - hybrid'!I$15)*IF('Benzin - diesel - hybrid'!I$59="Benzin",'IB - B&D&H'!$C21,IF('Benzin - diesel - hybrid'!I$59="Diesel",'IB - B&D&H'!$D21,0))*(1+'Benzin - diesel - hybrid'!I$57)^-$A21,0) -> 0 | K21: =IFERROR('Benzin - diesel - hybrid'!K$49*('Benzin - diesel - hybrid'!K$50/'Benzin - diesel - hybrid'!K$15)*IF('Benzin - diesel - hybrid'!K$59="Benzin",'IB - B&D&H'!$C21,IF('Benzin - diesel - hybrid'!K$59="Diesel",'IB - B&D&H'!$D21,0))*(1+'Benzin - diesel - hybrid'!K$57)^-$A21,0) -> 0 | M21: =IFERROR('Benzin - diesel - hybrid'!M$49*('Benzin - diesel - hybrid'!M$50/'Benzin - diesel - hybrid'!M$15)*IF('Benzin - diesel - hybrid'!M$59="Benzin",'IB - B&D&H'!$C21,IF('Benzin - diesel - hybrid'!M$59="Diesel",'IB - B&D&H'!$D21,0))*(1+'Benzin - diesel - hybrid'!M$57)^-$A21,0) -> 0 | O21: =IFERROR('Benzin - diesel - hybrid'!O$49*('Benzin - diesel - hybrid'!O$50/'Benzin - diesel - hybrid'!O$15)*IF('Benzin - diesel - hybrid'!O$59="Benzin",'IB - B&D&H'!$C21,IF('Benzin - diesel - hybrid'!O$59="Diesel",'IB - B&D&H'!$D21,0))*(1+'Benzin - diesel - hybrid'!O$57)^-$A21,0) -> 0 | Q21: =IFERROR('Benzin - diesel - hybrid'!Q$49*('Benzin - diesel - hybrid'!Q$50/'Benzin - diesel - hybrid'!Q$15)*IF('Benzin - diesel - hybrid'!Q$59="Benzin",'IB - B&D&H'!$C21,IF('Benzin - diesel - hybrid'!Q$59="Diesel",'IB - B&D&H'!$D21,0))*(1+'Benzin - diesel - hybrid'!Q$57)^-$A21,0) -> 0 | S21: =IFERROR('Benzin - diesel - hybrid'!S$49*('Benzin - diesel - hybrid'!S$50/'Benzin - diesel - hybrid'!S$15)*IF('Benzin - diesel - hybrid'!S$59="Benzin",'IB - B&D&H'!$C21,IF('Benzin - diesel - hybrid'!S$59="Diesel",'IB - B&D&H'!$D21,0))*(1+'Benzin - diesel - hybrid'!S$57)^-$A21,0) -> 0 | U21: =IFERROR('Benzin - diesel - hybrid'!U$49*('Benzin - diesel - hybrid'!U$50/'Benzin - diesel - hybrid'!U$15)*IF('Benzin - diesel - hybrid'!U$59="Benzin",'IB - B&D&H'!$C21,IF('Benzin - diesel - hybrid'!U$59="Diesel",'IB - B&D&H'!$D21,0))*(1+'Benzin - diesel - hybrid'!U$57)^-$A21,0) -> 0 | W21: =IFERROR('Benzin - diesel - hybrid'!W$49*('Benzin - diesel - hybrid'!W$50/'Benzin - diesel - hybrid'!W$15)*IF('Benzin - diesel - hybrid'!W$59="Benzin",'IB - B&D&H'!$C21,IF('Benzin - diesel - hybrid'!W$59="Diesel",'IB - B&D&H'!$D21,0))*(1+'Benzin - diesel - hybrid'!W$57)^-$A21,0) -> 0
A22: 19 | C22: =((C21-Fremskrivninger!E65)*(1+IF('Benzin - diesel - hybrid'!$E$61="ja",'Benzin - diesel - hybrid'!$E$63,'Benzin - diesel - hybrid'!$E$65))+Fremskrivninger!E65) -> 9.959400524 | D22: =((D21-Fremskrivninger!E109)*(1+IF('Benzin - diesel - hybrid'!$E$67="ja",'Benzin - diesel - hybrid'!$E$69,'Benzin - diesel - hybrid'!$E$71))+Fremskrivninger!E109) -> 9.008928846 | E22: =IFERROR('Benzin - diesel - hybrid'!E$49*('Benzin - diesel - hybrid'!E$50/'Benzin - diesel - hybrid'!E$15)*IF('Benzin - diesel - hybrid'!E$59="Benzin",'IB - B&D&H'!$C22,IF('Benzin - diesel - hybrid'!E$59="Diesel",'IB - B&D&H'!$D22,0))*(1+'Benzin - diesel - hybrid'!E$57)^-$A22,0) -> 0 | G22: =IFERROR('Benzin - diesel - hybrid'!G$49*('Benzin - diesel - hybrid'!G$50/'Benzin - diesel - hybrid'!G$15)*IF('Benzin - diesel - hybrid'!G$59="Benzin",'IB - B&D&H'!$C22,IF('Benzin - diesel - hybrid'!G$59="Diesel",'IB - B&D&H'!$D22,0))*(1+'Benzin - diesel - hybrid'!G$57)^-$A22,0) -> 0 | I22: =IFERROR('Benzin - diesel - hybrid'!I$49*('Benzin - diesel - hybrid'!I$50/'Benzin - diesel - hybrid'!I$15)*IF('Benzin - diesel - hybrid'!I$59="Benzin",'IB - B&D&H'!$C22,IF('Benzin - diesel - hybrid'!I$59="Diesel",'IB - B&D&H'!$D22,0))*(1+'Benzin - diesel - hybrid'!I$57)^-$A22,0) -> 0 | K22: =IFERROR('Benzin - diesel - hybrid'!K$49*('Benzin - diesel - hybrid'!K$50/'Benzin - diesel - hybrid'!K$15)*IF('Benzin - diesel - hybrid'!K$59="Benzin",'IB - B&D&H'!$C22,IF('Benzin - diesel - hybrid'!K$59="Diesel",'IB - B&D&H'!$D22,0))*(1+'Benzin - diesel - hybrid'!K$57)^-$A22,0) -> 0 | M22: =IFERROR('Benzin - diesel - hybrid'!M$49*('Benzin - diesel - hybrid'!M$50/'Benzin - diesel - hybrid'!M$15)*IF('Benzin - diesel - hybrid'!M$59="Benzin",'IB - B&D&H'!$C22,IF('Benzin - diesel - hybrid'!M$59="Diesel",'IB - B&D&H'!$D22,0))*(1+'Benzin - diesel - hybrid'!M$57)^-$A22,0) -> 0 | O22: =IFERROR('Benzin - diesel - hybrid'!O$49*('Benzin - diesel - hybrid'!O$50/'Benzin - diesel - hybrid'!O$15)*IF('Benzin - diesel - hybrid'!O$59="Benzin",'IB - B&D&H'!$C22,IF('Benzin - diesel - hybrid'!O$59="Diesel",'IB - B&D&H'!$D22,0))*(1+'Benzin - diesel - hybrid'!O$57)^-$A22,0) -> 0 | Q22: =IFERROR('Benzin - diesel - hybrid'!Q$49*('Benzin - diesel - hybrid'!Q$50/'Benzin - diesel - hybrid'!Q$15)*IF('Benzin - diesel - hybrid'!Q$59="Benzin",'IB - B&D&H'!$C22,IF('Benzin - diesel - hybrid'!Q$59="Diesel",'IB - B&D&H'!$D22,0))*(1+'Benzin - diesel - hybrid'!Q$57)^-$A22,0) -> 0 | S22: =IFERROR('Benzin - diesel - hybrid'!S$49*('Benzin - diesel - hybrid'!S$50/'Benzin - diesel - hybrid'!S$15)*IF('Benzin - diesel - hybrid'!S$59="Benzin",'IB - B&D&H'!$C22,IF('Benzin - diesel - hybrid'!S$59="Diesel",'IB - B&D&H'!$D22,0))*(1+'Benzin - diesel - hybrid'!S$57)^-$A22,0) -> 0 | U22: =IFERROR('Benzin - diesel - hybrid'!U$49*('Benzin - diesel - hybrid'!U$50/'Benzin - diesel - hybrid'!U$15)*IF('Benzin - diesel - hybrid'!U$59="Benzin",'IB - B&D&H'!$C22,IF('Benzin - diesel - hybrid'!U$59="Diesel",'IB - B&D&H'!$D22,0))*(1+'Benzin - diesel - hybrid'!U$57)^-$A22,0) -> 0 | W22: =IFERROR('Benzin - diesel - hybrid'!W$49*('Benzin - diesel - hybrid'!W$50/'Benzin - diesel - hybrid'!W$15)*IF('Benzin - diesel - hybrid'!W$59="Benzin",'IB - B&D&H'!$C22,IF('Benzin - diesel - hybrid'!W$59="Diesel",'IB - B&D&H'!$D22,0))*(1+'Benzin - diesel - hybrid'!W$57)^-$A22,0) -> 0
A23: 20 | C23: =((C22-Fremskrivninger!E66)*(1+IF('Benzin - diesel - hybrid'!$E$61="ja",'Benzin - diesel - hybrid'!$E$63,'Benzin - diesel - hybrid'!$E$65))+Fremskrivninger!E66) -> 10.03306219 | D23: =((D22-Fremskrivninger!E110)*(1+IF('Benzin - diesel - hybrid'!$E$67="ja",'Benzin - diesel - hybrid'!$E$69,'Benzin - diesel - hybrid'!$E$71))+Fremskrivninger!E110) -> 9.092578314 | E23: =IFERROR('Benzin - diesel - hybrid'!E$49*('Benzin - diesel - hybrid'!E$50/'Benzin - diesel - hybrid'!E$15)*IF('Benzin - diesel - hybrid'!E$59="Benzin",'IB - B&D&H'!$C23,IF('Benzin - diesel - hybrid'!E$59="Diesel",'IB - B&D&H'!$D23,0))*(1+'Benzin - diesel - hybrid'!E$57)^-$A23,0) -> 0 | G23: =IFERROR('Benzin - diesel - hybrid'!G$49*('Benzin - diesel - hybrid'!G$50/'Benzin - diesel - hybrid'!G$15)*IF('Benzin - diesel - hybrid'!G$59="Benzin",'IB - B&D&H'!$C23,IF('Benzin - diesel - hybrid'!G$59="Diesel",'IB - B&D&H'!$D23,0))*(1+'Benzin - diesel - hybrid'!G$57)^-$A23,0) -> 0 | I23: =IFERROR('Benzin - diesel - hybrid'!I$49*('Benzin - diesel - hybrid'!I$50/'Benzin - diesel - hybrid'!I$15)*IF('Benzin - diesel - hybrid'!I$59="Benzin",'IB - B&D&H'!$C23,IF('Benzin - diesel - hybrid'!I$59="Diesel",'IB - B&D&H'!$D23,0))*(1+'Benzin - diesel - hybrid'!I$57)^-$A23,0) -> 0 | K23: =IFERROR('Benzin - diesel - hybrid'!K$49*('Benzin - diesel - hybrid'!K$50/'Benzin - diesel - hybrid'!K$15)*IF('Benzin - diesel - hybrid'!K$59="Benzin",'IB - B&D&H'!$C23,IF('Benzin - diesel - hybrid'!K$59="Diesel",'IB - B&D&H'!$D23,0))*(1+'Benzin - diesel - hybrid'!K$57)^-$A23,0) -> 0 | M23: =IFERROR('Benzin - diesel - hybrid'!M$49*('Benzin - diesel - hybrid'!M$50/'Benzin - diesel - hybrid'!M$15)*IF('Benzin - diesel - hybrid'!M$59="Benzin",'IB - B&D&H'!$C23,IF('Benzin - diesel - hybrid'!M$59="Diesel",'IB - B&D&H'!$D23,0))*(1+'Benzin - diesel - hybrid'!M$57)^-$A23,0) -> 0 | O23: =IFERROR('Benzin - diesel - hybrid'!O$49*('Benzin - diesel - hybrid'!O$50/'Benzin - diesel - hybrid'!O$15)*IF('Benzin - diesel - hybrid'!O$59="Benzin",'IB - B&D&H'!$C23,IF('Benzin - diesel - hybrid'!O$59="Diesel",'IB - B&D&H'!$D23,0))*(1+'Benzin - diesel - hybrid'!O$57)^-$A23,0) -> 0 | Q23: =IFERROR('Benzin - diesel - hybrid'!Q$49*('Benzin - diesel - hybrid'!Q$50/'Benzin - diesel - hybrid'!Q$15)*IF('Benzin - diesel - hybrid'!Q$59="Benzin",'IB - B&D&H'!$C23,IF('Benzin - diesel - hybrid'!Q$59="Diesel",'IB - B&D&H'!$D23,0))*(1+'Benzin - diesel - hybrid'!Q$57)^-$A23,0) -> 0 | S23: =IFERROR('Benzin - diesel - hybrid'!S$49*('Benzin - diesel - hybrid'!S$50/'Benzin - diesel - hybrid'!S$15)*IF('Benzin - diesel - hybrid'!S$59="Benzin",'IB - B&D&H'!$C23,IF('Benzin - diesel - hybrid'!S$59="Diesel",'IB - B&D&H'!$D23,0))*(1+'Benzin - diesel - hybrid'!S$57)^-$A23,0) -> 0 | U23: =IFERROR('Benzin - diesel - hybrid'!U$49*('Benzin - diesel - hybrid'!U$50/'Benzin - diesel - hybrid'!U$15)*IF('Benzin - diesel - hybrid'!U$59="Benzin",'IB - B&D&H'!$C23,IF('Benzin - diesel - hybrid'!U$59="Diesel",'IB - B&D&H'!$D23,0))*(1+'Benzin - diesel - hybrid'!U$57)^-$A23,0) -> 0 | W23: =IFERROR('Benzin - diesel - hybrid'!W$49*('Benzin - diesel - hybrid'!W$50/'Benzin - diesel - hybrid'!W$15)*IF('Benzin - diesel - hybrid'!W$59="Benzin",'IB - B&D&H'!$C23,IF('Benzin - diesel - hybrid'!W$59="Diesel",'IB - B&D&H'!$D23,0))*(1+'Benzin - diesel - hybrid'!W$57)^-$A23,0) -> 0
B25: Samlede akkumulerede omkostninger | E25: ='Benzin - diesel - hybrid'!E8 -> PRODUKT 1 | G25: ='Benzin - diesel - hybrid'!G8 -> PRODUKT 2 | I25: ='Benzin - diesel - hybrid'!I8 -> PRODUKT 3 | K25: ='Benzin - diesel - hybrid'!K8 -> PRODUKT 4 | M25: ='Benzin - diesel - hybrid'!M8 -> PRODUKT 5 | O25: ='Benzin - diesel - hybrid'!O8 -> PRODUKT 6 | Q25: ='Benzin - diesel - hybrid'!Q8 -> PRODUKT 7 | S25: ='Benzin - diesel - hybrid'!S8 -> PRODUKT 8 | U25: ='Benzin - diesel - hybrid'!U8 -> PRODUKT 9 | W25: ='Benzin - diesel - hybrid'!W8 -> PRODUKT 10
B26: 1 | E26: ='Benzin - diesel - hybrid'!E$81+E4+E49+IF('Benzin - diesel - hybrid'!E$29="ja",E187,0) -> 0 | G26: ='Benzin - diesel - hybrid'!G$81+G4+G49+IF('Benzin - diesel - hybrid'!G$29="ja",G187,0) -> 0 | I26: ='Benzin - diesel - hybrid'!I$81+I4+I49+IF('Benzin - diesel - hybrid'!I$29="ja",I187,0) -> 0 | K26: ='Benzin - diesel - hybrid'!K$81+K4+K49+IF('Benzin - diesel - hybrid'!K$29="ja",K187,0) -> 0 | M26: ='Benzin - diesel - hybrid'!M$81+M4+M49+IF('Benzin - diesel - hybrid'!M$29="ja",M187,0) -> 0 | O26: ='Benzin - diesel - hybrid'!O$81+O4+O49+IF('Benzin - diesel - hybrid'!O$29="ja",O187,0) -> 0 | Q26: ='Benzin - diesel - hybrid'!Q$81+Q4+Q49+IF('Benzin - diesel - hybrid'!Q$29="ja",Q187,0) -> 0 | S26: ='Benzin - diesel - hybrid'!S$81+S4+S49+IF('Benzin - diesel - hybrid'!S$29="ja",S187,0) -> 0 | U26: ='Benzin - diesel - hybrid'!U$81+U4+U49+IF('Benzin - diesel - hybrid'!U$29="ja",U187,0) -> 0 | W26: ='Benzin - diesel - hybrid'!W$81+W4+W49+IF('Benzin - diesel - hybrid'!W$29="ja",W187,0) -> 0 | Z26: X-akse til akkummulerede omkostninger
B27: 2 | E27: ='Benzin - diesel - hybrid'!E$81+E5+E50+IF('Benzin - diesel - hybrid'!E$29="ja",E188,0) -> 0 | G27: ='Benzin - diesel - hybrid'!G$81+G5+G50+IF('Benzin - diesel - hybrid'!G$29="ja",G188,0) -> 0 | I27: ='Benzin - diesel - hybrid'!I$81+I5+I50+IF('Benzin - diesel - hybrid'!I$29="ja",I188,0) -> 0 | K27: ='Benzin - diesel - hybrid'!K$81+K5+K50+IF('Benzin - diesel - hybrid'!K$29="ja",K188,0) -> 0 | M27: ='Benzin - diesel - hybrid'!M$81+M5+M50+IF('Benzin - diesel - hybrid'!M$29="ja",M188,0) -> 0 | O27: ='Benzin - diesel - hybrid'!O$81+O5+O50+IF('Benzin - diesel - hybrid'!O$29="ja",O188,0) -> 0 | Q27: ='Benzin - diesel - hybrid'!Q82+Q5+Q50+IF('Benzin - diesel - hybrid'!Q$29="ja",Q188,0) -> 0 | S27: ='Benzin - diesel - hybrid'!S$81+S5+S50+IF('Benzin - diesel - hybrid'!S$29="ja",S188,0) -> 0 | U27: ='Benzin - diesel - hybrid'!U$81+U5+U50+IF('Benzin - diesel - hybrid'!U$29="ja",U188,0) -> 0 | W27: ='Benzin - diesel - hybrid'!W$81+W5+W50+IF('Benzin - diesel - hybrid'!W$29="ja",W188,0) -> 0 | Z27: 1
B28: 3 | E28: ='Benzin - diesel - hybrid'!E$81+E6+E51+IF('Benzin - diesel - hybrid'!E$29="ja",E189,0) -> 0 | G28: ='Benzin - diesel - hybrid'!G$81+G6+G51+IF('Benzin - diesel - hybrid'!G$29="ja",G189,0) -> 0 | I28: ='Benzin - diesel - hybrid'!I$81+I6+I51+IF('Benzin - diesel - hybrid'!I$29="ja",I189,0) -> 0 | K28: ='Benzin - diesel - hybrid'!K$81+K6+K51+IF('Benzin - diesel - hybrid'!K$29="ja",K189,0) -> 0 | M28: ='Benzin - diesel - hybrid'!M$81+M6+M51+IF('Benzin - diesel - hybrid'!M$29="ja",M189,0) -> 0 | O28: ='Benzin - diesel - hybrid'!O$81+O6+O51+IF('Benzin - diesel - hybrid'!O$29="ja",O189,0) -> 0 | Q28: ='Benzin - diesel - hybrid'!Q83+Q6+Q51+IF('Benzin - diesel - hybrid'!Q$29="ja",Q189,0) -> 0 | S28: ='Benzin - diesel - hybrid'!S$81+S6+S51+IF('Benzin - diesel - hybrid'!S$29="ja",S189,0) -> 0 | U28: ='Benzin - diesel - hybrid'!U$81+U6+U51+IF('Benzin - diesel - hybrid'!U$29="ja",U189,0) -> 0 | W28: ='Benzin - diesel - hybrid'!W$81+W6+W51+IF('Benzin - diesel - hybrid'!W$29="ja",W189,0) -> 0 | Z28: =IF('Benzin - diesel - hybrid'!$E$56>=B27,B27,"") -> 2
B29: 4 | E29: ='Benzin - diesel - hybrid'!E$81+E7+E52+IF('Benzin - diesel - hybrid'!E$29="ja",E190,0) -> 0 | G29: ='Benzin - diesel - hybrid'!G$81+G7+G52+IF('Benzin - diesel - hybrid'!G$29="ja",G190,0) -> 0 | I29: ='Benzin - diesel - hybrid'!I$81+I7+I52+IF('Benzin - diesel - hybrid'!I$29="ja",I190,0) -> 0 | K29: ='Benzin - diesel - hybrid'!K$81+K7+K52+IF('Benzin - diesel - hybrid'!K$29="ja",K190,0) -> 0 | M29: ='Benzin - diesel - hybrid'!M$81+M7+M52+IF('Benzin - diesel - hybrid'!M$29="ja",M190,0) -> 0 | O29: ='Benzin - diesel - hybrid'!O$81+O7+O52+IF('Benzin - diesel - hybrid'!O$29="ja",O190,0) -> 0 | Q29: ='Benzin - diesel - hybrid'!Q84+Q7+Q52+IF('Benzin - diesel - hybrid'!Q$29="ja",Q190,0) -> 0 | S29: ='Benzin - diesel - hybrid'!S$81+S7+S52+IF('Benzin - diesel - hybrid'!S$29="ja",S190,0) -> 0 | U29: ='Benzin - diesel - hybrid'!U$81+U7+U52+IF('Benzin - diesel - hybrid'!U$29="ja",U190,0) -> 0 | W29: ='Benzin - diesel - hybrid'!W$81+W7+W52+IF('Benzin - diesel - hybrid'!W$29="ja",W190,0) -> 0 | Z29: =IF('Benzin - diesel - hybrid'!$E$56>=B28,B28,"") -> 3
B30: 5 | E30: ='Benzin - diesel - hybrid'!E$81+E8+E53+IF('Benzin - diesel - hybrid'!E$29="ja",E191,0) -> 0 | G30: ='Benzin - diesel - hybrid'!G$81+G8+G53+IF('Benzin - diesel - hybrid'!G$29="ja",G191,0) -> 0 | I30: ='Benzin - diesel - hybrid'!I$81+I8+I53+IF('Benzin - diesel - hybrid'!I$29="ja",I191,0) -> 0 | K30: ='Benzin - diesel - hybrid'!K$81+K8+K53+IF('Benzin - diesel - hybrid'!K$29="ja",K191,0) -> 0 | M30: ='Benzin - diesel - hybrid'!M$81+M8+M53+IF('Benzin - diesel - hybrid'!M$29="ja",M191,0) -> 0 | O30: ='Benzin - diesel - hybrid'!O$81+O8+O53+IF('Benzin - diesel - hybrid'!O$29="ja",O191,0) -> 0 | Q30: ='Benzin - diesel - hybrid'!Q85+Q8+Q53+IF('Benzin - diesel - hybrid'!Q$29="ja",Q191,0) -> 0 | S30: ='Benzin - diesel - hybrid'!S$81+S8+S53+IF('Benzin - diesel - hybrid'!S$29="ja",S191,0) -> 0 | U30: ='Benzin - diesel - hybrid'!U$81+U8+U53+IF('Benzin - diesel - hybrid'!U$29="ja",U191,0) -> 0 | W30: ='Benzin - diesel - hybrid'!W$81+W8+W53+IF('Benzin - diesel - hybrid'!W$29="ja",W191,0) -> 0 | Z30: =IF('Benzin - diesel - hybrid'!$E$56>=B29,B29,"") -> 4
B31: 6 | E31: ='Benzin - diesel - hybrid'!E$81+E9+E54+IF('Benzin - diesel - hybrid'!E$29="ja",E192,0) -> 0 | G31: ='Benzin - diesel - hybrid'!G$81+G9+G54+IF('Benzin - diesel - hybrid'!G$29="ja",G192,0) -> 0 | I31: ='Benzin - diesel - hybrid'!I$81+I9+I54+IF('Benzin - diesel - hybrid'!I$29="ja",I192,0) -> 0 | K31: ='Benzin - diesel - hybrid'!K$81+K9+K54+IF('Benzin - diesel - hybrid'!K$29="ja",K192,0) -> 0 | M31: ='Benzin - diesel - hybrid'!M$81+M9+M54+IF('Benzin - diesel - hybrid'!M$29="ja",M192,0) -> 0 | O31: ='Benzin - diesel - hybrid'!O$81+O9+O54+IF('Benzin - diesel - hybrid'!O$29="ja",O192,0) -> 0 | Q31: ='Benzin - diesel - hybrid'!Q86+Q9+Q54+IF('Benzin - diesel - hybrid'!Q$29="ja",Q192,0) -> 0 | S31: ='Benzin - diesel - hybrid'!S$81+S9+S54+IF('Benzin - diesel - hybrid'!S$29="ja",S192,0) -> 0 | U31: ='Benzin - diesel - hybrid'!U$81+U9+U54+IF('Benzin - diesel - hybrid'!U$29="ja",U192,0) -> 0 | W31: ='Benzin - diesel - hybrid'!W$81+W9+W54+IF('Benzin - diesel - hybrid'!W$29="ja",W192,0) -> 0 | Z31: =IF('Benzin - diesel - hybrid'!$E$56>=B30,B30,"") -> 
B32: 7 | E32: ='Benzin - diesel - hybrid'!E$81+E10+E55+IF('Benzin - diesel - hybrid'!E$29="ja",E193,0) -> 0 | G32: ='Benzin - diesel - hybrid'!G$81+G10+G55+IF('Benzin - diesel - hybrid'!G$29="ja",G193,0) -> 0 | I32: ='Benzin - diesel - hybrid'!I$81+I10+I55+IF('Benzin - diesel - hybrid'!I$29="ja",I193,0) -> 0 | K32: ='Benzin - diesel - hybrid'!K$81+K10+K55+IF('Benzin - diesel - hybrid'!K$29="ja",K193,0) -> 0 | M32: ='Benzin - diesel - hybrid'!M$81+M10+M55+IF('Benzin - diesel - hybrid'!M$29="ja",M193,0) -> 0 | O32: ='Benzin - diesel - hybrid'!O$81+O10+O55+IF('Benzin - diesel - hybrid'!O$29="ja",O193,0) -> 0 | Q32: ='Benzin - diesel - hybrid'!Q87+Q10+Q55+IF('Benzin - diesel - hybrid'!Q$29="ja",Q193,0) -> 0 | S32: ='Benzin - diesel - hybrid'!S$81+S10+S55+IF('Benzin - diesel - hybrid'!S$29="ja",S193,0) -> 0 | U32: ='Benzin - diesel - hybrid'!U$81+U10+U55+IF('Benzin - diesel - hybrid'!U$29="ja",U193,0) -> 0 | W32: ='Benzin - diesel - hybrid'!W$81+W10+W55+IF('Benzin - diesel - hybrid'!W$29="ja",W193,0) -> 0 | Z32: =IF('Benzin - diesel - hybrid'!$E$56>=B31,B31,"") -> 
B33: 8 | E33: ='Benzin - diesel - hybrid'!E$81+E11+E56+IF('Benzin - diesel - hybrid'!E$29="ja",E194,0) -> 0 | G33: ='Benzin - diesel - hybrid'!G$81+G11+G56+IF('Benzin - diesel - hybrid'!G$29="ja",G194,0) -> 0 | I33: ='Benzin - diesel - hybrid'!I$81+I11+I56+IF('Benzin - diesel - hybrid'!I$29="ja",I194,0) -> 0 | K33: ='Benzin - diesel - hybrid'!K$81+K11+K56+IF('Benzin - diesel - hybrid'!K$29="ja",K194,0) -> 0 | M33: ='Benzin - diesel - hybrid'!M$81+M11+M56+IF('Benzin - diesel - hybrid'!M$29="ja",M194,0) -> 0 | O33: ='Benzin - diesel - hybrid'!O$81+O11+O56+IF('Benzin - diesel - hybrid'!O$29="ja",O194,0) -> 0 | Q33: ='Benzin - diesel - hybrid'!Q88+Q11+Q56+IF('Benzin - diesel - hybrid'!Q$29="ja",Q194,0) -> 0 | S33: ='Benzin - diesel - hybrid'!S$81+S11+S56+IF('Benzin - diesel - hybrid'!S$29="ja",S194,0) -> 0 | U33: ='Benzin - diesel - hybrid'!U$81+U11+U56+IF('Benzin - diesel - hybrid'!U$29="ja",U194,0) -> 0 | W33: ='Benzin - diesel - hybrid'!W$81+W11+W56+IF('Benzin - diesel - hybrid'!W$29="ja",W194,0) -> 0 | Z33: =IF('Benzin - diesel - hybrid'!$E$56>=B32,B32,"") -> 
B34: 9 | E34: ='Benzin - diesel - hybrid'!E$81+E12+E57+IF('Benzin - diesel - hybrid'!E$29="ja",E195,0) -> 0 | G34: ='Benzin - diesel - hybrid'!G$81+G12+G57+IF('Benzin - diesel - hybrid'!G$29="ja",G195,0) -> 0 | I34: ='Benzin - diesel - hybrid'!I$81+I12+I57+IF('Benzin - diesel - hybrid'!I$29="ja",I195,0) -> 0 | K34: ='Benzin - diesel - hybrid'!K$81+K12+K57+IF('Benzin - diesel - hybrid'!K$29="ja",K195,0) -> 0 | M34: ='Benzin - diesel - hybrid'!M$81+M12+M57+IF('Benzin - diesel - hybrid'!M$29="ja",M195,0) -> 0 | O34: ='Benzin - diesel - hybrid'!O$81+O12+O57+IF('Benzin - diesel - hybrid'!O$29="ja",O195,0) -> 0 | Q34: ='Benzin - diesel - hybrid'!Q89+Q12+Q57+IF('Benzin - diesel - hybrid'!Q$29="ja",Q195,0) -> 0 | S34: ='Benzin - diesel - hybrid'!S$81+S12+S57+IF('Benzin - diesel - hybrid'!S$29="ja",S195,0) -> 0 | U34: ='Benzin - diesel - hybrid'!U$81+U12+U57+IF('Benzin - diesel - hybrid'!U$29="ja",U195,0) -> 0 | W34: ='Benzin - diesel - hybrid'!W$81+W12+W57+IF('Benzin - diesel - hybrid'!W$29="ja",W195,0) -> 0 | Z34: =IF('Benzin - diesel - hybrid'!$E$56>=B33,B33,"") -> 
B35: 10 | E35: ='Benzin - diesel - hybrid'!E$81+E13+E58+IF('Benzin - diesel - hybrid'!E$29="ja",E196,0) -> 0 | G35: ='Benzin - diesel - hybrid'!G$81+G13+G58+IF('Benzin - diesel - hybrid'!G$29="ja",G196,0) -> 0 | I35: ='Benzin - diesel - hybrid'!I$81+I13+I58+IF('Benzin - diesel - hybrid'!I$29="ja",I196,0) -> 0 | K35: ='Benzin - diesel - hybrid'!K$81+K13+K58+IF('Benzin - diesel - hybrid'!K$29="ja",K196,0) -> 0 | M35: ='Benzin - diesel - hybrid'!M$81+M13+M58+IF('Benzin - diesel - hybrid'!M$29="ja",M196,0) -> 0 | O35: ='Benzin - diesel - hybrid'!O$81+O13+O58+IF('Benzin - diesel - hybrid'!O$29="ja",O196,0) -> 0 | Q35: ='Benzin - diesel - hybrid'!Q90+Q13+Q58+IF('Benzin - diesel - hybrid'!Q$29="ja",Q196,0) -> 0 | S35: ='Benzin - diesel - hybrid'!S$81+S13+S58+IF('Benzin - diesel - hybrid'!S$29="ja",S196,0) -> 0 | U35: ='Benzin - diesel - hybrid'!U$81+U13+U58+IF('Benzin - diesel - hybrid'!U$29="ja",U196,0) -> 0 | W35: ='Benzin - diesel - hybrid'!W$81+W13+W58+IF('Benzin - diesel - hybrid'!W$29="ja",W196,0) -> 0 | Z35: =IF('Benzin - diesel - hybrid'!$E$56>=B34,B34,"") -> 
B36: 11 | E36: ='Benzin - diesel - hybrid'!E$81+E14+E59+IF('Benzin - diesel - hybrid'!E$29="ja",E197,0) -> 0 | G36: ='Benzin - diesel - hybrid'!G$81+G14+G59+IF('Benzin - diesel - hybrid'!G$29="ja",G197,0) -> 0 | I36: ='Benzin - diesel - hybrid'!I$81+I14+I59+IF('Benzin - diesel - hybrid'!I$29="ja",I197,0) -> 0 | K36: ='Benzin - diesel - hybrid'!K$81+K14+K59+IF('Benzin - diesel - hybrid'!K$29="ja",K197,0) -> 0 | M36: ='Benzin - diesel - hybrid'!M$81+M14+M59+IF('Benzin - diesel - hybrid'!M$29="ja",M197,0) -> 0 | O36: ='Benzin - diesel - hybrid'!O$81+O14+O59+IF('Benzin - diesel - hybrid'!O$29="ja",O197,0) -> 0 | Q36: ='Benzin - diesel - hybrid'!Q91+Q14+Q59+IF('Benzin - diesel - hybrid'!Q$29="ja",Q197,0) -> 0 | S36: ='Benzin - diesel - hybrid'!S$81+S14+S59+IF('Benzin - diesel - hybrid'!S$29="ja",S197,0) -> 0 | U36: ='Benzin - diesel - hybrid'!U$81+U14+U59+IF('Benzin - diesel - hybrid'!U$29="ja",U197,0) -> 0 | W36: ='Benzin - diesel - hybrid'!W$81+W14+W59+IF('Benzin - diesel - hybrid'!W$29="ja",W197,0) -> 0 | Z36: =IF('Benzin - diesel - hybrid'!$E$56>=B35,B35,"") -> 
B37: 12 | E37: ='Benzin - diesel - hybrid'!E$81+E15+E60+IF('Benzin - diesel - hybrid'!E$29="ja",E198,0) -> 0 | G37: ='Benzin - diesel - hybrid'!G$81+G15+G60+IF('Benzin - diesel - hybrid'!G$29="ja",G198,0) -> 0 | I37: ='Benzin - diesel - hybrid'!I$81+I15+I60+IF('Benzin - diesel - hybrid'!I$29="ja",I198,0) -> 0 | K37: ='Benzin - diesel - hybrid'!K$81+K15+K60+IF('Benzin - diesel - hybrid'!K$29="ja",K198,0) -> 0 | M37: ='Benzin - diesel - hybrid'!M$81+M15+M60+IF('Benzin - diesel - hybrid'!M$29="ja",M198,0) -> 0 | O37: ='Benzin - diesel - hybrid'!O$81+O15+O60+IF('Benzin - diesel - hybrid'!O$29="ja",O198,0) -> 0 | Q37: ='Benzin - diesel - hybrid'!Q92+Q15+Q60+IF('Benzin - diesel - hybrid'!Q$29="ja",Q198,0) -> 0 | S37: ='Benzin - diesel - hybrid'!S$81+S15+S60+IF('Benzin - diesel - hybrid'!S$29="ja",S198,0) -> 0 | U37: ='Benzin - diesel - hybrid'!U$81+U15+U60+IF('Benzin - diesel - hybrid'!U$29="ja",U198,0) -> 0 | W37: ='Benzin - diesel - hybrid'!W$81+W15+W60+IF('Benzin - diesel - hybrid'!W$29="ja",W198,0) -> 0 | Z37: =IF('Benzin - diesel - hybrid'!$E$56>=B36,B36,"") -> 
B38: 13 | E38: ='Benzin - diesel - hybrid'!E$81+E16+E61+IF('Benzin - diesel - hybrid'!E$29="ja",E199,0) -> 0 | G38: ='Benzin - diesel - hybrid'!G$81+G16+G61+IF('Benzin - diesel - hybrid'!G$29="ja",G199,0) -> 0 | I38: ='Benzin - diesel - hybrid'!I$81+I16+I61+IF('Benzin - diesel - hybrid'!I$29="ja",I199,0) -> 0 | K38: ='Benzin - diesel - hybrid'!K$81+K16+K61+IF('Benzin - diesel - hybrid'!K$29="ja",K199,0) -> 0 | M38: ='Benzin - diesel - hybrid'!M$81+M16+M61+IF('Benzin - diesel - hybrid'!M$29="ja",M199,0) -> 0 | O38: ='Benzin - diesel - hybrid'!O$81+O16+O61+IF('Benzin - diesel - hybrid'!O$29="ja",O199,0) -> 0 | Q38: ='Benzin - diesel - hybrid'!Q93+Q16+Q61+IF('Benzin - diesel - hybrid'!Q$29="ja",Q199,0) -> 0 | S38: ='Benzin - diesel - hybrid'!S$81+S16+S61+IF('Benzin - diesel - hybrid'!S$29="ja",S199,0) -> 0 | U38: ='Benzin - diesel - hybrid'!U$81+U16+U61+IF('Benzin - diesel - hybrid'!U$29="ja",U199,0) -> 0 | W38: ='Benzin - diesel - hybrid'!W$81+W16+W61+IF('Benzin - diesel - hybrid'!W$29="ja",W199,0) -> 0 | Z38: =IF('Benzin - diesel - hybrid'!$E$56>=B37,B37,"") -> 
B39: 14 | E39: ='Benzin - diesel - hybrid'!E$81+E17+E62+IF('Benzin - diesel - hybrid'!E$29="ja",E200,0) -> 0 | G39: ='Benzin - diesel - hybrid'!G$81+G17+G62+IF('Benzin - diesel - hybrid'!G$29="ja",G200,0) -> 0 | I39: ='Benzin - diesel - hybrid'!I$81+I17+I62+IF('Benzin - diesel - hybrid'!I$29="ja",I200,0) -> 0 | K39: ='Benzin - diesel - hybrid'!K$81+K17+K62+IF('Benzin - diesel - hybrid'!K$29="ja",K200,0) -> 0 | M39: ='Benzin - diesel - hybrid'!M$81+M17+M62+IF('Benzin - diesel - hybrid'!M$29="ja",M200,0) -> 0 | O39: ='Benzin - diesel - hybrid'!O$81+O17+O62+IF('Benzin - diesel - hybrid'!O$29="ja",O200,0) -> 0 | Q39: ='Benzin - diesel - hybrid'!Q94+Q17+Q62+IF('Benzin - diesel - hybrid'!Q$29="ja",Q200,0) -> 0 | S39: ='Benzin - diesel - hybrid'!S$81+S17+S62+IF('Benzin - diesel - hybrid'!S$29="ja",S200,0) -> 0 | U39: ='Benzin - diesel - hybrid'!U$81+U17+U62+IF('Benzin - diesel - hybrid'!U$29="ja",U200,0) -> 0 | W39: ='Benzin - diesel - hybrid'!W$81+W17+W62+IF('Benzin - diesel - hybrid'!W$29="ja",W200,0) -> 0 | Z39: =IF('Benzin - diesel - hybrid'!$E$56>=B38,B38,"") -> 
B40: 15 | E40: ='Benzin - diesel - hybrid'!E$81+E18+E63+IF('Benzin - diesel - hybrid'!E$29="ja",E201,0) -> 0 | G40: ='Benzin - diesel - hybrid'!G$81+G18+G63+IF('Benzin - diesel - hybrid'!G$29="ja",G201,0) -> 0 | I40: ='Benzin - diesel - hybrid'!I$81+I18+I63+IF('Benzin - diesel - hybrid'!I$29="ja",I201,0) -> 0 | K40: ='Benzin - diesel - hybrid'!K$81+K18+K63+IF('Benzin - diesel - hybrid'!K$29="ja",K201,0) -> 0 | M40: ='Benzin - diesel - hybrid'!M$81+M18+M63+IF('Benzin - diesel - hybrid'!M$29="ja",M201,0) -> 0 | O40: ='Benzin - diesel - hybrid'!O$81+O18+O63+IF('Benzin - diesel - hybrid'!O$29="ja",O201,0) -> 0 | Q40: ='Benzin - diesel - hybrid'!Q95+Q18+Q63+IF('Benzin - diesel - hybrid'!Q$29="ja",Q201,0) -> 0 | S40: ='Benzin - diesel - hybrid'!S$81+S18+S63+IF('Benzin - diesel - hybrid'!S$29="ja",S201,0) -> 0 | U40: ='Benzin - diesel - hybrid'!U$81+U18+U63+IF('Benzin - diesel - hybrid'!U$29="ja",U201,0) -> 0 | W40: ='Benzin - diesel - hybrid'!W$81+W18+W63+IF('Benzin - diesel - hybrid'!W$29="ja",W201,0) -> 0 | Z40: =IF('Benzin - diesel - hybrid'!$E$56>=B39,B39,"") -> 
B41: 16 | E41: ='Benzin - diesel - hybrid'!E$81+E19+E64+IF('Benzin - diesel - hybrid'!E$29="ja",E202,0) -> 0 | G41: ='Benzin - diesel - hybrid'!G$81+G19+G64+IF('Benzin - diesel - hybrid'!G$29="ja",G202,0) -> 0 | I41: ='Benzin - diesel - hybrid'!I$81+I19+I64+IF('Benzin - diesel - hybrid'!I$29="ja",I202,0) -> 0 | K41: ='Benzin - diesel - hybrid'!K$81+K19+K64+IF('Benzin - diesel - hybrid'!K$29="ja",K202,0) -> 0 | M41: ='Benzin - diesel - hybrid'!M$81+M19+M64+IF('Benzin - diesel - hybrid'!M$29="ja",M202,0) -> 0 | O41: ='Benzin - diesel - hybrid'!O$81+O19+O64+IF('Benzin - diesel - hybrid'!O$29="ja",O202,0) -> 0 | Q41: ='Benzin - diesel - hybrid'!Q96+Q19+Q64+IF('Benzin - diesel - hybrid'!Q$29="ja",Q202,0) -> 0 | S41: ='Benzin - diesel - hybrid'!S$81+S19+S64+IF('Benzin - diesel - hybrid'!S$29="ja",S202,0) -> 0 | U41: ='Benzin - diesel - hybrid'!U$81+U19+U64+IF('Benzin - diesel - hybrid'!U$29="ja",U202,0) -> 0 | W41: ='Benzin - diesel - hybrid'!W$81+W19+W64+IF('Benzin - diesel - hybrid'!W$29="ja",W202,0) -> 0 | Z41: =IF('Benzin - diesel - hybrid'!$E$56>=B40,B40,"") -> 
B42: 17 | E42: ='Benzin - diesel - hybrid'!E$81+E20+E65+IF('Benzin - diesel - hybrid'!E$29="ja",E203,0) -> 0 | G42: ='Benzin - diesel - hybrid'!G$81+G20+G65+IF('Benzin - diesel - hybrid'!G$29="ja",G203,0) -> 0 | I42: ='Benzin - diesel - hybrid'!I$81+I20+I65+IF('Benzin - diesel - hybrid'!I$29="ja",I203,0) -> 0 | K42: ='Benzin - diesel - hybrid'!K$81+K20+K65+IF('Benzin - diesel - hybrid'!K$29="ja",K203,0) -> 0 | M42: ='Benzin - diesel - hybrid'!M$81+M20+M65+IF('Benzin - diesel - hybrid'!M$29="ja",M203,0) -> 0 | O42: ='Benzin - diesel - hybrid'!O$81+O20+O65+IF('Benzin - diesel - hybrid'!O$29="ja",O203,0) -> 0 | Q42: ='Benzin - diesel - hybrid'!Q97+Q20+Q65+IF('Benzin - diesel - hybrid'!Q$29="ja",Q203,0) -> 0 | S42: ='Benzin - diesel - hybrid'!S$81+S20+S65+IF('Benzin - diesel - hybrid'!S$29="ja",S203,0) -> 0 | U42: ='Benzin - diesel - hybrid'!U$81+U20+U65+IF('Benzin - diesel - hybrid'!U$29="ja",U203,0) -> 0 | W42: ='Benzin - diesel - hybrid'!W$81+W20+W65+IF('Benzin - diesel - hybrid'!W$29="ja",W203,0) -> 0 | Z42: =IF('Benzin - diesel - hybrid'!$E$56>=B41,B41,"") -> 
B43: 18 | E43: ='Benzin - diesel - hybrid'!E$81+E21+E66+IF('Benzin - diesel - hybrid'!E$29="ja",E204,0) -> 0 | G43: ='Benzin - diesel - hybrid'!G$81+G21+G66+IF('Benzin - diesel - hybrid'!G$29="ja",G204,0) -> 0 | I43: ='Benzin - diesel - hybrid'!I$81+I21+I66+IF('Benzin - diesel - hybrid'!I$29="ja",I204,0) -> 0 | K43: ='Benzin - diesel - hybrid'!K$81+K21+K66+IF('Benzin - diesel - hybrid'!K$29="ja",K204,0) -> 0 | M43: ='Benzin - diesel - hybrid'!M$81+M21+M66+IF('Benzin - diesel - hybrid'!M$29="ja",M204,0) -> 0 | O43: ='Benzin - diesel - hybrid'!O$81+O21+O66+IF('Benzin - diesel - hybrid'!O$29="ja",O204,0) -> 0 | Q43: ='Benzin - diesel - hybrid'!Q98+Q21+Q66+IF('Benzin - diesel - hybrid'!Q$29="ja",Q204,0) -> 0 | S43: ='Benzin - diesel - hybrid'!S$81+S21+S66+IF('Benzin - diesel - hybrid'!S$29="ja",S204,0) -> 0 | U43: ='Benzin - diesel - hybrid'!U$81+U21+U66+IF('Benzin - diesel - hybrid'!U$29="ja",U204,0) -> 0 | W43: ='Benzin - diesel - hybrid'!W$81+W21+W66+IF('Benzin - diesel - hybrid'!W$29="ja",W204,0) -> 0 | Z43: =IF('Benzin - diesel - hybrid'!$E$56>=B42,B42,"") -> 
B44: 19 | E44: ='Benzin - diesel - hybrid'!E$81+E22+E67+IF('Benzin - diesel - hybrid'!E$29="ja",E205,0) -> 0 | G44: ='Benzin - diesel - hybrid'!G$81+G22+G67+IF('Benzin - diesel - hybrid'!G$29="ja",G205,0) -> 0 | I44: ='Benzin - diesel - hybrid'!I$81+I22+I67+IF('Benzin - diesel - hybrid'!I$29="ja",I205,0) -> 0 | K44: ='Benzin - diesel - hybrid'!K$81+K22+K67+IF('Benzin - diesel - hybrid'!K$29="ja",K205,0) -> 0 | M44: ='Benzin - diesel - hybrid'!M$81+M22+M67+IF('Benzin - diesel - hybrid'!M$29="ja",M205,0) -> 0 | O44: ='Benzin - diesel - hybrid'!O$81+O22+O67+IF('Benzin - diesel - hybrid'!O$29="ja",O205,0) -> 0 | Q44: ='Benzin - diesel - hybrid'!Q99+Q22+Q67+IF('Benzin - diesel - hybrid'!Q$29="ja",Q205,0) -> 0 | S44: ='Benzin - diesel - hybrid'!S$81+S22+S67+IF('Benzin - diesel - hybrid'!S$29="ja",S205,0) -> 0 | U44: ='Benzin - diesel - hybrid'!U$81+U22+U67+IF('Benzin - diesel - hybrid'!U$29="ja",U205,0) -> 0 | W44: ='Benzin - diesel - hybrid'!W$81+W22+W67+IF('Benzin - diesel - hybrid'!W$29="ja",W205,0) -> 0 | Z44: =IF('Benzin - diesel - hybrid'!$E$56>=B43,B43,"") -> 
B45: 20 | E45: ='Benzin - diesel - hybrid'!E$81+E23+E68+IF('Benzin - diesel - hybrid'!E$29="ja",E206,0) -> 0 | G45: ='Benzin - diesel - hybrid'!G$81+G23+G68+IF('Benzin - diesel - hybrid'!G$29="ja",G206,0) -> 0 | I45: ='Benzin - diesel - hybrid'!I$81+I23+I68+IF('Benzin - diesel - hybrid'!I$29="ja",I206,0) -> 0 | K45: ='Benzin - diesel - hybrid'!K$81+K23+K68+IF('Benzin - diesel - hybrid'!K$29="ja",K206,0) -> 0 | M45: ='Benzin - diesel - hybrid'!M$81+M23+M68+IF('Benzin - diesel - hybrid'!M$29="ja",M206,0) -> 0 | O45: ='Benzin - diesel - hybrid'!O$81+O23+O68+IF('Benzin - diesel - hybrid'!O$29="ja",O206,0) -> 0 | Q45: ='Benzin - diesel - hybrid'!Q100+Q23+Q68+IF('Benzin - diesel - hybrid'!Q$29="ja",Q206,0) -> 0 | S45: ='Benzin - diesel - hybrid'!S$81+S23+S68+IF('Benzin - diesel - hybrid'!S$29="ja",S206,0) -> 0 | U45: ='Benzin - diesel - hybrid'!U$81+U23+U68+IF('Benzin - diesel - hybrid'!U$29="ja",U206,0) -> 0 | W45: ='Benzin - diesel - hybrid'!W$81+W23+W68+IF('Benzin - diesel - hybrid'!W$29="ja",W206,0) -> 0 | Z45: =IF('Benzin - diesel - hybrid'!$E$56>=B44,B44,"") -> 
Z46: =IF('Benzin - diesel - hybrid'!$E$56>=B45,B45,"") -> 
A47: Service, vedligehold og løbende omkostninger
B48: År indeks | C48: Pris på serviceaftale jf. kravspecifikation og Intern serviceomkostning - service & support | E48: =E25 -> PRODUKT 1 | G48: =G25 -> PRODUKT 2 | I48: =I25 -> PRODUKT 3 | K48: =K25 -> PRODUKT 4 | M48: =M25 -> PRODUKT 5 | O48: =O25 -> PRODUKT 6 | Q48: =Q25 -> PRODUKT 7 | S48: =S25 -> PRODUKT 8 | U48: =U25 -> PRODUKT 9 | W48: =W25 -> PRODUKT 10
B49: 1 | C49: =B49 -> 1 | E49: =(IF($B49<='Benzin - diesel - hybrid'!E$56,'Benzin - diesel - hybrid'!E$18+'Benzin - diesel - hybrid'!E$19+'Benzin - diesel - hybrid'!E$74+'Benzin - diesel - hybrid'!E$75,0)*'Benzin - diesel - hybrid'!E$49*(1+'Benzin - diesel - hybrid'!E$57)^-$B49) -> 0 | G49: =(IF($B49<='Benzin - diesel - hybrid'!G$56,'Benzin - diesel - hybrid'!G$18+'Benzin - diesel - hybrid'!G$19+'Benzin - diesel - hybrid'!G$74+'Benzin - diesel - hybrid'!G$75,0)*'Benzin - diesel - hybrid'!G$49*(1+'Benzin - diesel - hybrid'!G$57)^-$B49) -> 0 | I49: =(IF($B49<='Benzin - diesel - hybrid'!I$56,'Benzin - diesel - hybrid'!I$18+'Benzin - diesel - hybrid'!I$19+'Benzin - diesel - hybrid'!I$74+'Benzin - diesel - hybrid'!I$75,0)*'Benzin - diesel - hybrid'!I$49*(1+'Benzin - diesel - hybrid'!I$57)^-$B49) -> 0 | K49: =(IF($B49<='Benzin - diesel - hybrid'!K$56,'Benzin - diesel - hybrid'!K$18+'Benzin - diesel - hybrid'!K$19+'Benzin - diesel - hybrid'!K$74+'Benzin - diesel - hybrid'!K$75,0)*'Benzin - diesel - hybrid'!K$49*(1+'Benzin - diesel - hybrid'!K$57)^-$B49) -> 0 | M49: =(IF($B49<='Benzin - diesel - hybrid'!M$56,'Benzin - diesel - hybrid'!M$18+'Benzin - diesel - hybrid'!M$19+'Benzin - diesel - hybrid'!M$74+'Benzin - diesel - hybrid'!M$75,0)*'Benzin - diesel - hybrid'!M$49*(1+'Benzin - diesel - hybrid'!M$57)^-$B49) -> 0 | O49: =(IF($B49<='Benzin - diesel - hybrid'!O$56,'Benzin - diesel - hybrid'!O$18+'Benzin - diesel - hybrid'!O$19+'Benzin - diesel - hybrid'!O$74+'Benzin - diesel - hybrid'!O$75,0)*'Benzin - diesel - hybrid'!O$49*(1+'Benzin - diesel - hybrid'!O$57)^-$B49) -> 0 | Q49: =(IF($B49<='Benzin - diesel - hybrid'!Q$56,'Benzin - diesel - hybrid'!Q$18+'Benzin - diesel - hybrid'!Q$19+'Benzin - diesel - hybrid'!Q$74+'Benzin - diesel - hybrid'!Q$75,0)*'Benzin - diesel - hybrid'!Q$49*(1+'Benzin - diesel - hybrid'!Q$57)^-$B49) -> 0 | S49: =(IF($B49<='Benzin - diesel - hybrid'!S$56,'Benzin - diesel - hybrid'!S$18+'Benzin - diesel - hybrid'!S$19+'Benzin - diesel - hybrid'!S$74+'Benzin - diesel - hybrid'!S$75,0)*'Benzin - diesel - hybrid'!S$49*(1+'Benzin - diesel - hybrid'!S$57)^-$B49) -> 0 | U49: =(IF($B49<='Benzin - diesel - hybrid'!U$56,'Benzin - diesel - hybrid'!U$18+'Benzin - diesel - hybrid'!U$19+'Benzin - diesel - hybrid'!U$74+'Benzin - diesel - hybrid'!U$75,0)*'Benzin - diesel - hybrid'!U$49*(1+'Benzin - diesel - hybrid'!U$57)^-$B49) -> 0 | W49: =(IF($B49<='Benzin - diesel - hybrid'!W$56,'Benzin - diesel - hybrid'!W$18+'Benzin - diesel - hybrid'!W$19+'Benzin - diesel - hybrid'!W$74+'Benzin - diesel - hybrid'!W$75,0)*'Benzin - diesel - hybrid'!W$49*(1+'Benzin - diesel - hybrid'!W$57)^-$B49) -> 0
B50: 2 | C50: =B50 -> 2 | E50: =(IF($B50<='Benzin - diesel - hybrid'!E$56,'Benzin - diesel - hybrid'!E$18+'Benzin - diesel - hybrid'!E$19+'Benzin - diesel - hybrid'!E$74+'Benzin - diesel - hybrid'!E$75,0)*'Benzin - diesel - hybrid'!E$49*(1+'Benzin - diesel - hybrid'!E$57)^-$B50) -> 0 | G50: =(IF($B50<='Benzin - diesel - hybrid'!G$56,'Benzin - diesel - hybrid'!G$18+'Benzin - diesel - hybrid'!G$19+'Benzin - diesel - hybrid'!G$74+'Benzin - diesel - hybrid'!G$75,0)*'Benzin - diesel - hybrid'!G$49*(1+'Benzin - diesel - hybrid'!G$57)^-$B50) -> 0 | I50: =(IF($B50<='Benzin - diesel - hybrid'!I$56,'Benzin - diesel - hybrid'!I$18+'Benzin - diesel - hybrid'!I$19+'Benzin - diesel - hybrid'!I$74+'Benzin - diesel - hybrid'!I$75,0)*'Benzin - diesel - hybrid'!I$49*(1+'Benzin - diesel - hybrid'!I$57)^-$B50) -> 0 | K50: =(IF($B50<='Benzin - diesel - hybrid'!K$56,'Benzin - diesel - hybrid'!K$18+'Benzin - diesel - hybrid'!K$19+'Benzin - diesel - hybrid'!K$74+'Benzin - diesel - hybrid'!K$75,0)*'Benzin - diesel - hybrid'!K$49*(1+'Benzin - diesel - hybrid'!K$57)^-$B50) -> 0 | M50: =(IF($B50<='Benzin - diesel - hybrid'!M$56,'Benzin - diesel - hybrid'!M$18+'Benzin - diesel - hybrid'!M$19+'Benzin - diesel - hybrid'!M$74+'Benzin - diesel - hybrid'!M$75,0)*'Benzin - diesel - hybrid'!M$49*(1+'Benzin - diesel - hybrid'!M$57)^-$B50) -> 0 | O50: =(IF($B50<='Benzin - diesel - hybrid'!O$56,'Benzin - diesel - hybrid'!O$18+'Benzin - diesel - hybrid'!O$19+'Benzin - diesel - hybrid'!O$74+'Benzin - diesel - hybrid'!O$75,0)*'Benzin - diesel - hybrid'!O$49*(1+'Benzin - diesel - hybrid'!O$57)^-$B50) -> 0 | Q50: =(IF($B50<='Benzin - diesel - hybrid'!Q$56,'Benzin - diesel - hybrid'!Q$18+'Benzin - diesel - hybrid'!Q$19+'Benzin - diesel - hybrid'!Q$74+'Benzin - diesel - hybrid'!Q$75,0)*'Benzin - diesel - hybrid'!Q$49*(1+'Benzin - diesel - hybrid'!Q$57)^-$B50) -> 0 | S50: =(IF($B50<='Benzin - diesel - hybrid'!S$56,'Benzin - diesel - hybrid'!S$18+'Benzin - diesel - hybrid'!S$19+'Benzin - diesel - hybrid'!S$74+'Benzin - diesel - hybrid'!S$75,0)*'Benzin - diesel - hybrid'!S$49*(1+'Benzin - diesel - hybrid'!S$57)^-$B50) -> 0 | U50: =(IF($B50<='Benzin - diesel - hybrid'!U$56,'Benzin - diesel - hybrid'!U$18+'Benzin - diesel - hybrid'!U$19+'Benzin - diesel - hybrid'!U$74+'Benzin - diesel - hybrid'!U$75,0)*'Benzin - diesel - hybrid'!U$49*(1+'Benzin - diesel - hybrid'!U$57)^-$B50) -> 0 | W50: =(IF($B50<='Benzin - diesel - hybrid'!W$56,'Benzin - diesel - hybrid'!W$18+'Benzin - diesel - hybrid'!W$19+'Benzin - diesel - hybrid'!W$74+'Benzin - diesel - hybrid'!W$75,0)*'Benzin - diesel - hybrid'!W$49*(1+'Benzin - diesel - hybrid'!W$57)^-$B50) -> 0
B51: 3 | C51: 3 | E51: =(IF($B51<='Benzin - diesel - hybrid'!E$56,'Benzin - diesel - hybrid'!E$18+'Benzin - diesel - hybrid'!E$19+'Benzin - diesel - hybrid'!E$74+'Benzin - diesel - hybrid'!E$75,0)*'Benzin - diesel - hybrid'!E$49*(1+'Benzin - diesel - hybrid'!E$57)^-$B51) -> 0 | G51: =(IF($B51<='Benzin - diesel - hybrid'!G$56,'Benzin - diesel - hybrid'!G$18+'Benzin - diesel - hybrid'!G$19+'Benzin - diesel - hybrid'!G$74+'Benzin - diesel - hybrid'!G$75,0)*'Benzin - diesel - hybrid'!G$49*(1+'Benzin - diesel - hybrid'!G$57)^-$B51) -> 0 | I51: =(IF($B51<='Benzin - diesel - hybrid'!I$56,'Benzin - diesel - hybrid'!I$18+'Benzin - diesel - hybrid'!I$19+'Benzin - diesel - hybrid'!I$74+'Benzin - diesel - hybrid'!I$75,0)*'Benzin - diesel - hybrid'!I$49*(1+'Benzin - diesel - hybrid'!I$57)^-$B51) -> 0 | K51: =(IF($B51<='Benzin - diesel - hybrid'!K$56,'Benzin - diesel - hybrid'!K$18+'Benzin - diesel - hybrid'!K$19+'Benzin - diesel - hybrid'!K$74+'Benzin - diesel - hybrid'!K$75,0)*'Benzin - diesel - hybrid'!K$49*(1+'Benzin - diesel - hybrid'!K$57)^-$B51) -> 0 | M51: =(IF($B51<='Benzin - diesel - hybrid'!M$56,'Benzin - diesel - hybrid'!M$18+'Benzin - diesel - hybrid'!M$19+'Benzin - diesel - hybrid'!M$74+'Benzin - diesel - hybrid'!M$75,0)*'Benzin - diesel - hybrid'!M$49*(1+'Benzin - diesel - hybrid'!M$57)^-$B51) -> 0 | O51: =(IF($B51<='Benzin - diesel - hybrid'!O$56,'Benzin - diesel - hybrid'!O$18+'Benzin - diesel - hybrid'!O$19+'Benzin - diesel - hybrid'!O$74+'Benzin - diesel - hybrid'!O$75,0)*'Benzin - diesel - hybrid'!O$49*(1+'Benzin - diesel - hybrid'!O$57)^-$B51) -> 0 | Q51: =(IF($B51<='Benzin - diesel - hybrid'!Q$56,'Benzin - diesel - hybrid'!Q$18+'Benzin - diesel - hybrid'!Q$19+'Benzin - diesel - hybrid'!Q$74+'Benzin - diesel - hybrid'!Q$75,0)*'Benzin - diesel - hybrid'!Q$49*(1+'Benzin - diesel - hybrid'!Q$57)^-$B51) -> 0 | S51: =(IF($B51<='Benzin - diesel - hybrid'!S$56,'Benzin - diesel - hybrid'!S$18+'Benzin - diesel - hybrid'!S$19+'Benzin - diesel - hybrid'!S$74+'Benzin - diesel - hybrid'!S$75,0)*'Benzin - diesel - hybrid'!S$49*(1+'Benzin - diesel - hybrid'!S$57)^-$B51) -> 0 | U51: =(IF($B51<='Benzin - diesel - hybrid'!U$56,'Benzin - diesel - hybrid'!U$18+'Benzin - diesel - hybrid'!U$19+'Benzin - diesel - hybrid'!U$74+'Benzin - diesel - hybrid'!U$75,0)*'Benzin - diesel - hybrid'!U$49*(1+'Benzin - diesel - hybrid'!U$57)^-$B51) -> 0 | W51: =(IF($B51<='Benzin - diesel - hybrid'!W$56,'Benzin - diesel - hybrid'!W$18+'Benzin - diesel - hybrid'!W$19+'Benzin - diesel - hybrid'!W$74+'Benzin - diesel - hybrid'!W$75,0)*'Benzin - diesel - hybrid'!W$49*(1+'Benzin - diesel - hybrid'!W$57)^-$B51) -> 0
B52: 4 | C52: 4 | E52: =(IF($B52<='Benzin - diesel - hybrid'!E$56,'Benzin - diesel - hybrid'!E$18+'Benzin - diesel - hybrid'!E$19+'Benzin - diesel - hybrid'!E$74+'Benzin - diesel - hybrid'!E$75,0)*'Benzin - diesel - hybrid'!E$49*(1+'Benzin - diesel - hybrid'!E$57)^-$B52) -> 0 | G52: =(IF($B52<='Benzin - diesel - hybrid'!G$56,'Benzin - diesel - hybrid'!G$18+'Benzin - diesel - hybrid'!G$19+'Benzin - diesel - hybrid'!G$74+'Benzin - diesel - hybrid'!G$75,0)*'Benzin - diesel - hybrid'!G$49*(1+'Benzin - diesel - hybrid'!G$57)^-$B52) -> 0 | I52: =(IF($B52<='Benzin - diesel - hybrid'!I$56,'Benzin - diesel - hybrid'!I$18+'Benzin - diesel - hybrid'!I$19+'Benzin - diesel - hybrid'!I$74+'Benzin - diesel - hybrid'!I$75,0)*'Benzin - diesel - hybrid'!I$49*(1+'Benzin - diesel - hybrid'!I$57)^-$B52) -> 0 | K52: =(IF($B52<='Benzin - diesel - hybrid'!K$56,'Benzin - diesel - hybrid'!K$18+'Benzin - diesel - hybrid'!K$19+'Benzin - diesel - hybrid'!K$74+'Benzin - diesel - hybrid'!K$75,0)*'Benzin - diesel - hybrid'!K$49*(1+'Benzin - diesel - hybrid'!K$57)^-$B52) -> 0 | M52: =(IF($B52<='Benzin - diesel - hybrid'!M$56,'Benzin - diesel - hybrid'!M$18+'Benzin - diesel - hybrid'!M$19+'Benzin - diesel - hybrid'!M$74+'Benzin - diesel - hybrid'!M$75,0)*'Benzin - diesel - hybrid'!M$49*(1+'Benzin - diesel - hybrid'!M$57)^-$B52) -> 0 | O52: =(IF($B52<='Benzin - diesel - hybrid'!O$56,'Benzin - diesel - hybrid'!O$18+'Benzin - diesel - hybrid'!O$19+'Benzin - diesel - hybrid'!O$74+'Benzin - diesel - hybrid'!O$75,0)*'Benzin - diesel - hybrid'!O$49*(1+'Benzin - diesel - hybrid'!O$57)^-$B52) -> 0 | Q52: =(IF($B52<='Benzin - diesel - hybrid'!Q$56,'Benzin - diesel - hybrid'!Q$18+'Benzin - diesel - hybrid'!Q$19+'Benzin - diesel - hybrid'!Q$74+'Benzin - diesel - hybrid'!Q$75,0)*'Benzin - diesel - hybrid'!Q$49*(1+'Benzin - diesel - hybrid'!Q$57)^-$B52) -> 0 | S52: =(IF($B52<='Benzin - diesel - hybrid'!S$56,'Benzin - diesel - hybrid'!S$18+'Benzin - diesel - hybrid'!S$19+'Benzin - diesel - hybrid'!S$74+'Benzin - diesel - hybrid'!S$75,0)*'Benzin - diesel - hybrid'!S$49*(1+'Benzin - diesel - hybrid'!S$57)^-$B52) -> 0 | U52: =(IF($B52<='Benzin - diesel - hybrid'!U$56,'Benzin - diesel - hybrid'!U$18+'Benzin - diesel - hybrid'!U$19+'Benzin - diesel - hybrid'!U$74+'Benzin - diesel - hybrid'!U$75,0)*'Benzin - diesel - hybrid'!U$49*(1+'Benzin - diesel - hybrid'!U$57)^-$B52) -> 0 | W52: =(IF($B52<='Benzin - diesel - hybrid'!W$56,'Benzin - diesel - hybrid'!W$18+'Benzin - diesel - hybrid'!W$19+'Benzin - diesel - hybrid'!W$74+'Benzin - diesel - hybrid'!W$75,0)*'Benzin - diesel - hybrid'!W$49*(1+'Benzin - diesel - hybrid'!W$57)^-$B52) -> 0
B53: 5 | C53: 5 | E53: =(IF($B53<='Benzin - diesel - hybrid'!E$56,'Benzin - diesel - hybrid'!E$18+'Benzin - diesel - hybrid'!E$19+'Benzin - diesel - hybrid'!E$74+'Benzin - diesel - hybrid'!E$75,0)*'Benzin - diesel - hybrid'!E$49*(1+'Benzin - diesel - hybrid'!E$57)^-$B53) -> 0 | G53: =(IF($B53<='Benzin - diesel - hybrid'!G$56,'Benzin - diesel - hybrid'!G$18+'Benzin - diesel - hybrid'!G$19+'Benzin - diesel - hybrid'!G$74+'Benzin - diesel - hybrid'!G$75,0)*'Benzin - diesel - hybrid'!G$49*(1+'Benzin - diesel - hybrid'!G$57)^-$B53) -> 0 | I53: =(IF($B53<='Benzin - diesel - hybrid'!I$56,'Benzin - diesel - hybrid'!I$18+'Benzin - diesel - hybrid'!I$19+'Benzin - diesel - hybrid'!I$74+'Benzin - diesel - hybrid'!I$75,0)*'Benzin - diesel - hybrid'!I$49*(1+'Benzin - diesel - hybrid'!I$57)^-$B53) -> 0 | K53: =(IF($B53<='Benzin - diesel - hybrid'!K$56,'Benzin - diesel - hybrid'!K$18+'Benzin - diesel - hybrid'!K$19+'Benzin - diesel - hybrid'!K$74+'Benzin - diesel - hybrid'!K$75,0)*'Benzin - diesel - hybrid'!K$49*(1+'Benzin - diesel - hybrid'!K$57)^-$B53) -> 0 | M53: =(IF($B53<='Benzin - diesel - hybrid'!M$56,'Benzin - diesel - hybrid'!M$18+'Benzin - diesel - hybrid'!M$19+'Benzin - diesel - hybrid'!M$74+'Benzin - diesel - hybrid'!M$75,0)*'Benzin - diesel - hybrid'!M$49*(1+'Benzin - diesel - hybrid'!M$57)^-$B53) -> 0 | O53: =(IF($B53<='Benzin - diesel - hybrid'!O$56,'Benzin - diesel - hybrid'!O$18+'Benzin - diesel - hybrid'!O$19+'Benzin - diesel - hybrid'!O$74+'Benzin - diesel - hybrid'!O$75,0)*'Benzin - diesel - hybrid'!O$49*(1+'Benzin - diesel - hybrid'!O$57)^-$B53) -> 0 | Q53: =(IF($B53<='Benzin - diesel - hybrid'!Q$56,'Benzin - diesel - hybrid'!Q$18+'Benzin - diesel - hybrid'!Q$19+'Benzin - diesel - hybrid'!Q$74+'Benzin - diesel - hybrid'!Q$75,0)*'Benzin - diesel - hybrid'!Q$49*(1+'Benzin - diesel - hybrid'!Q$57)^-$B53) -> 0 | S53: =(IF($B53<='Benzin - diesel - hybrid'!S$56,'Benzin - diesel - hybrid'!S$18+'Benzin - diesel - hybrid'!S$19+'Benzin - diesel - hybrid'!S$74+'Benzin - diesel - hybrid'!S$75,0)*'Benzin - diesel - hybrid'!S$49*(1+'Benzin - diesel - hybrid'!S$57)^-$B53) -> 0 | U53: =(IF($B53<='Benzin - diesel - hybrid'!U$56,'Benzin - diesel - hybrid'!U$18+'Benzin - diesel - hybrid'!U$19+'Benzin - diesel - hybrid'!U$74+'Benzin - diesel - hybrid'!U$75,0)*'Benzin - diesel - hybrid'!U$49*(1+'Benzin - diesel - hybrid'!U$57)^-$B53) -> 0 | W53: =(IF($B53<='Benzin - diesel - hybrid'!W$56,'Benzin - diesel - hybrid'!W$18+'Benzin - diesel - hybrid'!W$19+'Benzin - diesel - hybrid'!W$74+'Benzin - diesel - hybrid'!W$75,0)*'Benzin - diesel - hybrid'!W$49*(1+'Benzin - diesel - hybrid'!W$57)^-$B53) -> 0
B54: 6 | C54: 6 | E54: =(IF($B54<='Benzin - diesel - hybrid'!E$56,'Benzin - diesel - hybrid'!E$18+'Benzin - diesel - hybrid'!E$19+'Benzin - diesel - hybrid'!E$74+'Benzin - diesel - hybrid'!E$75,0)*'Benzin - diesel - hybrid'!E$49*(1+'Benzin - diesel - hybrid'!E$57)^-$B54) -> 0 | G54: =(IF($B54<='Benzin - diesel - hybrid'!G$56,'Benzin - diesel - hybrid'!G$18+'Benzin - diesel - hybrid'!G$19+'Benzin - diesel - hybrid'!G$74+'Benzin - diesel - hybrid'!G$75,0)*'Benzin - diesel - hybrid'!G$49*(1+'Benzin - diesel - hybrid'!G$57)^-$B54) -> 0 | I54: =(IF($B54<='Benzin - diesel - hybrid'!I$56,'Benzin - diesel - hybrid'!I$18+'Benzin - diesel - hybrid'!I$19+'Benzin - diesel - hybrid'!I$74+'Benzin - diesel - hybrid'!I$75,0)*'Benzin - diesel - hybrid'!I$49*(1+'Benzin - diesel - hybrid'!I$57)^-$B54) -> 0 | K54: =(IF($B54<='Benzin - diesel - hybrid'!K$56,'Benzin - diesel - hybrid'!K$18+'Benzin - diesel - hybrid'!K$19+'Benzin - diesel - hybrid'!K$74+'Benzin - diesel - hybrid'!K$75,0)*'Benzin - diesel - hybrid'!K$49*(1+'Benzin - diesel - hybrid'!K$57)^-$B54) -> 0 | M54: =(IF($B54<='Benzin - diesel - hybrid'!M$56,'Benzin - diesel - hybrid'!M$18+'Benzin - diesel - hybrid'!M$19+'Benzin - diesel - hybrid'!M$74+'Benzin - diesel - hybrid'!M$75,0)*'Benzin - diesel - hybrid'!M$49*(1+'Benzin - diesel - hybrid'!M$57)^-$B54) -> 0 | O54: =(IF($B54<='Benzin - diesel - hybrid'!O$56,'Benzin - diesel - hybrid'!O$18+'Benzin - diesel - hybrid'!O$19+'Benzin - diesel - hybrid'!O$74+'Benzin - diesel - hybrid'!O$75,0)*'Benzin - diesel - hybrid'!O$49*(1+'Benzin - diesel - hybrid'!O$57)^-$B54) -> 0 | Q54: =(IF($B54<='Benzin - diesel - hybrid'!Q$56,'Benzin - diesel - hybrid'!Q$18+'Benzin - diesel - hybrid'!Q$19+'Benzin - diesel - hybrid'!Q$74+'Benzin - diesel - hybrid'!Q$75,0)*'Benzin - diesel - hybrid'!Q$49*(1+'Benzin - diesel - hybrid'!Q$57)^-$B54) -> 0 | S54: =(IF($B54<='Benzin - diesel - hybrid'!S$56,'Benzin - diesel - hybrid'!S$18+'Benzin - diesel - hybrid'!S$19+'Benzin - diesel - hybrid'!S$74+'Benzin - diesel - hybrid'!S$75,0)*'Benzin - diesel - hybrid'!S$49*(1+'Benzin - diesel - hybrid'!S$57)^-$B54) -> 0 | U54: =(IF($B54<='Benzin - diesel - hybrid'!U$56,'Benzin - diesel - hybrid'!U$18+'Benzin - diesel - hybrid'!U$19+'Benzin - diesel - hybrid'!U$74+'Benzin - diesel - hybrid'!U$75,0)*'Benzin - diesel - hybrid'!U$49*(1+'Benzin - diesel - hybrid'!U$57)^-$B54) -> 0 | W54: =(IF($B54<='Benzin - diesel - hybrid'!W$56,'Benzin - diesel - hybrid'!W$18+'Benzin - diesel - hybrid'!W$19+'Benzin - diesel - hybrid'!W$74+'Benzin - diesel - hybrid'!W$75,0)*'Benzin - diesel - hybrid'!W$49*(1+'Benzin - diesel - hybrid'!W$57)^-$B54) -> 0
B55: 7 | C55: 7 | E55: =(IF($B55<='Benzin - diesel - hybrid'!E$56,'Benzin - diesel - hybrid'!E$18+'Benzin - diesel - hybrid'!E$19+'Benzin - diesel - hybrid'!E$74+'Benzin - diesel - hybrid'!E$75,0)*'Benzin - diesel - hybrid'!E$49*(1+'Benzin - diesel - hybrid'!E$57)^-$B55) -> 0 | G55: =(IF($B55<='Benzin - diesel - hybrid'!G$56,'Benzin - diesel - hybrid'!G$18+'Benzin - diesel - hybrid'!G$19+'Benzin - diesel - hybrid'!G$74+'Benzin - diesel - hybrid'!G$75,0)*'Benzin - diesel - hybrid'!G$49*(1+'Benzin - diesel - hybrid'!G$57)^-$B55) -> 0 | I55: =(IF($B55<='Benzin - diesel - hybrid'!I$56,'Benzin - diesel - hybrid'!I$18+'Benzin - diesel - hybrid'!I$19+'Benzin - diesel - hybrid'!I$74+'Benzin - diesel - hybrid'!I$75,0)*'Benzin - diesel - hybrid'!I$49*(1+'Benzin - diesel - hybrid'!I$57)^-$B55) -> 0 | K55: =(IF($B55<='Benzin - diesel - hybrid'!K$56,'Benzin - diesel - hybrid'!K$18+'Benzin - diesel - hybrid'!K$19+'Benzin - diesel - hybrid'!K$74+'Benzin - diesel - hybrid'!K$75,0)*'Benzin - diesel - hybrid'!K$49*(1+'Benzin - diesel - hybrid'!K$57)^-$B55) -> 0 | M55: =(IF($B55<='Benzin - diesel - hybrid'!M$56,'Benzin - diesel - hybrid'!M$18+'Benzin - diesel - hybrid'!M$19+'Benzin - diesel - hybrid'!M$74+'Benzin - diesel - hybrid'!M$75,0)*'Benzin - diesel - hybrid'!M$49*(1+'Benzin - diesel - hybrid'!M$57)^-$B55) -> 0 | O55: =(IF($B55<='Benzin - diesel - hybrid'!O$56,'Benzin - diesel - hybrid'!O$18+'Benzin - diesel - hybrid'!O$19+'Benzin - diesel - hybrid'!O$74+'Benzin - diesel - hybrid'!O$75,0)*'Benzin - diesel - hybrid'!O$49*(1+'Benzin - diesel - hybrid'!O$57)^-$B55) -> 0 | Q55: =(IF($B55<='Benzin - diesel - hybrid'!Q$56,'Benzin - diesel - hybrid'!Q$18+'Benzin - diesel - hybrid'!Q$19+'Benzin - diesel - hybrid'!Q$74+'Benzin - diesel - hybrid'!Q$75,0)*'Benzin - diesel - hybrid'!Q$49*(1+'Benzin - diesel - hybrid'!Q$57)^-$B55) -> 0 | S55: =(IF($B55<='Benzin - diesel - hybrid'!S$56,'Benzin - diesel - hybrid'!S$18+'Benzin - diesel - hybrid'!S$19+'Benzin - diesel - hybrid'!S$74+'Benzin - diesel - hybrid'!S$75,0)*'Benzin - diesel - hybrid'!S$49*(1+'Benzin - diesel - hybrid'!S$57)^-$B55) -> 0 | U55: =(IF($B55<='Benzin - diesel - hybrid'!U$56,'Benzin - diesel - hybrid'!U$18+'Benzin - diesel - hybrid'!U$19+'Benzin - diesel - hybrid'!U$74+'Benzin - diesel - hybrid'!U$75,0)*'Benzin - diesel - hybrid'!U$49*(1+'Benzin - diesel - hybrid'!U$57)^-$B55) -> 0 | W55: =(IF($B55<='Benzin - diesel - hybrid'!W$56,'Benzin - diesel - hybrid'!W$18+'Benzin - diesel - hybrid'!W$19+'Benzin - diesel - hybrid'!W$74+'Benzin - diesel - hybrid'!W$75,0)*'Benzin - diesel - hybrid'!W$49*(1+'Benzin - diesel - hybrid'!W$57)^-$B55) -> 0
B56: 8 | C56: 8 | E56: =(IF($B56<='Benzin - diesel - hybrid'!E$56,'Benzin - diesel - hybrid'!E$18+'Benzin - diesel - hybrid'!E$19+'Benzin - diesel - hybrid'!E$74+'Benzin - diesel - hybrid'!E$75,0)*'Benzin - diesel - hybrid'!E$49*(1+'Benzin - diesel - hybrid'!E$57)^-$B56) -> 0 | G56: =(IF($B56<='Benzin - diesel - hybrid'!G$56,'Benzin - diesel - hybrid'!G$18+'Benzin - diesel - hybrid'!G$19+'Benzin - diesel - hybrid'!G$74+'Benzin - diesel - hybrid'!G$75,0)*'Benzin - diesel - hybrid'!G$49*(1+'Benzin - diesel - hybrid'!G$57)^-$B56) -> 0 | I56: =(IF($B56<='Benzin - diesel - hybrid'!I$56,'Benzin - diesel - hybrid'!I$18+'Benzin - diesel - hybrid'!I$19+'Benzin - diesel - hybrid'!I$74+'Benzin - diesel - hybrid'!I$75,0)*'Benzin - diesel - hybrid'!I$49*(1+'Benzin - diesel - hybrid'!I$57)^-$B56) -> 0 | K56: =(IF($B56<='Benzin - diesel - hybrid'!K$56,'Benzin - diesel - hybrid'!K$18+'Benzin - diesel - hybrid'!K$19+'Benzin - diesel - hybrid'!K$74+'Benzin - diesel - hybrid'!K$75,0)*'Benzin - diesel - hybrid'!K$49*(1+'Benzin - diesel - hybrid'!K$57)^-$B56) -> 0 | M56: =(IF($B56<='Benzin - diesel - hybrid'!M$56,'Benzin - diesel - hybrid'!M$18+'Benzin - diesel - hybrid'!M$19+'Benzin - diesel - hybrid'!M$74+'Benzin - diesel - hybrid'!M$75,0)*'Benzin - diesel - hybrid'!M$49*(1+'Benzin - diesel - hybrid'!M$57)^-$B56) -> 0 | O56: =(IF($B56<='Benzin - diesel - hybrid'!O$56,'Benzin - diesel - hybrid'!O$18+'Benzin - diesel - hybrid'!O$19+'Benzin - diesel - hybrid'!O$74+'Benzin - diesel - hybrid'!O$75,0)*'Benzin - diesel - hybrid'!O$49*(1+'Benzin - diesel - hybrid'!O$57)^-$B56) -> 0 | Q56: =(IF($B56<='Benzin - diesel - hybrid'!Q$56,'Benzin - diesel - hybrid'!Q$18+'Benzin - diesel - hybrid'!Q$19+'Benzin - diesel - hybrid'!Q$74+'Benzin - diesel - hybrid'!Q$75,0)*'Benzin - diesel - hybrid'!Q$49*(1+'Benzin - diesel - hybrid'!Q$57)^-$B56) -> 0 | S56: =(IF($B56<='Benzin - diesel - hybrid'!S$56,'Benzin - diesel - hybrid'!S$18+'Benzin - diesel - hybrid'!S$19+'Benzin - diesel - hybrid'!S$74+'Benzin - diesel - hybrid'!S$75,0)*'Benzin - diesel - hybrid'!S$49*(1+'Benzin - diesel - hybrid'!S$57)^-$B56) -> 0 | U56: =(IF($B56<='Benzin - diesel - hybrid'!U$56,'Benzin - diesel - hybrid'!U$18+'Benzin - diesel - hybrid'!U$19+'Benzin - diesel - hybrid'!U$74+'Benzin - diesel - hybrid'!U$75,0)*'Benzin - diesel - hybrid'!U$49*(1+'Benzin - diesel - hybrid'!U$57)^-$B56) -> 0 | W56: =(IF($B56<='Benzin - diesel - hybrid'!W$56,'Benzin - diesel - hybrid'!W$18+'Benzin - diesel - hybrid'!W$19+'Benzin - diesel - hybrid'!W$74+'Benzin - diesel - hybrid'!W$75,0)*'Benzin - diesel - hybrid'!W$49*(1+'Benzin - diesel - hybrid'!W$57)^-$B56) -> 0
B57: 9 | C57: 9 | E57: =(IF($B57<='Benzin - diesel - hybrid'!E$56,'Benzin - diesel - hybrid'!E$18+'Benzin - diesel - hybrid'!E$19+'Benzin - diesel - hybrid'!E$74+'Benzin - diesel - hybrid'!E$75,0)*'Benzin - diesel - hybrid'!E$49*(1+'Benzin - diesel - hybrid'!E$57)^-$B57) -> 0 | G57: =(IF($B57<='Benzin - diesel - hybrid'!G$56,'Benzin - diesel - hybrid'!G$18+'Benzin - diesel - hybrid'!G$19+'Benzin - diesel - hybrid'!G$74+'Benzin - diesel - hybrid'!G$75,0)*'Benzin - diesel - hybrid'!G$49*(1+'Benzin - diesel - hybrid'!G$57)^-$B57) -> 0 | I57: =(IF($B57<='Benzin - diesel - hybrid'!I$56,'Benzin - diesel - hybrid'!I$18+'Benzin - diesel - hybrid'!I$19+'Benzin - diesel - hybrid'!I$74+'Benzin - diesel - hybrid'!I$75,0)*'Benzin - diesel - hybrid'!I$49*(1+'Benzin - diesel - hybrid'!I$57)^-$B57) -> 0 | K57: =(IF($B57<='Benzin - diesel - hybrid'!K$56,'Benzin - diesel - hybrid'!K$18+'Benzin - diesel - hybrid'!K$19+'Benzin - diesel - hybrid'!K$74+'Benzin - diesel - hybrid'!K$75,0)*'Benzin - diesel - hybrid'!K$49*(1+'Benzin - diesel - hybrid'!K$57)^-$B57) -> 0 | M57: =(IF($B57<='Benzin - diesel - hybrid'!M$56,'Benzin - diesel - hybrid'!M$18+'Benzin - diesel - hybrid'!M$19+'Benzin - diesel - hybrid'!M$74+'Benzin - diesel - hybrid'!M$75,0)*'Benzin - diesel - hybrid'!M$49*(1+'Benzin - diesel - hybrid'!M$57)^-$B57) -> 0 | O57: =(IF($B57<='Benzin - diesel - hybrid'!O$56,'Benzin - diesel - hybrid'!O$18+'Benzin - diesel - hybrid'!O$19+'Benzin - diesel - hybrid'!O$74+'Benzin - diesel - hybrid'!O$75,0)*'Benzin - diesel - hybrid'!O$49*(1+'Benzin - diesel - hybrid'!O$57)^-$B57) -> 0 | Q57: =(IF($B57<='Benzin - diesel - hybrid'!Q$56,'Benzin - diesel - hybrid'!Q$18+'Benzin - diesel - hybrid'!Q$19+'Benzin - diesel - hybrid'!Q$74+'Benzin - diesel - hybrid'!Q$75,0)*'Benzin - diesel - hybrid'!Q$49*(1+'Benzin - diesel - hybrid'!Q$57)^-$B57) -> 0 | S57: =(IF($B57<='Benzin - diesel - hybrid'!S$56,'Benzin - diesel - hybrid'!S$18+'Benzin - diesel - hybrid'!S$19+'Benzin - diesel - hybrid'!S$74+'Benzin - diesel - hybrid'!S$75,0)*'Benzin - diesel - hybrid'!S$49*(1+'Benzin - diesel - hybrid'!S$57)^-$B57) -> 0 | U57: =(IF($B57<='Benzin - diesel - hybrid'!U$56,'Benzin - diesel - hybrid'!U$18+'Benzin - diesel - hybrid'!U$19+'Benzin - diesel - hybrid'!U$74+'Benzin - diesel - hybrid'!U$75,0)*'Benzin - diesel - hybrid'!U$49*(1+'Benzin - diesel - hybrid'!U$57)^-$B57) -> 0 | W57: =(IF($B57<='Benzin - diesel - hybrid'!W$56,'Benzin - diesel - hybrid'!W$18+'Benzin - diesel - hybrid'!W$19+'Benzin - diesel - hybrid'!W$74+'Benzin - diesel - hybrid'!W$75,0)*'Benzin - diesel - hybrid'!W$49*(1+'Benzin - diesel - hybrid'!W$57)^-$B57) -> 0
B58: 10 | C58: 10 | E58: =(IF($B58<='Benzin - diesel - hybrid'!E$56,'Benzin - diesel - hybrid'!E$18+'Benzin - diesel - hybrid'!E$19+'Benzin - diesel - hybrid'!E$74+'Benzin - diesel - hybrid'!E$75,0)*'Benzin - diesel - hybrid'!E$49*(1+'Benzin - diesel - hybrid'!E$57)^-$B58) -> 0 | G58: =(IF($B58<='Benzin - diesel - hybrid'!G$56,'Benzin - diesel - hybrid'!G$18+'Benzin - diesel - hybrid'!G$19+'Benzin - diesel - hybrid'!G$74+'Benzin - diesel - hybrid'!G$75,0)*'Benzin - diesel - hybrid'!G$49*(1+'Benzin - diesel - hybrid'!G$57)^-$B58) -> 0 | I58: =(IF($B58<='Benzin - diesel - hybrid'!I$56,'Benzin - diesel - hybrid'!I$18+'Benzin - diesel - hybrid'!I$19+'Benzin - diesel - hybrid'!I$74+'Benzin - diesel - hybrid'!I$75,0)*'Benzin - diesel - hybrid'!I$49*(1+'Benzin - diesel - hybrid'!I$57)^-$B58) -> 0 | K58: =(IF($B58<='Benzin - diesel - hybrid'!K$56,'Benzin - diesel - hybrid'!K$18+'Benzin - diesel - hybrid'!K$19+'Benzin - diesel - hybrid'!K$74+'Benzin - diesel - hybrid'!K$75,0)*'Benzin - diesel - hybrid'!K$49*(1+'Benzin - diesel - hybrid'!K$57)^-$B58) -> 0 | M58: =(IF($B58<='Benzin - diesel - hybrid'!M$56,'Benzin - diesel - hybrid'!M$18+'Benzin - diesel - hybrid'!M$19+'Benzin - diesel - hybrid'!M$74+'Benzin - diesel - hybrid'!M$75,0)*'Benzin - diesel - hybrid'!M$49*(1+'Benzin - diesel - hybrid'!M$57)^-$B58) -> 0 | O58: =(IF($B58<='Benzin - diesel - hybrid'!O$56,'Benzin - diesel - hybrid'!O$18+'Benzin - diesel - hybrid'!O$19+'Benzin - diesel - hybrid'!O$74+'Benzin - diesel - hybrid'!O$75,0)*'Benzin - diesel - hybrid'!O$49*(1+'Benzin - diesel - hybrid'!O$57)^-$B58) -> 0 | Q58: =(IF($B58<='Benzin - diesel - hybrid'!Q$56,'Benzin - diesel - hybrid'!Q$18+'Benzin - diesel - hybrid'!Q$19+'Benzin - diesel - hybrid'!Q$74+'Benzin - diesel - hybrid'!Q$75,0)*'Benzin - diesel - hybrid'!Q$49*(1+'Benzin - diesel - hybrid'!Q$57)^-$B58) -> 0 | S58: =(IF($B58<='Benzin - diesel - hybrid'!S$56,'Benzin - diesel - hybrid'!S$18+'Benzin - diesel - hybrid'!S$19+'Benzin - diesel - hybrid'!S$74+'Benzin - diesel - hybrid'!S$75,0)*'Benzin - diesel - hybrid'!S$49*(1+'Benzin - diesel - hybrid'!S$57)^-$B58) -> 0 | U58: =(IF($B58<='Benzin - diesel - hybrid'!U$56,'Benzin - diesel - hybrid'!U$18+'Benzin - diesel - hybrid'!U$19+'Benzin - diesel - hybrid'!U$74+'Benzin - diesel - hybrid'!U$75,0)*'Benzin - diesel - hybrid'!U$49*(1+'Benzin - diesel - hybrid'!U$57)^-$B58) -> 0 | W58: =(IF($B58<='Benzin - diesel - hybrid'!W$56,'Benzin - diesel - hybrid'!W$18+'Benzin - diesel - hybrid'!W$19+'Benzin - diesel - hybrid'!W$74+'Benzin - diesel - hybrid'!W$75,0)*'Benzin - diesel - hybrid'!W$49*(1+'Benzin - diesel - hybrid'!W$57)^-$B58) -> 0
B59: 11 | C59: 11 | E59: =(IF($B59<='Benzin - diesel - hybrid'!E$56,'Benzin - diesel - hybrid'!E$18+'Benzin - diesel - hybrid'!E$19+'Benzin - diesel - hybrid'!E$74+'Benzin - diesel - hybrid'!E$75,0)*'Benzin - diesel - hybrid'!E$49*(1+'Benzin - diesel - hybrid'!E$57)^-$B59) -> 0 | G59: =(IF($B59<='Benzin - diesel - hybrid'!G$56,'Benzin - diesel - hybrid'!G$18+'Benzin - diesel - hybrid'!G$19+'Benzin - diesel - hybrid'!G$74+'Benzin - diesel - hybrid'!G$75,0)*'Benzin - diesel - hybrid'!G$49*(1+'Benzin - diesel - hybrid'!G$57)^-$B59) -> 0 | I59: =(IF($B59<='Benzin - diesel - hybrid'!I$56,'Benzin - diesel - hybrid'!I$18+'Benzin - diesel - hybrid'!I$19+'Benzin - diesel - hybrid'!I$74+'Benzin - diesel - hybrid'!I$75,0)*'Benzin - diesel - hybrid'!I$49*(1+'Benzin - diesel - hybrid'!I$57)^-$B59) -> 0 | K59: =(IF($B59<='Benzin - diesel - hybrid'!K$56,'Benzin - diesel - hybrid'!K$18+'Benzin - diesel - hybrid'!K$19+'Benzin - diesel - hybrid'!K$74+'Benzin - diesel - hybrid'!K$75,0)*'Benzin - diesel - hybrid'!K$49*(1+'Benzin - diesel - hybrid'!K$57)^-$B59) -> 0 | M59: =(IF($B59<='Benzin - diesel - hybrid'!M$56,'Benzin - diesel - hybrid'!M$18+'Benzin - diesel - hybrid'!M$19+'Benzin - diesel - hybrid'!M$74+'Benzin - diesel - hybrid'!M$75,0)*'Benzin - diesel - hybrid'!M$49*(1+'Benzin - diesel - hybrid'!M$57)^-$B59) -> 0 | O59: =(IF($B59<='Benzin - diesel - hybrid'!O$56,'Benzin - diesel - hybrid'!O$18+'Benzin - diesel - hybrid'!O$19+'Benzin - diesel - hybrid'!O$74+'Benzin - diesel - hybrid'!O$75,0)*'Benzin - diesel - hybrid'!O$49*(1+'Benzin - diesel - hybrid'!O$57)^-$B59) -> 0 | Q59: =(IF($B59<='Benzin - diesel - hybrid'!Q$56,'Benzin - diesel - hybrid'!Q$18+'Benzin - diesel - hybrid'!Q$19+'Benzin - diesel - hybrid'!Q$74+'Benzin - diesel - hybrid'!Q$75,0)*'Benzin - diesel - hybrid'!Q$49*(1+'Benzin - diesel - hybrid'!Q$57)^-$B59) -> 0 | S59: =(IF($B59<='Benzin - diesel - hybrid'!S$56,'Benzin - diesel - hybrid'!S$18+'Benzin - diesel - hybrid'!S$19+'Benzin - diesel - hybrid'!S$74+'Benzin - diesel - hybrid'!S$75,0)*'Benzin - diesel - hybrid'!S$49*(1+'Benzin - diesel - hybrid'!S$57)^-$B59) -> 0 | U59: =(IF($B59<='Benzin - diesel - hybrid'!U$56,'Benzin - diesel - hybrid'!U$18+'Benzin - diesel - hybrid'!U$19+'Benzin - diesel - hybrid'!U$74+'Benzin - diesel - hybrid'!U$75,0)*'Benzin - diesel - hybrid'!U$49*(1+'Benzin - diesel - hybrid'!U$57)^-$B59) -> 0 | W59: =(IF($B59<='Benzin - diesel - hybrid'!W$56,'Benzin - diesel - hybrid'!W$18+'Benzin - diesel - hybrid'!W$19+'Benzin - diesel - hybrid'!W$74+'Benzin - diesel - hybrid'!W$75,0)*'Benzin - diesel - hybrid'!W$49*(1+'Benzin - diesel - hybrid'!W$57)^-$B59) -> 0
B60: 12 | C60: 12 | E60: =(IF($B60<='Benzin - diesel - hybrid'!E$56,'Benzin - diesel - hybrid'!E$18+'Benzin - diesel - hybrid'!E$19+'Benzin - diesel - hybrid'!E$74+'Benzin - diesel - hybrid'!E$75,0)*'Benzin - diesel - hybrid'!E$49*(1+'Benzin - diesel - hybrid'!E$57)^-$B60) -> 0 | G60: =(IF($B60<='Benzin - diesel - hybrid'!G$56,'Benzin - diesel - hybrid'!G$18+'Benzin - diesel - hybrid'!G$19+'Benzin - diesel - hybrid'!G$74+'Benzin - diesel - hybrid'!G$75,0)*'Benzin - diesel - hybrid'!G$49*(1+'Benzin - diesel - hybrid'!G$57)^-$B60) -> 0 | I60: =(IF($B60<='Benzin - diesel - hybrid'!I$56,'Benzin - diesel - hybrid'!I$18+'Benzin - diesel - hybrid'!I$19+'Benzin - diesel - hybrid'!I$74+'Benzin - diesel - hybrid'!I$75,0)*'Benzin - diesel - hybrid'!I$49*(1+'Benzin - diesel - hybrid'!I$57)^-$B60) -> 0 | K60: =(IF($B60<='Benzin - diesel - hybrid'!K$56,'Benzin - diesel - hybrid'!K$18+'Benzin - diesel - hybrid'!K$19+'Benzin - diesel - hybrid'!K$74+'Benzin - diesel - hybrid'!K$75,0)*'Benzin - diesel - hybrid'!K$49*(1+'Benzin - diesel - hybrid'!K$57)^-$B60) -> 0 | M60: =(IF($B60<='Benzin - diesel - hybrid'!M$56,'Benzin - diesel - hybrid'!M$18+'Benzin - diesel - hybrid'!M$19+'Benzin - diesel - hybrid'!M$74+'Benzin - diesel - hybrid'!M$75,0)*'Benzin - diesel - hybrid'!M$49*(1+'Benzin - diesel - hybrid'!M$57)^-$B60) -> 0 | O60: =(IF($B60<='Benzin - diesel - hybrid'!O$56,'Benzin - diesel - hybrid'!O$18+'Benzin - diesel - hybrid'!O$19+'Benzin - diesel - hybrid'!O$74+'Benzin - diesel - hybrid'!O$75,0)*'Benzin - diesel - hybrid'!O$49*(1+'Benzin - diesel - hybrid'!O$57)^-$B60) -> 0 | Q60: =(IF($B60<='Benzin - diesel - hybrid'!Q$56,'Benzin - diesel - hybrid'!Q$18+'Benzin - diesel - hybrid'!Q$19+'Benzin - diesel - hybrid'!Q$74+'Benzin - diesel - hybrid'!Q$75,0)*'Benzin - diesel - hybrid'!Q$49*(1+'Benzin - diesel - hybrid'!Q$57)^-$B60) -> 0 | S60: =(IF($B60<='Benzin - diesel - hybrid'!S$56,'Benzin - diesel - hybrid'!S$18+'Benzin - diesel - hybrid'!S$19+'Benzin - diesel - hybrid'!S$74+'Benzin - diesel - hybrid'!S$75,0)*'Benzin - diesel - hybrid'!S$49*(1+'Benzin - diesel - hybrid'!S$57)^-$B60) -> 0 | U60: =(IF($B60<='Benzin - diesel - hybrid'!U$56,'Benzin - diesel - hybrid'!U$18+'Benzin - diesel - hybrid'!U$19+'Benzin - diesel - hybrid'!U$74+'Benzin - diesel - hybrid'!U$75,0)*'Benzin - diesel - hybrid'!U$49*(1+'Benzin - diesel - hybrid'!U$57)^-$B60) -> 0 | W60: =(IF($B60<='Benzin - diesel - hybrid'!W$56,'Benzin - diesel - hybrid'!W$18+'Benzin - diesel - hybrid'!W$19+'Benzin - diesel - hybrid'!W$74+'Benzin - diesel - hybrid'!W$75,0)*'Benzin - diesel - hybrid'!W$49*(1+'Benzin - diesel - hybrid'!W$57)^-$B60) -> 0
B61: 13 | C61: 13 | E61: =(IF($B61<='Benzin - diesel - hybrid'!E$56,'Benzin - diesel - hybrid'!E$18+'Benzin - diesel - hybrid'!E$19+'Benzin - diesel - hybrid'!E$74+'Benzin - diesel - hybrid'!E$75,0)*'Benzin - diesel - hybrid'!E$49*(1+'Benzin - diesel - hybrid'!E$57)^-$B61) -> 0 | G61: =(IF($B61<='Benzin - diesel - hybrid'!G$56,'Benzin - diesel - hybrid'!G$18+'Benzin - diesel - hybrid'!G$19+'Benzin - diesel - hybrid'!G$74+'Benzin - diesel - hybrid'!G$75,0)*'Benzin - diesel - hybrid'!G$49*(1+'Benzin - diesel - hybrid'!G$57)^-$B61) -> 0 | I61: =(IF($B61<='Benzin - diesel - hybrid'!I$56,'Benzin - diesel - hybrid'!I$18+'Benzin - diesel - hybrid'!I$19+'Benzin - diesel - hybrid'!I$74+'Benzin - diesel - hybrid'!I$75,0)*'Benzin - diesel - hybrid'!I$49*(1+'Benzin - diesel - hybrid'!I$57)^-$B61) -> 0 | K61: =(IF($B61<='Benzin - diesel - hybrid'!K$56,'Benzin - diesel - hybrid'!K$18+'Benzin - diesel - hybrid'!K$19+'Benzin - diesel - hybrid'!K$74+'Benzin - diesel - hybrid'!K$75,0)*'Benzin - diesel - hybrid'!K$49*(1+'Benzin - diesel - hybrid'!K$57)^-$B61) -> 0 | M61: =(IF($B61<='Benzin - diesel - hybrid'!M$56,'Benzin - diesel - hybrid'!M$18+'Benzin - diesel - hybrid'!M$19+'Benzin - diesel - hybrid'!M$74+'Benzin - diesel - hybrid'!M$75,0)*'Benzin - diesel - hybrid'!M$49*(1+'Benzin - diesel - hybrid'!M$57)^-$B61) -> 0 | O61: =(IF($B61<='Benzin - diesel - hybrid'!O$56,'Benzin - diesel - hybrid'!O$18+'Benzin - diesel - hybrid'!O$19+'Benzin - diesel - hybrid'!O$74+'Benzin - diesel - hybrid'!O$75,0)*'Benzin - diesel - hybrid'!O$49*(1+'Benzin - diesel - hybrid'!O$57)^-$B61) -> 0 | Q61: =(IF($B61<='Benzin - diesel - hybrid'!Q$56,'Benzin - diesel - hybrid'!Q$18+'Benzin - diesel - hybrid'!Q$19+'Benzin - diesel - hybrid'!Q$74+'Benzin - diesel - hybrid'!Q$75,0)*'Benzin - diesel - hybrid'!Q$49*(1+'Benzin - diesel - hybrid'!Q$57)^-$B61) -> 0 | S61: =(IF($B61<='Benzin - diesel - hybrid'!S$56,'Benzin - diesel - hybrid'!S$18+'Benzin - diesel - hybrid'!S$19+'Benzin - diesel - hybrid'!S$74+'Benzin - diesel - hybrid'!S$75,0)*'Benzin - diesel - hybrid'!S$49*(1+'Benzin - diesel - hybrid'!S$57)^-$B61) -> 0 | U61: =(IF($B61<='Benzin - diesel - hybrid'!U$56,'Benzin - diesel - hybrid'!U$18+'Benzin - diesel - hybrid'!U$19+'Benzin - diesel - hybrid'!U$74+'Benzin - diesel - hybrid'!U$75,0)*'Benzin - diesel - hybrid'!U$49*(1+'Benzin - diesel - hybrid'!U$57)^-$B61) -> 0 | W61: =(IF($B61<='Benzin - diesel - hybrid'!W$56,'Benzin - diesel - hybrid'!W$18+'Benzin - diesel - hybrid'!W$19+'Benzin - diesel - hybrid'!W$74+'Benzin - diesel - hybrid'!W$75,0)*'Benzin - diesel - hybrid'!W$49*(1+'Benzin - diesel - hybrid'!W$57)^-$B61) -> 0
B62: 14 | C62: 14 | E62: =(IF($B62<='Benzin - diesel - hybrid'!E$56,'Benzin - diesel - hybrid'!E$18+'Benzin - diesel - hybrid'!E$19+'Benzin - diesel - hybrid'!E$74+'Benzin - diesel - hybrid'!E$75,0)*'Benzin - diesel - hybrid'!E$49*(1+'Benzin - diesel - hybrid'!E$57)^-$B62) -> 0 | G62: =(IF($B62<='Benzin - diesel - hybrid'!G$56,'Benzin - diesel - hybrid'!G$18+'Benzin - diesel - hybrid'!G$19+'Benzin - diesel - hybrid'!G$74+'Benzin - diesel - hybrid'!G$75,0)*'Benzin - diesel - hybrid'!G$49*(1+'Benzin - diesel - hybrid'!G$57)^-$B62) -> 0 | I62: =(IF($B62<='Benzin - diesel - hybrid'!I$56,'Benzin - diesel - hybrid'!I$18+'Benzin - diesel - hybrid'!I$19+'Benzin - diesel - hybrid'!I$74+'Benzin - diesel - hybrid'!I$75,0)*'Benzin - diesel - hybrid'!I$49*(1+'Benzin - diesel - hybrid'!I$57)^-$B62) -> 0 | K62: =(IF($B62<='Benzin - diesel - hybrid'!K$56,'Benzin - diesel - hybrid'!K$18+'Benzin - diesel - hybrid'!K$19+'Benzin - diesel - hybrid'!K$74+'Benzin - diesel - hybrid'!K$75,0)*'Benzin - diesel - hybrid'!K$49*(1+'Benzin - diesel - hybrid'!K$57)^-$B62) -> 0 | M62: =(IF($B62<='Benzin - diesel - hybrid'!M$56,'Benzin - diesel - hybrid'!M$18+'Benzin - diesel - hybrid'!M$19+'Benzin - diesel - hybrid'!M$74+'Benzin - diesel - hybrid'!M$75,0)*'Benzin - diesel - hybrid'!M$49*(1+'Benzin - diesel - hybrid'!M$57)^-$B62) -> 0 | O62: =(IF($B62<='Benzin - diesel - hybrid'!O$56,'Benzin - diesel - hybrid'!O$18+'Benzin - diesel - hybrid'!O$19+'Benzin - diesel - hybrid'!O$74+'Benzin - diesel - hybrid'!O$75,0)*'Benzin - diesel - hybrid'!O$49*(1+'Benzin - diesel - hybrid'!O$57)^-$B62) -> 0 | Q62: =(IF($B62<='Benzin - diesel - hybrid'!Q$56,'Benzin - diesel - hybrid'!Q$18+'Benzin - diesel - hybrid'!Q$19+'Benzin - diesel - hybrid'!Q$74+'Benzin - diesel - hybrid'!Q$75,0)*'Benzin - diesel - hybrid'!Q$49*(1+'Benzin - diesel - hybrid'!Q$57)^-$B62) -> 0 | S62: =(IF($B62<='Benzin - diesel - hybrid'!S$56,'Benzin - diesel - hybrid'!S$18+'Benzin - diesel - hybrid'!S$19+'Benzin - diesel - hybrid'!S$74+'Benzin - diesel - hybrid'!S$75,0)*'Benzin - diesel - hybrid'!S$49*(1+'Benzin - diesel - hybrid'!S$57)^-$B62) -> 0 | U62: =(IF($B62<='Benzin - diesel - hybrid'!U$56,'Benzin - diesel - hybrid'!U$18+'Benzin - diesel - hybrid'!U$19+'Benzin - diesel - hybrid'!U$74+'Benzin - diesel - hybrid'!U$75,0)*'Benzin - diesel - hybrid'!U$49*(1+'Benzin - diesel - hybrid'!U$57)^-$B62) -> 0 | W62: =(IF($B62<='Benzin - diesel - hybrid'!W$56,'Benzin - diesel - hybrid'!W$18+'Benzin - diesel - hybrid'!W$19+'Benzin - diesel - hybrid'!W$74+'Benzin - diesel - hybrid'!W$75,0)*'Benzin - diesel - hybrid'!W$49*(1+'Benzin - diesel - hybrid'!W$57)^-$B62) -> 0
B63: 15 | C63: 15 | E63: =(IF($B63<='Benzin - diesel - hybrid'!E$56,'Benzin - diesel - hybrid'!E$18+'Benzin - diesel - hybrid'!E$19+'Benzin - diesel - hybrid'!E$74+'Benzin - diesel - hybrid'!E$75,0)*'Benzin - diesel - hybrid'!E$49*(1+'Benzin - diesel - hybrid'!E$57)^-$B63) -> 0 | G63: =(IF($B63<='Benzin - diesel - hybrid'!G$56,'Benzin - diesel - hybrid'!G$18+'Benzin - diesel - hybrid'!G$19+'Benzin - diesel - hybrid'!G$74+'Benzin - diesel - hybrid'!G$75,0)*'Benzin - diesel - hybrid'!G$49*(1+'Benzin - diesel - hybrid'!G$57)^-$B63) -> 0 | I63: =(IF($B63<='Benzin - diesel - hybrid'!I$56,'Benzin - diesel - hybrid'!I$18+'Benzin - diesel - hybrid'!I$19+'Benzin - diesel - hybrid'!I$74+'Benzin - diesel - hybrid'!I$75,0)*'Benzin - diesel - hybrid'!I$49*(1+'Benzin - diesel - hybrid'!I$57)^-$B63) -> 0 | K63: =(IF($B63<='Benzin - diesel - hybrid'!K$56,'Benzin - diesel - hybrid'!K$18+'Benzin - diesel - hybrid'!K$19+'Benzin - diesel - hybrid'!K$74+'Benzin - diesel - hybrid'!K$75,0)*'Benzin - diesel - hybrid'!K$49*(1+'Benzin - diesel - hybrid'!K$57)^-$B63) -> 0 | M63: =(IF($B63<='Benzin - diesel - hybrid'!M$56,'Benzin - diesel - hybrid'!M$18+'Benzin - diesel - hybrid'!M$19+'Benzin - diesel - hybrid'!M$74+'Benzin - diesel - hybrid'!M$75,0)*'Benzin - diesel - hybrid'!M$49*(1+'Benzin - diesel - hybrid'!M$57)^-$B63) -> 0 | O63: =(IF($B63<='Benzin - diesel - hybrid'!O$56,'Benzin - diesel - hybrid'!O$18+'Benzin - diesel - hybrid'!O$19+'Benzin - diesel - hybrid'!O$74+'Benzin - diesel - hybrid'!O$75,0)*'Benzin - diesel - hybrid'!O$49*(1+'Benzin - diesel - hybrid'!O$57)^-$B63) -> 0 | Q63: =(IF($B63<='Benzin - diesel - hybrid'!Q$56,'Benzin - diesel - hybrid'!Q$18+'Benzin - diesel - hybrid'!Q$19+'Benzin - diesel - hybrid'!Q$74+'Benzin - diesel - hybrid'!Q$75,0)*'Benzin - diesel - hybrid'!Q$49*(1+'Benzin - diesel - hybrid'!Q$57)^-$B63) -> 0 | S63: =(IF($B63<='Benzin - diesel - hybrid'!S$56,'Benzin - diesel - hybrid'!S$18+'Benzin - diesel - hybrid'!S$19+'Benzin - diesel - hybrid'!S$74+'Benzin - diesel - hybrid'!S$75,0)*'Benzin - diesel - hybrid'!S$49*(1+'Benzin - diesel - hybrid'!S$57)^-$B63) -> 0 | U63: =(IF($B63<='Benzin - diesel - hybrid'!U$56,'Benzin - diesel - hybrid'!U$18+'Benzin - diesel - hybrid'!U$19+'Benzin - diesel - hybrid'!U$74+'Benzin - diesel - hybrid'!U$75,0)*'Benzin - diesel - hybrid'!U$49*(1+'Benzin - diesel - hybrid'!U$57)^-$B63) -> 0 | W63: =(IF($B63<='Benzin - diesel - hybrid'!W$56,'Benzin - diesel - hybrid'!W$18+'Benzin - diesel - hybrid'!W$19+'Benzin - diesel - hybrid'!W$74+'Benzin - diesel - hybrid'!W$75,0)*'Benzin - diesel - hybrid'!W$49*(1+'Benzin - diesel - hybrid'!W$57)^-$B63) -> 0
B64: 16 | C64: =B64 -> 16 | E64: =(IF($B64<='Benzin - diesel - hybrid'!E$56,'Benzin - diesel - hybrid'!E$18+'Benzin - diesel - hybrid'!E$19+'Benzin - diesel - hybrid'!E$74+'Benzin - diesel - hybrid'!E$75,0)*'Benzin - diesel - hybrid'!E$49*(1+'Benzin - diesel - hybrid'!E$57)^-$B64) -> 0 | G64: =(IF($B64<='Benzin - diesel - hybrid'!G$56,'Benzin - diesel - hybrid'!G$18+'Benzin - diesel - hybrid'!G$19+'Benzin - diesel - hybrid'!G$74+'Benzin - diesel - hybrid'!G$75,0)*'Benzin - diesel - hybrid'!G$49*(1+'Benzin - diesel - hybrid'!G$57)^-$B64) -> 0 | I64: =(IF($B64<='Benzin - diesel - hybrid'!I$56,'Benzin - diesel - hybrid'!I$18+'Benzin - diesel - hybrid'!I$19+'Benzin - diesel - hybrid'!I$74+'Benzin - diesel - hybrid'!I$75,0)*'Benzin - diesel - hybrid'!I$49*(1+'Benzin - diesel - hybrid'!I$57)^-$B64) -> 0 | K64: =(IF($B64<='Benzin - diesel - hybrid'!K$56,'Benzin - diesel - hybrid'!K$18+'Benzin - diesel - hybrid'!K$19+'Benzin - diesel - hybrid'!K$74+'Benzin - diesel - hybrid'!K$75,0)*'Benzin - diesel - hybrid'!K$49*(1+'Benzin - diesel - hybrid'!K$57)^-$B64) -> 0 | M64: =(IF($B64<='Benzin - diesel - hybrid'!M$56,'Benzin - diesel - hybrid'!M$18+'Benzin - diesel - hybrid'!M$19+'Benzin - diesel - hybrid'!M$74+'Benzin - diesel - hybrid'!M$75,0)*'Benzin - diesel - hybrid'!M$49*(1+'Benzin - diesel - hybrid'!M$57)^-$B64) -> 0 | O64: =(IF($B64<='Benzin - diesel - hybrid'!O$56,'Benzin - diesel - hybrid'!O$18+'Benzin - diesel - hybrid'!O$19+'Benzin - diesel - hybrid'!O$74+'Benzin - diesel - hybrid'!O$75,0)*'Benzin - diesel - hybrid'!O$49*(1+'Benzin - diesel - hybrid'!O$57)^-$B64) -> 0 | Q64: =(IF($B64<='Benzin - diesel - hybrid'!Q$56,'Benzin - diesel - hybrid'!Q$18+'Benzin - diesel - hybrid'!Q$19+'Benzin - diesel - hybrid'!Q$74+'Benzin - diesel - hybrid'!Q$75,0)*'Benzin - diesel - hybrid'!Q$49*(1+'Benzin - diesel - hybrid'!Q$57)^-$B64) -> 0 | S64: =(IF($B64<='Benzin - diesel - hybrid'!S$56,'Benzin - diesel - hybrid'!S$18+'Benzin - diesel - hybrid'!S$19+'Benzin - diesel - hybrid'!S$74+'Benzin - diesel - hybrid'!S$75,0)*'Benzin - diesel - hybrid'!S$49*(1+'Benzin - diesel - hybrid'!S$57)^-$B64) -> 0 | U64: =(IF($B64<='Benzin - diesel - hybrid'!U$56,'Benzin - diesel - hybrid'!U$18+'Benzin - diesel - hybrid'!U$19+'Benzin - diesel - hybrid'!U$74+'Benzin - diesel - hybrid'!U$75,0)*'Benzin - diesel - hybrid'!U$49*(1+'Benzin - diesel - hybrid'!U$57)^-$B64) -> 0 | W64: =(IF($B64<='Benzin - diesel - hybrid'!W$56,'Benzin - diesel - hybrid'!W$18+'Benzin - diesel - hybrid'!W$19+'Benzin - diesel - hybrid'!W$74+'Benzin - diesel - hybrid'!W$75,0)*'Benzin - diesel - hybrid'!W$49*(1+'Benzin - diesel - hybrid'!W$57)^-$B64) -> 0
B65: 17 | C65: 17 | E65: =(IF($B65<='Benzin - diesel - hybrid'!E$56,'Benzin - diesel - hybrid'!E$18+'Benzin - diesel - hybrid'!E$19+'Benzin - diesel - hybrid'!E$74+'Benzin - diesel - hybrid'!E$75,0)*'Benzin - diesel - hybrid'!E$49*(1+'Benzin - diesel - hybrid'!E$57)^-$B65) -> 0 | G65: =(IF($B65<='Benzin - diesel - hybrid'!G$56,'Benzin - diesel - hybrid'!G$18+'Benzin - diesel - hybrid'!G$19+'Benzin - diesel - hybrid'!G$74+'Benzin - diesel - hybrid'!G$75,0)*'Benzin - diesel - hybrid'!G$49*(1+'Benzin - diesel - hybrid'!G$57)^-$B65) -> 0 | I65: =(IF($B65<='Benzin - diesel - hybrid'!I$56,'Benzin - diesel - hybrid'!I$18+'Benzin - diesel - hybrid'!I$19+'Benzin - diesel - hybrid'!I$74+'Benzin - diesel - hybrid'!I$75,0)*'Benzin - diesel - hybrid'!I$49*(1+'Benzin - diesel - hybrid'!I$57)^-$B65) -> 0 | K65: =(IF($B65<='Benzin - diesel - hybrid'!K$56,'Benzin - diesel - hybrid'!K$18+'Benzin - diesel - hybrid'!K$19+'Benzin - diesel - hybrid'!K$74+'Benzin - diesel - hybrid'!K$75,0)*'Benzin - diesel - hybrid'!K$49*(1+'Benzin - diesel - hybrid'!K$57)^-$B65) -> 0 | M65: =(IF($B65<='Benzin - diesel - hybrid'!M$56,'Benzin - diesel - hybrid'!M$18+'Benzin - diesel - hybrid'!M$19+'Benzin - diesel - hybrid'!M$74+'Benzin - diesel - hybrid'!M$75,0)*'Benzin - diesel - hybrid'!M$49*(1+'Benzin - diesel - hybrid'!M$57)^-$B65) -> 0 | O65: =(IF($B65<='Benzin - diesel - hybrid'!O$56,'Benzin - diesel - hybrid'!O$18+'Benzin - diesel - hybrid'!O$19+'Benzin - diesel - hybrid'!O$74+'Benzin - diesel - hybrid'!O$75,0)*'Benzin - diesel - hybrid'!O$49*(1+'Benzin - diesel - hybrid'!O$57)^-$B65) -> 0 | Q65: =(IF($B65<='Benzin - diesel - hybrid'!Q$56,'Benzin - diesel - hybrid'!Q$18+'Benzin - diesel - hybrid'!Q$19+'Benzin - diesel - hybrid'!Q$74+'Benzin - diesel - hybrid'!Q$75,0)*'Benzin - diesel - hybrid'!Q$49*(1+'Benzin - diesel - hybrid'!Q$57)^-$B65) -> 0 | S65: =(IF($B65<='Benzin - diesel - hybrid'!S$56,'Benzin - diesel - hybrid'!S$18+'Benzin - diesel - hybrid'!S$19+'Benzin - diesel - hybrid'!S$74+'Benzin - diesel - hybrid'!S$75,0)*'Benzin - diesel - hybrid'!S$49*(1+'Benzin - diesel - hybrid'!S$57)^-$B65) -> 0 | U65: =(IF($B65<='Benzin - diesel - hybrid'!U$56,'Benzin - diesel - hybrid'!U$18+'Benzin - diesel - hybrid'!U$19+'Benzin - diesel - hybrid'!U$74+'Benzin - diesel - hybrid'!U$75,0)*'Benzin - diesel - hybrid'!U$49*(1+'Benzin - diesel - hybrid'!U$57)^-$B65) -> 0 | W65: =(IF($B65<='Benzin - diesel - hybrid'!W$56,'Benzin - diesel - hybrid'!W$18+'Benzin - diesel - hybrid'!W$19+'Benzin - diesel - hybrid'!W$74+'Benzin - diesel - hybrid'!W$75,0)*'Benzin - diesel - hybrid'!W$49*(1+'Benzin - diesel - hybrid'!W$57)^-$B65) -> 0
B66: 18 | C66: 18 | E66: =(IF($B66<='Benzin - diesel - hybrid'!E$56,'Benzin - diesel - hybrid'!E$18+'Benzin - diesel - hybrid'!E$19+'Benzin - diesel - hybrid'!E$74+'Benzin - diesel - hybrid'!E$75,0)*'Benzin - diesel - hybrid'!E$49*(1+'Benzin - diesel - hybrid'!E$57)^-$B66) -> 0 | G66: =(IF($B66<='Benzin - diesel - hybrid'!G$56,'Benzin - diesel - hybrid'!G$18+'Benzin - diesel - hybrid'!G$19+'Benzin - diesel - hybrid'!G$74+'Benzin - diesel - hybrid'!G$75,0)*'Benzin - diesel - hybrid'!G$49*(1+'Benzin - diesel - hybrid'!G$57)^-$B66) -> 0 | I66: =(IF($B66<='Benzin - diesel - hybrid'!I$56,'Benzin - diesel - hybrid'!I$18+'Benzin - diesel - hybrid'!I$19+'Benzin - diesel - hybrid'!I$74+'Benzin - diesel - hybrid'!I$75,0)*'Benzin - diesel - hybrid'!I$49*(1+'Benzin - diesel - hybrid'!I$57)^-$B66) -> 0 | K66: =(IF($B66<='Benzin - diesel - hybrid'!K$56,'Benzin - diesel - hybrid'!K$18+'Benzin - diesel - hybrid'!K$19+'Benzin - diesel - hybrid'!K$74+'Benzin - diesel - hybrid'!K$75,0)*'Benzin - diesel - hybrid'!K$49*(1+'Benzin - diesel - hybrid'!K$57)^-$B66) -> 0 | M66: =(IF($B66<='Benzin - diesel - hybrid'!M$56,'Benzin - diesel - hybrid'!M$18+'Benzin - diesel - hybrid'!M$19+'Benzin - diesel - hybrid'!M$74+'Benzin - diesel - hybrid'!M$75,0)*'Benzin - diesel - hybrid'!M$49*(1+'Benzin - diesel - hybrid'!M$57)^-$B66) -> 0 | O66: =(IF($B66<='Benzin - diesel - hybrid'!O$56,'Benzin - diesel - hybrid'!O$18+'Benzin - diesel - hybrid'!O$19+'Benzin - diesel - hybrid'!O$74+'Benzin - diesel - hybrid'!O$75,0)*'Benzin - diesel - hybrid'!O$49*(1+'Benzin - diesel - hybrid'!O$57)^-$B66) -> 0 | Q66: =(IF($B66<='Benzin - diesel - hybrid'!Q$56,'Benzin - diesel - hybrid'!Q$18+'Benzin - diesel - hybrid'!Q$19+'Benzin - diesel - hybrid'!Q$74+'Benzin - diesel - hybrid'!Q$75,0)*'Benzin - diesel - hybrid'!Q$49*(1+'Benzin - diesel - hybrid'!Q$57)^-$B66) -> 0 | S66: =(IF($B66<='Benzin - diesel - hybrid'!S$56,'Benzin - diesel - hybrid'!S$18+'Benzin - diesel - hybrid'!S$19+'Benzin - diesel - hybrid'!S$74+'Benzin - diesel - hybrid'!S$75,0)*'Benzin - diesel - hybrid'!S$49*(1+'Benzin - diesel - hybrid'!S$57)^-$B66) -> 0 | U66: =(IF($B66<='Benzin - diesel - hybrid'!U$56,'Benzin - diesel - hybrid'!U$18+'Benzin - diesel - hybrid'!U$19+'Benzin - diesel - hybrid'!U$74+'Benzin - diesel - hybrid'!U$75,0)*'Benzin - diesel - hybrid'!U$49*(1+'Benzin - diesel - hybrid'!U$57)^-$B66) -> 0 | W66: =(IF($B66<='Benzin - diesel - hybrid'!W$56,'Benzin - diesel - hybrid'!W$18+'Benzin - diesel - hybrid'!W$19+'Benzin - diesel - hybrid'!W$74+'Benzin - diesel - hybrid'!W$75,0)*'Benzin - diesel - hybrid'!W$49*(1+'Benzin - diesel - hybrid'!W$57)^-$B66) -> 0
B67: 19 | C67: 19 | E67: =(IF($B67<='Benzin - diesel - hybrid'!E$56,'Benzin - diesel - hybrid'!E$18+'Benzin - diesel - hybrid'!E$19+'Benzin - diesel - hybrid'!E$74+'Benzin - diesel - hybrid'!E$75,0)*'Benzin - diesel - hybrid'!E$49*(1+'Benzin - diesel - hybrid'!E$57)^-$B67) -> 0 | G67: =(IF($B67<='Benzin - diesel - hybrid'!G$56,'Benzin - diesel - hybrid'!G$18+'Benzin - diesel - hybrid'!G$19+'Benzin - diesel - hybrid'!G$74+'Benzin - diesel - hybrid'!G$75,0)*'Benzin - diesel - hybrid'!G$49*(1+'Benzin - diesel - hybrid'!G$57)^-$B67) -> 0 | I67: =(IF($B67<='Benzin - diesel - hybrid'!I$56,'Benzin - diesel - hybrid'!I$18+'Benzin - diesel - hybrid'!I$19+'Benzin - diesel - hybrid'!I$74+'Benzin - diesel - hybrid'!I$75,0)*'Benzin - diesel - hybrid'!I$49*(1+'Benzin - diesel - hybrid'!I$57)^-$B67) -> 0 | K67: =(IF($B67<='Benzin - diesel - hybrid'!K$56,'Benzin - diesel - hybrid'!K$18+'Benzin - diesel - hybrid'!K$19+'Benzin - diesel - hybrid'!K$74+'Benzin - diesel - hybrid'!K$75,0)*'Benzin - diesel - hybrid'!K$49*(1+'Benzin - diesel - hybrid'!K$57)^-$B67) -> 0 | M67: =(IF($B67<='Benzin - diesel - hybrid'!M$56,'Benzin - diesel - hybrid'!M$18+'Benzin - diesel - hybrid'!M$19+'Benzin - diesel - hybrid'!M$74+'Benzin - diesel - hybrid'!M$75,0)*'Benzin - diesel - hybrid'!M$49*(1+'Benzin - diesel - hybrid'!M$57)^-$B67) -> 0 | O67: =(IF($B67<='Benzin - diesel - hybrid'!O$56,'Benzin - diesel - hybrid'!O$18+'Benzin - diesel - hybrid'!O$19+'Benzin - diesel - hybrid'!O$74+'Benzin - diesel - hybrid'!O$75,0)*'Benzin - diesel - hybrid'!O$49*(1+'Benzin - diesel - hybrid'!O$57)^-$B67) -> 0 | Q67: =(IF($B67<='Benzin - diesel - hybrid'!Q$56,'Benzin - diesel - hybrid'!Q$18+'Benzin - diesel - hybrid'!Q$19+'Benzin - diesel - hybrid'!Q$74+'Benzin - diesel - hybrid'!Q$75,0)*'Benzin - diesel - hybrid'!Q$49*(1+'Benzin - diesel - hybrid'!Q$57)^-$B67) -> 0 | S67: =(IF($B67<='Benzin - diesel - hybrid'!S$56,'Benzin - diesel - hybrid'!S$18+'Benzin - diesel - hybrid'!S$19+'Benzin - diesel - hybrid'!S$74+'Benzin - diesel - hybrid'!S$75,0)*'Benzin - diesel - hybrid'!S$49*(1+'Benzin - diesel - hybrid'!S$57)^-$B67) -> 0 | U67: =(IF($B67<='Benzin - diesel - hybrid'!U$56,'Benzin - diesel - hybrid'!U$18+'Benzin - diesel - hybrid'!U$19+'Benzin - diesel - hybrid'!U$74+'Benzin - diesel - hybrid'!U$75,0)*'Benzin - diesel - hybrid'!U$49*(1+'Benzin - diesel - hybrid'!U$57)^-$B67) -> 0 | W67: =(IF($B67<='Benzin - diesel - hybrid'!W$56,'Benzin - diesel - hybrid'!W$18+'Benzin - diesel - hybrid'!W$19+'Benzin - diesel - hybrid'!W$74+'Benzin - diesel - hybrid'!W$75,0)*'Benzin - diesel - hybrid'!W$49*(1+'Benzin - diesel - hybrid'!W$57)^-$B67) -> 0
B68: 20 | C68: 20 | E68: =(IF($B68<='Benzin - diesel - hybrid'!E$56,'Benzin - diesel - hybrid'!E$18+'Benzin - diesel - hybrid'!E$19+'Benzin - diesel - hybrid'!E$74+'Benzin - diesel - hybrid'!E$75,0)*'Benzin - diesel - hybrid'!E$49*(1+'Benzin - diesel - hybrid'!E$57)^-$B68) -> 0 | G68: =(IF($B68<='Benzin - diesel - hybrid'!G$56,'Benzin - diesel - hybrid'!G$18+'Benzin - diesel - hybrid'!G$19+'Benzin - diesel - hybrid'!G$74+'Benzin - diesel - hybrid'!G$75,0)*'Benzin - diesel - hybrid'!G$49*(1+'Benzin - diesel - hybrid'!G$57)^-$B68) -> 0 | I68: =(IF($B68<='Benzin - diesel - hybrid'!I$56,'Benzin - diesel - hybrid'!I$18+'Benzin - diesel - hybrid'!I$19+'Benzin - diesel - hybrid'!I$74+'Benzin - diesel - hybrid'!I$75,0)*'Benzin - diesel - hybrid'!I$49*(1+'Benzin - diesel - hybrid'!I$57)^-$B68) -> 0 | K68: =(IF($B68<='Benzin - diesel - hybrid'!K$56,'Benzin - diesel - hybrid'!K$18+'Benzin - diesel - hybrid'!K$19+'Benzin - diesel - hybrid'!K$74+'Benzin - diesel - hybrid'!K$75,0)*'Benzin - diesel - hybrid'!K$49*(1+'Benzin - diesel - hybrid'!K$57)^-$B68) -> 0 | M68: =(IF($B68<='Benzin - diesel - hybrid'!M$56,'Benzin - diesel - hybrid'!M$18+'Benzin - diesel - hybrid'!M$19+'Benzin - diesel - hybrid'!M$74+'Benzin - diesel - hybrid'!M$75,0)*'Benzin - diesel - hybrid'!M$49*(1+'Benzin - diesel - hybrid'!M$57)^-$B68) -> 0 | O68: =(IF($B68<='Benzin - diesel - hybrid'!O$56,'Benzin - diesel - hybrid'!O$18+'Benzin - diesel - hybrid'!O$19+'Benzin - diesel - hybrid'!O$74+'Benzin - diesel - hybrid'!O$75,0)*'Benzin - diesel - hybrid'!O$49*(1+'Benzin - diesel - hybrid'!O$57)^-$B68) -> 0 | Q68: =(IF($B68<='Benzin - diesel - hybrid'!Q$56,'Benzin - diesel - hybrid'!Q$18+'Benzin - diesel - hybrid'!Q$19+'Benzin - diesel - hybrid'!Q$74+'Benzin - diesel - hybrid'!Q$75,0)*'Benzin - diesel - hybrid'!Q$49*(1+'Benzin - diesel - hybrid'!Q$57)^-$B68) -> 0 | S68: =(IF($B68<='Benzin - diesel - hybrid'!S$56,'Benzin - diesel - hybrid'!S$18+'Benzin - diesel - hybrid'!S$19+'Benzin - diesel - hybrid'!S$74+'Benzin - diesel - hybrid'!S$75,0)*'Benzin - diesel - hybrid'!S$49*(1+'Benzin - diesel - hybrid'!S$57)^-$B68) -> 0 | U68: =(IF($B68<='Benzin - diesel - hybrid'!U$56,'Benzin - diesel - hybrid'!U$18+'Benzin - diesel - hybrid'!U$19+'Benzin - diesel - hybrid'!U$74+'Benzin - diesel - hybrid'!U$75,0)*'Benzin - diesel - hybrid'!U$49*(1+'Benzin - diesel - hybrid'!U$57)^-$B68) -> 0 | W68: =(IF($B68<='Benzin - diesel - hybrid'!W$56,'Benzin - diesel - hybrid'!W$18+'Benzin - diesel - hybrid'!W$19+'Benzin - diesel - hybrid'!W$74+'Benzin - diesel - hybrid'!W$75,0)*'Benzin - diesel - hybrid'!W$49*(1+'Benzin - diesel - hybrid'!W$57)^-$B68) -> 0
A71: Efterbrugsindtægter/omkostninger i det enkelte år.
B72: År indeks | E72: PRODUKT 1 | G72: PRODUKT 2 | I72: PRODUKT 3 | K72: PRODUKT 4 | M72: PRODUKT 5 | O72: PRODUKT 6 | Q72: PRODUKT 7 | S72: PRODUKT 8 | U72: PRODUKT 8 | W72: PRODUKT 8
B73: 1 | C73: =B73 -> 1 | E73: =(IF('Benzin - diesel - hybrid'!#REF!="nej",-IF(100-(100+'Benzin - diesel - hybrid'!E$74)*$B73/'Benzin - diesel - hybrid'!E$56<0,0,100-(100+'Benzin - diesel - hybrid'!E$74)*$B73/'Benzin - diesel - hybrid'!E$56)/100*'Benzin - diesel - hybrid'!E$12,0)+'Benzin - diesel - hybrid'!E$75)*'Benzin - diesel - hybrid'!E$49*(1+'Benzin - diesel - hybrid'!#REF!/100)^-$B73 ->  | G73: =(IF('Benzin - diesel - hybrid'!#REF!="nej",-IF(100-(100+'Benzin - diesel - hybrid'!G$74)*$B73/'Benzin - diesel - hybrid'!G$56<0,0,100-(100+'Benzin - diesel - hybrid'!G$74)*$B73/'Benzin - diesel - hybrid'!G$56)/100*'Benzin - diesel - hybrid'!G$12,0)+'Benzin - diesel - hybrid'!G$75)*'Benzin - diesel - hybrid'!G$49*(1+'Benzin - diesel - hybrid'!#REF!/100)^-$B73 ->  | I73: =(IF('Benzin - diesel - hybrid'!#REF!="nej",-IF(100-(100+'Benzin - diesel - hybrid'!I$74)*$B73/'Benzin - diesel - hybrid'!I$56<0,0,100-(100+'Benzin - diesel - hybrid'!I$74)*$B73/'Benzin - diesel - hybrid'!I$56)/100*'Benzin - diesel - hybrid'!I$12,0)+'Benzin - diesel - hybrid'!I$75)*'Benzin - diesel - hybrid'!I$49*(1+'Benzin - diesel - hybrid'!#REF!/100)^-$B73 ->  | K73: =(IF('Benzin - diesel - hybrid'!#REF!="nej",-IF(100-(100+'Benzin - diesel - hybrid'!K$74)*$B73/'Benzin - diesel - hybrid'!K$56<0,0,100-(100+'Benzin - diesel - hybrid'!K$74)*$B73/'Benzin - diesel - hybrid'!K$56)/100*'Benzin - diesel - hybrid'!K$12,0)+'Benzin - diesel - hybrid'!K$75)*'Benzin - diesel - hybrid'!K$49*(1+'Benzin - diesel - hybrid'!#REF!/100)^-$B73 ->  | M73: =(IF('Benzin - diesel - hybrid'!#REF!="nej",-IF(100-(100+'Benzin - diesel - hybrid'!M$74)*$B73/'Benzin - diesel - hybrid'!M$56<0,0,100-(100+'Benzin - diesel - hybrid'!M$74)*$B73/'Benzin - diesel - hybrid'!M$56)/100*'Benzin - diesel - hybrid'!M$12,0)+'Benzin - diesel - hybrid'!M$75)*'Benzin - diesel - hybrid'!M$49*(1+'Benzin - diesel - hybrid'!#REF!/100)^-$B73 ->  | O73: =(IF('Benzin - diesel - hybrid'!#REF!="nej",-IF(100-(100+'Benzin - diesel - hybrid'!O$74)*$B73/'Benzin - diesel - hybrid'!O$56<0,0,100-(100+'Benzin - diesel - hybrid'!O$74)*$B73/'Benzin - diesel - hybrid'!O$56)/100*'Benzin - diesel - hybrid'!O$12,0)+'Benzin - diesel - hybrid'!O$75)*'Benzin - diesel - hybrid'!O$49*(1+'Benzin - diesel - hybrid'!#REF!/100)^-$B73 ->  | Q73: =(IF('Benzin - diesel - hybrid'!#REF!="nej",-IF(100-(100+'Benzin - diesel - hybrid'!Q$74)*$B73/'Benzin - diesel - hybrid'!Q$56<0,0,100-(100+'Benzin - diesel - hybrid'!Q$74)*$B73/'Benzin - diesel - hybrid'!Q$56)/100*'Benzin - diesel - hybrid'!Q$12,0)+'Benzin - diesel - hybrid'!Q$75)*'Benzin - diesel - hybrid'!Q$49*(1+'Benzin - diesel - hybrid'!#REF!/100)^-$B73 ->  | S73: =(IF('Benzin - diesel - hybrid'!#REF!="nej",-IF(100-(100+'Benzin - diesel - hybrid'!S$74)*$B73/'Benzin - diesel - hybrid'!S$56<0,0,100-(100+'Benzin - diesel - hybrid'!S$74)*$B73/'Benzin - diesel - hybrid'!S$56)/100*'Benzin - diesel - hybrid'!S$12,0)+'Benzin - diesel - hybrid'!S$75)*'Benzin - diesel - hybrid'!S$49*(1+'Benzin - diesel - hybrid'!#REF!/100)^-$B73 ->  | U73: =(IF('Benzin - diesel - hybrid'!#REF!="nej",-IF(100-(100+'Benzin - diesel - hybrid'!Y$74)*$B73/'Benzin - diesel - hybrid'!Y$56<0,0,100-(100+'Benzin - diesel - hybrid'!Y$74)*$B73/'Benzin - diesel - hybrid'!Y$56)/100*'Benzin - diesel - hybrid'!Y$12,0)+'Benzin - diesel - hybrid'!Y$75)*'Benzin - diesel - hybrid'!Y$49*(1+'Benzin - diesel - hybrid'!#REF!/100)^-$B73 ->  | W73: =(IF('Benzin - diesel - hybrid'!#REF!="nej",-IF(100-(100+'Benzin - diesel - hybrid'!AA$74)*$B73/'Benzin - diesel - hybrid'!AA$56<0,0,100-(100+'Benzin - diesel - hybrid'!AA$74)*$B73/'Benzin - diesel - hybrid'!AA$56)/100*'Benzin - diesel - hybrid'!AA$12,0)+'Benzin - diesel - hybrid'!AA$75)*'Benzin - diesel - hybrid'!AA$49*(1+'Benzin - diesel - hybrid'!#REF!/100)^-$B73 -> 
B74: 2 | C74: =B74 -> 2 | E74: =(IF('Benzin - diesel - hybrid'!#REF!="nej",-IF(100-(100+'Benzin - diesel - hybrid'!E$74)*$B74/'Benzin - diesel - hybrid'!E$56<0,0,100-(100+'Benzin - diesel - hybrid'!E$74)*$B74/'Benzin - diesel - hybrid'!E$56)/100*'Benzin - diesel - hybrid'!E$12,0)+'Benzin - diesel - hybrid'!E$75)*'Benzin - diesel - hybrid'!E$49*(1+'Benzin - diesel - hybrid'!#REF!/100)^-$B74 ->  | G74: =(IF('Benzin - diesel - hybrid'!#REF!="nej",-IF(100-(100+'Benzin - diesel - hybrid'!G$74)*$B74/'Benzin - diesel - hybrid'!G$56<0,0,100-(100+'Benzin - diesel - hybrid'!G$74)*$B74/'Benzin - diesel - hybrid'!G$56)/100*'Benzin - diesel - hybrid'!G$12,0)+'Benzin - diesel - hybrid'!G$75)*'Benzin - diesel - hybrid'!G$49*(1+'Benzin - diesel - hybrid'!#REF!/100)^-$B74 ->  | I74: =(IF('Benzin - diesel - hybrid'!#REF!="nej",-IF(100-(100+'Benzin - diesel - hybrid'!I$74)*$B74/'Benzin - diesel - hybrid'!I$56<0,0,100-(100+'Benzin - diesel - hybrid'!I$74)*$B74/'Benzin - diesel - hybrid'!I$56)/100*'Benzin - diesel - hybrid'!I$12,0)+'Benzin - diesel - hybrid'!I$75)*'Benzin - diesel - hybrid'!I$49*(1+'Benzin - diesel - hybrid'!#REF!/100)^-$B74 ->  | K74: =(IF('Benzin - diesel - hybrid'!#REF!="nej",-IF(100-(100+'Benzin - diesel - hybrid'!K$74)*$B74/'Benzin - diesel - hybrid'!K$56<0,0,100-(100+'Benzin - diesel - hybrid'!K$74)*$B74/'Benzin - diesel - hybrid'!K$56)/100*'Benzin - diesel - hybrid'!K$12,0)+'Benzin - diesel - hybrid'!K$75)*'Benzin - diesel - hybrid'!K$49*(1+'Benzin - diesel - hybrid'!#REF!/100)^-$B74 ->  | M74: =(IF('Benzin - diesel - hybrid'!#REF!="nej",-IF(100-(100+'Benzin - diesel - hybrid'!M$74)*$B74/'Benzin - diesel - hybrid'!M$56<0,0,100-(100+'Benzin - diesel - hybrid'!M$74)*$B74/'Benzin - diesel - hybrid'!M$56)/100*'Benzin - diesel - hybrid'!M$12,0)+'Benzin - diesel - hybrid'!M$75)*'Benzin - diesel - hybrid'!M$49*(1+'Benzin - diesel - hybrid'!#REF!/100)^-$B74 ->  | O74: =(IF('Benzin - diesel - hybrid'!#REF!="nej",-IF(100-(100+'Benzin - diesel - hybrid'!O$74)*$B74/'Benzin - diesel - hybrid'!O$56<0,0,100-(100+'Benzin - diesel - hybrid'!O$74)*$B74/'Benzin - diesel - hybrid'!O$56)/100*'Benzin - diesel - hybrid'!O$12,0)+'Benzin - diesel - hybrid'!O$75)*'Benzin - diesel - hybrid'!O$49*(1+'Benzin - diesel - hybrid'!#REF!/100)^-$B74 ->  | Q74: =(IF('Benzin - diesel - hybrid'!#REF!="nej",-IF(100-(100+'Benzin - diesel - hybrid'!Q$74)*$B74/'Benzin - diesel - hybrid'!Q$56<0,0,100-(100+'Benzin - diesel - hybrid'!Q$74)*$B74/'Benzin - diesel - hybrid'!Q$56)/100*'Benzin - diesel - hybrid'!Q$12,0)+'Benzin - diesel - hybrid'!Q$75)*'Benzin - diesel - hybrid'!Q$49*(1+'Benzin - diesel - hybrid'!#REF!/100)^-$B74 ->  | S74: =(IF('Benzin - diesel - hybrid'!#REF!="nej",-IF(100-(100+'Benzin - diesel - hybrid'!S$74)*$B74/'Benzin - diesel - hybrid'!S$56<0,0,100-(100+'Benzin - diesel - hybrid'!S$74)*$B74/'Benzin - diesel - hybrid'!S$56)/100*'Benzin - diesel - hybrid'!S$12,0)+'Benzin - diesel - hybrid'!S$75)*'Benzin - diesel - hybrid'!S$49*(1+'Benzin - diesel - hybrid'!#REF!/100)^-$B74 ->  | U74: =(IF('Benzin - diesel - hybrid'!#REF!="nej",-IF(100-(100+'Benzin - diesel - hybrid'!Y$74)*$B74/'Benzin - diesel - hybrid'!Y$56<0,0,100-(100+'Benzin - diesel - hybrid'!Y$74)*$B74/'Benzin - diesel - hybrid'!Y$56)/100*'Benzin - diesel - hybrid'!Y$12,0)+'Benzin - diesel - hybrid'!Y$75)*'Benzin - diesel - hybrid'!Y$49*(1+'Benzin - diesel - hybrid'!#REF!/100)^-$B74 ->  | W74: =(IF('Benzin - diesel - hybrid'!#REF!="nej",-IF(100-(100+'Benzin - diesel - hybrid'!AA$74)*$B74/'Benzin - diesel - hybrid'!AA$56<0,0,100-(100+'Benzin - diesel - hybrid'!AA$74)*$B74/'Benzin - diesel - hybrid'!AA$56)/100*'Benzin - diesel - hybrid'!AA$12,0)+'Benzin - diesel - hybrid'!AA$75)*'Benzin - diesel - hybrid'!AA$49*(1+'Benzin - diesel - hybrid'!#REF!/100)^-$B74 -> 
B75: 3 | C75: 3 | E75: =(IF('Benzin - diesel - hybrid'!#REF!="nej",-IF(100-(100+'Benzin - diesel - hybrid'!E$74)*$B75/'Benzin - diesel - hybrid'!E$56<0,0,100-(100+'Benzin - diesel - hybrid'!E$74)*$B75/'Benzin - diesel - hybrid'!E$56)/100*'Benzin - diesel - hybrid'!E$12,0)+'Benzin - diesel - hybrid'!E$75)*'Benzin - diesel - hybrid'!E$49*(1+'Benzin - diesel - hybrid'!#REF!/100)^-$B75 ->  | G75: =(IF('Benzin - diesel - hybrid'!#REF!="nej",-IF(100-(100+'Benzin - diesel - hybrid'!G$74)*$B75/'Benzin - diesel - hybrid'!G$56<0,0,100-(100+'Benzin - diesel - hybrid'!G$74)*$B75/'Benzin - diesel - hybrid'!G$56)/100*'Benzin - diesel - hybrid'!G$12,0)+'Benzin - diesel - hybrid'!G$75)*'Benzin - diesel - hybrid'!G$49*(1+'Benzin - diesel - hybrid'!#REF!/100)^-$B75 ->  | I75: =(IF('Benzin - diesel - hybrid'!#REF!="nej",-IF(100-(100+'Benzin - diesel - hybrid'!I$74)*$B75/'Benzin - diesel - hybrid'!I$56<0,0,100-(100+'Benzin - diesel - hybrid'!I$74)*$B75/'Benzin - diesel - hybrid'!I$56)/100*'Benzin - diesel - hybrid'!I$12,0)+'Benzin - diesel - hybrid'!I$75)*'Benzin - diesel - hybrid'!I$49*(1+'Benzin - diesel - hybrid'!#REF!/100)^-$B75 ->  | K75: =(IF('Benzin - diesel - hybrid'!#REF!="nej",-IF(100-(100+'Benzin - diesel - hybrid'!K$74)*$B75/'Benzin - diesel - hybrid'!K$56<0,0,100-(100+'Benzin - diesel - hybrid'!K$74)*$B75/'Benzin - diesel - hybrid'!K$56)/100*'Benzin - diesel - hybrid'!K$12,0)+'Benzin - diesel - hybrid'!K$75)*'Benzin - diesel - hybrid'!K$49*(1+'Benzin - diesel - hybrid'!#REF!/100)^-$B75 ->  | M75: =(IF('Benzin - diesel - hybrid'!#REF!="nej",-IF(100-(100+'Benzin - diesel - hybrid'!M$74)*$B75/'Benzin - diesel - hybrid'!M$56<0,0,100-(100+'Benzin - diesel - hybrid'!M$74)*$B75/'Benzin - diesel - hybrid'!M$56)/100*'Benzin - diesel - hybrid'!M$12,0)+'Benzin - diesel - hybrid'!M$75)*'Benzin - diesel - hybrid'!M$49*(1+'Benzin - diesel - hybrid'!#REF!/100)^-$B75 ->  | O75: =(IF('Benzin - diesel - hybrid'!#REF!="nej",-IF(100-(100+'Benzin - diesel - hybrid'!O$74)*$B75/'Benzin - diesel - hybrid'!O$56<0,0,100-(100+'Benzin - diesel - hybrid'!O$74)*$B75/'Benzin - diesel - hybrid'!O$56)/100*'Benzin - diesel - hybrid'!O$12,0)+'Benzin - diesel - hybrid'!O$75)*'Benzin - diesel - hybrid'!O$49*(1+'Benzin - diesel - hybrid'!#REF!/100)^-$B75 ->  | Q75: =(IF('Benzin - diesel - hybrid'!#REF!="nej",-IF(100-(100+'Benzin - diesel - hybrid'!Q$74)*$B75/'Benzin - diesel - hybrid'!Q$56<0,0,100-(100+'Benzin - diesel - hybrid'!Q$74)*$B75/'Benzin - diesel - hybrid'!Q$56)/100*'Benzin - diesel - hybrid'!Q$12,0)+'Benzin - diesel - hybrid'!Q$75)*'Benzin - diesel - hybrid'!Q$49*(1+'Benzin - diesel - hybrid'!#REF!/100)^-$B75 ->  | S75: =(IF('Benzin - diesel - hybrid'!#REF!="nej",-IF(100-(100+'Benzin - diesel - hybrid'!S$74)*$B75/'Benzin - diesel - hybrid'!S$56<0,0,100-(100+'Benzin - diesel - hybrid'!S$74)*$B75/'Benzin - diesel - hybrid'!S$56)/100*'Benzin - diesel - hybrid'!S$12,0)+'Benzin - diesel - hybrid'!S$75)*'Benzin - diesel - hybrid'!S$49*(1+'Benzin - diesel - hybrid'!#REF!/100)^-$B75 ->  | U75: =(IF('Benzin - diesel - hybrid'!#REF!="nej",-IF(100-(100+'Benzin - diesel - hybrid'!Y$74)*$B75/'Benzin - diesel - hybrid'!Y$56<0,0,100-(100+'Benzin - diesel - hybrid'!Y$74)*$B75/'Benzin - diesel - hybrid'!Y$56)/100*'Benzin - diesel - hybrid'!Y$12,0)+'Benzin - diesel - hybrid'!Y$75)*'Benzin - diesel - hybrid'!Y$49*(1+'Benzin - diesel - hybrid'!#REF!/100)^-$B75 ->  | W75: =(IF('Benzin - diesel - hybrid'!#REF!="nej",-IF(100-(100+'Benzin - diesel - hybrid'!AA$74)*$B75/'Benzin - diesel - hybrid'!AA$56<0,0,100-(100+'Benzin - diesel - hybrid'!AA$74)*$B75/'Benzin - diesel - hybrid'!AA$56)/100*'Benzin - diesel - hybrid'!AA$12,0)+'Benzin - diesel - hybrid'!AA$75)*'Benzin - diesel - hybrid'!AA$49*(1+'Benzin - diesel - hybrid'!#REF!/100)^-$B75 -> 
B76: 4 | C76: 4 | E76: =(IF('Benzin - diesel - hybrid'!#REF!="nej",-IF(100-(100+'Benzin - diesel - hybrid'!E$74)*$B76/'Benzin - diesel - hybrid'!E$56<0,0,100-(100+'Benzin - diesel - hybrid'!E$74)*$B76/'Benzin - diesel - hybrid'!E$56)/100*'Benzin - diesel - hybrid'!E$12,0)+'Benzin - diesel - hybrid'!E$75)*'Benzin - diesel - hybrid'!E$49*(1+'Benzin - diesel - hybrid'!#REF!/100)^-$B76 ->  | G76: =(IF('Benzin - diesel - hybrid'!#REF!="nej",-IF(100-(100+'Benzin - diesel - hybrid'!G$74)*$B76/'Benzin - diesel - hybrid'!G$56<0,0,100-(100+'Benzin - diesel - hybrid'!G$74)*$B76/'Benzin - diesel - hybrid'!G$56)/100*'Benzin - diesel - hybrid'!G$12,0)+'Benzin - diesel - hybrid'!G$75)*'Benzin - diesel - hybrid'!G$49*(1+'Benzin - diesel - hybrid'!#REF!/100)^-$B76 ->  | I76: =(IF('Benzin - diesel - hybrid'!#REF!="nej",-IF(100-(100+'Benzin - diesel - hybrid'!I$74)*$B76/'Benzin - diesel - hybrid'!I$56<0,0,100-(100+'Benzin - diesel - hybrid'!I$74)*$B76/'Benzin - diesel - hybrid'!I$56)/100*'Benzin - diesel - hybrid'!I$12,0)+'Benzin - diesel - hybrid'!I$75)*'Benzin - diesel - hybrid'!I$49*(1+'Benzin - diesel - hybrid'!#REF!/100)^-$B76 ->  | K76: =(IF('Benzin - diesel - hybrid'!#REF!="nej",-IF(100-(100+'Benzin - diesel - hybrid'!K$74)*$B76/'Benzin - diesel - hybrid'!K$56<0,0,100-(100+'Benzin - diesel - hybrid'!K$74)*$B76/'Benzin - diesel - hybrid'!K$56)/100*'Benzin - diesel - hybrid'!K$12,0)+'Benzin - diesel - hybrid'!K$75)*'Benzin - diesel - hybrid'!K$49*(1+'Benzin - diesel - hybrid'!#REF!/100)^-$B76 ->  | M76: =(IF('Benzin - diesel - hybrid'!#REF!="nej",-IF(100-(100+'Benzin - diesel - hybrid'!M$74)*$B76/'Benzin - diesel - hybrid'!M$56<0,0,100-(100+'Benzin - diesel - hybrid'!M$74)*$B76/'Benzin - diesel - hybrid'!M$56)/100*'Benzin - diesel - hybrid'!M$12,0)+'Benzin - diesel - hybrid'!M$75)*'Benzin - diesel - hybrid'!M$49*(1+'Benzin - diesel - hybrid'!#REF!/100)^-$B76 ->  | O76: =(IF('Benzin - diesel - hybrid'!#REF!="nej",-IF(100-(100+'Benzin - diesel - hybrid'!O$74)*$B76/'Benzin - diesel - hybrid'!O$56<0,0,100-(100+'Benzin - diesel - hybrid'!O$74)*$B76/'Benzin - diesel - hybrid'!O$56)/100*'Benzin - diesel - hybrid'!O$12,0)+'Benzin - diesel - hybrid'!O$75)*'Benzin - diesel - hybrid'!O$49*(1+'Benzin - diesel - hybrid'!#REF!/100)^-$B76 ->  | Q76: =(IF('Benzin - diesel - hybrid'!#REF!="nej",-IF(100-(100+'Benzin - diesel - hybrid'!Q$74)*$B76/'Benzin - diesel - hybrid'!Q$56<0,0,100-(100+'Benzin - diesel - hybrid'!Q$74)*$B76/'Benzin - diesel - hybrid'!Q$56)/100*'Benzin - diesel - hybrid'!Q$12,0)+'Benzin - diesel - hybrid'!Q$75)*'Benzin - diesel - hybrid'!Q$49*(1+'Benzin - diesel - hybrid'!#REF!/100)^-$B76 ->  | S76: =(IF('Benzin - diesel - hybrid'!#REF!="nej",-IF(100-(100+'Benzin - diesel - hybrid'!S$74)*$B76/'Benzin - diesel - hybrid'!S$56<0,0,100-(100+'Benzin - diesel - hybrid'!S$74)*$B76/'Benzin - diesel - hybrid'!S$56)/100*'Benzin - diesel - hybrid'!S$12,0)+'Benzin - diesel - hybrid'!S$75)*'Benzin - diesel - hybrid'!S$49*(1+'Benzin - diesel - hybrid'!#REF!/100)^-$B76 ->  | U76: =(IF('Benzin - diesel - hybrid'!#REF!="nej",-IF(100-(100+'Benzin - diesel - hybrid'!Y$74)*$B76/'Benzin - diesel - hybrid'!Y$56<0,0,100-(100+'Benzin - diesel - hybrid'!Y$74)*$B76/'Benzin - diesel - hybrid'!Y$56)/100*'Benzin - diesel - hybrid'!Y$12,0)+'Benzin - diesel - hybrid'!Y$75)*'Benzin - diesel - hybrid'!Y$49*(1+'Benzin - diesel - hybrid'!#REF!/100)^-$B76 ->  | W76: =(IF('Benzin - diesel - hybrid'!#REF!="nej",-IF(100-(100+'Benzin - diesel - hybrid'!AA$74)*$B76/'Benzin - diesel - hybrid'!AA$56<0,0,100-(100+'Benzin - diesel - hybrid'!AA$74)*$B76/'Benzin - diesel - hybrid'!AA$56)/100*'Benzin - diesel - hybrid'!AA$12,0)+'Benzin - diesel - hybrid'!AA$75)*'Benzin - diesel - hybrid'!AA$49*(1+'Benzin - diesel - hybrid'!#REF!/100)^-$B76 -> 
B77: 5 | C77: 5 | E77: =(IF('Benzin - diesel - hybrid'!#REF!="nej",-IF(100-(100+'Benzin - diesel - hybrid'!E$74)*$B77/'Benzin - diesel - hybrid'!E$56<0,0,100-(100+'Benzin - diesel - hybrid'!E$74)*$B77/'Benzin - diesel - hybrid'!E$56)/100*'Benzin - diesel - hybrid'!E$12,0)+'Benzin - diesel - hybrid'!E$75)*'Benzin - diesel - hybrid'!E$49*(1+'Benzin - diesel - hybrid'!#REF!/100)^-$B77 ->  | G77: =(IF('Benzin - diesel - hybrid'!#REF!="nej",-IF(100-(100+'Benzin - diesel - hybrid'!G$74)*$B77/'Benzin - diesel - hybrid'!G$56<0,0,100-(100+'Benzin - diesel - hybrid'!G$74)*$B77/'Benzin - diesel - hybrid'!G$56)/100*'Benzin - diesel - hybrid'!G$12,0)+'Benzin - diesel - hybrid'!G$75)*'Benzin - diesel - hybrid'!G$49*(1+'Benzin - diesel - hybrid'!#REF!/100)^-$B77 ->  | I77: =(IF('Benzin - diesel - hybrid'!#REF!="nej",-IF(100-(100+'Benzin - diesel - hybrid'!I$74)*$B77/'Benzin - diesel - hybrid'!I$56<0,0,100-(100+'Benzin - diesel - hybrid'!I$74)*$B77/'Benzin - diesel - hybrid'!I$56)/100*'Benzin - diesel - hybrid'!I$12,0)+'Benzin - diesel - hybrid'!I$75)*'Benzin - diesel - hybrid'!I$49*(1+'Benzin - diesel - hybrid'!#REF!/100)^-$B77 ->  | K77: =(IF('Benzin - diesel - hybrid'!#REF!="nej",-IF(100-(100+'Benzin - diesel - hybrid'!K$74)*$B77/'Benzin - diesel - hybrid'!K$56<0,0,100-(100+'Benzin - diesel - hybrid'!K$74)*$B77/'Benzin - diesel - hybrid'!K$56)/100*'Benzin - diesel - hybrid'!K$12,0)+'Benzin - diesel - hybrid'!K$75)*'Benzin - diesel - hybrid'!K$49*(1+'Benzin - diesel - hybrid'!#REF!/100)^-$B77 ->  | M77: =(IF('Benzin - diesel - hybrid'!#REF!="nej",-IF(100-(100+'Benzin - diesel - hybrid'!M$74)*$B77/'Benzin - diesel - hybrid'!M$56<0,0,100-(100+'Benzin - diesel - hybrid'!M$74)*$B77/'Benzin - diesel - hybrid'!M$56)/100*'Benzin - diesel - hybrid'!M$12,0)+'Benzin - diesel - hybrid'!M$75)*'Benzin - diesel - hybrid'!M$49*(1+'Benzin - diesel - hybrid'!#REF!/100)^-$B77 ->  | O77: =(IF('Benzin - diesel - hybrid'!#REF!="nej",-IF(100-(100+'Benzin - diesel - hybrid'!O$74)*$B77/'Benzin - diesel - hybrid'!O$56<0,0,100-(100+'Benzin - diesel - hybrid'!O$74)*$B77/'Benzin - diesel - hybrid'!O$56)/100*'Benzin - diesel - hybrid'!O$12,0)+'Benzin - diesel - hybrid'!O$75)*'Benzin - diesel - hybrid'!O$49*(1+'Benzin - diesel - hybrid'!#REF!/100)^-$B77 ->  | Q77: =(IF('Benzin - diesel - hybrid'!#REF!="nej",-IF(100-(100+'Benzin - diesel - hybrid'!Q$74)*$B77/'Benzin - diesel - hybrid'!Q$56<0,0,100-(100+'Benzin - diesel - hybrid'!Q$74)*$B77/'Benzin - diesel - hybrid'!Q$56)/100*'Benzin - diesel - hybrid'!Q$12,0)+'Benzin - diesel - hybrid'!Q$75)*'Benzin - diesel - hybrid'!Q$49*(1+'Benzin - diesel - hybrid'!#REF!/100)^-$B77 ->  | S77: =(IF('Benzin - diesel - hybrid'!#REF!="nej",-IF(100-(100+'Benzin - diesel - hybrid'!S$74)*$B77/'Benzin - diesel - hybrid'!S$56<0,0,100-(100+'Benzin - diesel - hybrid'!S$74)*$B77/'Benzin - diesel - hybrid'!S$56)/100*'Benzin - diesel - hybrid'!S$12,0)+'Benzin - diesel - hybrid'!S$75)*'Benzin - diesel - hybrid'!S$49*(1+'Benzin - diesel - hybrid'!#REF!/100)^-$B77 ->  | U77: =(IF('Benzin - diesel - hybrid'!#REF!="nej",-IF(100-(100+'Benzin - diesel - hybrid'!Y$74)*$B77/'Benzin - diesel - hybrid'!Y$56<0,0,100-(100+'Benzin - diesel - hybrid'!Y$74)*$B77/'Benzin - diesel - hybrid'!Y$56)/100*'Benzin - diesel - hybrid'!Y$12,0)+'Benzin - diesel - hybrid'!Y$75)*'Benzin - diesel - hybrid'!Y$49*(1+'Benzin - diesel - hybrid'!#REF!/100)^-$B77 ->  | W77: =(IF('Benzin - diesel - hybrid'!#REF!="nej",-IF(100-(100+'Benzin - diesel - hybrid'!AA$74)*$B77/'Benzin - diesel - hybrid'!AA$56<0,0,100-(100+'Benzin - diesel - hybrid'!AA$74)*$B77/'Benzin - diesel - hybrid'!AA$56)/100*'Benzin - diesel - hybrid'!AA$12,0)+'Benzin - diesel - hybrid'!AA$75)*'Benzin - diesel - hybrid'!AA$49*(1+'Benzin - diesel - hybrid'!#REF!/100)^-$B77 -> 
B78: 6 | C78: 6 | E78: =(IF('Benzin - diesel - hybrid'!#REF!="nej",-IF(100-(100+'Benzin - diesel - hybrid'!E$74)*$B78/'Benzin - diesel - hybrid'!E$56<0,0,100-(100+'Benzin - diesel - hybrid'!E$74)*$B78/'Benzin - diesel - hybrid'!E$56)/100*'Benzin - diesel - hybrid'!E$12,0)+'Benzin - diesel - hybrid'!E$75)*'Benzin - diesel - hybrid'!E$49*(1+'Benzin - diesel - hybrid'!#REF!/100)^-$B78 ->  | G78: =(IF('Benzin - diesel - hybrid'!#REF!="nej",-IF(100-(100+'Benzin - diesel - hybrid'!G$74)*$B78/'Benzin - diesel - hybrid'!G$56<0,0,100-(100+'Benzin - diesel - hybrid'!G$74)*$B78/'Benzin - diesel - hybrid'!G$56)/100*'Benzin - diesel - hybrid'!G$12,0)+'Benzin - diesel - hybrid'!G$75)*'Benzin - diesel - hybrid'!G$49*(1+'Benzin - diesel - hybrid'!#REF!/100)^-$B78 ->  | I78: =(IF('Benzin - diesel - hybrid'!#REF!="nej",-IF(100-(100+'Benzin - diesel - hybrid'!I$74)*$B78/'Benzin - diesel - hybrid'!I$56<0,0,100-(100+'Benzin - diesel - hybrid'!I$74)*$B78/'Benzin - diesel - hybrid'!I$56)/100*'Benzin - diesel - hybrid'!I$12,0)+'Benzin - diesel - hybrid'!I$75)*'Benzin - diesel - hybrid'!I$49*(1+'Benzin - diesel - hybrid'!#REF!/100)^-$B78 ->  | K78: =(IF('Benzin - diesel - hybrid'!#REF!="nej",-IF(100-(100+'Benzin - diesel - hybrid'!K$74)*$B78/'Benzin - diesel - hybrid'!K$56<0,0,100-(100+'Benzin - diesel - hybrid'!K$74)*$B78/'Benzin - diesel - hybrid'!K$56)/100*'Benzin - diesel - hybrid'!K$12,0)+'Benzin - diesel - hybrid'!K$75)*'Benzin - diesel - hybrid'!K$49*(1+'Benzin - diesel - hybrid'!#REF!/100)^-$B78 ->  | M78: =(IF('Benzin - diesel - hybrid'!#REF!="nej",-IF(100-(100+'Benzin - diesel - hybrid'!M$74)*$B78/'Benzin - diesel - hybrid'!M$56<0,0,100-(100+'Benzin - diesel - hybrid'!M$74)*$B78/'Benzin - diesel - hybrid'!M$56)/100*'Benzin - diesel - hybrid'!M$12,0)+'Benzin - diesel - hybrid'!M$75)*'Benzin - diesel - hybrid'!M$49*(1+'Benzin - diesel - hybrid'!#REF!/100)^-$B78 ->  | O78: =(IF('Benzin - diesel - hybrid'!#REF!="nej",-IF(100-(100+'Benzin - diesel - hybrid'!O$74)*$B78/'Benzin - diesel - hybrid'!O$56<0,0,100-(100+'Benzin - diesel - hybrid'!O$74)*$B78/'Benzin - diesel - hybrid'!O$56)/100*'Benzin - diesel - hybrid'!O$12,0)+'Benzin - diesel - hybrid'!O$75)*'Benzin - diesel - hybrid'!O$49*(1+'Benzin - diesel - hybrid'!#REF!/100)^-$B78 ->  | Q78: =(IF('Benzin - diesel - hybrid'!#REF!="nej",-IF(100-(100+'Benzin - diesel - hybrid'!Q$74)*$B78/'Benzin - diesel - hybrid'!Q$56<0,0,100-(100+'Benzin - diesel - hybrid'!Q$74)*$B78/'Benzin - diesel - hybrid'!Q$56)/100*'Benzin - diesel - hybrid'!Q$12,0)+'Benzin - diesel - hybrid'!Q$75)*'Benzin - diesel - hybrid'!Q$49*(1+'Benzin - diesel - hybrid'!#REF!/100)^-$B78 ->  | S78: =(IF('Benzin - diesel - hybrid'!#REF!="nej",-IF(100-(100+'Benzin - diesel - hybrid'!S$74)*$B78/'Benzin - diesel - hybrid'!S$56<0,0,100-(100+'Benzin - diesel - hybrid'!S$74)*$B78/'Benzin - diesel - hybrid'!S$56)/100*'Benzin - diesel - hybrid'!S$12,0)+'Benzin - diesel - hybrid'!S$75)*'Benzin - diesel - hybrid'!S$49*(1+'Benzin - diesel - hybrid'!#REF!/100)^-$B78 ->  | U78: =(IF('Benzin - diesel - hybrid'!#REF!="nej",-IF(100-(100+'Benzin - diesel - hybrid'!Y$74)*$B78/'Benzin - diesel - hybrid'!Y$56<0,0,100-(100+'Benzin - diesel - hybrid'!Y$74)*$B78/'Benzin - diesel - hybrid'!Y$56)/100*'Benzin - diesel - hybrid'!Y$12,0)+'Benzin - diesel - hybrid'!Y$75)*'Benzin - diesel - hybrid'!Y$49*(1+'Benzin - diesel - hybrid'!#REF!/100)^-$B78 ->  | W78: =(IF('Benzin - diesel - hybrid'!#REF!="nej",-IF(100-(100+'Benzin - diesel - hybrid'!AA$74)*$B78/'Benzin - diesel - hybrid'!AA$56<0,0,100-(100+'Benzin - diesel - hybrid'!AA$74)*$B78/'Benzin - diesel - hybrid'!AA$56)/100*'Benzin - diesel - hybrid'!AA$12,0)+'Benzin - diesel - hybrid'!AA$75)*'Benzin - diesel - hybrid'!AA$49*(1+'Benzin - diesel - hybrid'!#REF!/100)^-$B78 -> 
B79: 7 | C79: 7 | E79: =(IF('Benzin - diesel - hybrid'!#REF!="nej",-IF(100-(100+'Benzin - diesel - hybrid'!E$74)*$B79/'Benzin - diesel - hybrid'!E$56<0,0,100-(100+'Benzin - diesel - hybrid'!E$74)*$B79/'Benzin - diesel - hybrid'!E$56)/100*'Benzin - diesel - hybrid'!E$12,0)+'Benzin - diesel - hybrid'!E$75)*'Benzin - diesel - hybrid'!E$49*(1+'Benzin - diesel - hybrid'!#REF!/100)^-$B79 ->  | G79: =(IF('Benzin - diesel - hybrid'!#REF!="nej",-IF(100-(100+'Benzin - diesel - hybrid'!G$74)*$B79/'Benzin - diesel - hybrid'!G$56<0,0,100-(100+'Benzin - diesel - hybrid'!G$74)*$B79/'Benzin - diesel - hybrid'!G$56)/100*'Benzin - diesel - hybrid'!G$12,0)+'Benzin - diesel - hybrid'!G$75)*'Benzin - diesel - hybrid'!G$49*(1+'Benzin - diesel - hybrid'!#REF!/100)^-$B79 ->  | I79: =(IF('Benzin - diesel - hybrid'!#REF!="nej",-IF(100-(100+'Benzin - diesel - hybrid'!I$74)*$B79/'Benzin - diesel - hybrid'!I$56<0,0,100-(100+'Benzin - diesel - hybrid'!I$74)*$B79/'Benzin - diesel - hybrid'!I$56)/100*'Benzin - diesel - hybrid'!I$12,0)+'Benzin - diesel - hybrid'!I$75)*'Benzin - diesel - hybrid'!I$49*(1+'Benzin - diesel - hybrid'!#REF!/100)^-$B79 ->  | K79: =(IF('Benzin - diesel - hybrid'!#REF!="nej",-IF(100-(100+'Benzin - diesel - hybrid'!K$74)*$B79/'Benzin - diesel - hybrid'!K$56<0,0,100-(100+'Benzin - diesel - hybrid'!K$74)*$B79/'Benzin - diesel - hybrid'!K$56)/100*'Benzin - diesel - hybrid'!K$12,0)+'Benzin - diesel - hybrid'!K$75)*'Benzin - diesel - hybrid'!K$49*(1+'Benzin - diesel - hybrid'!#REF!/100)^-$B79 ->  | M79: =(IF('Benzin - diesel - hybrid'!#REF!="nej",-IF(100-(100+'Benzin - diesel - hybrid'!M$74)*$B79/'Benzin - diesel - hybrid'!M$56<0,0,100-(100+'Benzin - diesel - hybrid'!M$74)*$B79/'Benzin - diesel - hybrid'!M$56)/100*'Benzin - diesel - hybrid'!M$12,0)+'Benzin - diesel - hybrid'!M$75)*'Benzin - diesel - hybrid'!M$49*(1+'Benzin - diesel - hybrid'!#REF!/100)^-$B79 ->  | O79: =(IF('Benzin - diesel - hybrid'!#REF!="nej",-IF(100-(100+'Benzin - diesel - hybrid'!O$74)*$B79/'Benzin - diesel - hybrid'!O$56<0,0,100-(100+'Benzin - diesel - hybrid'!O$74)*$B79/'Benzin - diesel - hybrid'!O$56)/100*'Benzin - diesel - hybrid'!O$12,0)+'Benzin - diesel - hybrid'!O$75)*'Benzin - diesel - hybrid'!O$49*(1+'Benzin - diesel - hybrid'!#REF!/100)^-$B79 ->  | Q79: =(IF('Benzin - diesel - hybrid'!#REF!="nej",-IF(100-(100+'Benzin - diesel - hybrid'!Q$74)*$B79/'Benzin - diesel - hybrid'!Q$56<0,0,100-(100+'Benzin - diesel - hybrid'!Q$74)*$B79/'Benzin - diesel - hybrid'!Q$56)/100*'Benzin - diesel - hybrid'!Q$12,0)+'Benzin - diesel - hybrid'!Q$75)*'Benzin - diesel - hybrid'!Q$49*(1+'Benzin - diesel - hybrid'!#REF!/100)^-$B79 ->  | S79: =(IF('Benzin - diesel - hybrid'!#REF!="nej",-IF(100-(100+'Benzin - diesel - hybrid'!S$74)*$B79/'Benzin - diesel - hybrid'!S$56<0,0,100-(100+'Benzin - diesel - hybrid'!S$74)*$B79/'Benzin - diesel - hybrid'!S$56)/100*'Benzin - diesel - hybrid'!S$12,0)+'Benzin - diesel - hybrid'!S$75)*'Benzin - diesel - hybrid'!S$49*(1+'Benzin - diesel - hybrid'!#REF!/100)^-$B79 ->  | U79: =(IF('Benzin - diesel - hybrid'!#REF!="nej",-IF(100-(100+'Benzin - diesel - hybrid'!Y$74)*$B79/'Benzin - diesel - hybrid'!Y$56<0,0,100-(100+'Benzin - diesel - hybrid'!Y$74)*$B79/'Benzin - diesel - hybrid'!Y$56)/100*'Benzin - diesel - hybrid'!Y$12,0)+'Benzin - diesel - hybrid'!Y$75)*'Benzin - diesel - hybrid'!Y$49*(1+'Benzin - diesel - hybrid'!#REF!/100)^-$B79 ->  | W79: =(IF('Benzin - diesel - hybrid'!#REF!="nej",-IF(100-(100+'Benzin - diesel - hybrid'!AA$74)*$B79/'Benzin - diesel - hybrid'!AA$56<0,0,100-(100+'Benzin - diesel - hybrid'!AA$74)*$B79/'Benzin - diesel - hybrid'!AA$56)/100*'Benzin - diesel - hybrid'!AA$12,0)+'Benzin - diesel - hybrid'!AA$75)*'Benzin - diesel - hybrid'!AA$49*(1+'Benzin - diesel - hybrid'!#REF!/100)^-$B79 -> 
B80: 8 | C80: 8 | E80: =(IF('Benzin - diesel - hybrid'!#REF!="nej",-IF(100-(100+'Benzin - diesel - hybrid'!E$74)*$B80/'Benzin - diesel - hybrid'!E$56<0,0,100-(100+'Benzin - diesel - hybrid'!E$74)*$B80/'Benzin - diesel - hybrid'!E$56)/100*'Benzin - diesel - hybrid'!E$12,0)+'Benzin - diesel - hybrid'!E$75)*'Benzin - diesel - hybrid'!E$49*(1+'Benzin - diesel - hybrid'!#REF!/100)^-$B80 ->  | G80: =(IF('Benzin - diesel - hybrid'!#REF!="nej",-IF(100-(100+'Benzin - diesel - hybrid'!G$74)*$B80/'Benzin - diesel - hybrid'!G$56<0,0,100-(100+'Benzin - diesel - hybrid'!G$74)*$B80/'Benzin - diesel - hybrid'!G$56)/100*'Benzin - diesel - hybrid'!G$12,0)+'Benzin - diesel - hybrid'!G$75)*'Benzin - diesel - hybrid'!G$49*(1+'Benzin - diesel - hybrid'!#REF!/100)^-$B80 ->  | I80: =(IF('Benzin - diesel - hybrid'!#REF!="nej",-IF(100-(100+'Benzin - diesel - hybrid'!I$74)*$B80/'Benzin - diesel - hybrid'!I$56<0,0,100-(100+'Benzin - diesel - hybrid'!I$74)*$B80/'Benzin - diesel - hybrid'!I$56)/100*'Benzin - diesel - hybrid'!I$12,0)+'Benzin - diesel - hybrid'!I$75)*'Benzin - diesel - hybrid'!I$49*(1+'Benzin - diesel - hybrid'!#REF!/100)^-$B80 ->  | K80: =(IF('Benzin - diesel - hybrid'!#REF!="nej",-IF(100-(100+'Benzin - diesel - hybrid'!K$74)*$B80/'Benzin - diesel - hybrid'!K$56<0,0,100-(100+'Benzin - diesel - hybrid'!K$74)*$B80/'Benzin - diesel - hybrid'!K$56)/100*'Benzin - diesel - hybrid'!K$12,0)+'Benzin - diesel - hybrid'!K$75)*'Benzin - diesel - hybrid'!K$49*(1+'Benzin - diesel - hybrid'!#REF!/100)^-$B80 ->  | M80: =(IF('Benzin - diesel - hybrid'!#REF!="nej",-IF(100-(100+'Benzin - diesel - hybrid'!M$74)*$B80/'Benzin - diesel - hybrid'!M$56<0,0,100-(100+'Benzin - diesel - hybrid'!M$74)*$B80/'Benzin - diesel - hybrid'!M$56)/100*'Benzin - diesel - hybrid'!M$12,0)+'Benzin - diesel - hybrid'!M$75)*'Benzin - diesel - hybrid'!M$49*(1+'Benzin - diesel - hybrid'!#REF!/100)^-$B80 ->  | O80: =(IF('Benzin - diesel - hybrid'!#REF!="nej",-IF(100-(100+'Benzin - diesel - hybrid'!O$74)*$B80/'Benzin - diesel - hybrid'!O$56<0,0,100-(100+'Benzin - diesel - hybrid'!O$74)*$B80/'Benzin - diesel - hybrid'!O$56)/100*'Benzin - diesel - hybrid'!O$12,0)+'Benzin - diesel - hybrid'!O$75)*'Benzin - diesel - hybrid'!O$49*(1+'Benzin - diesel - hybrid'!#REF!/100)^-$B80 ->  | Q80: =(IF('Benzin - diesel - hybrid'!#REF!="nej",-IF(100-(100+'Benzin - diesel - hybrid'!Q$74)*$B80/'Benzin - diesel - hybrid'!Q$56<0,0,100-(100+'Benzin - diesel - hybrid'!Q$74)*$B80/'Benzin - diesel - hybrid'!Q$56)/100*'Benzin - diesel - hybrid'!Q$12,0)+'Benzin - diesel - hybrid'!Q$75)*'Benzin - diesel - hybrid'!Q$49*(1+'Benzin - diesel - hybrid'!#REF!/100)^-$B80 ->  | S80: =(IF('Benzin - diesel - hybrid'!#REF!="nej",-IF(100-(100+'Benzin - diesel - hybrid'!S$74)*$B80/'Benzin - diesel - hybrid'!S$56<0,0,100-(100+'Benzin - diesel - hybrid'!S$74)*$B80/'Benzin - diesel - hybrid'!S$56)/100*'Benzin - diesel - hybrid'!S$12,0)+'Benzin - diesel - hybrid'!S$75)*'Benzin - diesel - hybrid'!S$49*(1+'Benzin - diesel - hybrid'!#REF!/100)^-$B80 ->  | U80: =(IF('Benzin - diesel - hybrid'!#REF!="nej",-IF(100-(100+'Benzin - diesel - hybrid'!Y$74)*$B80/'Benzin - diesel - hybrid'!Y$56<0,0,100-(100+'Benzin - diesel - hybrid'!Y$74)*$B80/'Benzin - diesel - hybrid'!Y$56)/100*'Benzin - diesel - hybrid'!Y$12,0)+'Benzin - diesel - hybrid'!Y$75)*'Benzin - diesel - hybrid'!Y$49*(1+'Benzin - diesel - hybrid'!#REF!/100)^-$B80 ->  | W80: =(IF('Benzin - diesel - hybrid'!#REF!="nej",-IF(100-(100+'Benzin - diesel - hybrid'!AA$74)*$B80/'Benzin - diesel - hybrid'!AA$56<0,0,100-(100+'Benzin - diesel - hybrid'!AA$74)*$B80/'Benzin - diesel - hybrid'!AA$56)/100*'Benzin - diesel - hybrid'!AA$12,0)+'Benzin - diesel - hybrid'!AA$75)*'Benzin - diesel - hybrid'!AA$49*(1+'Benzin - diesel - hybrid'!#REF!/100)^-$B80 -> 
B81: 9 | C81: 9 | E81: =(IF('Benzin - diesel - hybrid'!#REF!="nej",-IF(100-(100+'Benzin - diesel - hybrid'!E$74)*$B81/'Benzin - diesel - hybrid'!E$56<0,0,100-(100+'Benzin - diesel - hybrid'!E$74)*$B81/'Benzin - diesel - hybrid'!E$56)/100*'Benzin - diesel - hybrid'!E$12,0)+'Benzin - diesel - hybrid'!E$75)*'Benzin - diesel - hybrid'!E$49*(1+'Benzin - diesel - hybrid'!#REF!/100)^-$B81 ->  | G81: =(IF('Benzin - diesel - hybrid'!#REF!="nej",-IF(100-(100+'Benzin - diesel - hybrid'!G$74)*$B81/'Benzin - diesel - hybrid'!G$56<0,0,100-(100+'Benzin - diesel - hybrid'!G$74)*$B81/'Benzin - diesel - hybrid'!G$56)/100*'Benzin - diesel - hybrid'!G$12,0)+'Benzin - diesel - hybrid'!G$75)*'Benzin - diesel - hybrid'!G$49*(1+'Benzin - diesel - hybrid'!#REF!/100)^-$B81 ->  | I81: =(IF('Benzin - diesel - hybrid'!#REF!="nej",-IF(100-(100+'Benzin - diesel - hybrid'!I$74)*$B81/'Benzin - diesel - hybrid'!I$56<0,0,100-(100+'Benzin - diesel - hybrid'!I$74)*$B81/'Benzin - diesel - hybrid'!I$56)/100*'Benzin - diesel - hybrid'!I$12,0)+'Benzin - diesel - hybrid'!I$75)*'Benzin - diesel - hybrid'!I$49*(1+'Benzin - diesel - hybrid'!#REF!/100)^-$B81 ->  | K81: =(IF('Benzin - diesel - hybrid'!#REF!="nej",-IF(100-(100+'Benzin - diesel - hybrid'!K$74)*$B81/'Benzin - diesel - hybrid'!K$56<0,0,100-(100+'Benzin - diesel - hybrid'!K$74)*$B81/'Benzin - diesel - hybrid'!K$56)/100*'Benzin - diesel - hybrid'!K$12,0)+'Benzin - diesel - hybrid'!K$75)*'Benzin - diesel - hybrid'!K$49*(1+'Benzin - diesel - hybrid'!#REF!/100)^-$B81 ->  | M81: =(IF('Benzin - diesel - hybrid'!#REF!="nej",-IF(100-(100+'Benzin - diesel - hybrid'!M$74)*$B81/'Benzin - diesel - hybrid'!M$56<0,0,100-(100+'Benzin - diesel - hybrid'!M$74)*$B81/'Benzin - diesel - hybrid'!M$56)/100*'Benzin - diesel - hybrid'!M$12,0)+'Benzin - diesel - hybrid'!M$75)*'Benzin - diesel - hybrid'!M$49*(1+'Benzin - diesel - hybrid'!#REF!/100)^-$B81 ->  | O81: =(IF('Benzin - diesel - hybrid'!#REF!="nej",-IF(100-(100+'Benzin - diesel - hybrid'!O$74)*$B81/'Benzin - diesel - hybrid'!O$56<0,0,100-(100+'Benzin - diesel - hybrid'!O$74)*$B81/'Benzin - diesel - hybrid'!O$56)/100*'Benzin - diesel - hybrid'!O$12,0)+'Benzin - diesel - hybrid'!O$75)*'Benzin - diesel - hybrid'!O$49*(1+'Benzin - diesel - hybrid'!#REF!/100)^-$B81 ->  | Q81: =(IF('Benzin - diesel - hybrid'!#REF!="nej",-IF(100-(100+'Benzin - diesel - hybrid'!Q$74)*$B81/'Benzin - diesel - hybrid'!Q$56<0,0,100-(100+'Benzin - diesel - hybrid'!Q$74)*$B81/'Benzin - diesel - hybrid'!Q$56)/100*'Benzin - diesel - hybrid'!Q$12,0)+'Benzin - diesel - hybrid'!Q$75)*'Benzin - diesel - hybrid'!Q$49*(1+'Benzin - diesel - hybrid'!#REF!/100)^-$B81 ->  | S81: =(IF('Benzin - diesel - hybrid'!#REF!="nej",-IF(100-(100+'Benzin - diesel - hybrid'!S$74)*$B81/'Benzin - diesel - hybrid'!S$56<0,0,100-(100+'Benzin - diesel - hybrid'!S$74)*$B81/'Benzin - diesel - hybrid'!S$56)/100*'Benzin - diesel - hybrid'!S$12,0)+'Benzin - diesel - hybrid'!S$75)*'Benzin - diesel - hybrid'!S$49*(1+'Benzin - diesel - hybrid'!#REF!/100)^-$B81 ->  | U81: =(IF('Benzin - diesel - hybrid'!#REF!="nej",-IF(100-(100+'Benzin - diesel - hybrid'!Y$74)*$B81/'Benzin - diesel - hybrid'!Y$56<0,0,100-(100+'Benzin - diesel - hybrid'!Y$74)*$B81/'Benzin - diesel - hybrid'!Y$56)/100*'Benzin - diesel - hybrid'!Y$12,0)+'Benzin - diesel - hybrid'!Y$75)*'Benzin - diesel - hybrid'!Y$49*(1+'Benzin - diesel - hybrid'!#REF!/100)^-$B81 ->  | W81: =(IF('Benzin - diesel - hybrid'!#REF!="nej",-IF(100-(100+'Benzin - diesel - hybrid'!AA$74)*$B81/'Benzin - diesel - hybrid'!AA$56<0,0,100-(100+'Benzin - diesel - hybrid'!AA$74)*$B81/'Benzin - diesel - hybrid'!AA$56)/100*'Benzin - diesel - hybrid'!AA$12,0)+'Benzin - diesel - hybrid'!AA$75)*'Benzin - diesel - hybrid'!AA$49*(1+'Benzin - diesel - hybrid'!#REF!/100)^-$B81 -> 
B82: 10 | C82: 10 | E82: =(IF('Benzin - diesel - hybrid'!#REF!="nej",-IF(100-(100+'Benzin - diesel - hybrid'!E$74)*$B82/'Benzin - diesel - hybrid'!E$56<0,0,100-(100+'Benzin - diesel - hybrid'!E$74)*$B82/'Benzin - diesel - hybrid'!E$56)/100*'Benzin - diesel - hybrid'!E$12,0)+'Benzin - diesel - hybrid'!E$75)*'Benzin - diesel - hybrid'!E$49*(1+'Benzin - diesel - hybrid'!#REF!/100)^-$B82 ->  | G82: =(IF('Benzin - diesel - hybrid'!#REF!="nej",-IF(100-(100+'Benzin - diesel - hybrid'!G$74)*$B82/'Benzin - diesel - hybrid'!G$56<0,0,100-(100+'Benzin - diesel - hybrid'!G$74)*$B82/'Benzin - diesel - hybrid'!G$56)/100*'Benzin - diesel - hybrid'!G$12,0)+'Benzin - diesel - hybrid'!G$75)*'Benzin - diesel - hybrid'!G$49*(1+'Benzin - diesel - hybrid'!#REF!/100)^-$B82 ->  | I82: =(IF('Benzin - diesel - hybrid'!#REF!="nej",-IF(100-(100+'Benzin - diesel - hybrid'!I$74)*$B82/'Benzin - diesel - hybrid'!I$56<0,0,100-(100+'Benzin - diesel - hybrid'!I$74)*$B82/'Benzin - diesel - hybrid'!I$56)/100*'Benzin - diesel - hybrid'!I$12,0)+'Benzin - diesel - hybrid'!I$75)*'Benzin - diesel - hybrid'!I$49*(1+'Benzin - diesel - hybrid'!#REF!/100)^-$B82 ->  | K82: =(IF('Benzin - diesel - hybrid'!#REF!="nej",-IF(100-(100+'Benzin - diesel - hybrid'!K$74)*$B82/'Benzin - diesel - hybrid'!K$56<0,0,100-(100+'Benzin - diesel - hybrid'!K$74)*$B82/'Benzin - diesel - hybrid'!K$56)/100*'Benzin - diesel - hybrid'!K$12,0)+'Benzin - diesel - hybrid'!K$75)*'Benzin - diesel - hybrid'!K$49*(1+'Benzin - diesel - hybrid'!#REF!/100)^-$B82 ->  | M82: =(IF('Benzin - diesel - hybrid'!#REF!="nej",-IF(100-(100+'Benzin - diesel - hybrid'!M$74)*$B82/'Benzin - diesel - hybrid'!M$56<0,0,100-(100+'Benzin - diesel - hybrid'!M$74)*$B82/'Benzin - diesel - hybrid'!M$56)/100*'Benzin - diesel - hybrid'!M$12,0)+'Benzin - diesel - hybrid'!M$75)*'Benzin - diesel - hybrid'!M$49*(1+'Benzin - diesel - hybrid'!#REF!/100)^-$B82 ->  | O82: =(IF('Benzin - diesel - hybrid'!#REF!="nej",-IF(100-(100+'Benzin - diesel - hybrid'!O$74)*$B82/'Benzin - diesel - hybrid'!O$56<0,0,100-(100+'Benzin - diesel - hybrid'!O$74)*$B82/'Benzin - diesel - hybrid'!O$56)/100*'Benzin - diesel - hybrid'!O$12,0)+'Benzin - diesel - hybrid'!O$75)*'Benzin - diesel - hybrid'!O$49*(1+'Benzin - diesel - hybrid'!#REF!/100)^-$B82 ->  | Q82: =(IF('Benzin - diesel - hybrid'!#REF!="nej",-IF(100-(100+'Benzin - diesel - hybrid'!Q$74)*$B82/'Benzin - diesel - hybrid'!Q$56<0,0,100-(100+'Benzin - diesel - hybrid'!Q$74)*$B82/'Benzin - diesel - hybrid'!Q$56)/100*'Benzin - diesel - hybrid'!Q$12,0)+'Benzin - diesel - hybrid'!Q$75)*'Benzin - diesel - hybrid'!Q$49*(1+'Benzin - diesel - hybrid'!#REF!/100)^-$B82 ->  | S82: =(IF('Benzin - diesel - hybrid'!#REF!="nej",-IF(100-(100+'Benzin - diesel - hybrid'!S$74)*$B82/'Benzin - diesel - hybrid'!S$56<0,0,100-(100+'Benzin - diesel - hybrid'!S$74)*$B82/'Benzin - diesel - hybrid'!S$56)/100*'Benzin - diesel - hybrid'!S$12,0)+'Benzin - diesel - hybrid'!S$75)*'Benzin - diesel - hybrid'!S$49*(1+'Benzin - diesel - hybrid'!#REF!/100)^-$B82 ->  | U82: =(IF('Benzin - diesel - hybrid'!#REF!="nej",-IF(100-(100+'Benzin - diesel - hybrid'!Y$74)*$B82/'Benzin - diesel - hybrid'!Y$56<0,0,100-(100+'Benzin - diesel - hybrid'!Y$74)*$B82/'Benzin - diesel - hybrid'!Y$56)/100*'Benzin - diesel - hybrid'!Y$12,0)+'Benzin - diesel - hybrid'!Y$75)*'Benzin - diesel - hybrid'!Y$49*(1+'Benzin - diesel - hybrid'!#REF!/100)^-$B82 ->  | W82: =(IF('Benzin - diesel - hybrid'!#REF!="nej",-IF(100-(100+'Benzin - diesel - hybrid'!AA$74)*$B82/'Benzin - diesel - hybrid'!AA$56<0,0,100-(100+'Benzin - diesel - hybrid'!AA$74)*$B82/'Benzin - diesel - hybrid'!AA$56)/100*'Benzin - diesel - hybrid'!AA$12,0)+'Benzin - diesel - hybrid'!AA$75)*'Benzin - diesel - hybrid'!AA$49*(1+'Benzin - diesel - hybrid'!#REF!/100)^-$B82 -> 
B83: 11 | C83: 11 | E83: =(IF('Benzin - diesel - hybrid'!#REF!="nej",-IF(100-(100+'Benzin - diesel - hybrid'!E$74)*$B83/'Benzin - diesel - hybrid'!E$56<0,0,100-(100+'Benzin - diesel - hybrid'!E$74)*$B83/'Benzin - diesel - hybrid'!E$56)/100*'Benzin - diesel - hybrid'!E$12,0)+'Benzin - diesel - hybrid'!E$75)*'Benzin - diesel - hybrid'!E$49*(1+'Benzin - diesel - hybrid'!#REF!/100)^-$B83 ->  | G83: =(IF('Benzin - diesel - hybrid'!#REF!="nej",-IF(100-(100+'Benzin - diesel - hybrid'!G$74)*$B83/'Benzin - diesel - hybrid'!G$56<0,0,100-(100+'Benzin - diesel - hybrid'!G$74)*$B83/'Benzin - diesel - hybrid'!G$56)/100*'Benzin - diesel - hybrid'!G$12,0)+'Benzin - diesel - hybrid'!G$75)*'Benzin - diesel - hybrid'!G$49*(1+'Benzin - diesel - hybrid'!#REF!/100)^-$B83 ->  | I83: =(IF('Benzin - diesel - hybrid'!#REF!="nej",-IF(100-(100+'Benzin - diesel - hybrid'!I$74)*$B83/'Benzin - diesel - hybrid'!I$56<0,0,100-(100+'Benzin - diesel - hybrid'!I$74)*$B83/'Benzin - diesel - hybrid'!I$56)/100*'Benzin - diesel - hybrid'!I$12,0)+'Benzin - diesel - hybrid'!I$75)*'Benzin - diesel - hybrid'!I$49*(1+'Benzin - diesel - hybrid'!#REF!/100)^-$B83 ->  | K83: =(IF('Benzin - diesel - hybrid'!#REF!="nej",-IF(100-(100+'Benzin - diesel - hybrid'!K$74)*$B83/'Benzin - diesel - hybrid'!K$56<0,0,100-(100+'Benzin - diesel - hybrid'!K$74)*$B83/'Benzin - diesel - hybrid'!K$56)/100*'Benzin - diesel - hybrid'!K$12,0)+'Benzin - diesel - hybrid'!K$75)*'Benzin - diesel - hybrid'!K$49*(1+'Benzin - diesel - hybrid'!#REF!/100)^-$B83 ->  | M83: =(IF('Benzin - diesel - hybrid'!#REF!="nej",-IF(100-(100+'Benzin - diesel - hybrid'!M$74)*$B83/'Benzin - diesel - hybrid'!M$56<0,0,100-(100+'Benzin - diesel - hybrid'!M$74)*$B83/'Benzin - diesel - hybrid'!M$56)/100*'Benzin - diesel - hybrid'!M$12,0)+'Benzin - diesel - hybrid'!M$75)*'Benzin - diesel - hybrid'!M$49*(1+'Benzin - diesel - hybrid'!#REF!/100)^-$B83 ->  | O83: =(IF('Benzin - diesel - hybrid'!#REF!="nej",-IF(100-(100+'Benzin - diesel - hybrid'!O$74)*$B83/'Benzin - diesel - hybrid'!O$56<0,0,100-(100+'Benzin - diesel - hybrid'!O$74)*$B83/'Benzin - diesel - hybrid'!O$56)/100*'Benzin - diesel - hybrid'!O$12,0)+'Benzin - diesel - hybrid'!O$75)*'Benzin - diesel - hybrid'!O$49*(1+'Benzin - diesel - hybrid'!#REF!/100)^-$B83 ->  | Q83: =(IF('Benzin - diesel - hybrid'!#REF!="nej",-IF(100-(100+'Benzin - diesel - hybrid'!Q$74)*$B83/'Benzin - diesel - hybrid'!Q$56<0,0,100-(100+'Benzin - diesel - hybrid'!Q$74)*$B83/'Benzin - diesel - hybrid'!Q$56)/100*'Benzin - diesel - hybrid'!Q$12,0)+'Benzin - diesel - hybrid'!Q$75)*'Benzin - diesel - hybrid'!Q$49*(1+'Benzin - diesel - hybrid'!#REF!/100)^-$B83 ->  | S83: =(IF('Benzin - diesel - hybrid'!#REF!="nej",-IF(100-(100+'Benzin - diesel - hybrid'!S$74)*$B83/'Benzin - diesel - hybrid'!S$56<0,0,100-(100+'Benzin - diesel - hybrid'!S$74)*$B83/'Benzin - diesel - hybrid'!S$56)/100*'Benzin - diesel - hybrid'!S$12,0)+'Benzin - diesel - hybrid'!S$75)*'Benzin - diesel - hybrid'!S$49*(1+'Benzin - diesel - hybrid'!#REF!/100)^-$B83 ->  | U83: =(IF('Benzin - diesel - hybrid'!#REF!="nej",-IF(100-(100+'Benzin - diesel - hybrid'!Y$74)*$B83/'Benzin - diesel - hybrid'!Y$56<0,0,100-(100+'Benzin - diesel - hybrid'!Y$74)*$B83/'Benzin - diesel - hybrid'!Y$56)/100*'Benzin - diesel - hybrid'!Y$12,0)+'Benzin - diesel - hybrid'!Y$75)*'Benzin - diesel - hybrid'!Y$49*(1+'Benzin - diesel - hybrid'!#REF!/100)^-$B83 ->  | W83: =(IF('Benzin - diesel - hybrid'!#REF!="nej",-IF(100-(100+'Benzin - diesel - hybrid'!AA$74)*$B83/'Benzin - diesel - hybrid'!AA$56<0,0,100-(100+'Benzin - diesel - hybrid'!AA$74)*$B83/'Benzin - diesel - hybrid'!AA$56)/100*'Benzin - diesel - hybrid'!AA$12,0)+'Benzin - diesel - hybrid'!AA$75)*'Benzin - diesel - hybrid'!AA$49*(1+'Benzin - diesel - hybrid'!#REF!/100)^-$B83 -> 
B84: 12 | C84: 12 | E84: =(IF('Benzin - diesel - hybrid'!#REF!="nej",-IF(100-(100+'Benzin - diesel - hybrid'!E$74)*$B84/'Benzin - diesel - hybrid'!E$56<0,0,100-(100+'Benzin - diesel - hybrid'!E$74)*$B84/'Benzin - diesel - hybrid'!E$56)/100*'Benzin - diesel - hybrid'!E$12,0)+'Benzin - diesel - hybrid'!E$75)*'Benzin - diesel - hybrid'!E$49*(1+'Benzin - diesel - hybrid'!#REF!/100)^-$B84 ->  | G84: =(IF('Benzin - diesel - hybrid'!#REF!="nej",-IF(100-(100+'Benzin - diesel - hybrid'!G$74)*$B84/'Benzin - diesel - hybrid'!G$56<0,0,100-(100+'Benzin - diesel - hybrid'!G$74)*$B84/'Benzin - diesel - hybrid'!G$56)/100*'Benzin - diesel - hybrid'!G$12,0)+'Benzin - diesel - hybrid'!G$75)*'Benzin - diesel - hybrid'!G$49*(1+'Benzin - diesel - hybrid'!#REF!/100)^-$B84 ->  | I84: =(IF('Benzin - diesel - hybrid'!#REF!="nej",-IF(100-(100+'Benzin - diesel - hybrid'!I$74)*$B84/'Benzin - diesel - hybrid'!I$56<0,0,100-(100+'Benzin - diesel - hybrid'!I$74)*$B84/'Benzin - diesel - hybrid'!I$56)/100*'Benzin - diesel - hybrid'!I$12,0)+'Benzin - diesel - hybrid'!I$75)*'Benzin - diesel - hybrid'!I$49*(1+'Benzin - diesel - hybrid'!#REF!/100)^-$B84 ->  | K84: =(IF('Benzin - diesel - hybrid'!#REF!="nej",-IF(100-(100+'Benzin - diesel - hybrid'!K$74)*$B84/'Benzin - diesel - hybrid'!K$56<0,0,100-(100+'Benzin - diesel - hybrid'!K$74)*$B84/'Benzin - diesel - hybrid'!K$56)/100*'Benzin - diesel - hybrid'!K$12,0)+'Benzin - diesel - hybrid'!K$75)*'Benzin - diesel - hybrid'!K$49*(1+'Benzin - diesel - hybrid'!#REF!/100)^-$B84 ->  | M84: =(IF('Benzin - diesel - hybrid'!#REF!="nej",-IF(100-(100+'Benzin - diesel - hybrid'!M$74)*$B84/'Benzin - diesel - hybrid'!M$56<0,0,100-(100+'Benzin - diesel - hybrid'!M$74)*$B84/'Benzin - diesel - hybrid'!M$56)/100*'Benzin - diesel - hybrid'!M$12,0)+'Benzin - diesel - hybrid'!M$75)*'Benzin - diesel - hybrid'!M$49*(1+'Benzin - diesel - hybrid'!#REF!/100)^-$B84 ->  | O84: =(IF('Benzin - diesel - hybrid'!#REF!="nej",-IF(100-(100+'Benzin - diesel - hybrid'!O$74)*$B84/'Benzin - diesel - hybrid'!O$56<0,0,100-(100+'Benzin - diesel - hybrid'!O$74)*$B84/'Benzin - diesel - hybrid'!O$56)/100*'Benzin - diesel - hybrid'!O$12,0)+'Benzin - diesel - hybrid'!O$75)*'Benzin - diesel - hybrid'!O$49*(1+'Benzin - diesel - hybrid'!#REF!/100)^-$B84 ->  | Q84: =(IF('Benzin - diesel - hybrid'!#REF!="nej",-IF(100-(100+'Benzin - diesel - hybrid'!Q$74)*$B84/'Benzin - diesel - hybrid'!Q$56<0,0,100-(100+'Benzin - diesel - hybrid'!Q$74)*$B84/'Benzin - diesel - hybrid'!Q$56)/100*'Benzin - diesel - hybrid'!Q$12,0)+'Benzin - diesel - hybrid'!Q$75)*'Benzin - diesel - hybrid'!Q$49*(1+'Benzin - diesel - hybrid'!#REF!/100)^-$B84 ->  | S84: =(IF('Benzin - diesel - hybrid'!#REF!="nej",-IF(100-(100+'Benzin - diesel - hybrid'!S$74)*$B84/'Benzin - diesel - hybrid'!S$56<0,0,100-(100+'Benzin - diesel - hybrid'!S$74)*$B84/'Benzin - diesel - hybrid'!S$56)/100*'Benzin - diesel - hybrid'!S$12,0)+'Benzin - diesel - hybrid'!S$75)*'Benzin - diesel - hybrid'!S$49*(1+'Benzin - diesel - hybrid'!#REF!/100)^-$B84 ->  | U84: =(IF('Benzin - diesel - hybrid'!#REF!="nej",-IF(100-(100+'Benzin - diesel - hybrid'!Y$74)*$B84/'Benzin - diesel - hybrid'!Y$56<0,0,100-(100+'Benzin - diesel - hybrid'!Y$74)*$B84/'Benzin - diesel - hybrid'!Y$56)/100*'Benzin - diesel - hybrid'!Y$12,0)+'Benzin - diesel - hybrid'!Y$75)*'Benzin - diesel - hybrid'!Y$49*(1+'Benzin - diesel - hybrid'!#REF!/100)^-$B84 ->  | W84: =(IF('Benzin - diesel - hybrid'!#REF!="nej",-IF(100-(100+'Benzin - diesel - hybrid'!AA$74)*$B84/'Benzin - diesel - hybrid'!AA$56<0,0,100-(100+'Benzin - diesel - hybrid'!AA$74)*$B84/'Benzin - diesel - hybrid'!AA$56)/100*'Benzin - diesel - hybrid'!AA$12,0)+'Benzin - diesel - hybrid'!AA$75)*'Benzin - diesel - hybrid'!AA$49*(1+'Benzin - diesel - hybrid'!#REF!/100)^-$B84 -> 
B85: 13 | C85: 13 | E85: =(IF('Benzin - diesel - hybrid'!#REF!="nej",-IF(100-(100+'Benzin - diesel - hybrid'!E$74)*$B85/'Benzin - diesel - hybrid'!E$56<0,0,100-(100+'Benzin - diesel - hybrid'!E$74)*$B85/'Benzin - diesel - hybrid'!E$56)/100*'Benzin - diesel - hybrid'!E$12,0)+'Benzin - diesel - hybrid'!E$75)*'Benzin - diesel - hybrid'!E$49*(1+'Benzin - diesel - hybrid'!#REF!/100)^-$B85 ->  | G85: =(IF('Benzin - diesel - hybrid'!#REF!="nej",-IF(100-(100+'Benzin - diesel - hybrid'!G$74)*$B85/'Benzin - diesel - hybrid'!G$56<0,0,100-(100+'Benzin - diesel - hybrid'!G$74)*$B85/'Benzin - diesel - hybrid'!G$56)/100*'Benzin - diesel - hybrid'!G$12,0)+'Benzin - diesel - hybrid'!G$75)*'Benzin - diesel - hybrid'!G$49*(1+'Benzin - diesel - hybrid'!#REF!/100)^-$B85 ->  | I85: =(IF('Benzin - diesel - hybrid'!#REF!="nej",-IF(100-(100+'Benzin - diesel - hybrid'!I$74)*$B85/'Benzin - diesel - hybrid'!I$56<0,0,100-(100+'Benzin - diesel - hybrid'!I$74)*$B85/'Benzin - diesel - hybrid'!I$56)/100*'Benzin - diesel - hybrid'!I$12,0)+'Benzin - diesel - hybrid'!I$75)*'Benzin - diesel - hybrid'!I$49*(1+'Benzin - diesel - hybrid'!#REF!/100)^-$B85 ->  | K85: =(IF('Benzin - diesel - hybrid'!#REF!="nej",-IF(100-(100+'Benzin - diesel - hybrid'!K$74)*$B85/'Benzin - diesel - hybrid'!K$56<0,0,100-(100+'Benzin - diesel - hybrid'!K$74)*$B85/'Benzin - diesel - hybrid'!K$56)/100*'Benzin - diesel - hybrid'!K$12,0)+'Benzin - diesel - hybrid'!K$75)*'Benzin - diesel - hybrid'!K$49*(1+'Benzin - diesel - hybrid'!#REF!/100)^-$B85 ->  | M85: =(IF('Benzin - diesel - hybrid'!#REF!="nej",-IF(100-(100+'Benzin - diesel - hybrid'!M$74)*$B85/'Benzin - diesel - hybrid'!M$56<0,0,100-(100+'Benzin - diesel - hybrid'!M$74)*$B85/'Benzin - diesel - hybrid'!M$56)/100*'Benzin - diesel - hybrid'!M$12,0)+'Benzin - diesel - hybrid'!M$75)*'Benzin - diesel - hybrid'!M$49*(1+'Benzin - diesel - hybrid'!#REF!/100)^-$B85 ->  | O85: =(IF('Benzin - diesel - hybrid'!#REF!="nej",-IF(100-(100+'Benzin - diesel - hybrid'!O$74)*$B85/'Benzin - diesel - hybrid'!O$56<0,0,100-(100+'Benzin - diesel - hybrid'!O$74)*$B85/'Benzin - diesel - hybrid'!O$56)/100*'Benzin - diesel - hybrid'!O$12,0)+'Benzin - diesel - hybrid'!O$75)*'Benzin - diesel - hybrid'!O$49*(1+'Benzin - diesel - hybrid'!#REF!/100)^-$B85 ->  | Q85: =(IF('Benzin - diesel - hybrid'!#REF!="nej",-IF(100-(100+'Benzin - diesel - hybrid'!Q$74)*$B85/'Benzin - diesel - hybrid'!Q$56<0,0,100-(100+'Benzin - diesel - hybrid'!Q$74)*$B85/'Benzin - diesel - hybrid'!Q$56)/100*'Benzin - diesel - hybrid'!Q$12,0)+'Benzin - diesel - hybrid'!Q$75)*'Benzin - diesel - hybrid'!Q$49*(1+'Benzin - diesel - hybrid'!#REF!/100)^-$B85 ->  | S85: =(IF('Benzin - diesel - hybrid'!#REF!="nej",-IF(100-(100+'Benzin - diesel - hybrid'!S$74)*$B85/'Benzin - diesel - hybrid'!S$56<0,0,100-(100+'Benzin - diesel - hybrid'!S$74)*$B85/'Benzin - diesel - hybrid'!S$56)/100*'Benzin - diesel - hybrid'!S$12,0)+'Benzin - diesel - hybrid'!S$75)*'Benzin - diesel - hybrid'!S$49*(1+'Benzin - diesel - hybrid'!#REF!/100)^-$B85 ->  | U85: =(IF('Benzin - diesel - hybrid'!#REF!="nej",-IF(100-(100+'Benzin - diesel - hybrid'!Y$74)*$B85/'Benzin - diesel - hybrid'!Y$56<0,0,100-(100+'Benzin - diesel - hybrid'!Y$74)*$B85/'Benzin - diesel - hybrid'!Y$56)/100*'Benzin - diesel - hybrid'!Y$12,0)+'Benzin - diesel - hybrid'!Y$75)*'Benzin - diesel - hybrid'!Y$49*(1+'Benzin - diesel - hybrid'!#REF!/100)^-$B85 ->  | W85: =(IF('Benzin - diesel - hybrid'!#REF!="nej",-IF(100-(100+'Benzin - diesel - hybrid'!AA$74)*$B85/'Benzin - diesel - hybrid'!AA$56<0,0,100-(100+'Benzin - diesel - hybrid'!AA$74)*$B85/'Benzin - diesel - hybrid'!AA$56)/100*'Benzin - diesel - hybrid'!AA$12,0)+'Benzin - diesel - hybrid'!AA$75)*'Benzin - diesel - hybrid'!AA$49*(1+'Benzin - diesel - hybrid'!#REF!/100)^-$B85 -> 
B86: 14 | C86: 14 | E86: =(IF('Benzin - diesel - hybrid'!#REF!="nej",-IF(100-(100+'Benzin - diesel - hybrid'!E$74)*$B86/'Benzin - diesel - hybrid'!E$56<0,0,100-(100+'Benzin - diesel - hybrid'!E$74)*$B86/'Benzin - diesel - hybrid'!E$56)/100*'Benzin - diesel - hybrid'!E$12,0)+'Benzin - diesel - hybrid'!E$75)*'Benzin - diesel - hybrid'!E$49*(1+'Benzin - diesel - hybrid'!#REF!/100)^-$B86 ->  | G86: =(IF('Benzin - diesel - hybrid'!#REF!="nej",-IF(100-(100+'Benzin - diesel - hybrid'!G$74)*$B86/'Benzin - diesel - hybrid'!G$56<0,0,100-(100+'Benzin - diesel - hybrid'!G$74)*$B86/'Benzin - diesel - hybrid'!G$56)/100*'Benzin - diesel - hybrid'!G$12,0)+'Benzin - diesel - hybrid'!G$75)*'Benzin - diesel - hybrid'!G$49*(1+'Benzin - diesel - hybrid'!#REF!/100)^-$B86 ->  | I86: =(IF('Benzin - diesel - hybrid'!#REF!="nej",-IF(100-(100+'Benzin - diesel - hybrid'!I$74)*$B86/'Benzin - diesel - hybrid'!I$56<0,0,100-(100+'Benzin - diesel - hybrid'!I$74)*$B86/'Benzin - diesel - hybrid'!I$56)/100*'Benzin - diesel - hybrid'!I$12,0)+'Benzin - diesel - hybrid'!I$75)*'Benzin - diesel - hybrid'!I$49*(1+'Benzin - diesel - hybrid'!#REF!/100)^-$B86 ->  | K86: =(IF('Benzin - diesel - hybrid'!#REF!="nej",-IF(100-(100+'Benzin - diesel - hybrid'!K$74)*$B86/'Benzin - diesel - hybrid'!K$56<0,0,100-(100+'Benzin - diesel - hybrid'!K$74)*$B86/'Benzin - diesel - hybrid'!K$56)/100*'Benzin - diesel - hybrid'!K$12,0)+'Benzin - diesel - hybrid'!K$75)*'Benzin - diesel - hybrid'!K$49*(1+'Benzin - diesel - hybrid'!#REF!/100)^-$B86 ->  | M86: =(IF('Benzin - diesel - hybrid'!#REF!="nej",-IF(100-(100+'Benzin - diesel - hybrid'!M$74)*$B86/'Benzin - diesel - hybrid'!M$56<0,0,100-(100+'Benzin - diesel - hybrid'!M$74)*$B86/'Benzin - diesel - hybrid'!M$56)/100*'Benzin - diesel - hybrid'!M$12,0)+'Benzin - diesel - hybrid'!M$75)*'Benzin - diesel - hybrid'!M$49*(1+'Benzin - diesel - hybrid'!#REF!/100)^-$B86 ->  | O86: =(IF('Benzin - diesel - hybrid'!#REF!="nej",-IF(100-(100+'Benzin - diesel - hybrid'!O$74)*$B86/'Benzin - diesel - hybrid'!O$56<0,0,100-(100+'Benzin - diesel - hybrid'!O$74)*$B86/'Benzin - diesel - hybrid'!O$56)/100*'Benzin - diesel - hybrid'!O$12,0)+'Benzin - diesel - hybrid'!O$75)*'Benzin - diesel - hybrid'!O$49*(1+'Benzin - diesel - hybrid'!#REF!/100)^-$B86 ->  | Q86: =(IF('Benzin - diesel - hybrid'!#REF!="nej",-IF(100-(100+'Benzin - diesel - hybrid'!Q$74)*$B86/'Benzin - diesel - hybrid'!Q$56<0,0,100-(100+'Benzin - diesel - hybrid'!Q$74)*$B86/'Benzin - diesel - hybrid'!Q$56)/100*'Benzin - diesel - hybrid'!Q$12,0)+'Benzin - diesel - hybrid'!Q$75)*'Benzin - diesel - hybrid'!Q$49*(1+'Benzin - diesel - hybrid'!#REF!/100)^-$B86 ->  | S86: =(IF('Benzin - diesel - hybrid'!#REF!="nej",-IF(100-(100+'Benzin - diesel - hybrid'!S$74)*$B86/'Benzin - diesel - hybrid'!S$56<0,0,100-(100+'Benzin - diesel - hybrid'!S$74)*$B86/'Benzin - diesel - hybrid'!S$56)/100*'Benzin - diesel - hybrid'!S$12,0)+'Benzin - diesel - hybrid'!S$75)*'Benzin - diesel - hybrid'!S$49*(1+'Benzin - diesel - hybrid'!#REF!/100)^-$B86 ->  | U86: =(IF('Benzin - diesel - hybrid'!#REF!="nej",-IF(100-(100+'Benzin - diesel - hybrid'!Y$74)*$B86/'Benzin - diesel - hybrid'!Y$56<0,0,100-(100+'Benzin - diesel - hybrid'!Y$74)*$B86/'Benzin - diesel - hybrid'!Y$56)/100*'Benzin - diesel - hybrid'!Y$12,0)+'Benzin - diesel - hybrid'!Y$75)*'Benzin - diesel - hybrid'!Y$49*(1+'Benzin - diesel - hybrid'!#REF!/100)^-$B86 ->  | W86: =(IF('Benzin - diesel - hybrid'!#REF!="nej",-IF(100-(100+'Benzin - diesel - hybrid'!AA$74)*$B86/'Benzin - diesel - hybrid'!AA$56<0,0,100-(100+'Benzin - diesel - hybrid'!AA$74)*$B86/'Benzin - diesel - hybrid'!AA$56)/100*'Benzin - diesel - hybrid'!AA$12,0)+'Benzin - diesel - hybrid'!AA$75)*'Benzin - diesel - hybrid'!AA$49*(1+'Benzin - diesel - hybrid'!#REF!/100)^-$B86 -> 
B87: 15 | C87: 15 | E87: =(IF('Benzin - diesel - hybrid'!#REF!="nej",-IF(100-(100+'Benzin - diesel - hybrid'!E$74)*$B87/'Benzin - diesel - hybrid'!E$56<0,0,100-(100+'Benzin - diesel - hybrid'!E$74)*$B87/'Benzin - diesel - hybrid'!E$56)/100*'Benzin - diesel - hybrid'!E$12,0)+'Benzin - diesel - hybrid'!E$75)*'Benzin - diesel - hybrid'!E$49*(1+'Benzin - diesel - hybrid'!#REF!/100)^-$B87 ->  | G87: =(IF('Benzin - diesel - hybrid'!#REF!="nej",-IF(100-(100+'Benzin - diesel - hybrid'!G$74)*$B87/'Benzin - diesel - hybrid'!G$56<0,0,100-(100+'Benzin - diesel - hybrid'!G$74)*$B87/'Benzin - diesel - hybrid'!G$56)/100*'Benzin - diesel - hybrid'!G$12,0)+'Benzin - diesel - hybrid'!G$75)*'Benzin - diesel - hybrid'!G$49*(1+'Benzin - diesel - hybrid'!#REF!/100)^-$B87 ->  | I87: =(IF('Benzin - diesel - hybrid'!#REF!="nej",-IF(100-(100+'Benzin - diesel - hybrid'!I$74)*$B87/'Benzin - diesel - hybrid'!I$56<0,0,100-(100+'Benzin - diesel - hybrid'!I$74)*$B87/'Benzin - diesel - hybrid'!I$56)/100*'Benzin - diesel - hybrid'!I$12,0)+'Benzin - diesel - hybrid'!I$75)*'Benzin - diesel - hybrid'!I$49*(1+'Benzin - diesel - hybrid'!#REF!/100)^-$B87 ->  | K87: =(IF('Benzin - diesel - hybrid'!#REF!="nej",-IF(100-(100+'Benzin - diesel - hybrid'!K$74)*$B87/'Benzin - diesel - hybrid'!K$56<0,0,100-(100+'Benzin - diesel - hybrid'!K$74)*$B87/'Benzin - diesel - hybrid'!K$56)/100*'Benzin - diesel - hybrid'!K$12,0)+'Benzin - diesel - hybrid'!K$75)*'Benzin - diesel - hybrid'!K$49*(1+'Benzin - diesel - hybrid'!#REF!/100)^-$B87 ->  | M87: =(IF('Benzin - diesel - hybrid'!#REF!="nej",-IF(100-(100+'Benzin - diesel - hybrid'!M$74)*$B87/'Benzin - diesel - hybrid'!M$56<0,0,100-(100+'Benzin - diesel - hybrid'!M$74)*$B87/'Benzin - diesel - hybrid'!M$56)/100*'Benzin - diesel - hybrid'!M$12,0)+'Benzin - diesel - hybrid'!M$75)*'Benzin - diesel - hybrid'!M$49*(1+'Benzin - diesel - hybrid'!#REF!/100)^-$B87 ->  | O87: =(IF('Benzin - diesel - hybrid'!#REF!="nej",-IF(100-(100+'Benzin - diesel - hybrid'!O$74)*$B87/'Benzin - diesel - hybrid'!O$56<0,0,100-(100+'Benzin - diesel - hybrid'!O$74)*$B87/'Benzin - diesel - hybrid'!O$56)/100*'Benzin - diesel - hybrid'!O$12,0)+'Benzin - diesel - hybrid'!O$75)*'Benzin - diesel - hybrid'!O$49*(1+'Benzin - diesel - hybrid'!#REF!/100)^-$B87 ->  | Q87: =(IF('Benzin - diesel - hybrid'!#REF!="nej",-IF(100-(100+'Benzin - diesel - hybrid'!Q$74)*$B87/'Benzin - diesel - hybrid'!Q$56<0,0,100-(100+'Benzin - diesel - hybrid'!Q$74)*$B87/'Benzin - diesel - hybrid'!Q$56)/100*'Benzin - diesel - hybrid'!Q$12,0)+'Benzin - diesel - hybrid'!Q$75)*'Benzin - diesel - hybrid'!Q$49*(1+'Benzin - diesel - hybrid'!#REF!/100)^-$B87 ->  | S87: =(IF('Benzin - diesel - hybrid'!#REF!="nej",-IF(100-(100+'Benzin - diesel - hybrid'!S$74)*$B87/'Benzin - diesel - hybrid'!S$56<0,0,100-(100+'Benzin - diesel - hybrid'!S$74)*$B87/'Benzin - diesel - hybrid'!S$56)/100*'Benzin - diesel - hybrid'!S$12,0)+'Benzin - diesel - hybrid'!S$75)*'Benzin - diesel - hybrid'!S$49*(1+'Benzin - diesel - hybrid'!#REF!/100)^-$B87 ->  | U87: =(IF('Benzin - diesel - hybrid'!#REF!="nej",-IF(100-(100+'Benzin - diesel - hybrid'!Y$74)*$B87/'Benzin - diesel - hybrid'!Y$56<0,0,100-(100+'Benzin - diesel - hybrid'!Y$74)*$B87/'Benzin - diesel - hybrid'!Y$56)/100*'Benzin - diesel - hybrid'!Y$12,0)+'Benzin - diesel - hybrid'!Y$75)*'Benzin - diesel - hybrid'!Y$49*(1+'Benzin - diesel - hybrid'!#REF!/100)^-$B87 ->  | W87: =(IF('Benzin - diesel - hybrid'!#REF!="nej",-IF(100-(100+'Benzin - diesel - hybrid'!AA$74)*$B87/'Benzin - diesel - hybrid'!AA$56<0,0,100-(100+'Benzin - diesel - hybrid'!AA$74)*$B87/'Benzin - diesel - hybrid'!AA$56)/100*'Benzin - diesel - hybrid'!AA$12,0)+'Benzin - diesel - hybrid'!AA$75)*'Benzin - diesel - hybrid'!AA$49*(1+'Benzin - diesel - hybrid'!#REF!/100)^-$B87 -> 
B88: 16 | C88: =B88 -> 16 | E88: =(IF('Benzin - diesel - hybrid'!#REF!="nej",-IF(100-(100+'Benzin - diesel - hybrid'!E$74)*$B88/'Benzin - diesel - hybrid'!E$56<0,0,100-(100+'Benzin - diesel - hybrid'!E$74)*$B88/'Benzin - diesel - hybrid'!E$56)/100*'Benzin - diesel - hybrid'!E$12,0)+'Benzin - diesel - hybrid'!E$75)*'Benzin - diesel - hybrid'!E$49*(1+'Benzin - diesel - hybrid'!#REF!/100)^-$B88 ->  | G88: =(IF('Benzin - diesel - hybrid'!#REF!="nej",-IF(100-(100+'Benzin - diesel - hybrid'!G$74)*$B88/'Benzin - diesel - hybrid'!G$56<0,0,100-(100+'Benzin - diesel - hybrid'!G$74)*$B88/'Benzin - diesel - hybrid'!G$56)/100*'Benzin - diesel - hybrid'!G$12,0)+'Benzin - diesel - hybrid'!G$75)*'Benzin - diesel - hybrid'!G$49*(1+'Benzin - diesel - hybrid'!#REF!/100)^-$B88 ->  | I88: =(IF('Benzin - diesel - hybrid'!#REF!="nej",-IF(100-(100+'Benzin - diesel - hybrid'!I$74)*$B88/'Benzin - diesel - hybrid'!I$56<0,0,100-(100+'Benzin - diesel - hybrid'!I$74)*$B88/'Benzin - diesel - hybrid'!I$56)/100*'Benzin - diesel - hybrid'!I$12,0)+'Benzin - diesel - hybrid'!I$75)*'Benzin - diesel - hybrid'!I$49*(1+'Benzin - diesel - hybrid'!#REF!/100)^-$B88 ->  | K88: =(IF('Benzin - diesel - hybrid'!#REF!="nej",-IF(100-(100+'Benzin - diesel - hybrid'!K$74)*$B88/'Benzin - diesel - hybrid'!K$56<0,0,100-(100+'Benzin - diesel - hybrid'!K$74)*$B88/'Benzin - diesel - hybrid'!K$56)/100*'Benzin - diesel - hybrid'!K$12,0)+'Benzin - diesel - hybrid'!K$75)*'Benzin - diesel - hybrid'!K$49*(1+'Benzin - diesel - hybrid'!#REF!/100)^-$B88 ->  | M88: =(IF('Benzin - diesel - hybrid'!#REF!="nej",-IF(100-(100+'Benzin - diesel - hybrid'!M$74)*$B88/'Benzin - diesel - hybrid'!M$56<0,0,100-(100+'Benzin - diesel - hybrid'!M$74)*$B88/'Benzin - diesel - hybrid'!M$56)/100*'Benzin - diesel - hybrid'!M$12,0)+'Benzin - diesel - hybrid'!M$75)*'Benzin - diesel - hybrid'!M$49*(1+'Benzin - diesel - hybrid'!#REF!/100)^-$B88 ->  | O88: =(IF('Benzin - diesel - hybrid'!#REF!="nej",-IF(100-(100+'Benzin - diesel - hybrid'!O$74)*$B88/'Benzin - diesel - hybrid'!O$56<0,0,100-(100+'Benzin - diesel - hybrid'!O$74)*$B88/'Benzin - diesel - hybrid'!O$56)/100*'Benzin - diesel - hybrid'!O$12,0)+'Benzin - diesel - hybrid'!O$75)*'Benzin - diesel - hybrid'!O$49*(1+'Benzin - diesel - hybrid'!#REF!/100)^-$B88 ->  | Q88: =(IF('Benzin - diesel - hybrid'!#REF!="nej",-IF(100-(100+'Benzin - diesel - hybrid'!Q$74)*$B88/'Benzin - diesel - hybrid'!Q$56<0,0,100-(100+'Benzin - diesel - hybrid'!Q$74)*$B88/'Benzin - diesel - hybrid'!Q$56)/100*'Benzin - diesel - hybrid'!Q$12,0)+'Benzin - diesel - hybrid'!Q$75)*'Benzin - diesel - hybrid'!Q$49*(1+'Benzin - diesel - hybrid'!#REF!/100)^-$B88 ->  | S88: =(IF('Benzin - diesel - hybrid'!#REF!="nej",-IF(100-(100+'Benzin - diesel - hybrid'!S$74)*$B88/'Benzin - diesel - hybrid'!S$56<0,0,100-(100+'Benzin - diesel - hybrid'!S$74)*$B88/'Benzin - diesel - hybrid'!S$56)/100*'Benzin - diesel - hybrid'!S$12,0)+'Benzin - diesel - hybrid'!S$75)*'Benzin - diesel - hybrid'!S$49*(1+'Benzin - diesel - hybrid'!#REF!/100)^-$B88 ->  | U88: =(IF('Benzin - diesel - hybrid'!#REF!="nej",-IF(100-(100+'Benzin - diesel - hybrid'!Y$74)*$B88/'Benzin - diesel - hybrid'!Y$56<0,0,100-(100+'Benzin - diesel - hybrid'!Y$74)*$B88/'Benzin - diesel - hybrid'!Y$56)/100*'Benzin - diesel - hybrid'!Y$12,0)+'Benzin - diesel - hybrid'!Y$75)*'Benzin - diesel - hybrid'!Y$49*(1+'Benzin - diesel - hybrid'!#REF!/100)^-$B88 ->  | W88: =(IF('Benzin - diesel - hybrid'!#REF!="nej",-IF(100-(100+'Benzin - diesel - hybrid'!AA$74)*$B88/'Benzin - diesel - hybrid'!AA$56<0,0,100-(100+'Benzin - diesel - hybrid'!AA$74)*$B88/'Benzin - diesel - hybrid'!AA$56)/100*'Benzin - diesel - hybrid'!AA$12,0)+'Benzin - diesel - hybrid'!AA$75)*'Benzin - diesel - hybrid'!AA$49*(1+'Benzin - diesel - hybrid'!#REF!/100)^-$B88 -> 
B89: 17 | C89: 17 | E89: =(IF('Benzin - diesel - hybrid'!#REF!="nej",-IF(100-(100+'Benzin - diesel - hybrid'!E$74)*$B89/'Benzin - diesel - hybrid'!E$56<0,0,100-(100+'Benzin - diesel - hybrid'!E$74)*$B89/'Benzin - diesel - hybrid'!E$56)/100*'Benzin - diesel - hybrid'!E$12,0)+'Benzin - diesel - hybrid'!E$75)*'Benzin - diesel - hybrid'!E$49*(1+'Benzin - diesel - hybrid'!#REF!/100)^-$B89 ->  | G89: =(IF('Benzin - diesel - hybrid'!#REF!="nej",-IF(100-(100+'Benzin - diesel - hybrid'!G$74)*$B89/'Benzin - diesel - hybrid'!G$56<0,0,100-(100+'Benzin - diesel - hybrid'!G$74)*$B89/'Benzin - diesel - hybrid'!G$56)/100*'Benzin - diesel - hybrid'!G$12,0)+'Benzin - diesel - hybrid'!G$75)*'Benzin - diesel - hybrid'!G$49*(1+'Benzin - diesel - hybrid'!#REF!/100)^-$B89 ->  | I89: =(IF('Benzin - diesel - hybrid'!#REF!="nej",-IF(100-(100+'Benzin - diesel - hybrid'!I$74)*$B89/'Benzin - diesel - hybrid'!I$56<0,0,100-(100+'Benzin - diesel - hybrid'!I$74)*$B89/'Benzin - diesel - hybrid'!I$56)/100*'Benzin - diesel - hybrid'!I$12,0)+'Benzin - diesel - hybrid'!I$75)*'Benzin - diesel - hybrid'!I$49*(1+'Benzin - diesel - hybrid'!#REF!/100)^-$B89 ->  | K89: =(IF('Benzin - diesel - hybrid'!#REF!="nej",-IF(100-(100+'Benzin - diesel - hybrid'!K$74)*$B89/'Benzin - diesel - hybrid'!K$56<0,0,100-(100+'Benzin - diesel - hybrid'!K$74)*$B89/'Benzin - diesel - hybrid'!K$56)/100*'Benzin - diesel - hybrid'!K$12,0)+'Benzin - diesel - hybrid'!K$75)*'Benzin - diesel - hybrid'!K$49*(1+'Benzin - diesel - hybrid'!#REF!/100)^-$B89 ->  | M89: =(IF('Benzin - diesel - hybrid'!#REF!="nej",-IF(100-(100+'Benzin - diesel - hybrid'!M$74)*$B89/'Benzin - diesel - hybrid'!M$56<0,0,100-(100+'Benzin - diesel - hybrid'!M$74)*$B89/'Benzin - diesel - hybrid'!M$56)/100*'Benzin - diesel - hybrid'!M$12,0)+'Benzin - diesel - hybrid'!M$75)*'Benzin - diesel - hybrid'!M$49*(1+'Benzin - diesel - hybrid'!#REF!/100)^-$B89 ->  | O89: =(IF('Benzin - diesel - hybrid'!#REF!="nej",-IF(100-(100+'Benzin - diesel - hybrid'!O$74)*$B89/'Benzin - diesel - hybrid'!O$56<0,0,100-(100+'Benzin - diesel - hybrid'!O$74)*$B89/'Benzin - diesel - hybrid'!O$56)/100*'Benzin - diesel - hybrid'!O$12,0)+'Benzin - diesel - hybrid'!O$75)*'Benzin - diesel - hybrid'!O$49*(1+'Benzin - diesel - hybrid'!#REF!/100)^-$B89 ->  | Q89: =(IF('Benzin - diesel - hybrid'!#REF!="nej",-IF(100-(100+'Benzin - diesel - hybrid'!Q$74)*$B89/'Benzin - diesel - hybrid'!Q$56<0,0,100-(100+'Benzin - diesel - hybrid'!Q$74)*$B89/'Benzin - diesel - hybrid'!Q$56)/100*'Benzin - diesel - hybrid'!Q$12,0)+'Benzin - diesel - hybrid'!Q$75)*'Benzin - diesel - hybrid'!Q$49*(1+'Benzin - diesel - hybrid'!#REF!/100)^-$B89 ->  | S89: =(IF('Benzin - diesel - hybrid'!#REF!="nej",-IF(100-(100+'Benzin - diesel - hybrid'!S$74)*$B89/'Benzin - diesel - hybrid'!S$56<0,0,100-(100+'Benzin - diesel - hybrid'!S$74)*$B89/'Benzin - diesel - hybrid'!S$56)/100*'Benzin - diesel - hybrid'!S$12,0)+'Benzin - diesel - hybrid'!S$75)*'Benzin - diesel - hybrid'!S$49*(1+'Benzin - diesel - hybrid'!#REF!/100)^-$B89 ->  | U89: =(IF('Benzin - diesel - hybrid'!#REF!="nej",-IF(100-(100+'Benzin - diesel - hybrid'!Y$74)*$B89/'Benzin - diesel - hybrid'!Y$56<0,0,100-(100+'Benzin - diesel - hybrid'!Y$74)*$B89/'Benzin - diesel - hybrid'!Y$56)/100*'Benzin - diesel - hybrid'!Y$12,0)+'Benzin - diesel - hybrid'!Y$75)*'Benzin - diesel - hybrid'!Y$49*(1+'Benzin - diesel - hybrid'!#REF!/100)^-$B89 ->  | W89: =(IF('Benzin - diesel - hybrid'!#REF!="nej",-IF(100-(100+'Benzin - diesel - hybrid'!AA$74)*$B89/'Benzin - diesel - hybrid'!AA$56<0,0,100-(100+'Benzin - diesel - hybrid'!AA$74)*$B89/'Benzin - diesel - hybrid'!AA$56)/100*'Benzin - diesel - hybrid'!AA$12,0)+'Benzin - diesel - hybrid'!AA$75)*'Benzin - diesel - hybrid'!AA$49*(1+'Benzin - diesel - hybrid'!#REF!/100)^-$B89 -> 
B90: 18 | C90: 18 | E90: =(IF('Benzin - diesel - hybrid'!#REF!="nej",-IF(100-(100+'Benzin - diesel - hybrid'!E$74)*$B90/'Benzin - diesel - hybrid'!E$56<0,0,100-(100+'Benzin - diesel - hybrid'!E$74)*$B90/'Benzin - diesel - hybrid'!E$56)/100*'Benzin - diesel - hybrid'!E$12,0)+'Benzin - diesel - hybrid'!E$75)*'Benzin - diesel - hybrid'!E$49*(1+'Benzin - diesel - hybrid'!#REF!/100)^-$B90 ->  | G90: =(IF('Benzin - diesel - hybrid'!#REF!="nej",-IF(100-(100+'Benzin - diesel - hybrid'!G$74)*$B90/'Benzin - diesel - hybrid'!G$56<0,0,100-(100+'Benzin - diesel - hybrid'!G$74)*$B90/'Benzin - diesel - hybrid'!G$56)/100*'Benzin - diesel - hybrid'!G$12,0)+'Benzin - diesel - hybrid'!G$75)*'Benzin - diesel - hybrid'!G$49*(1+'Benzin - diesel - hybrid'!#REF!/100)^-$B90 ->  | I90: =(IF('Benzin - diesel - hybrid'!#REF!="nej",-IF(100-(100+'Benzin - diesel - hybrid'!I$74)*$B90/'Benzin - diesel - hybrid'!I$56<0,0,100-(100+'Benzin - diesel - hybrid'!I$74)*$B90/'Benzin - diesel - hybrid'!I$56)/100*'Benzin - diesel - hybrid'!I$12,0)+'Benzin - diesel - hybrid'!I$75)*'Benzin - diesel - hybrid'!I$49*(1+'Benzin - diesel - hybrid'!#REF!/100)^-$B90 ->  | K90: =(IF('Benzin - diesel - hybrid'!#REF!="nej",-IF(100-(100+'Benzin - diesel - hybrid'!K$74)*$B90/'Benzin - diesel - hybrid'!K$56<0,0,100-(100+'Benzin - diesel - hybrid'!K$74)*$B90/'Benzin - diesel - hybrid'!K$56)/100*'Benzin - diesel - hybrid'!K$12,0)+'Benzin - diesel - hybrid'!K$75)*'Benzin - diesel - hybrid'!K$49*(1+'Benzin - diesel - hybrid'!#REF!/100)^-$B90 ->  | M90: =(IF('Benzin - diesel - hybrid'!#REF!="nej",-IF(100-(100+'Benzin - diesel - hybrid'!M$74)*$B90/'Benzin - diesel - hybrid'!M$56<0,0,100-(100+'Benzin - diesel - hybrid'!M$74)*$B90/'Benzin - diesel - hybrid'!M$56)/100*'Benzin - diesel - hybrid'!M$12,0)+'Benzin - diesel - hybrid'!M$75)*'Benzin - diesel - hybrid'!M$49*(1+'Benzin - diesel - hybrid'!#REF!/100)^-$B90 ->  | O90: =(IF('Benzin - diesel - hybrid'!#REF!="nej",-IF(100-(100+'Benzin - diesel - hybrid'!O$74)*$B90/'Benzin - diesel - hybrid'!O$56<0,0,100-(100+'Benzin - diesel - hybrid'!O$74)*$B90/'Benzin - diesel - hybrid'!O$56)/100*'Benzin - diesel - hybrid'!O$12,0)+'Benzin - diesel - hybrid'!O$75)*'Benzin - diesel - hybrid'!O$49*(1+'Benzin - diesel - hybrid'!#REF!/100)^-$B90 ->  | Q90: =(IF('Benzin - diesel - hybrid'!#REF!="nej",-IF(100-(100+'Benzin - diesel - hybrid'!Q$74)*$B90/'Benzin - diesel - hybrid'!Q$56<0,0,100-(100+'Benzin - diesel - hybrid'!Q$74)*$B90/'Benzin - diesel - hybrid'!Q$56)/100*'Benzin - diesel - hybrid'!Q$12,0)+'Benzin - diesel - hybrid'!Q$75)*'Benzin - diesel - hybrid'!Q$49*(1+'Benzin - diesel - hybrid'!#REF!/100)^-$B90 ->  | S90: =(IF('Benzin - diesel - hybrid'!#REF!="nej",-IF(100-(100+'Benzin - diesel - hybrid'!S$74)*$B90/'Benzin - diesel - hybrid'!S$56<0,0,100-(100+'Benzin - diesel - hybrid'!S$74)*$B90/'Benzin - diesel - hybrid'!S$56)/100*'Benzin - diesel - hybrid'!S$12,0)+'Benzin - diesel - hybrid'!S$75)*'Benzin - diesel - hybrid'!S$49*(1+'Benzin - diesel - hybrid'!#REF!/100)^-$B90 ->  | U90: =(IF('Benzin - diesel - hybrid'!#REF!="nej",-IF(100-(100+'Benzin - diesel - hybrid'!Y$74)*$B90/'Benzin - diesel - hybrid'!Y$56<0,0,100-(100+'Benzin - diesel - hybrid'!Y$74)*$B90/'Benzin - diesel - hybrid'!Y$56)/100*'Benzin - diesel - hybrid'!Y$12,0)+'Benzin - diesel - hybrid'!Y$75)*'Benzin - diesel - hybrid'!Y$49*(1+'Benzin - diesel - hybrid'!#REF!/100)^-$B90 ->  | W90: =(IF('Benzin - diesel - hybrid'!#REF!="nej",-IF(100-(100+'Benzin - diesel - hybrid'!AA$74)*$B90/'Benzin - diesel - hybrid'!AA$56<0,0,100-(100+'Benzin - diesel - hybrid'!AA$74)*$B90/'Benzin - diesel - hybrid'!AA$56)/100*'Benzin - diesel - hybrid'!AA$12,0)+'Benzin - diesel - hybrid'!AA$75)*'Benzin - diesel - hybrid'!AA$49*(1+'Benzin - diesel - hybrid'!#REF!/100)^-$B90 -> 
B91: 19 | C91: 19 | E91: =(IF('Benzin - diesel - hybrid'!#REF!="nej",-IF(100-(100+'Benzin - diesel - hybrid'!E$74)*$B91/'Benzin - diesel - hybrid'!E$56<0,0,100-(100+'Benzin - diesel - hybrid'!E$74)*$B91/'Benzin - diesel - hybrid'!E$56)/100*'Benzin - diesel - hybrid'!E$12,0)+'Benzin - diesel - hybrid'!E$75)*'Benzin - diesel - hybrid'!E$49*(1+'Benzin - diesel - hybrid'!#REF!/100)^-$B91 ->  | G91: =(IF('Benzin - diesel - hybrid'!#REF!="nej",-IF(100-(100+'Benzin - diesel - hybrid'!G$74)*$B91/'Benzin - diesel - hybrid'!G$56<0,0,100-(100+'Benzin - diesel - hybrid'!G$74)*$B91/'Benzin - diesel - hybrid'!G$56)/100*'Benzin - diesel - hybrid'!G$12,0)+'Benzin - diesel - hybrid'!G$75)*'Benzin - diesel - hybrid'!G$49*(1+'Benzin - diesel - hybrid'!#REF!/100)^-$B91 ->  | I91: =(IF('Benzin - diesel - hybrid'!#REF!="nej",-IF(100-(100+'Benzin - diesel - hybrid'!I$74)*$B91/'Benzin - diesel - hybrid'!I$56<0,0,100-(100+'Benzin - diesel - hybrid'!I$74)*$B91/'Benzin - diesel - hybrid'!I$56)/100*'Benzin - diesel - hybrid'!I$12,0)+'Benzin - diesel - hybrid'!I$75)*'Benzin - diesel - hybrid'!I$49*(1+'Benzin - diesel - hybrid'!#REF!/100)^-$B91 ->  | K91: =(IF('Benzin - diesel - hybrid'!#REF!="nej",-IF(100-(100+'Benzin - diesel - hybrid'!K$74)*$B91/'Benzin - diesel - hybrid'!K$56<0,0,100-(100+'Benzin - diesel - hybrid'!K$74)*$B91/'Benzin - diesel - hybrid'!K$56)/100*'Benzin - diesel - hybrid'!K$12,0)+'Benzin - diesel - hybrid'!K$75)*'Benzin - diesel - hybrid'!K$49*(1+'Benzin - diesel - hybrid'!#REF!/100)^-$B91 ->  | M91: =(IF('Benzin - diesel - hybrid'!#REF!="nej",-IF(100-(100+'Benzin - diesel - hybrid'!M$74)*$B91/'Benzin - diesel - hybrid'!M$56<0,0,100-(100+'Benzin - diesel - hybrid'!M$74)*$B91/'Benzin - diesel - hybrid'!M$56)/100*'Benzin - diesel - hybrid'!M$12,0)+'Benzin - diesel - hybrid'!M$75)*'Benzin - diesel - hybrid'!M$49*(1+'Benzin - diesel - hybrid'!#REF!/100)^-$B91 ->  | O91: =(IF('Benzin - diesel - hybrid'!#REF!="nej",-IF(100-(100+'Benzin - diesel - hybrid'!O$74)*$B91/'Benzin - diesel - hybrid'!O$56<0,0,100-(100+'Benzin - diesel - hybrid'!O$74)*$B91/'Benzin - diesel - hybrid'!O$56)/100*'Benzin - diesel - hybrid'!O$12,0)+'Benzin - diesel - hybrid'!O$75)*'Benzin - diesel - hybrid'!O$49*(1+'Benzin - diesel - hybrid'!#REF!/100)^-$B91 ->  | Q91: =(IF('Benzin - diesel - hybrid'!#REF!="nej",-IF(100-(100+'Benzin - diesel - hybrid'!Q$74)*$B91/'Benzin - diesel - hybrid'!Q$56<0,0,100-(100+'Benzin - diesel - hybrid'!Q$74)*$B91/'Benzin - diesel - hybrid'!Q$56)/100*'Benzin - diesel - hybrid'!Q$12,0)+'Benzin - diesel - hybrid'!Q$75)*'Benzin - diesel - hybrid'!Q$49*(1+'Benzin - diesel - hybrid'!#REF!/100)^-$B91 ->  | S91: =(IF('Benzin - diesel - hybrid'!#REF!="nej",-IF(100-(100+'Benzin - diesel - hybrid'!S$74)*$B91/'Benzin - diesel - hybrid'!S$56<0,0,100-(100+'Benzin - diesel - hybrid'!S$74)*$B91/'Benzin - diesel - hybrid'!S$56)/100*'Benzin - diesel - hybrid'!S$12,0)+'Benzin - diesel - hybrid'!S$75)*'Benzin - diesel - hybrid'!S$49*(1+'Benzin - diesel - hybrid'!#REF!/100)^-$B91 ->  | U91: =(IF('Benzin - diesel - hybrid'!#REF!="nej",-IF(100-(100+'Benzin - diesel - hybrid'!Y$74)*$B91/'Benzin - diesel - hybrid'!Y$56<0,0,100-(100+'Benzin - diesel - hybrid'!Y$74)*$B91/'Benzin - diesel - hybrid'!Y$56)/100*'Benzin - diesel - hybrid'!Y$12,0)+'Benzin - diesel - hybrid'!Y$75)*'Benzin - diesel - hybrid'!Y$49*(1+'Benzin - diesel - hybrid'!#REF!/100)^-$B91 ->  | W91: =(IF('Benzin - diesel - hybrid'!#REF!="nej",-IF(100-(100+'Benzin - diesel - hybrid'!AA$74)*$B91/'Benzin - diesel - hybrid'!AA$56<0,0,100-(100+'Benzin - diesel - hybrid'!AA$74)*$B91/'Benzin - diesel - hybrid'!AA$56)/100*'Benzin - diesel - hybrid'!AA$12,0)+'Benzin - diesel - hybrid'!AA$75)*'Benzin - diesel - hybrid'!AA$49*(1+'Benzin - diesel - hybrid'!#REF!/100)^-$B91 -> 
B92: 20 | C92: 20 | E92: =(IF('Benzin - diesel - hybrid'!#REF!="nej",-IF(100-(100+'Benzin - diesel - hybrid'!E$74)*$B92/'Benzin - diesel - hybrid'!E$56<0,0,100-(100+'Benzin - diesel - hybrid'!E$74)*$B92/'Benzin - diesel - hybrid'!E$56)/100*'Benzin - diesel - hybrid'!E$12,0)+'Benzin - diesel - hybrid'!E$75)*'Benzin - diesel - hybrid'!E$49*(1+'Benzin - diesel - hybrid'!#REF!/100)^-$B92 ->  | G92: =(IF('Benzin - diesel - hybrid'!#REF!="nej",-IF(100-(100+'Benzin - diesel - hybrid'!G$74)*$B92/'Benzin - diesel - hybrid'!G$56<0,0,100-(100+'Benzin - diesel - hybrid'!G$74)*$B92/'Benzin - diesel - hybrid'!G$56)/100*'Benzin - diesel - hybrid'!G$12,0)+'Benzin - diesel - hybrid'!G$75)*'Benzin - diesel - hybrid'!G$49*(1+'Benzin - diesel - hybrid'!#REF!/100)^-$B92 ->  | I92: =(IF('Benzin - diesel - hybrid'!#REF!="nej",-IF(100-(100+'Benzin - diesel - hybrid'!I$74)*$B92/'Benzin - diesel - hybrid'!I$56<0,0,100-(100+'Benzin - diesel - hybrid'!I$74)*$B92/'Benzin - diesel - hybrid'!I$56)/100*'Benzin - diesel - hybrid'!I$12,0)+'Benzin - diesel - hybrid'!I$75)*'Benzin - diesel - hybrid'!I$49*(1+'Benzin - diesel - hybrid'!#REF!/100)^-$B92 ->  | K92: =(IF('Benzin - diesel - hybrid'!#REF!="nej",-IF(100-(100+'Benzin - diesel - hybrid'!K$74)*$B92/'Benzin - diesel - hybrid'!K$56<0,0,100-(100+'Benzin - diesel - hybrid'!K$74)*$B92/'Benzin - diesel - hybrid'!K$56)/100*'Benzin - diesel - hybrid'!K$12,0)+'Benzin - diesel - hybrid'!K$75)*'Benzin - diesel - hybrid'!K$49*(1+'Benzin - diesel - hybrid'!#REF!/100)^-$B92 ->  | M92: =(IF('Benzin - diesel - hybrid'!#REF!="nej",-IF(100-(100+'Benzin - diesel - hybrid'!M$74)*$B92/'Benzin - diesel - hybrid'!M$56<0,0,100-(100+'Benzin - diesel - hybrid'!M$74)*$B92/'Benzin - diesel - hybrid'!M$56)/100*'Benzin - diesel - hybrid'!M$12,0)+'Benzin - diesel - hybrid'!M$75)*'Benzin - diesel - hybrid'!M$49*(1+'Benzin - diesel - hybrid'!#REF!/100)^-$B92 ->  | O92: =(IF('Benzin - diesel - hybrid'!#REF!="nej",-IF(100-(100+'Benzin - diesel - hybrid'!O$74)*$B92/'Benzin - diesel - hybrid'!O$56<0,0,100-(100+'Benzin - diesel - hybrid'!O$74)*$B92/'Benzin - diesel - hybrid'!O$56)/100*'Benzin - diesel - hybrid'!O$12,0)+'Benzin - diesel - hybrid'!O$75)*'Benzin - diesel - hybrid'!O$49*(1+'Benzin - diesel - hybrid'!#REF!/100)^-$B92 ->  | Q92: =(IF('Benzin - diesel - hybrid'!#REF!="nej",-IF(100-(100+'Benzin - diesel - hybrid'!Q$74)*$B92/'Benzin - diesel - hybrid'!Q$56<0,0,100-(100+'Benzin - diesel - hybrid'!Q$74)*$B92/'Benzin - diesel - hybrid'!Q$56)/100*'Benzin - diesel - hybrid'!Q$12,0)+'Benzin - diesel - hybrid'!Q$75)*'Benzin - diesel - hybrid'!Q$49*(1+'Benzin - diesel - hybrid'!#REF!/100)^-$B92 ->  | S92: =(IF('Benzin - diesel - hybrid'!#REF!="nej",-IF(100-(100+'Benzin - diesel - hybrid'!S$74)*$B92/'Benzin - diesel - hybrid'!S$56<0,0,100-(100+'Benzin - diesel - hybrid'!S$74)*$B92/'Benzin - diesel - hybrid'!S$56)/100*'Benzin - diesel - hybrid'!S$12,0)+'Benzin - diesel - hybrid'!S$75)*'Benzin - diesel - hybrid'!S$49*(1+'Benzin - diesel - hybrid'!#REF!/100)^-$B92 ->  | U92: =(IF('Benzin - diesel - hybrid'!#REF!="nej",-IF(100-(100+'Benzin - diesel - hybrid'!Y$74)*$B92/'Benzin - diesel - hybrid'!Y$56<0,0,100-(100+'Benzin - diesel - hybrid'!Y$74)*$B92/'Benzin - diesel - hybrid'!Y$56)/100*'Benzin - diesel - hybrid'!Y$12,0)+'Benzin - diesel - hybrid'!Y$75)*'Benzin - diesel - hybrid'!Y$49*(1+'Benzin - diesel - hybrid'!#REF!/100)^-$B92 ->  | W92: =(IF('Benzin - diesel - hybrid'!#REF!="nej",-IF(100-(100+'Benzin - diesel - hybrid'!AA$74)*$B92/'Benzin - diesel - hybrid'!AA$56<0,0,100-(100+'Benzin - diesel - hybrid'!AA$74)*$B92/'Benzin - diesel - hybrid'!AA$56)/100*'Benzin - diesel - hybrid'!AA$12,0)+'Benzin - diesel - hybrid'!AA$75)*'Benzin - diesel - hybrid'!AA$49*(1+'Benzin - diesel - hybrid'!#REF!/100)^-$B92 -> 
A94: Gennemsnitlige årlige omkostninger
B95: År indeks | D95: TCO-evalueringsperiode | E95: =E25 -> PRODUKT 1 | G95: =G25 -> PRODUKT 2 | I95: =I25 -> PRODUKT 3 | K95: =K25 -> PRODUKT 4 | M95: =M25 -> PRODUKT 5 | O95: =O25 -> PRODUKT 6 | Q95: =Q25 -> PRODUKT 7 | S95: =S25 -> PRODUKT 8 | U95: =U25 -> PRODUKT 9 | W95: =W25 -> PRODUKT 10
B96: 1 | C96: =B96 -> 1 | E96: =PMT('Benzin - diesel - hybrid'!E$57,$B96,-E$26) -> 0 | G96: =PMT('Benzin - diesel - hybrid'!G$57,$B96,-G$26) -> 0 | I96: =PMT('Benzin - diesel - hybrid'!I$57,$B96,-I$26) -> 0 | K96: =PMT('Benzin - diesel - hybrid'!K$57,$B96,-K$26) -> 0 | M96: =PMT('Benzin - diesel - hybrid'!M$57,$B96,-M$26) -> 0 | O96: =PMT('Benzin - diesel - hybrid'!O$57,$B96,-O$26) -> 0 | Q96: =PMT('Benzin - diesel - hybrid'!Q$57,$B96,-Q$26) -> 0 | S96: =PMT('Benzin - diesel - hybrid'!S$57,$B96,-S$26) -> 0 | U96: =PMT('Benzin - diesel - hybrid'!U$57,$B96,-U$26) -> 0 | W96: =PMT('Benzin - diesel - hybrid'!W$57,$B96,-W$26) -> 0
B97: 2 | C97: =B97 -> 2 | E97: =PMT('Benzin - diesel - hybrid'!E$57,$B97,-E$26) -> 0 | G97: =PMT('Benzin - diesel - hybrid'!G$57,$B97,-G$26) -> 0 | I97: =PMT('Benzin - diesel - hybrid'!I$57,$B97,-I$26) -> 0 | K97: =PMT('Benzin - diesel - hybrid'!K$57,$B97,-K$26) -> 0 | M97: =PMT('Benzin - diesel - hybrid'!M$57,$B97,-M$26) -> 0 | O97: =PMT('Benzin - diesel - hybrid'!O$57,$B97,-O$26) -> 0 | Q97: =PMT('Benzin - diesel - hybrid'!Q$57,$B97,-Q$26) -> 0 | S97: =PMT('Benzin - diesel - hybrid'!S$57,$B97,-S$26) -> 0 | U97: =PMT('Benzin - diesel - hybrid'!U$57,$B97,-U$26) -> 0 | W97: =PMT('Benzin - diesel - hybrid'!W$57,$B97,-W$26) -> 0
B98: 3 | C98: 3 | E98: =PMT('Benzin - diesel - hybrid'!E$57,$B98,-E$26) -> 0 | G98: =PMT('Benzin - diesel - hybrid'!G$57,$B98,-G$26) -> 0 | I98: =PMT('Benzin - diesel - hybrid'!I$57,$B98,-I$26) -> 0 | K98: =PMT('Benzin - diesel - hybrid'!K$57,$B98,-K$26) -> 0 | M98: =PMT('Benzin - diesel - hybrid'!M$57,$B98,-M$26) -> 0 | O98: =PMT('Benzin - diesel - hybrid'!O$57,$B98,-O$26) -> 0 | Q98: =PMT('Benzin - diesel - hybrid'!Q$57,$B98,-Q$26) -> 0 | S98: =PMT('Benzin - diesel - hybrid'!S$57,$B98,-S$26) -> 0 | U98: =PMT('Benzin - diesel - hybrid'!U$57,$B98,-U$26) -> 0 | W98: =PMT('Benzin - diesel - hybrid'!W$57,$B98,-W$26) -> 0
B99: 4 | C99: 4 | E99: =PMT('Benzin - diesel - hybrid'!E$57,$B99,-E$26) -> 0 | G99: =PMT('Benzin - diesel - hybrid'!G$57,$B99,-G$26) -> 0 | I99: =PMT('Benzin - diesel - hybrid'!I$57,$B99,-I$26) -> 0 | K99: =PMT('Benzin - diesel - hybrid'!K$57,$B99,-K$26) -> 0 | M99: =PMT('Benzin - diesel - hybrid'!M$57,$B99,-M$26) -> 0 | O99: =PMT('Benzin - diesel - hybrid'!O$57,$B99,-O$26) -> 0 | Q99: =PMT('Benzin - diesel - hybrid'!Q$57,$B99,-Q$26) -> 0 | S99: =PMT('Benzin - diesel - hybrid'!S$57,$B99,-S$26) -> 0 | U99: =PMT('Benzin - diesel - hybrid'!U$57,$B99,-U$26) -> 0 | W99: =PMT('Benzin - diesel - hybrid'!W$57,$B99,-W$26) -> 0
B100: 5 | C100: 5 | E100: =PMT('Benzin - diesel - hybrid'!E$57,$B100,-E$26) -> 0 | G100: =PMT('Benzin - diesel - hybrid'!G$57,$B100,-G$26) -> 0 | I100: =PMT('Benzin - diesel - hybrid'!I$57,$B100,-I$26) -> 0 | K100: =PMT('Benzin - diesel - hybrid'!K$57,$B100,-K$26) -> 0 | M100: =PMT('Benzin - diesel - hybrid'!M$57,$B100,-M$26) -> 0 | O100: =PMT('Benzin - diesel - hybrid'!O$57,$B100,-O$26) -> 0 | Q100: =PMT('Benzin - diesel - hybrid'!Q$57,$B100,-Q$26) -> 0 | S100: =PMT('Benzin - diesel - hybrid'!S$57,$B100,-S$26) -> 0 | U100: =PMT('Benzin - diesel - hybrid'!U$57,$B100,-U$26) -> 0 | W100: =PMT('Benzin - diesel - hybrid'!W$57,$B100,-W$26) -> 0
B101: 6 | C101: 6 | E101: =PMT('Benzin - diesel - hybrid'!E$57,$B101,-E$26) -> 0 | G101: =PMT('Benzin - diesel - hybrid'!G$57,$B101,-G$26) -> 0 | I101: =PMT('Benzin - diesel - hybrid'!I$57,$B101,-I$26) -> 0 | K101: =PMT('Benzin - diesel - hybrid'!K$57,$B101,-K$26) -> 0 | M101: =PMT('Benzin - diesel - hybrid'!M$57,$B101,-M$26) -> 0 | O101: =PMT('Benzin - diesel - hybrid'!O$57,$B101,-O$26) -> 0 | Q101: =PMT('Benzin - diesel - hybrid'!Q$57,$B101,-Q$26) -> 0 | S101: =PMT('Benzin - diesel - hybrid'!S$57,$B101,-S$26) -> 0 | U101: =PMT('Benzin - diesel - hybrid'!U$57,$B101,-U$26) -> 0 | W101: =PMT('Benzin - diesel - hybrid'!W$57,$B101,-W$26) -> 0
B102: 7 | C102: 7 | E102: =PMT('Benzin - diesel - hybrid'!E$57,$B102,-E$26) -> 0 | G102: =PMT('Benzin - diesel - hybrid'!G$57,$B102,-G$26) -> 0 | I102: =PMT('Benzin - diesel - hybrid'!I$57,$B102,-I$26) -> 0 | K102: =PMT('Benzin - diesel - hybrid'!K$57,$B102,-K$26) -> 0 | M102: =PMT('Benzin - diesel - hybrid'!M$57,$B102,-M$26) -> 0 | O102: =PMT('Benzin - diesel - hybrid'!O$57,$B102,-O$26) -> 0 | Q102: =PMT('Benzin - diesel - hybrid'!Q$57,$B102,-Q$26) -> 0 | S102: =PMT('Benzin - diesel - hybrid'!S$57,$B102,-S$26) -> 0 | U102: =PMT('Benzin - diesel - hybrid'!U$57,$B102,-U$26) -> 0 | W102: =PMT('Benzin - diesel - hybrid'!W$57,$B102,-W$26) -> 0
B103: 8 | C103: 8 | E103: =PMT('Benzin - diesel - hybrid'!E$57,$B103,-E$26) -> 0 | G103: =PMT('Benzin - diesel - hybrid'!G$57,$B103,-G$26) -> 0 | I103: =PMT('Benzin - diesel - hybrid'!I$57,$B103,-I$26) -> 0 | K103: =PMT('Benzin - diesel - hybrid'!K$57,$B103,-K$26) -> 0 | M103: =PMT('Benzin - diesel - hybrid'!M$57,$B103,-M$26) -> 0 | O103: =PMT('Benzin - diesel - hybrid'!O$57,$B103,-O$26) -> 0 | Q103: =PMT('Benzin - diesel - hybrid'!Q$57,$B103,-Q$26) -> 0 | S103: =PMT('Benzin - diesel - hybrid'!S$57,$B103,-S$26) -> 0 | U103: =PMT('Benzin - diesel - hybrid'!U$57,$B103,-U$26) -> 0 | W103: =PMT('Benzin - diesel - hybrid'!W$57,$B103,-W$26) -> 0
B104: 9 | C104: 9 | E104: =PMT('Benzin - diesel - hybrid'!E$57,$B104,-E$26) -> 0 | G104: =PMT('Benzin - diesel - hybrid'!G$57,$B104,-G$26) -> 0 | I104: =PMT('Benzin - diesel - hybrid'!I$57,$B104,-I$26) -> 0 | K104: =PMT('Benzin - diesel - hybrid'!K$57,$B104,-K$26) -> 0 | M104: =PMT('Benzin - diesel - hybrid'!M$57,$B104,-M$26) -> 0 | O104: =PMT('Benzin - diesel - hybrid'!O$57,$B104,-O$26) -> 0 | Q104: =PMT('Benzin - diesel - hybrid'!Q$57,$B104,-Q$26) -> 0 | S104: =PMT('Benzin - diesel - hybrid'!S$57,$B104,-S$26) -> 0 | U104: =PMT('Benzin - diesel - hybrid'!U$57,$B104,-U$26) -> 0 | W104: =PMT('Benzin - diesel - hybrid'!W$57,$B104,-W$26) -> 0
B105: 10 | C105: 10 | E105: =PMT('Benzin - diesel - hybrid'!E$57,$B105,-E$26) -> 0 | G105: =PMT('Benzin - diesel - hybrid'!G$57,$B105,-G$26) -> 0 | I105: =PMT('Benzin - diesel - hybrid'!I$57,$B105,-I$26) -> 0 | K105: =PMT('Benzin - diesel - hybrid'!K$57,$B105,-K$26) -> 0 | M105: =PMT('Benzin - diesel - hybrid'!M$57,$B105,-M$26) -> 0 | O105: =PMT('Benzin - diesel - hybrid'!O$57,$B105,-O$26) -> 0 | Q105: =PMT('Benzin - diesel - hybrid'!Q$57,$B105,-Q$26) -> 0 | S105: =PMT('Benzin - diesel - hybrid'!S$57,$B105,-S$26) -> 0 | U105: =PMT('Benzin - diesel - hybrid'!U$57,$B105,-U$26) -> 0 | W105: =PMT('Benzin - diesel - hybrid'!W$57,$B105,-W$26) -> 0
B106: 11 | C106: 11 | E106: =PMT('Benzin - diesel - hybrid'!E$57,$B106,-E$26) -> 0 | G106: =PMT('Benzin - diesel - hybrid'!G$57,$B106,-G$26) -> 0 | I106: =PMT('Benzin - diesel - hybrid'!I$57,$B106,-I$26) -> 0 | K106: =PMT('Benzin - diesel - hybrid'!K$57,$B106,-K$26) -> 0 | M106: =PMT('Benzin - diesel - hybrid'!M$57,$B106,-M$26) -> 0 | O106: =PMT('Benzin - diesel - hybrid'!O$57,$B106,-O$26) -> 0 | Q106: =PMT('Benzin - diesel - hybrid'!Q$57,$B106,-Q$26) -> 0 | S106: =PMT('Benzin - diesel - hybrid'!S$57,$B106,-S$26) -> 0 | U106: =PMT('Benzin - diesel - hybrid'!U$57,$B106,-U$26) -> 0 | W106: =PMT('Benzin - diesel - hybrid'!W$57,$B106,-W$26) -> 0
B107: 12 | C107: 12 | E107: =PMT('Benzin - diesel - hybrid'!E$57,$B107,-E$26) -> 0 | G107: =PMT('Benzin - diesel - hybrid'!G$57,$B107,-G$26) -> 0 | I107: =PMT('Benzin - diesel - hybrid'!I$57,$B107,-I$26) -> 0 | K107: =PMT('Benzin - diesel - hybrid'!K$57,$B107,-K$26) -> 0 | M107: =PMT('Benzin - diesel - hybrid'!M$57,$B107,-M$26) -> 0 | O107: =PMT('Benzin - diesel - hybrid'!O$57,$B107,-O$26) -> 0 | Q107: =PMT('Benzin - diesel - hybrid'!Q$57,$B107,-Q$26) -> 0 | S107: =PMT('Benzin - diesel - hybrid'!S$57,$B107,-S$26) -> 0 | U107: =PMT('Benzin - diesel - hybrid'!U$57,$B107,-U$26) -> 0 | W107: =PMT('Benzin - diesel - hybrid'!W$57,$B107,-W$26) -> 0
B108: 13 | C108: 13 | E108: =PMT('Benzin - diesel - hybrid'!E$57,$B108,-E$26) -> 0 | G108: =PMT('Benzin - diesel - hybrid'!G$57,$B108,-G$26) -> 0 | I108: =PMT('Benzin - diesel - hybrid'!I$57,$B108,-I$26) -> 0 | K108: =PMT('Benzin - diesel - hybrid'!K$57,$B108,-K$26) -> 0 | M108: =PMT('Benzin - diesel - hybrid'!M$57,$B108,-M$26) -> 0 | O108: =PMT('Benzin - diesel - hybrid'!O$57,$B108,-O$26) -> 0 | Q108: =PMT('Benzin - diesel - hybrid'!Q$57,$B108,-Q$26) -> 0 | S108: =PMT('Benzin - diesel - hybrid'!S$57,$B108,-S$26) -> 0 | U108: =PMT('Benzin - diesel - hybrid'!U$57,$B108,-U$26) -> 0 | W108: =PMT('Benzin - diesel - hybrid'!W$57,$B108,-W$26) -> 0
B109: 14 | C109: 14 | E109: =PMT('Benzin - diesel - hybrid'!E$57,$B109,-E$26) -> 0 | G109: =PMT('Benzin - diesel - hybrid'!G$57,$B109,-G$26) -> 0 | I109: =PMT('Benzin - diesel - hybrid'!I$57,$B109,-I$26) -> 0 | K109: =PMT('Benzin - diesel - hybrid'!K$57,$B109,-K$26) -> 0 | M109: =PMT('Benzin - diesel - hybrid'!M$57,$B109,-M$26) -> 0 | O109: =PMT('Benzin - diesel - hybrid'!O$57,$B109,-O$26) -> 0 | Q109: =PMT('Benzin - diesel - hybrid'!Q$57,$B109,-Q$26) -> 0 | S109: =PMT('Benzin - diesel - hybrid'!S$57,$B109,-S$26) -> 0 | U109: =PMT('Benzin - diesel - hybrid'!U$57,$B109,-U$26) -> 0 | W109: =PMT('Benzin - diesel - hybrid'!W$57,$B109,-W$26) -> 0
B110: 15 | C110: 15 | E110: =PMT('Benzin - diesel - hybrid'!E$57,$B110,-E$26) -> 0 | G110: =PMT('Benzin - diesel - hybrid'!G$57,$B110,-G$26) -> 0 | I110: =PMT('Benzin - diesel - hybrid'!I$57,$B110,-I$26) -> 0 | K110: =PMT('Benzin - diesel - hybrid'!K$57,$B110,-K$26) -> 0 | M110: =PMT('Benzin - diesel - hybrid'!M$57,$B110,-M$26) -> 0 | O110: =PMT('Benzin - diesel - hybrid'!O$57,$B110,-O$26) -> 0 | Q110: =PMT('Benzin - diesel - hybrid'!Q$57,$B110,-Q$26) -> 0 | S110: =PMT('Benzin - diesel - hybrid'!S$57,$B110,-S$26) -> 0 | U110: =PMT('Benzin - diesel - hybrid'!U$57,$B110,-U$26) -> 0 | W110: =PMT('Benzin - diesel - hybrid'!W$57,$B110,-W$26) -> 0
B111: 16 | C111: =B111 -> 16 | E111: =PMT('Benzin - diesel - hybrid'!E$57,$B111,-E$26) -> 0 | G111: =PMT('Benzin - diesel - hybrid'!G$57,$B111,-G$26) -> 0 | I111: =PMT('Benzin - diesel - hybrid'!I$57,$B111,-I$26) -> 0 | K111: =PMT('Benzin - diesel - hybrid'!K$57,$B111,-K$26) -> 0 | M111: =PMT('Benzin - diesel - hybrid'!M$57,$B111,-M$26) -> 0 | O111: =PMT('Benzin - diesel - hybrid'!O$57,$B111,-O$26) -> 0 | Q111: =PMT('Benzin - diesel - hybrid'!Q$57,$B111,-Q$26) -> 0 | S111: =PMT('Benzin - diesel - hybrid'!S$57,$B111,-S$26) -> 0 | U111: =PMT('Benzin - diesel - hybrid'!U$57,$B111,-U$26) -> 0 | W111: =PMT('Benzin - diesel - hybrid'!W$57,$B111,-W$26) -> 0
B112: 17 | C112: 17 | E112: =PMT('Benzin - diesel - hybrid'!E$57,$B112,-E$26) -> 0 | G112: =PMT('Benzin - diesel - hybrid'!G$57,$B112,-G$26) -> 0 | I112: =PMT('Benzin - diesel - hybrid'!I$57,$B112,-I$26) -> 0 | K112: =PMT('Benzin - diesel - hybrid'!K$57,$B112,-K$26) -> 0 | M112: =PMT('Benzin - diesel - hybrid'!M$57,$B112,-M$26) -> 0 | O112: =PMT('Benzin - diesel - hybrid'!O$57,$B112,-O$26) -> 0 | Q112: =PMT('Benzin - diesel - hybrid'!Q$57,$B112,-Q$26) -> 0 | S112: =PMT('Benzin - diesel - hybrid'!S$57,$B112,-S$26) -> 0 | U112: =PMT('Benzin - diesel - hybrid'!U$57,$B112,-U$26) -> 0 | W112: =PMT('Benzin - diesel - hybrid'!W$57,$B112,-W$26) -> 0
B113: 18 | C113: 18 | E113: =PMT('Benzin - diesel - hybrid'!E$57,$B113,-E$26) -> 0 | G113: =PMT('Benzin - diesel - hybrid'!G$57,$B113,-G$26) -> 0 | I113: =PMT('Benzin - diesel - hybrid'!I$57,$B113,-I$26) -> 0 | K113: =PMT('Benzin - diesel - hybrid'!K$57,$B113,-K$26) -> 0 | M113: =PMT('Benzin - diesel - hybrid'!M$57,$B113,-M$26) -> 0 | O113: =PMT('Benzin - diesel - hybrid'!O$57,$B113,-O$26) -> 0 | Q113: =PMT('Benzin - diesel - hybrid'!Q$57,$B113,-Q$26) -> 0 | S113: =PMT('Benzin - diesel - hybrid'!S$57,$B113,-S$26) -> 0 | U113: =PMT('Benzin - diesel - hybrid'!U$57,$B113,-U$26) -> 0 | W113: =PMT('Benzin - diesel - hybrid'!W$57,$B113,-W$26) -> 0
B114: 19 | C114: 19 | E114: =PMT('Benzin - diesel - hybrid'!E$57,$B114,-E$26) -> 0 | G114: =PMT('Benzin - diesel - hybrid'!G$57,$B114,-G$26) -> 0 | I114: =PMT('Benzin - diesel - hybrid'!I$57,$B114,-I$26) -> 0 | K114: =PMT('Benzin - diesel - hybrid'!K$57,$B114,-K$26) -> 0 | M114: =PMT('Benzin - diesel - hybrid'!M$57,$B114,-M$26) -> 0 | O114: =PMT('Benzin - diesel - hybrid'!O$57,$B114,-O$26) -> 0 | Q114: =PMT('Benzin - diesel - hybrid'!Q$57,$B114,-Q$26) -> 0 | S114: =PMT('Benzin - diesel - hybrid'!S$57,$B114,-S$26) -> 0 | U114: =PMT('Benzin - diesel - hybrid'!U$57,$B114,-U$26) -> 0 | W114: =PMT('Benzin - diesel - hybrid'!W$57,$B114,-W$26) -> 0
B115: 20 | C115: 20 | E115: =PMT('Benzin - diesel - hybrid'!E$57,$B115,-E$26) -> 0 | G115: =PMT('Benzin - diesel - hybrid'!G$57,$B115,-G$26) -> 0 | I115: =PMT('Benzin - diesel - hybrid'!I$57,$B115,-I$26) -> 0 | K115: =PMT('Benzin - diesel - hybrid'!K$57,$B115,-K$26) -> 0 | M115: =PMT('Benzin - diesel - hybrid'!M$57,$B115,-M$26) -> 0 | O115: =PMT('Benzin - diesel - hybrid'!O$57,$B115,-O$26) -> 0 | Q115: =PMT('Benzin - diesel - hybrid'!Q$57,$B115,-Q$26) -> 0 | S115: =PMT('Benzin - diesel - hybrid'!S$57,$B115,-S$26) -> 0 | U115: =PMT('Benzin - diesel - hybrid'!U$57,$B115,-U$26) -> 0 | W115: =PMT('Benzin - diesel - hybrid'!W$57,$B115,-W$26) -> 0
A117: Eksternalitetsmodul - Udledning forbundet med elforbrug I brugsfasen (tons Co2e) - Udledningerne er multipleret med antallet af produkter I det givne tilbud
B118: År indeks | D118: TCO-evalueringsperiode | E118: ='Benzin - diesel - hybrid'!E8 -> PRODUKT 1 | F118: PD1 - Årligt strømforbrug (kWh/år/produkt) | G118: ='Benzin - diesel - hybrid'!G8 -> PRODUKT 2 | H118: PD2 - Årligt strømforbrug (kWh/år/produkt) | I118: ='Benzin - diesel - hybrid'!I8 -> PRODUKT 3 | J118: PD3 - Årligt strømforbrug (kWh/år/produkt) | K118: ='Benzin - diesel - hybrid'!K8 -> PRODUKT 4 | L118: PD4 - Årligt strømforbrug (kWh/år/produkt) | M118: ='Benzin - diesel - hybrid'!M8 -> PRODUKT 5 | N118: PD5 - Årligt strømforbrug (kWh/år/produkt) | O118: ='Benzin - diesel - hybrid'!O8 -> PRODUKT 6 | P118: PD6 - Årligt strømforbrug (kWh/år/produkt) | Q118: ='Benzin - diesel - hybrid'!Q8 -> PRODUKT 7 | R118: PD7 - Årligt strømforbrug (kWh/år/produkt) | S118: ='Benzin - diesel - hybrid'!S8 -> PRODUKT 8 | T118: PD8 - Årligt strømforbrug (kWh/år/produkt) | U118: ='Benzin - diesel - hybrid'!Y8 -> 0 | V118: PD8 - Årligt strømforbrug (kWh/år/produkt) | W118: ='Benzin - diesel - hybrid'!AA8 -> 0 | X118: PD8 - Årligt strømforbrug (kWh/år/produkt)
B119: 1 | C119: =B119 -> 1 | E119: ='Benzin - diesel - hybrid'!E$49*F119*IF('Benzin - diesel - hybrid'!E$29="nej","",IF('Benzin - diesel - hybrid'!#REF!="ja",VLOOKUP('Benzin - diesel - hybrid'!E$55+($C119-1),Fremskrivninger!$A$9:$L$38,12),'Benzin - diesel - hybrid'!#REF!))/1000 ->  | F119: =('Benzin - diesel - hybrid'!E$15*'Benzin - diesel - hybrid'!E$50*'Benzin - diesel - hybrid'!#REF!/10+'Benzin - diesel - hybrid'!#REF!*365) ->  | G119: ='Benzin - diesel - hybrid'!G$49*H119*IF('Benzin - diesel - hybrid'!G$29="nej","",IF('Benzin - diesel - hybrid'!#REF!="ja",VLOOKUP('Benzin - diesel - hybrid'!G$55+($C119-1),Fremskrivninger!$A$9:$L$38,12),'Benzin - diesel - hybrid'!#REF!))/1000 ->  | H119: =('Benzin - diesel - hybrid'!G$15*'Benzin - diesel - hybrid'!G$50*'Benzin - diesel - hybrid'!#REF!/10+'Benzin - diesel - hybrid'!#REF!*365) ->  | I119: ='Benzin - diesel - hybrid'!I$49*J119*IF('Benzin - diesel - hybrid'!I$29="nej","",IF('Benzin - diesel - hybrid'!#REF!="ja",VLOOKUP('Benzin - diesel - hybrid'!I$55+($C119-1),Fremskrivninger!$A$9:$L$38,12),'Benzin - diesel - hybrid'!#REF!))/1000 ->  | J119: =('Benzin - diesel - hybrid'!I$15*'Benzin - diesel - hybrid'!I$50*'Benzin - diesel - hybrid'!#REF!/10+'Benzin - diesel - hybrid'!#REF!*365) ->  | K119: ='Benzin - diesel - hybrid'!K$49*L119*IF('Benzin - diesel - hybrid'!K$29="nej","",IF('Benzin - diesel - hybrid'!#REF!="ja",VLOOKUP('Benzin - diesel - hybrid'!K$55+($C119-1),Fremskrivninger!$A$9:$L$38,12),'Benzin - diesel - hybrid'!#REF!))/1000 ->  | L119: =('Benzin - diesel - hybrid'!K$15*'Benzin - diesel - hybrid'!K$50*'Benzin - diesel - hybrid'!#REF!/10+'Benzin - diesel - hybrid'!#REF!*365) ->  | M119: ='Benzin - diesel - hybrid'!M$49*N119*IF('Benzin - diesel - hybrid'!M$29="nej","",IF('Benzin - diesel - hybrid'!#REF!="ja",VLOOKUP('Benzin - diesel - hybrid'!M$55+($C119-1),Fremskrivninger!$A$9:$L$38,12),'Benzin - diesel - hybrid'!#REF!))/1000 ->  | N119: =('Benzin - diesel - hybrid'!M$15*'Benzin - diesel - hybrid'!M$50*'Benzin - diesel - hybrid'!#REF!/10+'Benzin - diesel - hybrid'!#REF!*365) ->  | O119: ='Benzin - diesel - hybrid'!O$49*P119*IF('Benzin - diesel - hybrid'!O$29="nej","",IF('Benzin - diesel - hybrid'!#REF!="ja",VLOOKUP('Benzin - diesel - hybrid'!O$55+($C119-1),Fremskrivninger!$A$9:$L$38,12),'Benzin - diesel - hybrid'!#REF!))/1000 ->  | P119: =('Benzin - diesel - hybrid'!O$15*'Benzin - diesel - hybrid'!O$50*'Benzin - diesel - hybrid'!#REF!/10+'Benzin - diesel - hybrid'!#REF!*365) ->  | Q119: ='Benzin - diesel - hybrid'!Q$49*R119*IF('Benzin - diesel - hybrid'!Q$29="nej","",IF('Benzin - diesel - hybrid'!#REF!="ja",VLOOKUP('Benzin - diesel - hybrid'!Q$55+($C119-1),Fremskrivninger!$A$9:$L$38,12),'Benzin - diesel - hybrid'!#REF!))/1000 ->  | R119: =('Benzin - diesel - hybrid'!Q$15*'Benzin - diesel - hybrid'!Q$50*'Benzin - diesel - hybrid'!#REF!/10+'Benzin - diesel - hybrid'!#REF!*365) ->  | S119: ='Benzin - diesel - hybrid'!S$49*T119*IF('Benzin - diesel - hybrid'!S$29="nej","",IF('Benzin - diesel - hybrid'!#REF!="ja",VLOOKUP('Benzin - diesel - hybrid'!S$55+($C119-1),Fremskrivninger!$A$9:$L$38,12),'Benzin - diesel - hybrid'!#REF!))/1000 ->  | T119: =('Benzin - diesel - hybrid'!S$15*'Benzin - diesel - hybrid'!S$50*'Benzin - diesel - hybrid'!#REF!/10+'Benzin - diesel - hybrid'!#REF!*365) ->  | U119: ='Benzin - diesel - hybrid'!Y$49*V119*IF('Benzin - diesel - hybrid'!Y$29="nej","",IF('Benzin - diesel - hybrid'!#REF!="ja",VLOOKUP('Benzin - diesel - hybrid'!Y$55+($C119-1),Fremskrivninger!$A$9:$L$38,12),'Benzin - diesel - hybrid'!#REF!))/1000 ->  | V119: =('Benzin - diesel - hybrid'!Y$15*'Benzin - diesel - hybrid'!Y$50*'Benzin - diesel - hybrid'!#REF!/10+'Benzin - diesel - hybrid'!#REF!*365) ->  | W119: ='Benzin - diesel - hybrid'!AA$49*X119*IF('Benzin - diesel - hybrid'!AA$29="nej","",IF('Benzin - diesel - hybrid'!#REF!="ja",VLOOKUP('Benzin - diesel - hybrid'!AA$55+($C119-1),Fremskrivninger!$A$9:$L$38,12),'Benzin - diesel - hybrid'!#REF!))/1000 ->  | X119: =('Benzin - diesel - hybrid'!AA$15*'Benzin - diesel - hybrid'!AA$50*'Benzin - diesel - hybrid'!#REF!/10+'Benzin - diesel - hybrid'!#REF!*365) -> 
B120: 2 | C120: =B120 -> 2 | E120: ='Benzin - diesel - hybrid'!E$49*F120*IF('Benzin - diesel - hybrid'!E$29="nej","",IF('Benzin - diesel - hybrid'!#REF!="ja",VLOOKUP('Benzin - diesel - hybrid'!E$55+($C120-1),Fremskrivninger!$A$9:$L$38,12),'Benzin - diesel - hybrid'!#REF!))/1000 ->  | F120: =('Benzin - diesel - hybrid'!E$15*'Benzin - diesel - hybrid'!E$50*'Benzin - diesel - hybrid'!#REF!/10+'Benzin - diesel - hybrid'!#REF!*365) ->  | G120: ='Benzin - diesel - hybrid'!G$49*H120*IF('Benzin - diesel - hybrid'!G$29="nej","",IF('Benzin - diesel - hybrid'!#REF!="ja",VLOOKUP('Benzin - diesel - hybrid'!G$55+($C120-1),Fremskrivninger!$A$9:$L$38,12),'Benzin - diesel - hybrid'!#REF!))/1000 ->  | H120: =('Benzin - diesel - hybrid'!G$15*'Benzin - diesel - hybrid'!G$50*'Benzin - diesel - hybrid'!#REF!/10+'Benzin - diesel - hybrid'!#REF!*365) ->  | I120: ='Benzin - diesel - hybrid'!I$49*J120*IF('Benzin - diesel - hybrid'!I$29="nej","",IF('Benzin - diesel - hybrid'!#REF!="ja",VLOOKUP('Benzin - diesel - hybrid'!I$55+($C120-1),Fremskrivninger!$A$9:$L$38,12),'Benzin - diesel - hybrid'!#REF!))/1000 ->  | J120: =('Benzin - diesel - hybrid'!I$15*'Benzin - diesel - hybrid'!I$50*'Benzin - diesel - hybrid'!#REF!/10+'Benzin - diesel - hybrid'!#REF!*365) ->  | K120: ='Benzin - diesel - hybrid'!K$49*L120*IF('Benzin - diesel - hybrid'!K$29="nej","",IF('Benzin - diesel - hybrid'!#REF!="ja",VLOOKUP('Benzin - diesel - hybrid'!K$55+($C120-1),Fremskrivninger!$A$9:$L$38,12),'Benzin - diesel - hybrid'!#REF!))/1000 ->  | L120: =('Benzin - diesel - hybrid'!K$15*'Benzin - diesel - hybrid'!K$50*'Benzin - diesel - hybrid'!#REF!/10+'Benzin - diesel - hybrid'!#REF!*365) ->  | M120: ='Benzin - diesel - hybrid'!M$49*N120*IF('Benzin - diesel - hybrid'!M$29="nej","",IF('Benzin - diesel - hybrid'!#REF!="ja",VLOOKUP('Benzin - diesel - hybrid'!M$55+($C120-1),Fremskrivninger!$A$9:$L$38,12),'Benzin - diesel - hybrid'!#REF!))/1000 ->  | N120: =('Benzin - diesel - hybrid'!M$15*'Benzin - diesel - hybrid'!M$50*'Benzin - diesel - hybrid'!#REF!/10+'Benzin - diesel - hybrid'!#REF!*365) ->  | O120: ='Benzin - diesel - hybrid'!O$49*P120*IF('Benzin - diesel - hybrid'!O$29="nej","",IF('Benzin - diesel - hybrid'!#REF!="ja",VLOOKUP('Benzin - diesel - hybrid'!O$55+($C120-1),Fremskrivninger!$A$9:$L$38,12),'Benzin - diesel - hybrid'!#REF!))/1000 ->  | P120: =('Benzin - diesel - hybrid'!O$15*'Benzin - diesel - hybrid'!O$50*'Benzin - diesel - hybrid'!#REF!/10+'Benzin - diesel - hybrid'!#REF!*365) ->  | Q120: ='Benzin - diesel - hybrid'!Q$49*R120*IF('Benzin - diesel - hybrid'!Q$29="nej","",IF('Benzin - diesel - hybrid'!#REF!="ja",VLOOKUP('Benzin - diesel - hybrid'!Q$55+($C120-1),Fremskrivninger!$A$9:$L$38,12),'Benzin - diesel - hybrid'!#REF!))/1000 ->  | R120: =('Benzin - diesel - hybrid'!Q$15*'Benzin - diesel - hybrid'!Q$50*'Benzin - diesel - hybrid'!#REF!/10+'Benzin - diesel - hybrid'!#REF!*365) ->  | S120: ='Benzin - diesel - hybrid'!S$49*T120*IF('Benzin - diesel - hybrid'!S$29="nej","",IF('Benzin - diesel - hybrid'!#REF!="ja",VLOOKUP('Benzin - diesel - hybrid'!S$55+($C120-1),Fremskrivninger!$A$9:$L$38,12),'Benzin - diesel - hybrid'!#REF!))/1000 ->  | T120: =('Benzin - diesel - hybrid'!S$15*'Benzin - diesel - hybrid'!S$50*'Benzin - diesel - hybrid'!#REF!/10+'Benzin - diesel - hybrid'!#REF!*365) ->  | U120: ='Benzin - diesel - hybrid'!Y$49*V120*IF('Benzin - diesel - hybrid'!Y$29="nej","",IF('Benzin - diesel - hybrid'!#REF!="ja",VLOOKUP('Benzin - diesel - hybrid'!Y$55+($C120-1),Fremskrivninger!$A$9:$L$38,12),'Benzin - diesel - hybrid'!#REF!))/1000 ->  | V120: =('Benzin - diesel - hybrid'!Y$15*'Benzin - diesel - hybrid'!Y$50*'Benzin - diesel - hybrid'!#REF!/10+'Benzin - diesel - hybrid'!#REF!*365) ->  | W120: ='Benzin - diesel - hybrid'!AA$49*X120*IF('Benzin - diesel - hybrid'!AA$29="nej","",IF('Benzin - diesel - hybrid'!#REF!="ja",VLOOKUP('Benzin - diesel - hybrid'!AA$55+($C120-1),Fremskrivninger!$A$9:$L$38,12),'Benzin - diesel - hybrid'!#REF!))/1000 ->  | X120: =('Benzin - diesel - hybrid'!AA$15*'Benzin - diesel - hybrid'!AA$50*'Benzin - diesel - hybrid'!#REF!/10+'Benzin - diesel - hybrid'!#REF!*365) -> 
B121: 3 | C121: 3 | E121: ='Benzin - diesel - hybrid'!E$49*F121*IF('Benzin - diesel - hybrid'!E$29="nej","",IF('Benzin - diesel - hybrid'!#REF!="ja",VLOOKUP('Benzin - diesel - hybrid'!E$55+($C121-1),Fremskrivninger!$A$9:$L$38,12),'Benzin - diesel - hybrid'!#REF!))/1000 ->  | F121: =('Benzin - diesel - hybrid'!E$15*'Benzin - diesel - hybrid'!E$50*'Benzin - diesel - hybrid'!#REF!/10+'Benzin - diesel - hybrid'!#REF!*365) ->  | G121: ='Benzin - diesel - hybrid'!G$49*H121*IF('Benzin - diesel - hybrid'!G$29="nej","",IF('Benzin - diesel - hybrid'!#REF!="ja",VLOOKUP('Benzin - diesel - hybrid'!G$55+($C121-1),Fremskrivninger!$A$9:$L$38,12),'Benzin - diesel - hybrid'!#REF!))/1000 ->  | H121: =('Benzin - diesel - hybrid'!G$15*'Benzin - diesel - hybrid'!G$50*'Benzin - diesel - hybrid'!#REF!/10+'Benzin - diesel - hybrid'!#REF!*365) ->  | I121: ='Benzin - diesel - hybrid'!I$49*J121*IF('Benzin - diesel - hybrid'!I$29="nej","",IF('Benzin - diesel - hybrid'!#REF!="ja",VLOOKUP('Benzin - diesel - hybrid'!I$55+($C121-1),Fremskrivninger!$A$9:$L$38,12),'Benzin - diesel - hybrid'!#REF!))/1000 ->  | J121: =('Benzin - diesel - hybrid'!I$15*'Benzin - diesel - hybrid'!I$50*'Benzin - diesel - hybrid'!#REF!/10+'Benzin - diesel - hybrid'!#REF!*365) ->  | K121: ='Benzin - diesel - hybrid'!K$49*L121*IF('Benzin - diesel - hybrid'!K$29="nej","",IF('Benzin - diesel - hybrid'!#REF!="ja",VLOOKUP('Benzin - diesel - hybrid'!K$55+($C121-1),Fremskrivninger!$A$9:$L$38,12),'Benzin - diesel - hybrid'!#REF!))/1000 ->  | L121: =('Benzin - diesel - hybrid'!K$15*'Benzin - diesel - hybrid'!K$50*'Benzin - diesel - hybrid'!#REF!/10+'Benzin - diesel - hybrid'!#REF!*365) ->  | M121: ='Benzin - diesel - hybrid'!M$49*N121*IF('Benzin - diesel - hybrid'!M$29="nej","",IF('Benzin - diesel - hybrid'!#REF!="ja",VLOOKUP('Benzin - diesel - hybrid'!M$55+($C121-1),Fremskrivninger!$A$9:$L$38,12),'Benzin - diesel - hybrid'!#REF!))/1000 ->  | N121: =('Benzin - diesel - hybrid'!M$15*'Benzin - diesel - hybrid'!M$50*'Benzin - diesel - hybrid'!#REF!/10+'Benzin - diesel - hybrid'!#REF!*365) ->  | O121: ='Benzin - diesel - hybrid'!O$49*P121*IF('Benzin - diesel - hybrid'!O$29="nej","",IF('Benzin - diesel - hybrid'!#REF!="ja",VLOOKUP('Benzin - diesel - hybrid'!O$55+($C121-1),Fremskrivninger!$A$9:$L$38,12),'Benzin - diesel - hybrid'!#REF!))/1000 ->  | P121: =('Benzin - diesel - hybrid'!O$15*'Benzin - diesel - hybrid'!O$50*'Benzin - diesel - hybrid'!#REF!/10+'Benzin - diesel - hybrid'!#REF!*365) ->  | Q121: ='Benzin - diesel - hybrid'!Q$49*R121*IF('Benzin - diesel - hybrid'!Q$29="nej","",IF('Benzin - diesel - hybrid'!#REF!="ja",VLOOKUP('Benzin - diesel - hybrid'!Q$55+($C121-1),Fremskrivninger!$A$9:$L$38,12),'Benzin - diesel - hybrid'!#REF!))/1000 ->  | R121: =('Benzin - diesel - hybrid'!Q$15*'Benzin - diesel - hybrid'!Q$50*'Benzin - diesel - hybrid'!#REF!/10+'Benzin - diesel - hybrid'!#REF!*365) ->  | S121: ='Benzin - diesel - hybrid'!S$49*T121*IF('Benzin - diesel - hybrid'!S$29="nej","",IF('Benzin - diesel - hybrid'!#REF!="ja",VLOOKUP('Benzin - diesel - hybrid'!S$55+($C121-1),Fremskrivninger!$A$9:$L$38,12),'Benzin - diesel - hybrid'!#REF!))/1000 ->  | T121: =('Benzin - diesel - hybrid'!S$15*'Benzin - diesel - hybrid'!S$50*'Benzin - diesel - hybrid'!#REF!/10+'Benzin - diesel - hybrid'!#REF!*365) ->  | U121: ='Benzin - diesel - hybrid'!Y$49*V121*IF('Benzin - diesel - hybrid'!Y$29="nej","",IF('Benzin - diesel - hybrid'!#REF!="ja",VLOOKUP('Benzin - diesel - hybrid'!Y$55+($C121-1),Fremskrivninger!$A$9:$L$38,12),'Benzin - diesel - hybrid'!#REF!))/1000 ->  | V121: =('Benzin - diesel - hybrid'!Y$15*'Benzin - diesel - hybrid'!Y$50*'Benzin - diesel - hybrid'!#REF!/10+'Benzin - diesel - hybrid'!#REF!*365) ->  | W121: ='Benzin - diesel - hybrid'!AA$49*X121*IF('Benzin - diesel - hybrid'!AA$29="nej","",IF('Benzin - diesel - hybrid'!#REF!="ja",VLOOKUP('Benzin - diesel - hybrid'!AA$55+($C121-1),Fremskrivninger!$A$9:$L$38,12),'Benzin - diesel - hybrid'!#REF!))/1000 ->  | X121: =('Benzin - diesel - hybrid'!AA$15*'Benzin - diesel - hybrid'!AA$50*'Benzin - diesel - hybrid'!#REF!/10+'Benzin - diesel - hybrid'!#REF!*365) -> 
B122: 4 | C122: 4 | E122: ='Benzin - diesel - hybrid'!E$49*F122*IF('Benzin - diesel - hybrid'!E$29="nej","",IF('Benzin - diesel - hybrid'!#REF!="ja",VLOOKUP('Benzin - diesel - hybrid'!E$55+($C122-1),Fremskrivninger!$A$9:$L$38,12),'Benzin - diesel - hybrid'!#REF!))/1000 ->  | F122: =('Benzin - diesel - hybrid'!E$15*'Benzin - diesel - hybrid'!E$50*'Benzin - diesel - hybrid'!#REF!/10+'Benzin - diesel - hybrid'!#REF!*365) ->  | G122: ='Benzin - diesel - hybrid'!G$49*H122*IF('Benzin - diesel - hybrid'!G$29="nej","",IF('Benzin - diesel - hybrid'!#REF!="ja",VLOOKUP('Benzin - diesel - hybrid'!G$55+($C122-1),Fremskrivninger!$A$9:$L$38,12),'Benzin - diesel - hybrid'!#REF!))/1000 ->  | H122: =('Benzin - diesel - hybrid'!G$15*'Benzin - diesel - hybrid'!G$50*'Benzin - diesel - hybrid'!#REF!/10+'Benzin - diesel - hybrid'!#REF!*365) ->  | I122: ='Benzin - diesel - hybrid'!I$49*J122*IF('Benzin - diesel - hybrid'!I$29="nej","",IF('Benzin - diesel - hybrid'!#REF!="ja",VLOOKUP('Benzin - diesel - hybrid'!I$55+($C122-1),Fremskrivninger!$A$9:$L$38,12),'Benzin - diesel - hybrid'!#REF!))/1000 ->  | J122: =('Benzin - diesel - hybrid'!I$15*'Benzin - diesel - hybrid'!I$50*'Benzin - diesel - hybrid'!#REF!/10+'Benzin - diesel - hybrid'!#REF!*365) ->  | K122: ='Benzin - diesel - hybrid'!K$49*L122*IF('Benzin - diesel - hybrid'!K$29="nej","",IF('Benzin - diesel - hybrid'!#REF!="ja",VLOOKUP('Benzin - diesel - hybrid'!K$55+($C122-1),Fremskrivninger!$A$9:$L$38,12),'Benzin - diesel - hybrid'!#REF!))/1000 ->  | L122: =('Benzin - diesel - hybrid'!K$15*'Benzin - diesel - hybrid'!K$50*'Benzin - diesel - hybrid'!#REF!/10+'Benzin - diesel - hybrid'!#REF!*365) ->  | M122: ='Benzin - diesel - hybrid'!M$49*N122*IF('Benzin - diesel - hybrid'!M$29="nej","",IF('Benzin - diesel - hybrid'!#REF!="ja",VLOOKUP('Benzin - diesel - hybrid'!M$55+($C122-1),Fremskrivninger!$A$9:$L$38,12),'Benzin - diesel - hybrid'!#REF!))/1000 ->  | N122: =('Benzin - diesel - hybrid'!M$15*'Benzin - diesel - hybrid'!M$50*'Benzin - diesel - hybrid'!#REF!/10+'Benzin - diesel - hybrid'!#REF!*365) ->  | O122: ='Benzin - diesel - hybrid'!O$49*P122*IF('Benzin - diesel - hybrid'!O$29="nej","",IF('Benzin - diesel - hybrid'!#REF!="ja",VLOOKUP('Benzin - diesel - hybrid'!O$55+($C122-1),Fremskrivninger!$A$9:$L$38,12),'Benzin - diesel - hybrid'!#REF!))/1000 ->  | P122: =('Benzin - diesel - hybrid'!O$15*'Benzin - diesel - hybrid'!O$50*'Benzin - diesel - hybrid'!#REF!/10+'Benzin - diesel - hybrid'!#REF!*365) ->  | Q122: ='Benzin - diesel - hybrid'!Q$49*R122*IF('Benzin - diesel - hybrid'!Q$29="nej","",IF('Benzin - diesel - hybrid'!#REF!="ja",VLOOKUP('Benzin - diesel - hybrid'!Q$55+($C122-1),Fremskrivninger!$A$9:$L$38,12),'Benzin - diesel - hybrid'!#REF!))/1000 ->  | R122: =('Benzin - diesel - hybrid'!Q$15*'Benzin - diesel - hybrid'!Q$50*'Benzin - diesel - hybrid'!#REF!/10+'Benzin - diesel - hybrid'!#REF!*365) ->  | S122: ='Benzin - diesel - hybrid'!S$49*T122*IF('Benzin - diesel - hybrid'!S$29="nej","",IF('Benzin - diesel - hybrid'!#REF!="ja",VLOOKUP('Benzin - diesel - hybrid'!S$55+($C122-1),Fremskrivninger!$A$9:$L$38,12),'Benzin - diesel - hybrid'!#REF!))/1000 ->  | T122: =('Benzin - diesel - hybrid'!S$15*'Benzin - diesel - hybrid'!S$50*'Benzin - diesel - hybrid'!#REF!/10+'Benzin - diesel - hybrid'!#REF!*365) ->  | U122: ='Benzin - diesel - hybrid'!Y$49*V122*IF('Benzin - diesel - hybrid'!Y$29="nej","",IF('Benzin - diesel - hybrid'!#REF!="ja",VLOOKUP('Benzin - diesel - hybrid'!Y$55+($C122-1),Fremskrivninger!$A$9:$L$38,12),'Benzin - diesel - hybrid'!#REF!))/1000 ->  | V122: =('Benzin - diesel - hybrid'!Y$15*'Benzin - diesel - hybrid'!Y$50*'Benzin - diesel - hybrid'!#REF!/10+'Benzin - diesel - hybrid'!#REF!*365) ->  | W122: ='Benzin - diesel - hybrid'!AA$49*X122*IF('Benzin - diesel - hybrid'!AA$29="nej","",IF('Benzin - diesel - hybrid'!#REF!="ja",VLOOKUP('Benzin - diesel - hybrid'!AA$55+($C122-1),Fremskrivninger!$A$9:$L$38,12),'Benzin - diesel - hybrid'!#REF!))/1000 ->  | X122: =('Benzin - diesel - hybrid'!AA$15*'Benzin - diesel - hybrid'!AA$50*'Benzin - diesel - hybrid'!#REF!/10+'Benzin - diesel - hybrid'!#REF!*365) -> 
B123: 5 | C123: 5 | E123: ='Benzin - diesel - hybrid'!E$49*F123*IF('Benzin - diesel - hybrid'!E$29="nej","",IF('Benzin - diesel - hybrid'!#REF!="ja",VLOOKUP('Benzin - diesel - hybrid'!E$55+($C123-1),Fremskrivninger!$A$9:$L$38,12),'Benzin - diesel - hybrid'!#REF!))/1000 ->  | F123: =('Benzin - diesel - hybrid'!E$15*'Benzin - diesel - hybrid'!E$50*'Benzin - diesel - hybrid'!#REF!/10+'Benzin - diesel - hybrid'!#REF!*365) ->  | G123: ='Benzin - diesel - hybrid'!G$49*H123*IF('Benzin - diesel - hybrid'!G$29="nej","",IF('Benzin - diesel - hybrid'!#REF!="ja",VLOOKUP('Benzin - diesel - hybrid'!G$55+($C123-1),Fremskrivninger!$A$9:$L$38,12),'Benzin - diesel - hybrid'!#REF!))/1000 ->  | H123: =('Benzin - diesel - hybrid'!G$15*'Benzin - diesel - hybrid'!G$50*'Benzin - diesel - hybrid'!#REF!/10+'Benzin - diesel - hybrid'!#REF!*365) ->  | I123: ='Benzin - diesel - hybrid'!I$49*J123*IF('Benzin - diesel - hybrid'!I$29="nej","",IF('Benzin - diesel - hybrid'!#REF!="ja",VLOOKUP('Benzin - diesel - hybrid'!I$55+($C123-1),Fremskrivninger!$A$9:$L$38,12),'Benzin - diesel - hybrid'!#REF!))/1000 ->  | J123: =('Benzin - diesel - hybrid'!I$15*'Benzin - diesel - hybrid'!I$50*'Benzin - diesel - hybrid'!#REF!/10+'Benzin - diesel - hybrid'!#REF!*365) ->  | K123: ='Benzin - diesel - hybrid'!K$49*L123*IF('Benzin - diesel - hybrid'!K$29="nej","",IF('Benzin - diesel - hybrid'!#REF!="ja",VLOOKUP('Benzin - diesel - hybrid'!K$55+($C123-1),Fremskrivninger!$A$9:$L$38,12),'Benzin - diesel - hybrid'!#REF!))/1000 ->  | L123: =('Benzin - diesel - hybrid'!K$15*'Benzin - diesel - hybrid'!K$50*'Benzin - diesel - hybrid'!#REF!/10+'Benzin - diesel - hybrid'!#REF!*365) ->  | M123: ='Benzin - diesel - hybrid'!M$49*N123*IF('Benzin - diesel - hybrid'!M$29="nej","",IF('Benzin - diesel - hybrid'!#REF!="ja",VLOOKUP('Benzin - diesel - hybrid'!M$55+($C123-1),Fremskrivninger!$A$9:$L$38,12),'Benzin - diesel - hybrid'!#REF!))/1000 ->  | N123: =('Benzin - diesel - hybrid'!M$15*'Benzin - diesel - hybrid'!M$50*'Benzin - diesel - hybrid'!#REF!/10+'Benzin - diesel - hybrid'!#REF!*365) ->  | O123: ='Benzin - diesel - hybrid'!O$49*P123*IF('Benzin - diesel - hybrid'!O$29="nej","",IF('Benzin - diesel - hybrid'!#REF!="ja",VLOOKUP('Benzin - diesel - hybrid'!O$55+($C123-1),Fremskrivninger!$A$9:$L$38,12),'Benzin - diesel - hybrid'!#REF!))/1000 ->  | P123: =('Benzin - diesel - hybrid'!O$15*'Benzin - diesel - hybrid'!O$50*'Benzin - diesel - hybrid'!#REF!/10+'Benzin - diesel - hybrid'!#REF!*365) ->  | Q123: ='Benzin - diesel - hybrid'!Q$49*R123*IF('Benzin - diesel - hybrid'!Q$29="nej","",IF('Benzin - diesel - hybrid'!#REF!="ja",VLOOKUP('Benzin - diesel - hybrid'!Q$55+($C123-1),Fremskrivninger!$A$9:$L$38,12),'Benzin - diesel - hybrid'!#REF!))/1000 ->  | R123: =('Benzin - diesel - hybrid'!Q$15*'Benzin - diesel - hybrid'!Q$50*'Benzin - diesel - hybrid'!#REF!/10+'Benzin - diesel - hybrid'!#REF!*365) ->  | S123: ='Benzin - diesel - hybrid'!S$49*T123*IF('Benzin - diesel - hybrid'!S$29="nej","",IF('Benzin - diesel - hybrid'!#REF!="ja",VLOOKUP('Benzin - diesel - hybrid'!S$55+($C123-1),Fremskrivninger!$A$9:$L$38,12),'Benzin - diesel - hybrid'!#REF!))/1000 ->  | T123: =('Benzin - diesel - hybrid'!S$15*'Benzin - diesel - hybrid'!S$50*'Benzin - diesel - hybrid'!#REF!/10+'Benzin - diesel - hybrid'!#REF!*365) ->  | U123: ='Benzin - diesel - hybrid'!Y$49*V123*IF('Benzin - diesel - hybrid'!Y$29="nej","",IF('Benzin - diesel - hybrid'!#REF!="ja",VLOOKUP('Benzin - diesel - hybrid'!Y$55+($C123-1),Fremskrivninger!$A$9:$L$38,12),'Benzin - diesel - hybrid'!#REF!))/1000 ->  | V123: =('Benzin - diesel - hybrid'!Y$15*'Benzin - diesel - hybrid'!Y$50*'Benzin - diesel - hybrid'!#REF!/10+'Benzin - diesel - hybrid'!#REF!*365) ->  | W123: ='Benzin - diesel - hybrid'!AA$49*X123*IF('Benzin - diesel - hybrid'!AA$29="nej","",IF('Benzin - diesel - hybrid'!#REF!="ja",VLOOKUP('Benzin - diesel - hybrid'!AA$55+($C123-1),Fremskrivninger!$A$9:$L$38,12),'Benzin - diesel - hybrid'!#REF!))/1000 ->  | X123: =('Benzin - diesel - hybrid'!AA$15*'Benzin - diesel - hybrid'!AA$50*'Benzin - diesel - hybrid'!#REF!/10+'Benzin - diesel - hybrid'!#REF!*365) -> 
B124: 6 | C124: 6 | E124: ='Benzin - diesel - hybrid'!E$49*F124*IF('Benzin - diesel - hybrid'!E$29="nej","",IF('Benzin - diesel - hybrid'!#REF!="ja",VLOOKUP('Benzin - diesel - hybrid'!E$55+($C124-1),Fremskrivninger!$A$9:$L$38,12),'Benzin - diesel - hybrid'!#REF!))/1000 ->  | F124: =('Benzin - diesel - hybrid'!E$15*'Benzin - diesel - hybrid'!E$50*'Benzin - diesel - hybrid'!#REF!/10+'Benzin - diesel - hybrid'!#REF!*365) ->  | G124: ='Benzin - diesel - hybrid'!G$49*H124*IF('Benzin - diesel - hybrid'!G$29="nej","",IF('Benzin - diesel - hybrid'!#REF!="ja",VLOOKUP('Benzin - diesel - hybrid'!G$55+($C124-1),Fremskrivninger!$A$9:$L$38,12),'Benzin - diesel - hybrid'!#REF!))/1000 ->  | H124: =('Benzin - diesel - hybrid'!G$15*'Benzin - diesel - hybrid'!G$50*'Benzin - diesel - hybrid'!#REF!/10+'Benzin - diesel - hybrid'!#REF!*365) ->  | I124: ='Benzin - diesel - hybrid'!I$49*J124*IF('Benzin - diesel - hybrid'!I$29="nej","",IF('Benzin - diesel - hybrid'!#REF!="ja",VLOOKUP('Benzin - diesel - hybrid'!I$55+($C124-1),Fremskrivninger!$A$9:$L$38,12),'Benzin - diesel - hybrid'!#REF!))/1000 ->  | J124: =('Benzin - diesel - hybrid'!I$15*'Benzin - diesel - hybrid'!I$50*'Benzin - diesel - hybrid'!#REF!/10+'Benzin - diesel - hybrid'!#REF!*365) ->  | K124: ='Benzin - diesel - hybrid'!K$49*L124*IF('Benzin - diesel - hybrid'!K$29="nej","",IF('Benzin - diesel - hybrid'!#REF!="ja",VLOOKUP('Benzin - diesel - hybrid'!K$55+($C124-1),Fremskrivninger!$A$9:$L$38,12),'Benzin - diesel - hybrid'!#REF!))/1000 ->  | L124: =('Benzin - diesel - hybrid'!K$15*'Benzin - diesel - hybrid'!K$50*'Benzin - diesel - hybrid'!#REF!/10+'Benzin - diesel - hybrid'!#REF!*365) ->  | M124: ='Benzin - diesel - hybrid'!M$49*N124*IF('Benzin - diesel - hybrid'!M$29="nej","",IF('Benzin - diesel - hybrid'!#REF!="ja",VLOOKUP('Benzin - diesel - hybrid'!M$55+($C124-1),Fremskrivninger!$A$9:$L$38,12),'Benzin - diesel - hybrid'!#REF!))/1000 ->  | N124: =('Benzin - diesel - hybrid'!M$15*'Benzin - diesel - hybrid'!M$50*'Benzin - diesel - hybrid'!#REF!/10+'Benzin - diesel - hybrid'!#REF!*365) ->  | O124: ='Benzin - diesel - hybrid'!O$49*P124*IF('Benzin - diesel - hybrid'!O$29="nej","",IF('Benzin - diesel - hybrid'!#REF!="ja",VLOOKUP('Benzin - diesel - hybrid'!O$55+($C124-1),Fremskrivninger!$A$9:$L$38,12),'Benzin - diesel - hybrid'!#REF!))/1000 ->  | P124: =('Benzin - diesel - hybrid'!O$15*'Benzin - diesel - hybrid'!O$50*'Benzin - diesel - hybrid'!#REF!/10+'Benzin - diesel - hybrid'!#REF!*365) ->  | Q124: ='Benzin - diesel - hybrid'!Q$49*R124*IF('Benzin - diesel - hybrid'!Q$29="nej","",IF('Benzin - diesel - hybrid'!#REF!="ja",VLOOKUP('Benzin - diesel - hybrid'!Q$55+($C124-1),Fremskrivninger!$A$9:$L$38,12),'Benzin - diesel - hybrid'!#REF!))/1000 ->  | R124: =('Benzin - diesel - hybrid'!Q$15*'Benzin - diesel - hybrid'!Q$50*'Benzin - diesel - hybrid'!#REF!/10+'Benzin - diesel - hybrid'!#REF!*365) ->  | S124: ='Benzin - diesel - hybrid'!S$49*T124*IF('Benzin - diesel - hybrid'!S$29="nej","",IF('Benzin - diesel - hybrid'!#REF!="ja",VLOOKUP('Benzin - diesel - hybrid'!S$55+($C124-1),Fremskrivninger!$A$9:$L$38,12),'Benzin - diesel - hybrid'!#REF!))/1000 ->  | T124: =('Benzin - diesel - hybrid'!S$15*'Benzin - diesel - hybrid'!S$50*'Benzin - diesel - hybrid'!#REF!/10+'Benzin - diesel - hybrid'!#REF!*365) ->  | U124: ='Benzin - diesel - hybrid'!Y$49*V124*IF('Benzin - diesel - hybrid'!Y$29="nej","",IF('Benzin - diesel - hybrid'!#REF!="ja",VLOOKUP('Benzin - diesel - hybrid'!Y$55+($C124-1),Fremskrivninger!$A$9:$L$38,12),'Benzin - diesel - hybrid'!#REF!))/1000 ->  | V124: =('Benzin - diesel - hybrid'!Y$15*'Benzin - diesel - hybrid'!Y$50*'Benzin - diesel - hybrid'!#REF!/10+'Benzin - diesel - hybrid'!#REF!*365) ->  | W124: ='Benzin - diesel - hybrid'!AA$49*X124*IF('Benzin - diesel - hybrid'!AA$29="nej","",IF('Benzin - diesel - hybrid'!#REF!="ja",VLOOKUP('Benzin - diesel - hybrid'!AA$55+($C124-1),Fremskrivninger!$A$9:$L$38,12),'Benzin - diesel - hybrid'!#REF!))/1000 ->  | X124: =('Benzin - diesel - hybrid'!AA$15*'Benzin - diesel - hybrid'!AA$50*'Benzin - diesel - hybrid'!#REF!/10+'Benzin - diesel - hybrid'!#REF!*365) -> 
B125: 7 | C125: 7 | E125: ='Benzin - diesel - hybrid'!E$49*F125*IF('Benzin - diesel - hybrid'!E$29="nej","",IF('Benzin - diesel - hybrid'!#REF!="ja",VLOOKUP('Benzin - diesel - hybrid'!E$55+($C125-1),Fremskrivninger!$A$9:$L$38,12),'Benzin - diesel - hybrid'!#REF!))/1000 ->  | F125: =('Benzin - diesel - hybrid'!E$15*'Benzin - diesel - hybrid'!E$50*'Benzin - diesel - hybrid'!#REF!/10+'Benzin - diesel - hybrid'!#REF!*365) ->  | G125: ='Benzin - diesel - hybrid'!G$49*H125*IF('Benzin - diesel - hybrid'!G$29="nej","",IF('Benzin - diesel - hybrid'!#REF!="ja",VLOOKUP('Benzin - diesel - hybrid'!G$55+($C125-1),Fremskrivninger!$A$9:$L$38,12),'Benzin - diesel - hybrid'!#REF!))/1000 ->  | H125: =('Benzin - diesel - hybrid'!G$15*'Benzin - diesel - hybrid'!G$50*'Benzin - diesel - hybrid'!#REF!/10+'Benzin - diesel - hybrid'!#REF!*365) ->  | I125: ='Benzin - diesel - hybrid'!I$49*J125*IF('Benzin - diesel - hybrid'!I$29="nej","",IF('Benzin - diesel - hybrid'!#REF!="ja",VLOOKUP('Benzin - diesel - hybrid'!I$55+($C125-1),Fremskrivninger!$A$9:$L$38,12),'Benzin - diesel - hybrid'!#REF!))/1000 ->  | J125: =('Benzin - diesel - hybrid'!I$15*'Benzin - diesel - hybrid'!I$50*'Benzin - diesel - hybrid'!#REF!/10+'Benzin - diesel - hybrid'!#REF!*365) ->  | K125: ='Benzin - diesel - hybrid'!K$49*L125*IF('Benzin - diesel - hybrid'!K$29="nej","",IF('Benzin - diesel - hybrid'!#REF!="ja",VLOOKUP('Benzin - diesel - hybrid'!K$55+($C125-1),Fremskrivninger!$A$9:$L$38,12),'Benzin - diesel - hybrid'!#REF!))/1000 ->  | L125: =('Benzin - diesel - hybrid'!K$15*'Benzin - diesel - hybrid'!K$50*'Benzin - diesel - hybrid'!#REF!/10+'Benzin - diesel - hybrid'!#REF!*365) ->  | M125: ='Benzin - diesel - hybrid'!M$49*N125*IF('Benzin - diesel - hybrid'!M$29="nej","",IF('Benzin - diesel - hybrid'!#REF!="ja",VLOOKUP('Benzin - diesel - hybrid'!M$55+($C125-1),Fremskrivninger!$A$9:$L$38,12),'Benzin - diesel - hybrid'!#REF!))/1000 ->  | N125: =('Benzin - diesel - hybrid'!M$15*'Benzin - diesel - hybrid'!M$50*'Benzin - diesel - hybrid'!#REF!/10+'Benzin - diesel - hybrid'!#REF!*365) ->  | O125: ='Benzin - diesel - hybrid'!O$49*P125*IF('Benzin - diesel - hybrid'!O$29="nej","",IF('Benzin - diesel - hybrid'!#REF!="ja",VLOOKUP('Benzin - diesel - hybrid'!O$55+($C125-1),Fremskrivninger!$A$9:$L$38,12),'Benzin - diesel - hybrid'!#REF!))/1000 ->  | P125: =('Benzin - diesel - hybrid'!O$15*'Benzin - diesel - hybrid'!O$50*'Benzin - diesel - hybrid'!#REF!/10+'Benzin - diesel - hybrid'!#REF!*365) ->  | Q125: ='Benzin - diesel - hybrid'!Q$49*R125*IF('Benzin - diesel - hybrid'!Q$29="nej","",IF('Benzin - diesel - hybrid'!#REF!="ja",VLOOKUP('Benzin - diesel - hybrid'!Q$55+($C125-1),Fremskrivninger!$A$9:$L$38,12),'Benzin - diesel - hybrid'!#REF!))/1000 ->  | R125: =('Benzin - diesel - hybrid'!Q$15*'Benzin - diesel - hybrid'!Q$50*'Benzin - diesel - hybrid'!#REF!/10+'Benzin - diesel - hybrid'!#REF!*365) ->  | S125: ='Benzin - diesel - hybrid'!S$49*T125*IF('Benzin - diesel - hybrid'!S$29="nej","",IF('Benzin - diesel - hybrid'!#REF!="ja",VLOOKUP('Benzin - diesel - hybrid'!S$55+($C125-1),Fremskrivninger!$A$9:$L$38,12),'Benzin - diesel - hybrid'!#REF!))/1000 ->  | T125: =('Benzin - diesel - hybrid'!S$15*'Benzin - diesel - hybrid'!S$50*'Benzin - diesel - hybrid'!#REF!/10+'Benzin - diesel - hybrid'!#REF!*365) ->  | U125: ='Benzin - diesel - hybrid'!Y$49*V125*IF('Benzin - diesel - hybrid'!Y$29="nej","",IF('Benzin - diesel - hybrid'!#REF!="ja",VLOOKUP('Benzin - diesel - hybrid'!Y$55+($C125-1),Fremskrivninger!$A$9:$L$38,12),'Benzin - diesel - hybrid'!#REF!))/1000 ->  | V125: =('Benzin - diesel - hybrid'!Y$15*'Benzin - diesel - hybrid'!Y$50*'Benzin - diesel - hybrid'!#REF!/10+'Benzin - diesel - hybrid'!#REF!*365) ->  | W125: ='Benzin - diesel - hybrid'!AA$49*X125*IF('Benzin - diesel - hybrid'!AA$29="nej","",IF('Benzin - diesel - hybrid'!#REF!="ja",VLOOKUP('Benzin - diesel - hybrid'!AA$55+($C125-1),Fremskrivninger!$A$9:$L$38,12),'Benzin - diesel - hybrid'!#REF!))/1000 ->  | X125: =('Benzin - diesel - hybrid'!AA$15*'Benzin - diesel - hybrid'!AA$50*'Benzin - diesel - hybrid'!#REF!/10+'Benzin - diesel - hybrid'!#REF!*365) -> 
B126: 8 | C126: 8 | E126: ='Benzin - diesel - hybrid'!E$49*F126*IF('Benzin - diesel - hybrid'!E$29="nej","",IF('Benzin - diesel - hybrid'!#REF!="ja",VLOOKUP('Benzin - diesel - hybrid'!E$55+($C126-1),Fremskrivninger!$A$9:$L$38,12),'Benzin - diesel - hybrid'!#REF!))/1000 ->  | F126: =('Benzin - diesel - hybrid'!E$15*'Benzin - diesel - hybrid'!E$50*'Benzin - diesel - hybrid'!#REF!/10+'Benzin - diesel - hybrid'!#REF!*365) ->  | G126: ='Benzin - diesel - hybrid'!G$49*H126*IF('Benzin - diesel - hybrid'!G$29="nej","",IF('Benzin - diesel - hybrid'!#REF!="ja",VLOOKUP('Benzin - diesel - hybrid'!G$55+($C126-1),Fremskrivninger!$A$9:$L$38,12),'Benzin - diesel - hybrid'!#REF!))/1000 ->  | H126: =('Benzin - diesel - hybrid'!G$15*'Benzin - diesel - hybrid'!G$50*'Benzin - diesel - hybrid'!#REF!/10+'Benzin - diesel - hybrid'!#REF!*365) ->  | I126: ='Benzin - diesel - hybrid'!I$49*J126*IF('Benzin - diesel - hybrid'!I$29="nej","",IF('Benzin - diesel - hybrid'!#REF!="ja",VLOOKUP('Benzin - diesel - hybrid'!I$55+($C126-1),Fremskrivninger!$A$9:$L$38,12),'Benzin - diesel - hybrid'!#REF!))/1000 ->  | J126: =('Benzin - diesel - hybrid'!I$15*'Benzin - diesel - hybrid'!I$50*'Benzin - diesel - hybrid'!#REF!/10+'Benzin - diesel - hybrid'!#REF!*365) ->  | K126: ='Benzin - diesel - hybrid'!K$49*L126*IF('Benzin - diesel - hybrid'!K$29="nej","",IF('Benzin - diesel - hybrid'!#REF!="ja",VLOOKUP('Benzin - diesel - hybrid'!K$55+($C126-1),Fremskrivninger!$A$9:$L$38,12),'Benzin - diesel - hybrid'!#REF!))/1000 ->  | L126: =('Benzin - diesel - hybrid'!K$15*'Benzin - diesel - hybrid'!K$50*'Benzin - diesel - hybrid'!#REF!/10+'Benzin - diesel - hybrid'!#REF!*365) ->  | M126: ='Benzin - diesel - hybrid'!M$49*N126*IF('Benzin - diesel - hybrid'!M$29="nej","",IF('Benzin - diesel - hybrid'!#REF!="ja",VLOOKUP('Benzin - diesel - hybrid'!M$55+($C126-1),Fremskrivninger!$A$9:$L$38,12),'Benzin - diesel - hybrid'!#REF!))/1000 ->  | N126: =('Benzin - diesel - hybrid'!M$15*'Benzin - diesel - hybrid'!M$50*'Benzin - diesel - hybrid'!#REF!/10+'Benzin - diesel - hybrid'!#REF!*365) ->  | O126: ='Benzin - diesel - hybrid'!O$49*P126*IF('Benzin - diesel - hybrid'!O$29="nej","",IF('Benzin - diesel - hybrid'!#REF!="ja",VLOOKUP('Benzin - diesel - hybrid'!O$55+($C126-1),Fremskrivninger!$A$9:$L$38,12),'Benzin - diesel - hybrid'!#REF!))/1000 ->  | P126: =('Benzin - diesel - hybrid'!O$15*'Benzin - diesel - hybrid'!O$50*'Benzin - diesel - hybrid'!#REF!/10+'Benzin - diesel - hybrid'!#REF!*365) ->  | Q126: ='Benzin - diesel - hybrid'!Q$49*R126*IF('Benzin - diesel - hybrid'!Q$29="nej","",IF('Benzin - diesel - hybrid'!#REF!="ja",VLOOKUP('Benzin - diesel - hybrid'!Q$55+($C126-1),Fremskrivninger!$A$9:$L$38,12),'Benzin - diesel - hybrid'!#REF!))/1000 ->  | R126: =('Benzin - diesel - hybrid'!Q$15*'Benzin - diesel - hybrid'!Q$50*'Benzin - diesel - hybrid'!#REF!/10+'Benzin - diesel - hybrid'!#REF!*365) ->  | S126: ='Benzin - diesel - hybrid'!S$49*T126*IF('Benzin - diesel - hybrid'!S$29="nej","",IF('Benzin - diesel - hybrid'!#REF!="ja",VLOOKUP('Benzin - diesel - hybrid'!S$55+($C126-1),Fremskrivninger!$A$9:$L$38,12),'Benzin - diesel - hybrid'!#REF!))/1000 ->  | T126: =('Benzin - diesel - hybrid'!S$15*'Benzin - diesel - hybrid'!S$50*'Benzin - diesel - hybrid'!#REF!/10+'Benzin - diesel - hybrid'!#REF!*365) ->  | U126: ='Benzin - diesel - hybrid'!Y$49*V126*IF('Benzin - diesel - hybrid'!Y$29="nej","",IF('Benzin - diesel - hybrid'!#REF!="ja",VLOOKUP('Benzin - diesel - hybrid'!Y$55+($C126-1),Fremskrivninger!$A$9:$L$38,12),'Benzin - diesel - hybrid'!#REF!))/1000 ->  | V126: =('Benzin - diesel - hybrid'!Y$15*'Benzin - diesel - hybrid'!Y$50*'Benzin - diesel - hybrid'!#REF!/10+'Benzin - diesel - hybrid'!#REF!*365) ->  | W126: ='Benzin - diesel - hybrid'!AA$49*X126*IF('Benzin - diesel - hybrid'!AA$29="nej","",IF('Benzin - diesel - hybrid'!#REF!="ja",VLOOKUP('Benzin - diesel - hybrid'!AA$55+($C126-1),Fremskrivninger!$A$9:$L$38,12),'Benzin - diesel - hybrid'!#REF!))/1000 ->  | X126: =('Benzin - diesel - hybrid'!AA$15*'Benzin - diesel - hybrid'!AA$50*'Benzin - diesel - hybrid'!#REF!/10+'Benzin - diesel - hybrid'!#REF!*365) -> 
